{"text_format":"1","workbook":"xlsx","n_sheets":3,"sheets":["EDICIÓN","CONFIGURACIÓN_PARTICIPANTES","LISTAS"],"not_rendered":{"charts":0,"images":7,"macros":1,"external_links":1,"defined_names":37,"comments":0,"pivot_tables":0},"unopened":[],"bounds":{"document_bytes":16777216,"sheet_cells":100000,"rows_first":2000,"rows_last":500,"rows_between":2000,"halvings":0,"cell_chars":16384,"cell_head_chars":4096},"cells_cut":0,"cells_raw":0,"read":"whole","date_system":"1900"}

{"sheet":"EDICIÓN","index":0,"n_rows":253,"n_cols":23,"rows_kept":253,"cut":false,"hidden":false,"merged":[[15,17,15,18],[16,17,16,18],[17,17,17,18],[18,17,18,18],[1,1,2,20],[16,12,18,12],[16,15,18,15],[4,1,4,2],[10,6,11,9],[10,1,11,4],[6,1,6,2],[6,3,6,8],[8,1,8,2],[8,3,8,9],[14,6,15,6],[14,7,15,9],[20,1,20,20],[10,11,10,15],[4,14,4,20],[6,14,6,20],[8,14,8,20],[11,13,11,14],[12,13,13,14],[14,13,15,14],[16,13,18,14],[10,17,10,20],[11,17,11,18],[12,17,12,18],[13,17,13,18],[14,17,14,18],[12,15,13,15],[14,15,15,15],[4,3,4,8],[14,12,15,12],[12,1,13,1],[12,2,13,4],[12,6,13,6],[12,7,13,9],[14,1,15,1],[14,2,15,4],[14,11,15,11],[12,12,13,12],[12,11,13,11],[4,11,4,13],[6,11,6,13],[8,11,8,13],[16,1,18,1],[16,2,18,4],[16,6,18,6],[16,7,18,9],[16,11,18,11]]}
[]
[null,"SOLICITUD DE MODIFICACIÓN  PLAN DE ACCIÓN "]
[]
[]
[null,"VIGENCIA:",null,null,null,null,null,null,null,null,null,"AREA:"]
[]
[null,"N° MODIFICACIÓN:",null,null,null,null,null,null,null,null,null,"ÁREA O DEPENDENCIA RESPONSABLE:"]
[]
[null,"FECHA:",null,null,null,null,null,null,null,null,null,"FICHA:",null,null,{"$f":"IF(ISERROR(VLOOKUP(O7,LISTAS!$A$15:$B$50,2,0)),\"\",VLOOKUP(O7,LISTAS!$A$15:$B$50,2,0))","v":""}]
[]
[null,"Vo.Bo. REVISIÓN OAP",null,null,null,null,"APROBACIÓN JEFE OFICINA DE PLANEACIÓN",null,null,null,null,"FIRMAS AREAS/DEPENDENCIAS  RESPONSABLES DE LA FICHA",null,null,null,null,null,"AUTORIZACION OTRAS DEPENDENCIAS RESPONSABLES DE LA EJECUCIÓN DE  ACTIVIDADES"]
[null,null,null,null,null,null,null,null,null,null,null,null," 1° Nivel","2° Nivel",null,"3° Nivel",null,"DEPENDENCIA",null,"NOMBRE ","FIRMA"]
[null,"Nombre:",null,null,null,null,"Nombre:",null,null,null,null,"Nombre:"]
[]
[null,"Firma:",null,null,null,null,"Firma:",null,null,null,null,"Firma:"]
[]
[null,"Cargo:",null,null,null,null,"FECHA Vo.Bo:",null,null,null,null,"Cargo:"]
[]
[]
[]
[null,"Diligencie cada una de las columnas del formato de acuerdo a la versión vigente del PAA, reemplace los contenidos de las celdas que desea modificar, identifíquelas con fondo de color amarillo y justifique los cambios en la columna \"U\". \nSi la modificación a realizar corresponde a los porcentajes de participación de áreas responsables diferentes a la formuladora, diríjase a la celda T22, \"Áreas/ Dependencias responsables de la ejecución de actividades\" y a través de clic en la imagen se habilitará un nuevo formato donde podrá realizar los ajustes requeridos  \n"]
[null,"Código ","Identificación  Fila","Categoría","Objetivo Estratégico","Indicador Estratégico","Estrategia","Insumo de planeación del que se extrajo el producto","¿Es producto compartido con otras áreas?","Fuente de Financiación","Política(s) MIPG","Asociación a planes ","Producto o Actividad","Part. %\n","Meta","Unidad de medida (Meta)","Fórmula para determinar % de Avance ","Fecha Inicio","Fecha Final","Áreas/\nDependencias responsables de la ejecución de actividaes","JUSTIFICACIÓN "]
[null,null,null,null,null,null,null,null,null,null,null,null,null,null,null,null,null,null,null,null,null,null,{"$f":"VLOOKUP(E23,LISTAS!$A$100:$B$111,2,0)","v":{"$error":"#N/A"}}]
[null,null,null,null,null,null,null,null,null,null,null,null,null,null,null,null,null,null,null,null,null,null,{"$f":"VLOOKUP(E24,LISTAS!$A$100:$B$111,2,0)","v":{"$error":"#N/A"}}]
[null,null,null,null,null,null,null,null,null,null,null,null,null,null,null,null,null,null,null,null,null,null,{"$f":"VLOOKUP(E25,LISTAS!$A$100:$B$111,2,0)","v":{"$error":"#N/A"}}]
[null,null,null,null,null,null,null,null,null,null,null,null,null,null,null,null,null,null,null,null,null,null,{"$f":"VLOOKUP(E26,LISTAS!$A$100:$B$111,2,0)","v":{"$error":"#N/A"}}]
[null,null,null,null,null,null,null,null,null,null,null,null,null,null,null,null,null,null,null,null,null,null,{"$f":"VLOOKUP(E27,LISTAS!$A$100:$B$111,2,0)","v":{"$error":"#N/A"}}]
[null,null,null,null,null,null,null,null,null,null,null,null,null,null,null,null,null,null,null,null,null,null,{"$f":"VLOOKUP(E28,LISTAS!$A$100:$B$111,2,0)","v":{"$error":"#N/A"}}]
[null,null,null,null,null,null,null,null,null,null,null,null,null,null,null,null,null,null,null,null,null,null,{"$f":"VLOOKUP(E29,LISTAS!$A$100:$B$111,2,0)","v":{"$error":"#N/A"}}]
[null,null,null,null,null,null,null,null,null,null,null,null,null,null,null,null,null,null,null,null,null,null,{"$f":"VLOOKUP(E30,LISTAS!$A$100:$B$111,2,0)","v":{"$error":"#N/A"}}]
[null,null,null,null,null,null,null,null,null,null,null,null,null,null,null,null,null,null,null,null,null,null,{"$f":"VLOOKUP(E31,LISTAS!$A$100:$B$111,2,0)","v":{"$error":"#N/A"}}]
[null,null,null,null,null,null,null,null,null,null,null,null,null,null,null,null,null,null,null,null,null,null,{"$f":"VLOOKUP(E32,LISTAS!$A$100:$B$111,2,0)","v":{"$error":"#N/A"}}]
[null,null,null,null,null,null,null,null,null,null,null,null,null,null,null,null,null,null,null,null,null,null,{"$f":"VLOOKUP(E33,LISTAS!$A$100:$B$111,2,0)","v":{"$error":"#N/A"}}]
[null,null,null,null,null,null,null,null,null,null,null,null,null,null,null,null,null,null,null,null,null,null,{"$f":"VLOOKUP(E34,LISTAS!$A$100:$B$111,2,0)","v":{"$error":"#N/A"}}]
[null,null,null,null,null,null,null,null,null,null,null,null,null,null,null,null,null,null,null,null,null,null,{"$f":"VLOOKUP(E35,LISTAS!$A$100:$B$111,2,0)","v":{"$error":"#N/A"}}]
[null,null,null,null,null,null,null,null,null,null,null,null,null,null,null,null,null,null,null,null,null,null,{"$f":"VLOOKUP(E36,LISTAS!$A$100:$B$111,2,0)","v":{"$error":"#N/A"}}]
[null,null,null,null,null,null,null,null,null,null,null,null,null,null,null,null,null,null,null,null,null,null,{"$f":"VLOOKUP(E37,LISTAS!$A$100:$B$111,2,0)","v":{"$error":"#N/A"}}]
[null,null,null,null,null,null,null,null,null,null,null,null,null,null,null,null,null,null,null,null,null,null,{"$f":"VLOOKUP(E38,LISTAS!$A$100:$B$111,2,0)","v":{"$error":"#N/A"}}]
[null,null,null,null,null,null,null,null,null,null,null,null,null,null,null,null,null,null,null,null,null,null,{"$f":"VLOOKUP(E39,LISTAS!$A$100:$B$111,2,0)","v":{"$error":"#N/A"}}]
[null,null,null,null,null,null,null,null,null,null,null,null,null,null,null,null,null,null,null,null,null,null,{"$f":"VLOOKUP(E40,LISTAS!$A$100:$B$111,2,0)","v":{"$error":"#N/A"}}]
[null,null,null,null,null,null,null,null,null,null,null,null,null,null,null,null,null,null,null,null,null,null,{"$f":"VLOOKUP(E41,LISTAS!$A$100:$B$111,2,0)","v":{"$error":"#N/A"}}]
[null,null,null,null,null,null,null,null,null,null,null,null,null,null,null,null,null,null,null,null,null,null,{"$f":"VLOOKUP(E42,LISTAS!$A$100:$B$111,2,0)","v":{"$error":"#N/A"}}]
[null,null,null,null,null,null,null,null,null,null,null,null,null,null,null,null,null,null,null,null,null,null,{"$f":"VLOOKUP(E43,LISTAS!$A$100:$B$111,2,0)","v":{"$error":"#N/A"}}]
[null,null,null,null,null,null,null,null,null,null,null,null,null,null,null,null,null,null,null,null,null,null,{"$f":"VLOOKUP(E44,LISTAS!$A$100:$B$111,2,0)","v":{"$error":"#N/A"}}]
[null,null,null,null,null,null,null,null,null,null,null,null,null,null,null,null,null,null,null,null,null,null,{"$f":"VLOOKUP(E45,LISTAS!$A$100:$B$111,2,0)","v":{"$error":"#N/A"}}]
[null,null,null,null,null,null,null,null,null,null,null,null,null,null,null,null,null,null,null,null,null,null,{"$f":"VLOOKUP(E46,LISTAS!$A$100:$B$111,2,0)","v":{"$error":"#N/A"}}]
[null,null,null,null,null,null,null,null,null,null,null,null,null,null,null,null,null,null,null,null,null,null,{"$f":"VLOOKUP(E47,LISTAS!$A$100:$B$111,2,0)","v":{"$error":"#N/A"}}]
[null,null,null,null,null,null,null,null,null,null,null,null,null,null,null,null,null,null,null,null,null,null,{"$f":"VLOOKUP(E48,LISTAS!$A$100:$B$111,2,0)","v":{"$error":"#N/A"}}]
[null,null,null,null,null,null,null,null,null,null,null,null,null,null,null,null,null,null,null,null,null,null,{"$f":"VLOOKUP(E49,LISTAS!$A$100:$B$111,2,0)","v":{"$error":"#N/A"}}]
[null,null,null,null,null,null,null,null,null,null,null,null,null,null,null,null,null,null,null,null,null,null,{"$f":"VLOOKUP(E50,LISTAS!$A$100:$B$111,2,0)","v":{"$error":"#N/A"}}]
[null,null,null,null,null,null,null,null,null,null,null,null,null,null,null,null,null,null,null,null,null,null,{"$f":"VLOOKUP(E51,LISTAS!$A$100:$B$111,2,0)","v":{"$error":"#N/A"}}]
[null,null,null,null,null,null,null,null,null,null,null,null,null,null,null,null,null,null,null,null,null,null,{"$f":"VLOOKUP(E52,LISTAS!$A$100:$B$111,2,0)","v":{"$error":"#N/A"}}]
[null,null,null,null,null,null,null,null,null,null,null,null,null,null,null,null,null,null,null,null,null,null,{"$f":"VLOOKUP(E53,LISTAS!$A$100:$B$111,2,0)","v":{"$error":"#N/A"}}]
[null,null,null,null,null,null,null,null,null,null,null,null,null,null,null,null,null,null,null,null,null,null,{"$f":"VLOOKUP(E54,LISTAS!$A$100:$B$111,2,0)","v":{"$error":"#N/A"}}]
[null,null,null,null,null,null,null,null,null,null,null,null,null,null,null,null,null,null,null,null,null,null,{"$f":"VLOOKUP(E55,LISTAS!$A$100:$B$111,2,0)","v":{"$error":"#N/A"}}]
[null,null,null,null,null,null,null,null,null,null,null,null,null,null,null,null,null,null,null,null,null,null,{"$f":"VLOOKUP(E56,LISTAS!$A$100:$B$111,2,0)","v":{"$error":"#N/A"}}]
[null,null,null,null,null,null,null,null,null,null,null,null,null,null,null,null,null,null,null,null,null,null,{"$f":"VLOOKUP(E57,LISTAS!$A$100:$B$111,2,0)","v":{"$error":"#N/A"}}]
[null,null,null,null,null,null,null,null,null,null,null,null,null,null,null,null,null,null,null,null,null,null,{"$f":"VLOOKUP(E58,LISTAS!$A$100:$B$111,2,0)","v":{"$error":"#N/A"}}]
[null,null,null,null,null,null,null,null,null,null,null,null,null,null,null,null,null,null,null,null,null,null,{"$f":"VLOOKUP(E59,LISTAS!$A$100:$B$111,2,0)","v":{"$error":"#N/A"}}]
[null,null,null,null,null,null,null,null,null,null,null,null,null,null,null,null,null,null,null,null,null,null,{"$f":"VLOOKUP(E60,LISTAS!$A$100:$B$111,2,0)","v":{"$error":"#N/A"}}]
[null,null,null,null,null,null,null,null,null,null,null,null,null,null,null,null,null,null,null,null,null,null,{"$f":"VLOOKUP(E61,LISTAS!$A$100:$B$111,2,0)","v":{"$error":"#N/A"}}]
[null,null,null,null,null,null,null,null,null,null,null,null,null,null,null,null,null,null,null,null,null,null,{"$f":"VLOOKUP(E62,LISTAS!$A$100:$B$111,2,0)","v":{"$error":"#N/A"}}]
[null,null,null,null,null,null,null,null,null,null,null,null,null,null,null,null,null,null,null,null,null,null,{"$f":"VLOOKUP(E63,LISTAS!$A$100:$B$111,2,0)","v":{"$error":"#N/A"}}]
[null,null,null,null,null,null,null,null,null,null,null,null,null,null,null,null,null,null,null,null,null,null,{"$f":"VLOOKUP(E64,LISTAS!$A$100:$B$111,2,0)","v":{"$error":"#N/A"}}]
[null,null,null,null,null,null,null,null,null,null,null,null,null,null,null,null,null,null,null,null,null,null,{"$f":"VLOOKUP(E65,LISTAS!$A$100:$B$111,2,0)","v":{"$error":"#N/A"}}]
[null,null,null,null,null,null,null,null,null,null,null,null,null,null,null,null,null,null,null,null,null,null,{"$f":"VLOOKUP(E66,LISTAS!$A$100:$B$111,2,0)","v":{"$error":"#N/A"}}]
[null,null,null,null,null,null,null,null,null,null,null,null,null,null,null,null,null,null,null,null,null,null,{"$f":"VLOOKUP(E67,LISTAS!$A$100:$B$111,2,0)","v":{"$error":"#N/A"}}]
[null,null,null,null,null,null,null,null,null,null,null,null,null,null,null,null,null,null,null,null,null,null,{"$f":"VLOOKUP(E68,LISTAS!$A$100:$B$111,2,0)","v":{"$error":"#N/A"}}]
[null,null,null,null,null,null,null,null,null,null,null,null,null,null,null,null,null,null,null,null,null,null,{"$f":"VLOOKUP(E69,LISTAS!$A$100:$B$111,2,0)","v":{"$error":"#N/A"}}]
[null,null,null,null,null,null,null,null,null,null,null,null,null,null,null,null,null,null,null,null,null,null,{"$f":"VLOOKUP(E70,LISTAS!$A$100:$B$111,2,0)","v":{"$error":"#N/A"}}]
[null,null,null,null,null,null,null,null,null,null,null,null,null,null,null,null,null,null,null,null,null,null,{"$f":"VLOOKUP(E71,LISTAS!$A$100:$B$111,2,0)","v":{"$error":"#N/A"}}]
[null,null,null,null,null,null,null,null,null,null,null,null,null,null,null,null,null,null,null,null,null,null,{"$f":"VLOOKUP(E72,LISTAS!$A$100:$B$111,2,0)","v":{"$error":"#N/A"}}]
[null,null,null,null,null,null,null,null,null,null,null,null,null,null,null,null,null,null,null,null,null,null,{"$f":"VLOOKUP(E73,LISTAS!$A$100:$B$111,2,0)","v":{"$error":"#N/A"}}]
[null,null,null,null,null,null,null,null,null,null,null,null,null,null,null,null,null,null,null,null,null,null,{"$f":"VLOOKUP(E74,LISTAS!$A$100:$B$111,2,0)","v":{"$error":"#N/A"}}]
[null,null,null,null,null,null,null,null,null,null,null,null,null,null,null,null,null,null,null,null,null,null,{"$f":"VLOOKUP(E75,LISTAS!$A$100:$B$111,2,0)","v":{"$error":"#N/A"}}]
[null,null,null,null,null,null,null,null,null,null,null,null,null,null,null,null,null,null,null,null,null,null,{"$f":"VLOOKUP(E76,LISTAS!$A$100:$B$111,2,0)","v":{"$error":"#N/A"}}]
[null,null,null,null,null,null,null,null,null,null,null,null,null,null,null,null,null,null,null,null,null,null,{"$f":"VLOOKUP(E77,LISTAS!$A$100:$B$111,2,0)","v":{"$error":"#N/A"}}]
[null,null,null,null,null,null,null,null,null,null,null,null,null,null,null,null,null,null,null,null,null,null,{"$f":"VLOOKUP(E78,LISTAS!$A$100:$B$111,2,0)","v":{"$error":"#N/A"}}]
[null,null,null,null,null,null,null,null,null,null,null,null,null,null,null,null,null,null,null,null,null,null,{"$f":"VLOOKUP(E79,LISTAS!$A$100:$B$111,2,0)","v":{"$error":"#N/A"}}]
[null,null,null,null,null,null,null,null,null,null,null,null,null,null,null,null,null,null,null,null,null,null,{"$f":"VLOOKUP(E80,LISTAS!$A$100:$B$111,2,0)","v":{"$error":"#N/A"}}]
[null,null,null,null,null,null,null,null,null,null,null,null,null,null,null,null,null,null,null,null,null,null,{"$f":"VLOOKUP(E81,LISTAS!$A$100:$B$111,2,0)","v":{"$error":"#N/A"}}]
[null,null,null,null,null,null,null,null,null,null,null,null,null,null,null,null,null,null,null,null,null,null,{"$f":"VLOOKUP(E82,LISTAS!$A$100:$B$111,2,0)","v":{"$error":"#N/A"}}]
[null,null,null,null,null,null,null,null,null,null,null,null,null,null,null,null,null,null,null,null,null,null,{"$f":"VLOOKUP(E83,LISTAS!$A$100:$B$111,2,0)","v":{"$error":"#N/A"}}]
[null,null,null,null,null,null,null,null,null,null,null,null,null,null,null,null,null,null,null,null,null,null,{"$f":"VLOOKUP(E84,LISTAS!$A$100:$B$111,2,0)","v":{"$error":"#N/A"}}]
[null,null,null,null,null,null,null,null,null,null,null,null,null,null,null,null,null,null,null,null,null,null,{"$f":"VLOOKUP(E85,LISTAS!$A$100:$B$111,2,0)","v":{"$error":"#N/A"}}]
[null,null,null,null,null,null,null,null,null,null,null,null,null,null,null,null,null,null,null,null,null,null,{"$f":"VLOOKUP(E86,LISTAS!$A$100:$B$111,2,0)","v":{"$error":"#N/A"}}]
[null,null,null,null,null,null,null,null,null,null,null,null,null,null,null,null,null,null,null,null,null,null,{"$f":"VLOOKUP(E87,LISTAS!$A$100:$B$111,2,0)","v":{"$error":"#N/A"}}]
[null,null,null,null,null,null,null,null,null,null,null,null,null,null,null,null,null,null,null,null,null,null,{"$f":"VLOOKUP(E88,LISTAS!$A$100:$B$111,2,0)","v":{"$error":"#N/A"}}]
[null,null,null,null,null,null,null,null,null,null,null,null,null,null,null,null,null,null,null,null,null,null,{"$f":"VLOOKUP(E89,LISTAS!$A$100:$B$111,2,0)","v":{"$error":"#N/A"}}]
[null,null,null,null,null,null,null,null,null,null,null,null,null,null,null,null,null,null,null,null,null,null,{"$f":"VLOOKUP(E90,LISTAS!$A$100:$B$111,2,0)","v":{"$error":"#N/A"}}]
[null,null,null,null,null,null,null,null,null,null,null,null,null,null,null,null,null,null,null,null,null,null,{"$f":"VLOOKUP(E91,LISTAS!$A$100:$B$111,2,0)","v":{"$error":"#N/A"}}]
[null,null,null,null,null,null,null,null,null,null,null,null,null,null,null,null,null,null,null,null,null,null,{"$f":"VLOOKUP(E92,LISTAS!$A$100:$B$111,2,0)","v":{"$error":"#N/A"}}]
[null,null,null,null,null,null,null,null,null,null,null,null,null,null,null,null,null,null,null,null,null,null,{"$f":"VLOOKUP(E93,LISTAS!$A$100:$B$111,2,0)","v":{"$error":"#N/A"}}]
[null,null,null,null,null,null,null,null,null,null,null,null,null,null,null,null,null,null,null,null,null,null,{"$f":"VLOOKUP(E94,LISTAS!$A$100:$B$111,2,0)","v":{"$error":"#N/A"}}]
[null,null,null,null,null,null,null,null,null,null,null,null,null,null,null,null,null,null,null,null,null,null,{"$f":"VLOOKUP(E95,LISTAS!$A$100:$B$111,2,0)","v":{"$error":"#N/A"}}]
[null,null,null,null,null,null,null,null,null,null,null,null,null,null,null,null,null,null,null,null,null,null,{"$f":"VLOOKUP(E96,LISTAS!$A$100:$B$111,2,0)","v":{"$error":"#N/A"}}]
[null,null,null,null,null,null,null,null,null,null,null,null,null,null,null,null,null,null,null,null,null,null,{"$f":"VLOOKUP(E97,LISTAS!$A$100:$B$111,2,0)","v":{"$error":"#N/A"}}]
[null,null,null,null,null,null,null,null,null,null,null,null,null,null,null,null,null,null,null,null,null,null,{"$f":"VLOOKUP(E98,LISTAS!$A$100:$B$111,2,0)","v":{"$error":"#N/A"}}]
[null,null,null,null,null,null,null,null,null,null,null,null,null,null,null,null,null,null,null,null,null,null,{"$f":"VLOOKUP(E99,LISTAS!$A$100:$B$111,2,0)","v":{"$error":"#N/A"}}]
[null,null,null,null,null,null,null,null,null,null,null,null,null,null,null,null,null,null,null,null,null,null,{"$f":"VLOOKUP(E100,LISTAS!$A$100:$B$111,2,0)","v":{"$error":"#N/A"}}]
[null,null,null,null,null,null,null,null,null,null,null,null,null,null,null,null,null,null,null,null,null,null,{"$f":"VLOOKUP(E101,LISTAS!$A$100:$B$111,2,0)","v":{"$error":"#N/A"}}]
[null,null,null,null,null,null,null,null,null,null,null,null,null,null,null,null,null,null,null,null,null,null,{"$f":"VLOOKUP(E102,LISTAS!$A$100:$B$111,2,0)","v":{"$error":"#N/A"}}]
[null,null,null,null,null,null,null,null,null,null,null,null,null,null,null,null,null,null,null,null,null,null,{"$f":"VLOOKUP(E103,LISTAS!$A$100:$B$111,2,0)","v":{"$error":"#N/A"}}]
[null,null,null,null,null,null,null,null,null,null,null,null,null,null,null,null,null,null,null,null,null,null,{"$f":"VLOOKUP(E104,LISTAS!$A$100:$B$111,2,0)","v":{"$error":"#N/A"}}]
[null,null,null,null,null,null,null,null,null,null,null,null,null,null,null,null,null,null,null,null,null,null,{"$f":"VLOOKUP(E105,LISTAS!$A$100:$B$111,2,0)","v":{"$error":"#N/A"}}]
[null,null,null,null,null,null,null,null,null,null,null,null,null,null,null,null,null,null,null,null,null,null,{"$f":"VLOOKUP(E106,LISTAS!$A$100:$B$111,2,0)","v":{"$error":"#N/A"}}]
[null,null,null,null,null,null,null,null,null,null,null,null,null,null,null,null,null,null,null,null,null,null,{"$f":"VLOOKUP(E107,LISTAS!$A$100:$B$111,2,0)","v":{"$error":"#N/A"}}]
[null,null,null,null,null,null,null,null,null,null,null,null,null,null,null,null,null,null,null,null,null,null,{"$f":"VLOOKUP(E108,LISTAS!$A$100:$B$111,2,0)","v":{"$error":"#N/A"}}]
[null,null,null,null,null,null,null,null,null,null,null,null,null,null,null,null,null,null,null,null,null,null,{"$f":"VLOOKUP(E109,LISTAS!$A$100:$B$111,2,0)","v":{"$error":"#N/A"}}]
[null,null,null,null,null,null,null,null,null,null,null,null,null,null,null,null,null,null,null,null,null,null,{"$f":"VLOOKUP(E110,LISTAS!$A$100:$B$111,2,0)","v":{"$error":"#N/A"}}]
[null,null,null,null,null,null,null,null,null,null,null,null,null,null,null,null,null,null,null,null,null,null,{"$f":"VLOOKUP(E111,LISTAS!$A$100:$B$111,2,0)","v":{"$error":"#N/A"}}]
[null,null,null,null,null,null,null,null,null,null,null,null,null,null,null,null,null,null,null,null,null,null,{"$f":"VLOOKUP(E112,LISTAS!$A$100:$B$111,2,0)","v":{"$error":"#N/A"}}]
[null,null,null,null,null,null,null,null,null,null,null,null,null,null,null,null,null,null,null,null,null,null,{"$f":"VLOOKUP(E113,LISTAS!$A$100:$B$111,2,0)","v":{"$error":"#N/A"}}]
[null,null,null,null,null,null,null,null,null,null,null,null,null,null,null,null,null,null,null,null,null,null,{"$f":"VLOOKUP(E114,LISTAS!$A$100:$B$111,2,0)","v":{"$error":"#N/A"}}]
[null,null,null,null,null,null,null,null,null,null,null,null,null,null,null,null,null,null,null,null,null,null,{"$f":"VLOOKUP(E115,LISTAS!$A$100:$B$111,2,0)","v":{"$error":"#N/A"}}]
[null,null,null,null,null,null,null,null,null,null,null,null,null,null,null,null,null,null,null,null,null,null,{"$f":"VLOOKUP(E116,LISTAS!$A$100:$B$111,2,0)","v":{"$error":"#N/A"}}]
[null,null,null,null,null,null,null,null,null,null,null,null,null,null,null,null,null,null,null,null,null,null,{"$f":"VLOOKUP(E117,LISTAS!$A$100:$B$111,2,0)","v":{"$error":"#N/A"}}]
[null,null,null,null,null,null,null,null,null,null,null,null,null,null,null,null,null,null,null,null,null,null,{"$f":"VLOOKUP(E118,LISTAS!$A$100:$B$111,2,0)","v":{"$error":"#N/A"}}]
[null,null,null,null,null,null,null,null,null,null,null,null,null,null,null,null,null,null,null,null,null,null,{"$f":"VLOOKUP(E119,LISTAS!$A$100:$B$111,2,0)","v":{"$error":"#N/A"}}]
[null,null,null,null,null,null,null,null,null,null,null,null,null,null,null,null,null,null,null,null,null,null,{"$f":"VLOOKUP(E120,LISTAS!$A$100:$B$111,2,0)","v":{"$error":"#N/A"}}]
[null,null,null,null,null,null,null,null,null,null,null,null,null,null,null,null,null,null,null,null,null,null,{"$f":"VLOOKUP(E121,LISTAS!$A$100:$B$111,2,0)","v":{"$error":"#N/A"}}]
[null,null,null,null,null,null,null,null,null,null,null,null,null,null,null,null,null,null,null,null,null,null,{"$f":"VLOOKUP(E122,LISTAS!$A$100:$B$111,2,0)","v":{"$error":"#N/A"}}]
[null,null,null,null,null,null,null,null,null,null,null,null,null,null,null,null,null,null,null,null,null,null,{"$f":"VLOOKUP(E123,LISTAS!$A$100:$B$111,2,0)","v":{"$error":"#N/A"}}]
[null,null,null,null,null,null,null,null,null,null,null,null,null,null,null,null,null,null,null,null,null,null,{"$f":"VLOOKUP(E124,LISTAS!$A$100:$B$111,2,0)","v":{"$error":"#N/A"}}]
[null,null,null,null,null,null,null,null,null,null,null,null,null,null,null,null,null,null,null,null,null,null,{"$f":"VLOOKUP(E125,LISTAS!$A$100:$B$111,2,0)","v":{"$error":"#N/A"}}]
[null,null,null,null,null,null,null,null,null,null,null,null,null,null,null,null,null,null,null,null,null,null,{"$f":"VLOOKUP(E126,LISTAS!$A$100:$B$111,2,0)","v":{"$error":"#N/A"}}]
[null,null,null,null,null,null,null,null,null,null,null,null,null,null,null,null,null,null,null,null,null,null,{"$f":"VLOOKUP(E127,LISTAS!$A$100:$B$111,2,0)","v":{"$error":"#N/A"}}]
[null,null,null,null,null,null,null,null,null,null,null,null,null,null,null,null,null,null,null,null,null,null,{"$f":"VLOOKUP(E128,LISTAS!$A$100:$B$111,2,0)","v":{"$error":"#N/A"}}]
[null,null,null,null,null,null,null,null,null,null,null,null,null,null,null,null,null,null,null,null,null,null,{"$f":"VLOOKUP(E129,LISTAS!$A$100:$B$111,2,0)","v":{"$error":"#N/A"}}]
[null,null,null,null,null,null,null,null,null,null,null,null,null,null,null,null,null,null,null,null,null,null,{"$f":"VLOOKUP(E130,LISTAS!$A$100:$B$111,2,0)","v":{"$error":"#N/A"}}]
[null,null,null,null,null,null,null,null,null,null,null,null,null,null,null,null,null,null,null,null,null,null,{"$f":"VLOOKUP(E131,LISTAS!$A$100:$B$111,2,0)","v":{"$error":"#N/A"}}]
[null,null,null,null,null,null,null,null,null,null,null,null,null,null,null,null,null,null,null,null,null,null,{"$f":"VLOOKUP(E132,LISTAS!$A$100:$B$111,2,0)","v":{"$error":"#N/A"}}]
[null,null,null,null,null,null,null,null,null,null,null,null,null,null,null,null,null,null,null,null,null,null,{"$f":"VLOOKUP(E133,LISTAS!$A$100:$B$111,2,0)","v":{"$error":"#N/A"}}]
[null,null,null,null,null,null,null,null,null,null,null,null,null,null,null,null,null,null,null,null,null,null,{"$f":"VLOOKUP(E134,LISTAS!$A$100:$B$111,2,0)","v":{"$error":"#N/A"}}]
[null,null,null,null,null,null,null,null,null,null,null,null,null,null,null,null,null,null,null,null,null,null,{"$f":"VLOOKUP(E135,LISTAS!$A$100:$B$111,2,0)","v":{"$error":"#N/A"}}]
[null,null,null,null,null,null,null,null,null,null,null,null,null,null,null,null,null,null,null,null,null,null,{"$f":"VLOOKUP(E136,LISTAS!$A$100:$B$111,2,0)","v":{"$error":"#N/A"}}]
[null,null,null,null,null,null,null,null,null,null,null,null,null,null,null,null,null,null,null,null,null,null,{"$f":"VLOOKUP(E137,LISTAS!$A$100:$B$111,2,0)","v":{"$error":"#N/A"}}]
[null,null,null,null,null,null,null,null,null,null,null,null,null,null,null,null,null,null,null,null,null,null,{"$f":"VLOOKUP(E138,LISTAS!$A$100:$B$111,2,0)","v":{"$error":"#N/A"}}]
[null,null,null,null,null,null,null,null,null,null,null,null,null,null,null,null,null,null,null,null,null,null,{"$f":"VLOOKUP(E139,LISTAS!$A$100:$B$111,2,0)","v":{"$error":"#N/A"}}]
[null,null,null,null,null,null,null,null,null,null,null,null,null,null,null,null,null,null,null,null,null,null,{"$f":"VLOOKUP(E140,LISTAS!$A$100:$B$111,2,0)","v":{"$error":"#N/A"}}]
[null,null,null,null,null,null,null,null,null,null,null,null,null,null,null,null,null,null,null,null,null,null,{"$f":"VLOOKUP(E141,LISTAS!$A$100:$B$111,2,0)","v":{"$error":"#N/A"}}]
[null,null,null,null,null,null,null,null,null,null,null,null,null,null,null,null,null,null,null,null,null,null,{"$f":"VLOOKUP(E142,LISTAS!$A$100:$B$111,2,0)","v":{"$error":"#N/A"}}]
[null,null,null,null,null,null,null,null,null,null,null,null,null,null,null,null,null,null,null,null,null,null,{"$f":"VLOOKUP(E143,LISTAS!$A$100:$B$111,2,0)","v":{"$error":"#N/A"}}]
[null,null,null,null,null,null,null,null,null,null,null,null,null,null,null,null,null,null,null,null,null,null,{"$f":"VLOOKUP(E144,LISTAS!$A$100:$B$111,2,0)","v":{"$error":"#N/A"}}]
[null,null,null,null,null,null,null,null,null,null,null,null,null,null,null,null,null,null,null,null,null,null,{"$f":"VLOOKUP(E145,LISTAS!$A$100:$B$111,2,0)","v":{"$error":"#N/A"}}]
[null,null,null,null,null,null,null,null,null,null,null,null,null,null,null,null,null,null,null,null,null,null,{"$f":"VLOOKUP(E146,LISTAS!$A$100:$B$111,2,0)","v":{"$error":"#N/A"}}]
[null,null,null,null,null,null,null,null,null,null,null,null,null,null,null,null,null,null,null,null,null,null,{"$f":"VLOOKUP(E147,LISTAS!$A$100:$B$111,2,0)","v":{"$error":"#N/A"}}]
[null,null,null,null,null,null,null,null,null,null,null,null,null,null,null,null,null,null,null,null,null,null,{"$f":"VLOOKUP(E148,LISTAS!$A$100:$B$111,2,0)","v":{"$error":"#N/A"}}]
[null,null,null,null,null,null,null,null,null,null,null,null,null,null,null,null,null,null,null,null,null,null,{"$f":"VLOOKUP(E149,LISTAS!$A$100:$B$111,2,0)","v":{"$error":"#N/A"}}]
[null,null,null,null,null,null,null,null,null,null,null,null,null,null,null,null,null,null,null,null,null,null,{"$f":"VLOOKUP(E150,LISTAS!$A$100:$B$111,2,0)","v":{"$error":"#N/A"}}]
[null,null,null,null,null,null,null,null,null,null,null,null,null,null,null,null,null,null,null,null,null,null,{"$f":"VLOOKUP(E151,LISTAS!$A$100:$B$111,2,0)","v":{"$error":"#N/A"}}]
[null,null,null,null,null,null,null,null,null,null,null,null,null,null,null,null,null,null,null,null,null,null,{"$f":"VLOOKUP(E152,LISTAS!$A$100:$B$111,2,0)","v":{"$error":"#N/A"}}]
[null,null,null,null,null,null,null,null,null,null,null,null,null,null,null,null,null,null,null,null,null,null,{"$f":"VLOOKUP(E153,LISTAS!$A$100:$B$111,2,0)","v":{"$error":"#N/A"}}]
[null,null,null,null,null,null,null,null,null,null,null,null,null,null,null,null,null,null,null,null,null,null,{"$f":"VLOOKUP(E154,LISTAS!$A$100:$B$111,2,0)","v":{"$error":"#N/A"}}]
[null,null,null,null,null,null,null,null,null,null,null,null,null,null,null,null,null,null,null,null,null,null,{"$f":"VLOOKUP(E155,LISTAS!$A$100:$B$111,2,0)","v":{"$error":"#N/A"}}]
[null,null,null,null,null,null,null,null,null,null,null,null,null,null,null,null,null,null,null,null,null,null,{"$f":"VLOOKUP(E156,LISTAS!$A$100:$B$111,2,0)","v":{"$error":"#N/A"}}]
[null,null,null,null,null,null,null,null,null,null,null,null,null,null,null,null,null,null,null,null,null,null,{"$f":"VLOOKUP(E157,LISTAS!$A$100:$B$111,2,0)","v":{"$error":"#N/A"}}]
[null,null,null,null,null,null,null,null,null,null,null,null,null,null,null,null,null,null,null,null,null,null,{"$f":"VLOOKUP(E158,LISTAS!$A$100:$B$111,2,0)","v":{"$error":"#N/A"}}]
[null,null,null,null,null,null,null,null,null,null,null,null,null,null,null,null,null,null,null,null,null,null,{"$f":"VLOOKUP(E159,LISTAS!$A$100:$B$111,2,0)","v":{"$error":"#N/A"}}]
[null,null,null,null,null,null,null,null,null,null,null,null,null,null,null,null,null,null,null,null,null,null,{"$f":"VLOOKUP(E160,LISTAS!$A$100:$B$111,2,0)","v":{"$error":"#N/A"}}]
[null,null,null,null,null,null,null,null,null,null,null,null,null,null,null,null,null,null,null,null,null,null,{"$f":"VLOOKUP(E161,LISTAS!$A$100:$B$111,2,0)","v":{"$error":"#N/A"}}]
[null,null,null,null,null,null,null,null,null,null,null,null,null,null,null,null,null,null,null,null,null,null,{"$f":"VLOOKUP(E162,LISTAS!$A$100:$B$111,2,0)","v":{"$error":"#N/A"}}]
[null,null,null,null,null,null,null,null,null,null,null,null,null,null,null,null,null,null,null,null,null,null,{"$f":"VLOOKUP(E163,LISTAS!$A$100:$B$111,2,0)","v":{"$error":"#N/A"}}]
[null,null,null,null,null,null,null,null,null,null,null,null,null,null,null,null,null,null,null,null,null,null,{"$f":"VLOOKUP(E164,LISTAS!$A$100:$B$111,2,0)","v":{"$error":"#N/A"}}]
[null,null,null,null,null,null,null,null,null,null,null,null,null,null,null,null,null,null,null,null,null,null,{"$f":"VLOOKUP(E165,LISTAS!$A$100:$B$111,2,0)","v":{"$error":"#N/A"}}]
[null,null,null,null,null,null,null,null,null,null,null,null,null,null,null,null,null,null,null,null,null,null,{"$f":"VLOOKUP(E166,LISTAS!$A$100:$B$111,2,0)","v":{"$error":"#N/A"}}]
[null,null,null,null,null,null,null,null,null,null,null,null,null,null,null,null,null,null,null,null,null,null,{"$f":"VLOOKUP(E167,LISTAS!$A$100:$B$111,2,0)","v":{"$error":"#N/A"}}]
[null,null,null,null,null,null,null,null,null,null,null,null,null,null,null,null,null,null,null,null,null,null,{"$f":"VLOOKUP(E168,LISTAS!$A$100:$B$111,2,0)","v":{"$error":"#N/A"}}]
[null,null,null,null,null,null,null,null,null,null,null,null,null,null,null,null,null,null,null,null,null,null,{"$f":"VLOOKUP(E169,LISTAS!$A$100:$B$111,2,0)","v":{"$error":"#N/A"}}]
[null,null,null,null,null,null,null,null,null,null,null,null,null,null,null,null,null,null,null,null,null,null,{"$f":"VLOOKUP(E170,LISTAS!$A$100:$B$111,2,0)","v":{"$error":"#N/A"}}]
[null,null,null,null,null,null,null,null,null,null,null,null,null,null,null,null,null,null,null,null,null,null,{"$f":"VLOOKUP(E171,LISTAS!$A$100:$B$111,2,0)","v":{"$error":"#N/A"}}]
[null,null,null,null,null,null,null,null,null,null,null,null,null,null,null,null,null,null,null,null,null,null,{"$f":"VLOOKUP(E172,LISTAS!$A$100:$B$111,2,0)","v":{"$error":"#N/A"}}]
[null,null,null,null,null,null,null,null,null,null,null,null,null,null,null,null,null,null,null,null,null,null,{"$f":"VLOOKUP(E173,LISTAS!$A$100:$B$111,2,0)","v":{"$error":"#N/A"}}]
[null,null,null,null,null,null,null,null,null,null,null,null,null,null,null,null,null,null,null,null,null,null,{"$f":"VLOOKUP(E174,LISTAS!$A$100:$B$111,2,0)","v":{"$error":"#N/A"}}]
[null,null,null,null,null,null,null,null,null,null,null,null,null,null,null,null,null,null,null,null,null,null,{"$f":"VLOOKUP(E175,LISTAS!$A$100:$B$111,2,0)","v":{"$error":"#N/A"}}]
[null,null,null,null,null,null,null,null,null,null,null,null,null,null,null,null,null,null,null,null,null,null,{"$f":"VLOOKUP(E176,LISTAS!$A$100:$B$111,2,0)","v":{"$error":"#N/A"}}]
[null,null,null,null,null,null,null,null,null,null,null,null,null,null,null,null,null,null,null,null,null,null,{"$f":"VLOOKUP(E177,LISTAS!$A$100:$B$111,2,0)","v":{"$error":"#N/A"}}]
[null,null,null,null,null,null,null,null,null,null,null,null,null,null,null,null,null,null,null,null,null,null,{"$f":"VLOOKUP(E178,LISTAS!$A$100:$B$111,2,0)","v":{"$error":"#N/A"}}]
[null,null,null,null,null,null,null,null,null,null,null,null,null,null,null,null,null,null,null,null,null,null,{"$f":"VLOOKUP(E179,LISTAS!$A$100:$B$111,2,0)","v":{"$error":"#N/A"}}]
[null,null,null,null,null,null,null,null,null,null,null,null,null,null,null,null,null,null,null,null,null,null,{"$f":"VLOOKUP(E180,LISTAS!$A$100:$B$111,2,0)","v":{"$error":"#N/A"}}]
[null,null,null,null,null,null,null,null,null,null,null,null,null,null,null,null,null,null,null,null,null,null,{"$f":"VLOOKUP(E181,LISTAS!$A$100:$B$111,2,0)","v":{"$error":"#N/A"}}]
[null,null,null,null,null,null,null,null,null,null,null,null,null,null,null,null,null,null,null,null,null,null,{"$f":"VLOOKUP(E182,LISTAS!$A$100:$B$111,2,0)","v":{"$error":"#N/A"}}]
[null,null,null,null,null,null,null,null,null,null,null,null,null,null,null,null,null,null,null,null,null,null,{"$f":"VLOOKUP(E183,LISTAS!$A$100:$B$111,2,0)","v":{"$error":"#N/A"}}]
[null,null,null,null,null,null,null,null,null,null,null,null,null,null,null,null,null,null,null,null,null,null,{"$f":"VLOOKUP(E184,LISTAS!$A$100:$B$111,2,0)","v":{"$error":"#N/A"}}]
[null,null,null,null,null,null,null,null,null,null,null,null,null,null,null,null,null,null,null,null,null,null,{"$f":"VLOOKUP(E185,LISTAS!$A$100:$B$111,2,0)","v":{"$error":"#N/A"}}]
[null,null,null,null,null,null,null,null,null,null,null,null,null,null,null,null,null,null,null,null,null,null,{"$f":"VLOOKUP(E186,LISTAS!$A$100:$B$111,2,0)","v":{"$error":"#N/A"}}]
[null,null,null,null,null,null,null,null,null,null,null,null,null,null,null,null,null,null,null,null,null,null,{"$f":"VLOOKUP(E187,LISTAS!$A$100:$B$111,2,0)","v":{"$error":"#N/A"}}]
[null,null,null,null,null,null,null,null,null,null,null,null,null,null,null,null,null,null,null,null,null,null,{"$f":"VLOOKUP(E188,LISTAS!$A$100:$B$111,2,0)","v":{"$error":"#N/A"}}]
[null,null,null,null,null,null,null,null,null,null,null,null,null,null,null,null,null,null,null,null,null,null,{"$f":"VLOOKUP(E189,LISTAS!$A$100:$B$111,2,0)","v":{"$error":"#N/A"}}]
[null,null,null,null,null,null,null,null,null,null,null,null,null,null,null,null,null,null,null,null,null,null,{"$f":"VLOOKUP(E190,LISTAS!$A$100:$B$111,2,0)","v":{"$error":"#N/A"}}]
[null,null,null,null,null,null,null,null,null,null,null,null,null,null,null,null,null,null,null,null,null,null,{"$f":"VLOOKUP(E191,LISTAS!$A$100:$B$111,2,0)","v":{"$error":"#N/A"}}]
[null,null,null,null,null,null,null,null,null,null,null,null,null,null,null,null,null,null,null,null,null,null,{"$f":"VLOOKUP(E192,LISTAS!$A$100:$B$111,2,0)","v":{"$error":"#N/A"}}]
[null,null,null,null,null,null,null,null,null,null,null,null,null,null,null,null,null,null,null,null,null,null,{"$f":"VLOOKUP(E193,LISTAS!$A$100:$B$111,2,0)","v":{"$error":"#N/A"}}]
[null,null,null,null,null,null,null,null,null,null,null,null,null,null,null,null,null,null,null,null,null,null,{"$f":"VLOOKUP(E194,LISTAS!$A$100:$B$111,2,0)","v":{"$error":"#N/A"}}]
[null,null,null,null,null,null,null,null,null,null,null,null,null,null,null,null,null,null,null,null,null,null,{"$f":"VLOOKUP(E195,LISTAS!$A$100:$B$111,2,0)","v":{"$error":"#N/A"}}]
[null,null,null,null,null,null,null,null,null,null,null,null,null,null,null,null,null,null,null,null,null,null,{"$f":"VLOOKUP(E196,LISTAS!$A$100:$B$111,2,0)","v":{"$error":"#N/A"}}]
[null,null,null,null,null,null,null,null,null,null,null,null,null,null,null,null,null,null,null,null,null,null,{"$f":"VLOOKUP(E197,LISTAS!$A$100:$B$111,2,0)","v":{"$error":"#N/A"}}]
[null,null,null,null,null,null,null,null,null,null,null,null,null,null,null,null,null,null,null,null,null,null,{"$f":"VLOOKUP(E198,LISTAS!$A$100:$B$111,2,0)","v":{"$error":"#N/A"}}]
[null,null,null,null,null,null,null,null,null,null,null,null,null,null,null,null,null,null,null,null,null,null,{"$f":"VLOOKUP(E199,LISTAS!$A$100:$B$111,2,0)","v":{"$error":"#N/A"}}]
[null,null,null,null,null,null,null,null,null,null,null,null,null,null,null,null,null,null,null,null,null,null,{"$f":"VLOOKUP(E200,LISTAS!$A$100:$B$111,2,0)","v":{"$error":"#N/A"}}]
[null,null,null,null,null,null,null,null,null,null,null,null,null,null,null,null,null,null,null,null,null,null,{"$f":"VLOOKUP(E201,LISTAS!$A$100:$B$111,2,0)","v":{"$error":"#N/A"}}]
[null,null,null,null,null,null,null,null,null,null,null,null,null,null,null,null,null,null,null,null,null,null,{"$f":"VLOOKUP(E202,LISTAS!$A$100:$B$111,2,0)","v":{"$error":"#N/A"}}]
[null,null,null,null,null,null,null,null,null,null,null,null,null,null,null,null,null,null,null,null,null,null,{"$f":"VLOOKUP(E203,LISTAS!$A$100:$B$111,2,0)","v":{"$error":"#N/A"}}]
[null,null,null,null,null,null,null,null,null,null,null,null,null,null,null,null,null,null,null,null,null,null,{"$f":"VLOOKUP(E204,LISTAS!$A$100:$B$111,2,0)","v":{"$error":"#N/A"}}]
[null,null,null,null,null,null,null,null,null,null,null,null,null,null,null,null,null,null,null,null,null,null,{"$f":"VLOOKUP(E205,LISTAS!$A$100:$B$111,2,0)","v":{"$error":"#N/A"}}]
[null,null,null,null,null,null,null,null,null,null,null,null,null,null,null,null,null,null,null,null,null,null,{"$f":"VLOOKUP(E206,LISTAS!$A$100:$B$111,2,0)","v":{"$error":"#N/A"}}]
[null,null,null,null,null,null,null,null,null,null,null,null,null,null,null,null,null,null,null,null,null,null,{"$f":"VLOOKUP(E207,LISTAS!$A$100:$B$111,2,0)","v":{"$error":"#N/A"}}]
[null,null,null,null,null,null,null,null,null,null,null,null,null,null,null,null,null,null,null,null,null,null,{"$f":"VLOOKUP(E208,LISTAS!$A$100:$B$111,2,0)","v":{"$error":"#N/A"}}]
[null,null,null,null,null,null,null,null,null,null,null,null,null,null,null,null,null,null,null,null,null,null,{"$f":"VLOOKUP(E209,LISTAS!$A$100:$B$111,2,0)","v":{"$error":"#N/A"}}]
[null,null,null,null,null,null,null,null,null,null,null,null,null,null,null,null,null,null,null,null,null,null,{"$f":"VLOOKUP(E210,LISTAS!$A$100:$B$111,2,0)","v":{"$error":"#N/A"}}]
[null,null,null,null,null,null,null,null,null,null,null,null,null,null,null,null,null,null,null,null,null,null,{"$f":"VLOOKUP(E211,LISTAS!$A$100:$B$111,2,0)","v":{"$error":"#N/A"}}]
[null,null,null,null,null,null,null,null,null,null,null,null,null,null,null,null,null,null,null,null,null,null,{"$f":"VLOOKUP(E212,LISTAS!$A$100:$B$111,2,0)","v":{"$error":"#N/A"}}]
[null,null,null,null,null,null,null,null,null,null,null,null,null,null,null,null,null,null,null,null,null,null,{"$f":"VLOOKUP(E213,LISTAS!$A$100:$B$111,2,0)","v":{"$error":"#N/A"}}]
[null,null,null,null,null,null,null,null,null,null,null,null,null,null,null,null,null,null,null,null,null,null,{"$f":"VLOOKUP(E214,LISTAS!$A$100:$B$111,2,0)","v":{"$error":"#N/A"}}]
[null,null,null,null,null,null,null,null,null,null,null,null,null,null,null,null,null,null,null,null,null,null,{"$f":"VLOOKUP(E215,LISTAS!$A$100:$B$111,2,0)","v":{"$error":"#N/A"}}]
[null,null,null,null,null,null,null,null,null,null,null,null,null,null,null,null,null,null,null,null,null,null,{"$f":"VLOOKUP(E216,LISTAS!$A$100:$B$111,2,0)","v":{"$error":"#N/A"}}]
[null,null,null,null,null,null,null,null,null,null,null,null,null,null,null,null,null,null,null,null,null,null,{"$f":"VLOOKUP(E217,LISTAS!$A$100:$B$111,2,0)","v":{"$error":"#N/A"}}]
[null,null,null,null,null,null,null,null,null,null,null,null,null,null,null,null,null,null,null,null,null,null,{"$f":"VLOOKUP(E218,LISTAS!$A$100:$B$111,2,0)","v":{"$error":"#N/A"}}]
[null,null,null,null,null,null,null,null,null,null,null,null,null,null,null,null,null,null,null,null,null,null,{"$f":"VLOOKUP(E219,LISTAS!$A$100:$B$111,2,0)","v":{"$error":"#N/A"}}]
[null,null,null,null,null,null,null,null,null,null,null,null,null,null,null,null,null,null,null,null,null,null,{"$f":"VLOOKUP(E220,LISTAS!$A$100:$B$111,2,0)","v":{"$error":"#N/A"}}]
[null,null,null,null,null,null,null,null,null,null,null,null,null,null,null,null,null,null,null,null,null,null,{"$f":"VLOOKUP(E221,LISTAS!$A$100:$B$111,2,0)","v":{"$error":"#N/A"}}]
[null,null,null,null,null,null,null,null,null,null,null,null,null,null,null,null,null,null,null,null,null,null,{"$f":"VLOOKUP(E222,LISTAS!$A$100:$B$111,2,0)","v":{"$error":"#N/A"}}]
[null,null,null,null,null,null,null,null,null,null,null,null,null,null,null,null,null,null,null,null,null,null,{"$f":"VLOOKUP(E223,LISTAS!$A$100:$B$111,2,0)","v":{"$error":"#N/A"}}]
[null,null,null,null,null,null,null,null,null,null,null,null,null,null,null,null,null,null,null,null,null,null,{"$f":"VLOOKUP(E224,LISTAS!$A$100:$B$111,2,0)","v":{"$error":"#N/A"}}]
[null,null,null,null,null,null,null,null,null,null,null,null,null,null,null,null,null,null,null,null,null,null,{"$f":"VLOOKUP(E225,LISTAS!$A$100:$B$111,2,0)","v":{"$error":"#N/A"}}]
[null,null,null,null,null,null,null,null,null,null,null,null,null,null,null,null,null,null,null,null,null,null,{"$f":"VLOOKUP(E226,LISTAS!$A$100:$B$111,2,0)","v":{"$error":"#N/A"}}]
[null,null,null,null,null,null,null,null,null,null,null,null,null,null,null,null,null,null,null,null,null,null,{"$f":"VLOOKUP(E227,LISTAS!$A$100:$B$111,2,0)","v":{"$error":"#N/A"}}]
[null,null,null,null,null,null,null,null,null,null,null,null,null,null,null,null,null,null,null,null,null,null,{"$f":"VLOOKUP(E228,LISTAS!$A$100:$B$111,2,0)","v":{"$error":"#N/A"}}]
[null,null,null,null,null,null,null,null,null,null,null,null,null,null,null,null,null,null,null,null,null,null,{"$f":"VLOOKUP(E229,LISTAS!$A$100:$B$111,2,0)","v":{"$error":"#N/A"}}]
[null,null,null,null,null,null,null,null,null,null,null,null,null,null,null,null,null,null,null,null,null,null,{"$f":"VLOOKUP(E230,LISTAS!$A$100:$B$111,2,0)","v":{"$error":"#N/A"}}]
[null,null,null,null,null,null,null,null,null,null,null,null,null,null,null,null,null,null,null,null,null,null,{"$f":"VLOOKUP(E231,LISTAS!$A$100:$B$111,2,0)","v":{"$error":"#N/A"}}]
[null,null,null,null,null,null,null,null,null,null,null,null,null,null,null,null,null,null,null,null,null,null,{"$f":"VLOOKUP(E232,LISTAS!$A$100:$B$111,2,0)","v":{"$error":"#N/A"}}]
[null,null,null,null,null,null,null,null,null,null,null,null,null,null,null,null,null,null,null,null,null,null,{"$f":"VLOOKUP(E233,LISTAS!$A$100:$B$111,2,0)","v":{"$error":"#N/A"}}]
[null,null,null,null,null,null,null,null,null,null,null,null,null,null,null,null,null,null,null,null,null,null,{"$f":"VLOOKUP(E234,LISTAS!$A$100:$B$111,2,0)","v":{"$error":"#N/A"}}]
[null,null,null,null,null,null,null,null,null,null,null,null,null,null,null,null,null,null,null,null,null,null,{"$f":"VLOOKUP(E235,LISTAS!$A$100:$B$111,2,0)","v":{"$error":"#N/A"}}]
[null,null,null,null,null,null,null,null,null,null,null,null,null,null,null,null,null,null,null,null,null,null,{"$f":"VLOOKUP(E236,LISTAS!$A$100:$B$111,2,0)","v":{"$error":"#N/A"}}]
[null,null,null,null,null,null,null,null,null,null,null,null,null,null,null,null,null,null,null,null,null,null,{"$f":"VLOOKUP(E237,LISTAS!$A$100:$B$111,2,0)","v":{"$error":"#N/A"}}]
[null,null,null,null,null,null,null,null,null,null,null,null,null,null,null,null,null,null,null,null,null,null,{"$f":"VLOOKUP(E238,LISTAS!$A$100:$B$111,2,0)","v":{"$error":"#N/A"}}]
[null,null,null,null,null,null,null,null,null,null,null,null,null,null,null,null,null,null,null,null,null,null,{"$f":"VLOOKUP(E239,LISTAS!$A$100:$B$111,2,0)","v":{"$error":"#N/A"}}]
[null,null,null,null,null,null,null,null,null,null,null,null,null,null,null,null,null,null,null,null,null,null,{"$f":"VLOOKUP(E240,LISTAS!$A$100:$B$111,2,0)","v":{"$error":"#N/A"}}]
[null,null,null,null,null,null,null,null,null,null,null,null,null,null,null,null,null,null,null,null,null,null,{"$f":"VLOOKUP(E241,LISTAS!$A$100:$B$111,2,0)","v":{"$error":"#N/A"}}]
[null,null,null,null,null,null,null,null,null,null,null,null,null,null,null,null,null,null,null,null,null,null,{"$f":"VLOOKUP(E242,LISTAS!$A$100:$B$111,2,0)","v":{"$error":"#N/A"}}]
[null,null,null,null,null,null,null,null,null,null,null,null,null,null,null,null,null,null,null,null,null,null,{"$f":"VLOOKUP(E243,LISTAS!$A$100:$B$111,2,0)","v":{"$error":"#N/A"}}]
[null,null,null,null,null,null,null,null,null,null,null,null,null,null,null,null,null,null,null,null,null,null,{"$f":"VLOOKUP(E244,LISTAS!$A$100:$B$111,2,0)","v":{"$error":"#N/A"}}]
[null,null,null,null,null,null,null,null,null,null,null,null,null,null,null,null,null,null,null,null,null,null,{"$f":"VLOOKUP(E245,LISTAS!$A$100:$B$111,2,0)","v":{"$error":"#N/A"}}]
[null,null,null,null,null,null,null,null,null,null,null,null,null,null,null,null,null,null,null,null,null,null,{"$f":"VLOOKUP(E246,LISTAS!$A$100:$B$111,2,0)","v":{"$error":"#N/A"}}]
[null,null,null,null,null,null,null,null,null,null,null,null,null,null,null,null,null,null,null,null,null,null,{"$f":"VLOOKUP(E247,LISTAS!$A$100:$B$111,2,0)","v":{"$error":"#N/A"}}]
[null,null,null,null,null,null,null,null,null,null,null,null,null,null,null,null,null,null,null,null,null,null,{"$f":"VLOOKUP(E248,LISTAS!$A$100:$B$111,2,0)","v":{"$error":"#N/A"}}]
[null,null,null,null,null,null,null,null,null,null,null,null,null,null,null,null,null,null,null,null,null,null,{"$f":"VLOOKUP(E249,LISTAS!$A$100:$B$111,2,0)","v":{"$error":"#N/A"}}]
[null,null,null,null,null,null,null,null,null,null,null,null,null,null,null,null,null,null,null,null,null,null,{"$f":"VLOOKUP(E250,LISTAS!$A$100:$B$111,2,0)","v":{"$error":"#N/A"}}]
[null,null,null,null,null,null,null,null,null,null,null,null,null,null,null,null,null,null,null,null,null,null,{"$f":"VLOOKUP(E251,LISTAS!$A$100:$B$111,2,0)","v":{"$error":"#N/A"}}]
[null,null,null,null,null,null,null,null,null,null,null,null,null,null,null,null,null,null,null,null,null,null,{"$f":"VLOOKUP(E252,LISTAS!$A$100:$B$111,2,0)","v":{"$error":"#N/A"}}]
[null,null,null,null,null,null,null,null,null,null,null,null,null,null,null,null,null,null,null,null,null,null,{"$f":"VLOOKUP(E253,LISTAS!$A$100:$B$111,2,0)","v":{"$error":"#N/A"}}]

{"sheet":"CONFIGURACIÓN_PARTICIPANTES","index":1,"n_rows":302,"n_cols":36,"rows_kept":302,"cut":false,"hidden":true,"merged":[[1,1,2,18],[4,7,4,9],[4,3,4,5]]}
[]
[null,"CONFIGURACIÓN PORCENTAJES DE PARTICIPACIÓN ÁREAS RESPONSABLES DE EJECUCIÓN DE ACTIVIADES"]
[]
[]
[null,null,null,"Pique en la imágen  para actualizar la información registrada en la hoja de edición.",null,null,null,"Pique en la imagen para borrar información copiada de la hoja de edición y los datos por usted registrados \nen las columnas \"Part. %\"."]
[]
[null,"Código ","Identificación  Fila","Producto o Actividad","Áreas/\nDependencias responsables de la ejecución de actividaes","Área/Dep 1 ","Part.  % Act.\nÁrea/Dep 1","Área/Dep 2","Part.  % Act.\nÁrea/Dep 2 ","Área/Dep 3","Part.  % Act.\nÁrea/Dep 3 ","Área/Dep 4","Part.  % Act.\nÁrea/Dep 4 ","Área/Dep 5","Part.  % Act.\nÁrea/Dep 5 ","Área/Dep 6","Part.  % Act.\nÁrea/Dep 6 ","Área/Dep 7","Part.  % Act.\nÁrea/Dep 7 ",null,"Área/Dep 1 ","Área/Dep 2","Área/Dep 3","Área/Dep 4","Área/Dep 5","Área/Dep 6","Área/Dep 7",null,"Áreas/","Área/Dep 2","Área/Dep 3","Área/Dep 4","Área/Dep 5","Área/Dep 6","Área/Dep 7"]
[null,null,null,null,null,{"$f":"IF($C8=\"Producto \",\"N/A\",U8)","v":""},null,{"$f":"IF($C8=\"Producto \",\"N/A\",V8)","v":""},null,{"$f":"IF($C8=\"Producto \",\"N/A\",W8)","v":""},null,{"$f":"IF($C8=\"Producto \",\"N/A\",X8)","v":""},null,{"$f":"IF($C8=\"Producto \",\"N/A\",Y8)","v":""},null,{"$f":"IF($C8=\"Producto \",\"N/A\",Z8)","v":""},null,{"$f":"IF($C8=\"Producto \",\"N/A\",AA8)","v":""},null,null,{"$f":"IF(AC8=\"\",\"\",AC8)","v":""},{"$f":"IF(AD8=\"\",\"\",AD8)","v":""},"","","","",""]
[null,null,null,null,null,{"$f":"IF($C9=\"Producto \",\"N/A\",U9)","v":""},null,{"$f":"IF($C9=\"Producto \",\"N/A\",V9)","v":""},null,{"$f":"IF($C9=\"Producto \",\"N/A\",W9)","v":""},null,{"$f":"IF($C9=\"Producto \",\"N/A\",X9)","v":""},null,{"$f":"IF($C9=\"Producto \",\"N/A\",Y9)","v":""},null,{"$f":"IF($C9=\"Producto \",\"N/A\",Z9)","v":""},null,{"$f":"IF($C9=\"Producto \",\"N/A\",AA9)","v":""},null,null,{"$f":"IF(AC9=\"\",\"\",AC9)","v":""},{"$f":"IF(AD9=\"\",\"\",AD9)","v":""},{"$f":"IF(AE9=\"\",\"\",AE9)","v":""},{"$f":"IF(AF9=\"\",\"\",AF9)","v":""},{"$f":"IF(AG9=\"\",\"\",AG9)","v":""},{"$f":"IF(AH9=\"\",\"\",AH9)","v":""},{"$f":"IF(AI9=\"\",\"\",AI9)","v":""},null,null,null,null,null,null,null,null," »1000-Delegatura para la Protección de la Competencia"]
[null,null,null,null,null,"",null,"",null,"",null,"",null,"",null,"",null,"",null,null,"","","","","","",""]
[null,null,null,null,null,"",null,"",null,"",null,"",null,"",null,"",null,"",null,null,"","","","","","",""]
[null,null,null,null,null,"",null,"",null,"",null,"",null,"",null,"",null,"",null,null,"","","","","","",""]
[null,null,null,null,null,"",null,"",null,"",null,"",null,"",null,"",null,"",null,null,"","","","","","",""]
[null,null,null,null,null,"",null,"",null,"",null,"",null,"",null,"",null,"",null,null,"","","","","","",""]
[null,null,null,null,null,"",null,"",null,"",null,"",null,"",null,"",null,"",null,null,"","","","","","",""]
[null,null,null,null,null,"",null,"",null,"",null,"",null,"",null,"",null,"",null,null,"","","","","","",""]
[null,null,null,null,null,"",null,"",null,"",null,"",null,"",null,"",null,"",null,null,"","","","","","",""]
[null,null,null,null,null,"",null,"",null,"",null,"",null,"",null,"",null,"",null,null,"","","","","","",""]
[null,null,null,null,null,"",null,"",null,"",null,"",null,"",null,"",null,"",null,null,"","","","","","",""]
[null,null,null,null,null,"",null,"",null,"",null,"",null,"",null,"",null,"",null,null,"","","","","","",""]
[null,null,null,null,null,"",null,"",null,"",null,"",null,"",null,"",null,"",null,null,"","","","","","",""]
[null,null,null,null,null,"",null,"",null,"",null,"",null,"",null,"",null,"",null,null,"","","","","","",""]
[null,null,null,null,null,"",null,"",null,"",null,"",null,"",null,"",null,"",null,null,"","","","","","",""]
[null,null,null,null,null,"",null,"",null,"",null,"",null,"",null,"",null,"",null,null,"","","","","","",""]
[null,null,null,null,null,"",null,"",null,"",null,"",null,"",null,"",null,"",null,null,"","","","","","",""]
[null,null,null,null,null,"",null,"",null,"",null,"",null,"",null,"",null,"",null,null,"","","","","","",""]
[null,null,null,null,null,"",null,"",null,"",null,"",null,"",null,"",null,"",null,null,"","","","","","",""]
[null,null,null,null,null,"",null,"",null,"",null,"",null,"",null,"",null,"",null,null,"","","","","","",""]
[null,null,null,null,null,"",null,"",null,"",null,"",null,"",null,"",null,"",null,null,"","","","","","",""]
[null,null,null,null,null,"",null,"",null,"",null,"",null,"",null,"",null,"",null,null,"","","","","","",""]
[null,null,null,null,null,"",null,"",null,"",null,"",null,"",null,"",null,"",null,null,"","","","","","",""]
[null,null,null,null,null,"",null,"",null,"",null,"",null,"",null,"",null,"",null,null,"","","","","","",""]
[null,null,null,null,null,"",null,"",null,"",null,"",null,"",null,"",null,"",null,null,"","","","","","",""]
[null,null,null,null,null,"",null,"",null,"",null,"",null,"",null,"",null,"",null,null,"","","","","","",""]
[null,null,null,null,null,"",null,"",null,"",null,"",null,"",null,"",null,"",null,null,"","","","","","",""]
[null,null,null,null,null,"",null,"",null,"",null,"",null,"",null,"",null,"",null,null,"","","","","","",""]
[null,null,null,null,null,"",null,"",null,"",null,"",null,"",null,"",null,"",null,null,"","","","","","",""]
[null,null,null,null,null,"",null,"",null,"",null,"",null,"",null,"",null,"",null,null,"","","","","","",""]
[null,null,null,null,null,"",null,"",null,"",null,"",null,"",null,"",null,"",null,null,"","","","","","",""]
[null,null,null,null,null,"",null,"",null,"",null,"",null,"",null,"",null,"",null,null,"","","","","","",""]
[null,null,null,null,null,"",null,"",null,"",null,"",null,"",null,"",null,"",null,null,"","","","","","",""]
[null,null,null,null,null,"",null,"",null,"",null,"",null,"",null,"",null,"",null,null,"","","","","","",""]
[null,null,null,null,null,"",null,"",null,"",null,"",null,"",null,"",null,"",null,null,"","","","","","",""]
[null,null,null,null,null,"",null,"",null,"",null,"",null,"",null,"",null,"",null,null,"","","","","","",""]
[null,null,null,null,null,"",null,"",null,"",null,"",null,"",null,"",null,"",null,null,"","","","","","",""]
[null,null,null,null,null,"",null,"",null,"",null,"",null,"",null,"",null,"",null,null,"","","","","","",""]
[null,null,null,null,null,"",null,"",null,"",null,"",null,"",null,"",null,"",null,null,"","","","","","",""]
[null,null,null,null,null,"",null,"",null,"",null,"",null,"",null,"",null,"",null,null,"","","","","","",""]
[null,null,null,null,null,"",null,"",null,"",null,"",null,"",null,"",null,"",null,null,"","","","","","",""]
[null,null,null,null,null,"",null,"",null,"",null,"",null,"",null,"",null,"",null,null,"","","","","","",""]
[null,null,null,null,null,"",null,"",null,"",null,"",null,"",null,"",null,"",null,null,"","","","","","",""]
[null,null,null,null,null,"",null,"",null,"",null,"",null,"",null,"",null,"",null,null,"","","","","","",""]
[null,null,null,null,null,"",null,"",null,"",null,"",null,"",null,"",null,"",null,null,"","","","","","",""]
[null,null,null,null,null,"",null,"",null,"",null,"",null,"",null,"",null,"",null,null,"","","","","","",""]
[null,null,null,null,null,"",null,"",null,"",null,"",null,"",null,"",null,"",null,null,"","","","","","",""]
[null,null,null,null,null,"",null,"",null,"",null,"",null,"",null,"",null,"",null,null,"","","","","","",""]
[null,null,null,null,null,"",null,"",null,"",null,"",null,"",null,"",null,"",null,null,"","","","","","",""]
[null,null,null,null,null,"",null,"",null,"",null,"",null,"",null,"",null,"",null,null,"","","","","","",""]
[null,null,null,null,null,"",null,"",null,"",null,"",null,"",null,"",null,"",null,null,"","","","","","",""]
[null,null,null,null,null,"",null,"",null,"",null,"",null,"",null,"",null,"",null,null,"","","","","","",""]
[null,null,null,null,null,"",null,"",null,"",null,"",null,"",null,"",null,"",null,null,"","","","","","",""]
[null,null,null,null,null,"",null,"",null,"",null,"",null,"",null,"",null,"",null,null,"","","","","","",""]
[null,null,null,null,null,"",null,"",null,"",null,"",null,"",null,"",null,"",null,null,"","","","","","",""]
[null,null,null,null,null,"",null,"",null,"",null,"",null,"",null,"",null,"",null,null,"","","","","","",""]
[null,null,null,null,null,"",null,"",null,"",null,"",null,"",null,"",null,"",null,null,"","","","","","",""]
[null,null,null,null,null,"",null,"",null,"",null,"",null,"",null,"",null,"",null,null,"","","","","","",""]
[null,null,null,null,null,"",null,"",null,"",null,"",null,"",null,"",null,"",null,null,"","","","","","",""]
[null,null,null,null,null,"",null,"",null,"",null,"",null,"",null,"",null,"",null,null,"","","","","","",""]
[null,null,null,null,null,"",null,"",null,"",null,"",null,"",null,"",null,"",null,null,"","","","","","",""]
[null,null,null,null,null,"",null,"",null,"",null,"",null,"",null,"",null,"",null,null,"","","","","","",""]
[null,null,null,null,null,"",null,"",null,"",null,"",null,"",null,"",null,"",null,null,"","","","","","",""]
[null,null,null,null,null,"",null,"",null,"",null,"",null,"",null,"",null,"",null,null,"","","","","","",""]
[null,null,null,null,null,{"$f":"IF($C73=\"Producto \",\"N/A\",U73)","v":""},null,{"$f":"IF($C73=\"Producto \",\"N/A\",V73)","v":""},null,{"$f":"IF($C73=\"Producto \",\"N/A\",W73)","v":""},null,{"$f":"IF($C73=\"Producto \",\"N/A\",X73)","v":""},null,{"$f":"IF($C73=\"Producto \",\"N/A\",Y73)","v":""},null,{"$f":"IF($C73=\"Producto \",\"N/A\",Z73)","v":""},null,{"$f":"IF($C73=\"Producto \",\"N/A\",AA73)","v":""},null,null,{"$f":"IF(AC73=\"\",\"\",AC73)","v":""},{"$f":"IF(AD73=\"\",\"\",AD73)","v":""},{"$f":"IF(AE73=\"\",\"\",AE73)","v":""},{"$f":"IF(AF73=\"\",\"\",AF73)","v":""},{"$f":"IF(AG73=\"\",\"\",AG73)","v":""},{"$f":"IF(AH73=\"\",\"\",AH73)","v":""},{"$f":"IF(AI73=\"\",\"\",AI73)","v":""}]
[null,null,null,null,null,"",null,"",null,"",null,"",null,"",null,"",null,"",null,null,"","","","","","",""]
[null,null,null,null,null,"",null,"",null,"",null,"",null,"",null,"",null,"",null,null,"","","","","","",""]
[null,null,null,null,null,"",null,"",null,"",null,"",null,"",null,"",null,"",null,null,"","","","","","",""]
[null,null,null,null,null,"",null,"",null,"",null,"",null,"",null,"",null,"",null,null,"","","","","","",""]
[null,null,null,null,null,"",null,"",null,"",null,"",null,"",null,"",null,"",null,null,"","","","","","",""]
[null,null,null,null,null,"",null,"",null,"",null,"",null,"",null,"",null,"",null,null,"","","","","","",""]
[null,null,null,null,null,"",null,"",null,"",null,"",null,"",null,"",null,"",null,null,"","","","","","",""]
[null,null,null,null,null,"",null,"",null,"",null,"",null,"",null,"",null,"",null,null,"","","","","","",""]
[null,null,null,null,null,"",null,"",null,"",null,"",null,"",null,"",null,"",null,null,"","","","","","",""]
[null,null,null,null,null,"",null,"",null,"",null,"",null,"",null,"",null,"",null,null,"","","","","","",""]
[null,null,null,null,null,"",null,"",null,"",null,"",null,"",null,"",null,"",null,null,"","","","","","",""]
[null,null,null,null,null,"",null,"",null,"",null,"",null,"",null,"",null,"",null,null,"","","","","","",""]
[null,null,null,null,null,"",null,"",null,"",null,"",null,"",null,"",null,"",null,null,"","","","","","",""]
[null,null,null,null,null,"",null,"",null,"",null,"",null,"",null,"",null,"",null,null,"","","","","","",""]
[null,null,null,null,null,"",null,"",null,"",null,"",null,"",null,"",null,"",null,null,"","","","","","",""]
[null,null,null,null,null,"",null,"",null,"",null,"",null,"",null,"",null,"",null,null,"","","","","","",""]
[null,null,null,null,null,"",null,"",null,"",null,"",null,"",null,"",null,"",null,null,"","","","","","",""]
[null,null,null,null,null,"",null,"",null,"",null,"",null,"",null,"",null,"",null,null,"","","","","","",""]
[null,null,null,null,null,"",null,"",null,"",null,"",null,"",null,"",null,"",null,null,"","","","","","",""]
[null,null,null,null,null,"",null,"",null,"",null,"",null,"",null,"",null,"",null,null,"","","","","","",""]
[null,null,null,null,null,"",null,"",null,"",null,"",null,"",null,"",null,"",null,null,"","","","","","",""]
[null,null,null,null,null,"",null,"",null,"",null,"",null,"",null,"",null,"",null,null,"","","","","","",""]
[null,null,null,null,null,"",null,"",null,"",null,"",null,"",null,"",null,"",null,null,"","","","","","",""]
[null,null,null,null,null,"",null,"",null,"",null,"",null,"",null,"",null,"",null,null,"","","","","","",""]
[null,null,null,null,null,"",null,"",null,"",null,"",null,"",null,"",null,"",null,null,"","","","","","",""]
[null,null,null,null,null,"",null,"",null,"",null,"",null,"",null,"",null,"",null,null,"","","","","","",""]
[null,null,null,null,null,"",null,"",null,"",null,"",null,"",null,"",null,"",null,null,"","","","","","",""]
[null,null,null,null,null,"",null,"",null,"",null,"",null,"",null,"",null,"",null,null,"","","","","","",""]
[null,null,null,null,null,"",null,"",null,"",null,"",null,"",null,"",null,"",null,null,"","","","","","",""]
[null,null,null,null,null,"",null,"",null,"",null,"",null,"",null,"",null,"",null,null,"","","","","","",""]
[null,null,null,null,null,"",null,"",null,"",null,"",null,"",null,"",null,"",null,null,"","","","","","",""]
[null,null,null,null,null,"",null,"",null,"",null,"",null,"",null,"",null,"",null,null,"","","","","","",""]
[null,null,null,null,null,"",null,"",null,"",null,"",null,"",null,"",null,"",null,null,"","","","","","",""]
[null,null,null,null,null,"",null,"",null,"",null,"",null,"",null,"",null,"",null,null,"","","","","","",""]
[null,null,null,null,null,"",null,"",null,"",null,"",null,"",null,"",null,"",null,null,"","","","","","",""]
[null,null,null,null,null,"",null,"",null,"",null,"",null,"",null,"",null,"",null,null,"","","","","","",""]
[null,null,null,null,null,"",null,"",null,"",null,"",null,"",null,"",null,"",null,null,"","","","","","",""]
[null,null,null,null,null,"",null,"",null,"",null,"",null,"",null,"",null,"",null,null,"","","","","","",""]
[null,null,null,null,null,"",null,"",null,"",null,"",null,"",null,"",null,"",null,null,"","","","","","",""]
[null,null,null,null,null,"",null,"",null,"",null,"",null,"",null,"",null,"",null,null,"","","","","","",""]
[null,null,null,null,null,"",null,"",null,"",null,"",null,"",null,"",null,"",null,null,"","","","","","",""]
[null,null,null,null,null,"",null,"",null,"",null,"",null,"",null,"",null,"",null,null,"","","","","","",""]
[null,null,null,null,null,"",null,"",null,"",null,"",null,"",null,"",null,"",null,null,"","","","","","",""]
[null,null,null,null,null,"",null,"",null,"",null,"",null,"",null,"",null,"",null,null,"","","","","","",""]
[null,null,null,null,null,"",null,"",null,"",null,"",null,"",null,"",null,"",null,null,"","","","","","",""]
[null,null,null,null,null,"",null,"",null,"",null,"",null,"",null,"",null,"",null,null,"","","","","","",""]
[null,null,null,null,null,"",null,"",null,"",null,"",null,"",null,"",null,"",null,null,"","","","","","",""]
[null,null,null,null,null,"",null,"",null,"",null,"",null,"",null,"",null,"",null,null,"","","","","","",""]
[null,null,null,null,null,"",null,"",null,"",null,"",null,"",null,"",null,"",null,null,"","","","","","",""]
[null,null,null,null,null,"",null,"",null,"",null,"",null,"",null,"",null,"",null,null,"","","","","","",""]
[null,null,null,null,null,"",null,"",null,"",null,"",null,"",null,"",null,"",null,null,"","","","","","",""]
[null,null,null,null,null,"",null,"",null,"",null,"",null,"",null,"",null,"",null,null,"","","","","","",""]
[null,null,null,null,null,"",null,"",null,"",null,"",null,"",null,"",null,"",null,null,"","","","","","",""]
[null,null,null,null,null,"",null,"",null,"",null,"",null,"",null,"",null,"",null,null,"","","","","","",""]
[null,null,null,null,null,"",null,"",null,"",null,"",null,"",null,"",null,"",null,null,"","","","","","",""]
[null,null,null,null,null,"",null,"",null,"",null,"",null,"",null,"",null,"",null,null,"","","","","","",""]
[null,null,null,null,null,"",null,"",null,"",null,"",null,"",null,"",null,"",null,null,"","","","","","",""]
[null,null,null,null,null,"",null,"",null,"",null,"",null,"",null,"",null,"",null,null,"","","","","","",""]
[null,null,null,null,null,"",null,"",null,"",null,"",null,"",null,"",null,"",null,null,"","","","","","",""]
[null,null,null,null,null,"",null,"",null,"",null,"",null,"",null,"",null,"",null,null,"","","","","","",""]
[null,null,null,null,null,"",null,"",null,"",null,"",null,"",null,"",null,"",null,null,"","","","","","",""]
[null,null,null,null,null,"",null,"",null,"",null,"",null,"",null,"",null,"",null,null,"","","","","","",""]
[null,null,null,null,null,"",null,"",null,"",null,"",null,"",null,"",null,"",null,null,"","","","","","",""]
[null,null,null,null,null,{"$f":"IF($C137=\"Producto \",\"N/A\",U137)","v":""},null,{"$f":"IF($C137=\"Producto \",\"N/A\",V137)","v":""},null,{"$f":"IF($C137=\"Producto \",\"N/A\",W137)","v":""},null,{"$f":"IF($C137=\"Producto \",\"N/A\",X137)","v":""},null,{"$f":"IF($C137=\"Producto \",\"N/A\",Y137)","v":""},null,{"$f":"IF($C137=\"Producto \",\"N/A\",Z137)","v":""},null,{"$f":"IF($C137=\"Producto \",\"N/A\",AA137)","v":""},null,null,{"$f":"IF(AC137=\"\",\"\",AC137)","v":""},{"$f":"IF(AD137=\"\",\"\",AD137)","v":""},{"$f":"IF(AE137=\"\",\"\",AE137)","v":""},{"$f":"IF(AF137=\"\",\"\",AF137)","v":""},{"$f":"IF(AG137=\"\",\"\",AG137)","v":""},{"$f":"IF(AH137=\"\",\"\",AH137)","v":""},{"$f":"IF(AI137=\"\",\"\",AI137)","v":""}]
[null,null,null,null,null,"",null,"",null,"",null,"",null,"",null,"",null,"",null,null,"","","","","","",""]
[null,null,null,null,null,"",null,"",null,"",null,"",null,"",null,"",null,"",null,null,"","","","","","",""]
[null,null,null,null,null,"",null,"",null,"",null,"",null,"",null,"",null,"",null,null,"","","","","","",""]
[null,null,null,null,null,"",null,"",null,"",null,"",null,"",null,"",null,"",null,null,"","","","","","",""]
[null,null,null,null,null,"",null,"",null,"",null,"",null,"",null,"",null,"",null,null,"","","","","","",""]
[null,null,null,null,null,"",null,"",null,"",null,"",null,"",null,"",null,"",null,null,"","","","","","",""]
[null,null,null,null,null,"",null,"",null,"",null,"",null,"",null,"",null,"",null,null,"","","","","","",""]
[null,null,null,null,null,"",null,"",null,"",null,"",null,"",null,"",null,"",null,null,"","","","","","",""]
[null,null,null,null,null,"",null,"",null,"",null,"",null,"",null,"",null,"",null,null,"","","","","","",""]
[null,null,null,null,null,"",null,"",null,"",null,"",null,"",null,"",null,"",null,null,"","","","","","",""]
[null,null,null,null,null,"",null,"",null,"",null,"",null,"",null,"",null,"",null,null,"","","","","","",""]
[null,null,null,null,null,"",null,"",null,"",null,"",null,"",null,"",null,"",null,null,"","","","","","",""]
[null,null,null,null,null,"",null,"",null,"",null,"",null,"",null,"",null,"",null,null,"","","","","","",""]
[null,null,null,null,null,"",null,"",null,"",null,"",null,"",null,"",null,"",null,null,"","","","","","",""]
[null,null,null,null,null,"",null,"",null,"",null,"",null,"",null,"",null,"",null,null,"","","","","","",""]
[null,null,null,null,null,"",null,"",null,"",null,"",null,"",null,"",null,"",null,null,"","","","","","",""]
[null,null,null,null,null,"",null,"",null,"",null,"",null,"",null,"",null,"",null,null,"","","","","","",""]
[null,null,null,null,null,"",null,"",null,"",null,"",null,"",null,"",null,"",null,null,"","","","","","",""]
[null,null,null,null,null,"",null,"",null,"",null,"",null,"",null,"",null,"",null,null,"","","","","","",""]
[null,null,null,null,null,"",null,"",null,"",null,"",null,"",null,"",null,"",null,null,"","","","","","",""]
[null,null,null,null,null,"",null,"",null,"",null,"",null,"",null,"",null,"",null,null,"","","","","","",""]
[null,null,null,null,null,"",null,"",null,"",null,"",null,"",null,"",null,"",null,null,"","","","","","",""]
[null,null,null,null,null,"",null,"",null,"",null,"",null,"",null,"",null,"",null,null,"","","","","","",""]
[null,null,null,null,null,"",null,"",null,"",null,"",null,"",null,"",null,"",null,null,"","","","","","",""]
[null,null,null,null,null,"",null,"",null,"",null,"",null,"",null,"",null,"",null,null,"","","","","","",""]
[null,null,null,null,null,"",null,"",null,"",null,"",null,"",null,"",null,"",null,null,"","","","","","",""]
[null,null,null,null,null,"",null,"",null,"",null,"",null,"",null,"",null,"",null,null,"","","","","","",""]
[null,null,null,null,null,"",null,"",null,"",null,"",null,"",null,"",null,"",null,null,"","","","","","",""]
[null,null,null,null,null,"",null,"",null,"",null,"",null,"",null,"",null,"",null,null,"","","","","","",""]
[null,null,null,null,null,"",null,"",null,"",null,"",null,"",null,"",null,"",null,null,"","","","","","",""]
[null,null,null,null,null,"",null,"",null,"",null,"",null,"",null,"",null,"",null,null,"","","","","","",""]
[null,null,null,null,null,"",null,"",null,"",null,"",null,"",null,"",null,"",null,null,"","","","","","",""]
[null,null,null,null,null,"",null,"",null,"",null,"",null,"",null,"",null,"",null,null,"","","","","","",""]
[null,null,null,null,null,"",null,"",null,"",null,"",null,"",null,"",null,"",null,null,"","","","","","",""]
[null,null,null,null,null,"",null,"",null,"",null,"",null,"",null,"",null,"",null,null,"","","","","","",""]
[null,null,null,null,null,"",null,"",null,"",null,"",null,"",null,"",null,"",null,null,"","","","","","",""]
[null,null,null,null,null,"",null,"",null,"",null,"",null,"",null,"",null,"",null,null,"","","","","","",""]
[null,null,null,null,null,"",null,"",null,"",null,"",null,"",null,"",null,"",null,null,"","","","","","",""]
[null,null,null,null,null,"",null,"",null,"",null,"",null,"",null,"",null,"",null,null,"","","","","","",""]
[null,null,null,null,null,"",null,"",null,"",null,"",null,"",null,"",null,"",null,null,"","","","","","",""]
[null,null,null,null,null,"",null,"",null,"",null,"",null,"",null,"",null,"",null,null,"","","","","","",""]
[null,null,null,null,null,"",null,"",null,"",null,"",null,"",null,"",null,"",null,null,"","","","","","",""]
[null,null,null,null,null,"",null,"",null,"",null,"",null,"",null,"",null,"",null,null,"","","","","","",""]
[null,null,null,null,null,"",null,"",null,"",null,"",null,"",null,"",null,"",null,null,"","","","","","",""]
[null,null,null,null,null,"",null,"",null,"",null,"",null,"",null,"",null,"",null,null,"","","","","","",""]
[null,null,null,null,null,"",null,"",null,"",null,"",null,"",null,"",null,"",null,null,"","","","","","",""]
[null,null,null,null,null,"",null,"",null,"",null,"",null,"",null,"",null,"",null,null,"","","","","","",""]
[null,null,null,null,null,"",null,"",null,"",null,"",null,"",null,"",null,"",null,null,"","","","","","",""]
[null,null,null,null,null,"",null,"",null,"",null,"",null,"",null,"",null,"",null,null,"","","","","","",""]
[null,null,null,null,null,"",null,"",null,"",null,"",null,"",null,"",null,"",null,null,"","","","","","",""]
[null,null,null,null,null,"",null,"",null,"",null,"",null,"",null,"",null,"",null,null,"","","","","","",""]
[null,null,null,null,null,"",null,"",null,"",null,"",null,"",null,"",null,"",null,null,"","","","","","",""]
[null,null,null,null,null,"",null,"",null,"",null,"",null,"",null,"",null,"",null,null,"","","","","","",""]
[null,null,null,null,null,"",null,"",null,"",null,"",null,"",null,"",null,"",null,null,"","","","","","",""]
[null,null,null,null,null,"",null,"",null,"",null,"",null,"",null,"",null,"",null,null,"","","","","","",""]
[null,null,null,null,null,"",null,"",null,"",null,"",null,"",null,"",null,"",null,null,"","","","","","",""]
[null,null,null,null,null,"",null,"",null,"",null,"",null,"",null,"",null,"",null,null,"","","","","","",""]
[null,null,null,null,null,"",null,"",null,"",null,"",null,"",null,"",null,"",null,null,"","","","","","",""]
[null,null,null,null,null,"",null,"",null,"",null,"",null,"",null,"",null,"",null,null,"","","","","","",""]
[null,null,null,null,null,"",null,"",null,"",null,"",null,"",null,"",null,"",null,null,"","","","","","",""]
[null,null,null,null,null,"",null,"",null,"",null,"",null,"",null,"",null,"",null,null,"","","","","","",""]
[null,null,null,null,null,"",null,"",null,"",null,"",null,"",null,"",null,"",null,null,"","","","","","",""]
[null,null,null,null,null,"",null,"",null,"",null,"",null,"",null,"",null,"",null,null,"","","","","","",""]
[null,null,null,null,null,{"$f":"IF($C201=\"Producto \",\"N/A\",U201)","v":""},null,{"$f":"IF($C201=\"Producto \",\"N/A\",V201)","v":""},null,{"$f":"IF($C201=\"Producto \",\"N/A\",W201)","v":""},null,{"$f":"IF($C201=\"Producto \",\"N/A\",X201)","v":""},null,{"$f":"IF($C201=\"Producto \",\"N/A\",Y201)","v":""},null,{"$f":"IF($C201=\"Producto \",\"N/A\",Z201)","v":""},null,{"$f":"IF($C201=\"Producto \",\"N/A\",AA201)","v":""},null,null,{"$f":"IF(AC201=\"\",\"\",AC201)","v":""},{"$f":"IF(AD201=\"\",\"\",AD201)","v":""},{"$f":"IF(AE201=\"\",\"\",AE201)","v":""},{"$f":"IF(AF201=\"\",\"\",AF201)","v":""},{"$f":"IF(AG201=\"\",\"\",AG201)","v":""},{"$f":"IF(AH201=\"\",\"\",AH201)","v":""},{"$f":"IF(AI201=\"\",\"\",AI201)","v":""}]
[null,null,null,null,null,"",null,"",null,"",null,"",null,"",null,"",null,"",null,null,"","","","","","",""]
[null,null,null,null,null,"",null,"",null,"",null,"",null,"",null,"",null,"",null,null,"","","","","","",""]
[null,null,null,null,null,"",null,"",null,"",null,"",null,"",null,"",null,"",null,null,"","","","","","",""]
[null,null,null,null,null,"",null,"",null,"",null,"",null,"",null,"",null,"",null,null,"","","","","","",""]
[null,null,null,null,null,"",null,"",null,"",null,"",null,"",null,"",null,"",null,null,"","","","","","",""]
[null,null,null,null,null,"",null,"",null,"",null,"",null,"",null,"",null,"",null,null,"","","","","","",""]
[null,null,null,null,null,"",null,"",null,"",null,"",null,"",null,"",null,"",null,null,"","","","","","",""]
[null,null,null,null,null,"",null,"",null,"",null,"",null,"",null,"",null,"",null,null,"","","","","","",""]
[null,null,null,null,null,"",null,"",null,"",null,"",null,"",null,"",null,"",null,null,"","","","","","",""]
[null,null,null,null,null,"",null,"",null,"",null,"",null,"",null,"",null,"",null,null,"","","","","","",""]
[null,null,null,null,null,"",null,"",null,"",null,"",null,"",null,"",null,"",null,null,"","","","","","",""]
[null,null,null,null,null,"",null,"",null,"",null,"",null,"",null,"",null,"",null,null,"","","","","","",""]
[null,null,null,null,null,"",null,"",null,"",null,"",null,"",null,"",null,"",null,null,"","","","","","",""]
[null,null,null,null,null,"",null,"",null,"",null,"",null,"",null,"",null,"",null,null,"","","","","","",""]
[null,null,null,null,null,"",null,"",null,"",null,"",null,"",null,"",null,"",null,null,"","","","","","",""]
[null,null,null,null,null,"",null,"",null,"",null,"",null,"",null,"",null,"",null,null,"","","","","","",""]
[null,null,null,null,null,"",null,"",null,"",null,"",null,"",null,"",null,"",null,null,"","","","","","",""]
[null,null,null,null,null,"",null,"",null,"",null,"",null,"",null,"",null,"",null,null,"","","","","","",""]
[null,null,null,null,null,"",null,"",null,"",null,"",null,"",null,"",null,"",null,null,"","","","","","",""]
[null,null,null,null,null,"",null,"",null,"",null,"",null,"",null,"",null,"",null,null,"","","","","","",""]
[null,null,null,null,null,"",null,"",null,"",null,"",null,"",null,"",null,"",null,null,"","","","","","",""]
[null,null,null,null,null,"",null,"",null,"",null,"",null,"",null,"",null,"",null,null,"","","","","","",""]
[null,null,null,null,null,"",null,"",null,"",null,"",null,"",null,"",null,"",null,null,"","","","","","",""]
[null,null,null,null,null,"",null,"",null,"",null,"",null,"",null,"",null,"",null,null,"","","","","","",""]
[null,null,null,null,null,"",null,"",null,"",null,"",null,"",null,"",null,"",null,null,"","","","","","",""]
[null,null,null,null,null,"",null,"",null,"",null,"",null,"",null,"",null,"",null,null,"","","","","","",""]
[null,null,null,null,null,"",null,"",null,"",null,"",null,"",null,"",null,"",null,null,"","","","","","",""]
[null,null,null,null,null,"",null,"",null,"",null,"",null,"",null,"",null,"",null,null,"","","","","","",""]
[null,null,null,null,null,"",null,"",null,"",null,"",null,"",null,"",null,"",null,null,"","","","","","",""]
[null,null,null,null,null,"",null,"",null,"",null,"",null,"",null,"",null,"",null,null,"","","","","","",""]
[null,null,null,null,null,"",null,"",null,"",null,"",null,"",null,"",null,"",null,null,"","","","","","",""]
[null,null,null,null,null,"",null,"",null,"",null,"",null,"",null,"",null,"",null,null,"","","","","","",""]
[null,null,null,null,null,"",null,"",null,"",null,"",null,"",null,"",null,"",null,null,"","","","","","",""]
[null,null,null,null,null,"",null,"",null,"",null,"",null,"",null,"",null,"",null,null,"","","","","","",""]
[null,null,null,null,null,"",null,"",null,"",null,"",null,"",null,"",null,"",null,null,"","","","","","",""]
[null,null,null,null,null,"",null,"",null,"",null,"",null,"",null,"",null,"",null,null,"","","","","","",""]
[null,null,null,null,null,"",null,"",null,"",null,"",null,"",null,"",null,"",null,null,"","","","","","",""]
[null,null,null,null,null,"",null,"",null,"",null,"",null,"",null,"",null,"",null,null,"","","","","","",""]
[null,null,null,null,null,"",null,"",null,"",null,"",null,"",null,"",null,"",null,null,"","","","","","",""]
[null,null,null,null,null,"",null,"",null,"",null,"",null,"",null,"",null,"",null,null,"","","","","","",""]
[null,null,null,null,null,"",null,"",null,"",null,"",null,"",null,"",null,"",null,null,"","","","","","",""]
[null,null,null,null,null,"",null,"",null,"",null,"",null,"",null,"",null,"",null,null,"","","","","","",""]
[null,null,null,null,null,"",null,"",null,"",null,"",null,"",null,"",null,"",null,null,"","","","","","",""]
[null,null,null,null,null,"",null,"",null,"",null,"",null,"",null,"",null,"",null,null,"","","","","","",""]
[null,null,null,null,null,"",null,"",null,"",null,"",null,"",null,"",null,"",null,null,"","","","","","",""]
[null,null,null,null,null,"",null,"",null,"",null,"",null,"",null,"",null,"",null,null,"","","","","","",""]
[null,null,null,null,null,"",null,"",null,"",null,"",null,"",null,"",null,"",null,null,"","","","","","",""]
[null,null,null,null,null,"",null,"",null,"",null,"",null,"",null,"",null,"",null,null,"","","","","","",""]
[null,null,null,null,null,"",null,"",null,"",null,"",null,"",null,"",null,"",null,null,"","","","","","",""]
[null,null,null,null,null,"",null,"",null,"",null,"",null,"",null,"",null,"",null,null,"","","","","","",""]
[null,null,null,null,null,"",null,"",null,"",null,"",null,"",null,"",null,"",null,null,"","","","","","",""]
[null,null,null,null,null,"",null,"",null,"",null,"",null,"",null,"",null,"",null,null,"","","","","","",""]
[null,null,null,null,null,"",null,"",null,"",null,"",null,"",null,"",null,"",null,null,"","","","","","",""]
[null,null,null,null,null,"",null,"",null,"",null,"",null,"",null,"",null,"",null,null,"","","","","","",""]
[null,null,null,null,null,"",null,"",null,"",null,"",null,"",null,"",null,"",null,null,"","","","","","",""]
[null,null,null,null,null,"",null,"",null,"",null,"",null,"",null,"",null,"",null,null,"","","","","","",""]
[null,null,null,null,null,"",null,"",null,"",null,"",null,"",null,"",null,"",null,null,"","","","","","",""]
[null,null,null,null,null,"",null,"",null,"",null,"",null,"",null,"",null,"",null,null,"","","","","","",""]
[null,null,null,null,null,"",null,"",null,"",null,"",null,"",null,"",null,"",null,null,"","","","","","",""]
[null,null,null,null,null,"",null,"",null,"",null,"",null,"",null,"",null,"",null,null,"","","","","","",""]
[null,null,null,null,null,"",null,"",null,"",null,"",null,"",null,"",null,"",null,null,"","","","","","",""]
[null,null,null,null,null,"",null,"",null,"",null,"",null,"",null,"",null,"",null,null,"","","","","","",""]
[null,null,null,null,null,"",null,"",null,"",null,"",null,"",null,"",null,"",null,null,"","","","","","",""]
[null,null,null,null,null,{"$f":"IF($C265=\"Producto \",\"N/A\",U265)","v":""},null,{"$f":"IF($C265=\"Producto \",\"N/A\",V265)","v":""},null,{"$f":"IF($C265=\"Producto \",\"N/A\",W265)","v":""},null,{"$f":"IF($C265=\"Producto \",\"N/A\",X265)","v":""},null,{"$f":"IF($C265=\"Producto \",\"N/A\",Y265)","v":""},null,{"$f":"IF($C265=\"Producto \",\"N/A\",Z265)","v":""},null,{"$f":"IF($C265=\"Producto \",\"N/A\",AA265)","v":""},null,null,{"$f":"IF(AC265=\"\",\"\",AC265)","v":""},{"$f":"IF(AD265=\"\",\"\",AD265)","v":""},{"$f":"IF(AE265=\"\",\"\",AE265)","v":""},{"$f":"IF(AF265=\"\",\"\",AF265)","v":""},{"$f":"IF(AG265=\"\",\"\",AG265)","v":""},{"$f":"IF(AH265=\"\",\"\",AH265)","v":""},{"$f":"IF(AI265=\"\",\"\",AI265)","v":""}]
[null,null,null,null,null,"",null,"",null,"",null,"",null,"",null,"",null,"",null,null,"","","","","","",""]
[null,null,null,null,null,"",null,"",null,"",null,"",null,"",null,"",null,"",null,null,"","","","","","",""]
[null,null,null,null,null,"",null,"",null,"",null,"",null,"",null,"",null,"",null,null,"","","","","","",""]
[null,null,null,null,null,"",null,"",null,"",null,"",null,"",null,"",null,"",null,null,"","","","","","",""]
[null,null,null,null,null,"",null,"",null,"",null,"",null,"",null,"",null,"",null,null,"","","","","","",""]
[null,null,null,null,null,"",null,"",null,"",null,"",null,"",null,"",null,"",null,null,"","","","","","",""]
[null,null,null,null,null,"",null,"",null,"",null,"",null,"",null,"",null,"",null,null,"","","","","","",""]
[null,null,null,null,null,"",null,"",null,"",null,"",null,"",null,"",null,"",null,null,"","","","","","",""]
[null,null,null,null,null,"",null,"",null,"",null,"",null,"",null,"",null,"",null,null,"","","","","","",""]
[null,null,null,null,null,"",null,"",null,"",null,"",null,"",null,"",null,"",null,null,"","","","","","",""]
[null,null,null,null,null,"",null,"",null,"",null,"",null,"",null,"",null,"",null,null,"","","","","","",""]
[null,null,null,null,null,"",null,"",null,"",null,"",null,"",null,"",null,"",null,null,"","","","","","",""]
[null,null,null,null,null,"",null,"",null,"",null,"",null,"",null,"",null,"",null,null,"","","","","","",""]
[null,null,null,null,null,"",null,"",null,"",null,"",null,"",null,"",null,"",null,null,"","","","","","",""]
[null,null,null,null,null,"",null,"",null,"",null,"",null,"",null,"",null,"",null,null,"","","","","","",""]
[null,null,null,null,null,"",null,"",null,"",null,"",null,"",null,"",null,"",null,null,"","","","","","",""]
[null,null,null,null,null,"",null,"",null,"",null,"",null,"",null,"",null,"",null,null,"","","","","","",""]
[null,null,null,null,null,"",null,"",null,"",null,"",null,"",null,"",null,"",null,null,"","","","","","",""]
[null,null,null,null,null,"",null,"",null,"",null,"",null,"",null,"",null,"",null,null,"","","","","","",""]
[null,null,null,null,null,"",null,"",null,"",null,"",null,"",null,"",null,"",null,null,"","","","","","",""]
[null,null,null,null,null,"",null,"",null,"",null,"",null,"",null,"",null,"",null,null,"","","","","","",""]
[null,null,null,null,null,"",null,"",null,"",null,"",null,"",null,"",null,"",null,null,"","","","","","",""]
[null,null,null,null,null,"",null,"",null,"",null,"",null,"",null,"",null,"",null,null,"","","","","","",""]
[null,null,null,null,null,"",null,"",null,"",null,"",null,"",null,"",null,"",null,null,"","","","","","",""]
[null,null,null,null,null,"",null,"",null,"",null,"",null,"",null,"",null,"",null,null,"","","","","","",""]
[null,null,null,null,null,"",null,"",null,"",null,"",null,"",null,"",null,"",null,null,"","","","","","",""]
[null,null,null,null,null,"",null,"",null,"",null,"",null,"",null,"",null,"",null,null,"","","","","","",""]
[null,null,null,null,null,"",null,"",null,"",null,"",null,"",null,"",null,"",null,null,"","","","","","",""]
[null,null,null,null,null,"",null,"",null,"",null,"",null,"",null,"",null,"",null,null,"","","","","","",""]
[null,null,null,null,null,"",null,"",null,"",null,"",null,"",null,"",null,"",null,null,"","","","","","",""]
[null,null,null,null,null,"",null,"",null,"",null,"",null,"",null,"",null,"",null,null,"","","","","","",""]
[null,null,null,null,null,"",null,"",null,"",null,"",null,"",null,"",null,"",null,null,"","","","","","",""]
[null,null,null,null,null,"",null,"",null,"",null,"",null,"",null,"",null,"",null,null,"","","","","","",""]
[null,null,null,null,null,"",null,"",null,"",null,"",null,"",null,"",null,"",null,null,"","","","","","",""]
[null,null,null,null,null,"",null,"",null,"",null,"",null,"",null,"",null,"",null,null,"","","","","","",""]
[null,null,null,null,null,"",null,"",null,{"$f":"IF($C301=\"Producto \",\"N/A\",W301)","v":""},null,"",null,{"$f":"IF($C301=\"Producto \",\"N/A\",Y301)","v":""},null,{"$f":"IF($C301=\"Producto \",\"N/A\",Z301)","v":""},null,{"$f":"IF($C301=\"Producto \",\"N/A\",AA301)","v":""},null,null,"","","","","","",""]
[null,null,null,null,null,"",null,"",null,"",null,"",null,"",null,"",null,"",null,null,"","","","","","",""]

{"sheet":"LISTAS","index":2,"n_rows":264,"n_cols":16384,"rows_kept":264,"cut":false,"hidden":true,"merged":[[11,0,11,2]]}
["Oficina Asesora Jurídica","Oficina de Control Interno","Oficina Asesora de Planeación","Oficina de Servicios al Consumidor y de Apoyo Empresarial","Oficina de Tecnología e Informática","Secretaría General","Delegatura para la protección del Consumidor","Delegatura para la Protección de Datos","Delegatura para el Control y Verificación de Reglamentos Técnicos y Metrología Legal  ","Delegatura para Asuntos  Jurisdiccionales","Delegatura para la Propiedad Industrial","Delegatura para la Protección de la Competencia"]
["Grupo de Trabajo Cobro Coactivo",null,"Grupo de Trabajo de Estudios Económicos","Grupo de Atención al Ciudadano",null,"Grupo de Trabajo de Administración de Personal","Grupo de trabajo de Apoyo a la Red Nacional de Protección al Consumidor",null,null,null,"Grupo de Trabajo de Vía Gubernativa ","Dirección de Cámaras de Comercio"]
["Grupo de Trabajo Gestión Judicial",null,"Grupo de Trabajo de Asuntos Internacionales","Grupo de Formación",null,"Grupo de Trabajo de Desarrollo del Talento Humano","Dirección de Investigaciones de Protección al Consumidor      ",null,null,null,"Grupo de Trabajo de Centro de Información Tecnológica y Apoyo a la Gestión de Propiedad Industrial - CIGEPI"]
["Grupo de Trabajo de Regulación",null,null,"Grupo de Comunicación",null,"Grupo de Trabajo de Control Disciplinario Interno","Dirección de Investigaciones de Protección de Usuarios de Servicios de Comunicaciones ",null,null,null,"Dirección de Signos Distintivos"]
[null,null,null,null,null,"Grupo de Trabajo de Notificaciones y Certificaciones",null,null,null,null,"Dirección de  Nuevas Creaciones"]
[null,null,null,null,null,"Grupo de Trabajo de Gestión Documental y Archivo"]
[null,null,null,null,null,"Grupo de Trabajo de Servicios Administrativos y Recursos Físicos"]
[null,null,null,null,null,"Grupo de Trabajo  Contratación"]
[null,null,null,null,null,"Dirección  Financiera"]
["GRUPO1","GRUPO2","GRUPO3","GRUPO4","GRUPO5","GRUPO6","GRUPO7","GRUPO8","GRUPO9","GRUPO10","GRUPO11","GRUPO12"]
[]
["Fórmula para generación de rangos:",null,null,{"$f":"+HLOOKUP(EDICIÓN!$O$5,LISTAS!A1:L10,10,0)","v":{"$error":"#N/A"}}]
[]
["DEPENDENCIAS","código"]
["Oficina Asesora Jurídica",10]
["Grupo de Trabajo Cobro Coactivo",11]
["Gestión de Trabajo Gestión Judicial",60]
["Grupo de Trabajo de Regulación",12]
["Oficina de Control Interno",50]
["Oficina Asesora de Planeación",30]
["Grupo de Trabajo de Estudios Económicos",37]
["Grupo de Trabajo de Asuntos Internacionales",38]
["Oficina de Servicios al Consumidor y de Apoyo Empresarial",70]
["Grupo de Atención al Ciudadano",72]
["Grupo de Formación",71]
["Grupo de Comunicación",73]
["Oficina de Tecnología e Informática",20]
["Secretaría General",100]
["Grupo de Trabajo de Administración de Personal",111]
["Grupo de Trabajo de Desarrollo del Talento Humano",117]
["Grupo de Trabajo de Control Disciplinario Interno",103]
["Grupo de Trabajo de Notificaciones y Certificaciones",104]
["Grupo de Trabajo de Gestión Documental y Archivo",141]
["Grupo de Trabajo de Servicios Administrativos y Recursos Físicos",142]
["Grupo de Trabajo  Contratación",105]
["Dirección  Financiera",130]
["Delegatura para la protección del Consumidor",3000]
["Grupo de trabajo de Apoyo a la Red Nacional de Protección al Consumidor",3003]
["Dirección de Investigaciones de Protección al Consumidor      ",3100]
["Dirección de Investigaciones de Protección de Usuarios de Servicios de Comunicaciones ",3200]
["Delegatura para la Protección de Datos",7000]
["Delegatura para el Control y Verificación de Reglamentos Técnicos y Metrología Legal  ",6000]
["Delegatura para Asuntos  Jurisdiccionales",4000]
["Delegatura para la Propiedad Industrial",2000]
["Grupo de Trabajo de Vía Gubernativa ",2003]
["Grupo de Trabajo de Centro de Información Tecnológica y Apoyo a la Gestión de Propiedad Industrial - CIGEPI",2023]
["Dirección de Signos Distintivos",2010]
["Dirección de  Nuevas Creaciones",2020]
["Delegatura para la Protección de la Competencia",1000]
["Dirección de Cámaras de Comercio",1020]
["N/A"]
["ASESOR OAP"]
["Sandra Elizabeth Tovar"]
["Nathalia Cortes Maya"]
["Erick Salomon Chavez"]
["Victor Maldonado Novoa"]
["Carolina castillo","Carolina castillo","Carolina castillo","Carolina castillo","Carolina castillo","Carolina castillo","Carolina castillo","Carolina castillo","Carolina castillo","Carolina castillo","Carolina castillo","Carolina castillo","Carolina castillo","Carolina castillo","Carolina castillo","Carolina castillo","Carolina castillo","Carolina castillo","Carolina castillo","Carolina castillo","Carolina castillo","Carolina castillo","Carolina castillo","Carolina castillo","Carolina castillo","Carolina castillo","Carolina castillo","Carolina castillo","Carolina castillo","Carolina castillo","Carolina castillo","Carolina castillo","Carolina castillo","Carolina castillo","Carolina castillo","Carolina castillo","Carolina castillo","Carolina castillo","Carolina castillo","Carolina castillo","Carolina castillo","Carolina castillo","Carolina castillo","Carolina castillo","Carolina castillo","Carolina castillo","Carolina castillo","Carolina castillo","Carolina castillo","Carolina castillo","Carolina castillo","Carolina castillo","Carolina castillo","Carolina castillo","Carolina castillo","Carolina castillo","Carolina castillo","Carolina castillo","Carolina castillo","Carolina castillo","Carolina castillo","Carolina castillo","Carolina castillo","Carolina castillo","Carolina castillo","Carolina castillo","Carolina castillo","Carolina castillo","Carolina castillo","Carolina castillo","Carolina castillo","Carolina castillo","Carolina castillo","Carolina castillo","Carolina castillo","Carolina castillo","Carolina castillo","Carolina castillo","Carolina castillo","Carolina castillo","Carolina castillo","Carolina castillo","Carolina castillo","Carolina castillo","Carolina castillo","Carolina castillo","Carolina castillo","Carolina castillo","Carolina castillo","Carolina castillo","Carolina castillo","Carolina castillo","Carolina castillo","Carolina castillo","Carolina castillo","Carolina castillo","Carolina castillo","Carolina castillo","Carolina castillo","Carolina castillo","Carolina castillo","Carolina castillo","Carolina castillo","Carolina castillo","Carolina castillo","Carolina castillo","Carolina castillo","Carolina castillo","Carolina castillo","Carolina castillo","Carolina castillo","Carolina castillo","Carolina castillo","Carolina castillo","Carolina castillo","Carolina castillo","Carolina castillo","Carolina castillo","Carolina castillo","Carolina castillo","Carolina castillo","Carolina castillo","Carolina castillo","Carolina castillo","Carolina castillo","Carolina castillo","Carolina castillo","Carolina castillo","Carolina castillo","Carolina castillo","Carolina castillo","Carolina castillo","Carolina castillo","Carolina castillo","Carolina castillo","Carolina castillo","Carolina castillo","Carolina castillo","Carolina castillo","Carolina castillo","Carolina castillo","Carolina castillo","Carolina castillo","Carolina castillo","Carolina castillo","Carolina castillo","Carolina castillo","Carolina castillo","Carolina castillo","Carolina castillo","Carolina castillo","Carolina castillo","Carolina castillo","Carolina castillo","Carolina castillo","Carolina castillo","Carolina castillo","Carolina castillo","Carolina castillo","Carolina castillo","Carolina castillo","Carolina castillo","Carolina castillo","Carolina castillo","Carolina castillo","Carolina castillo","Carolina castillo","Carolina castillo","Carolina castillo","Carolina castillo","Carolina castillo","Carolina castillo","Carolina castillo","Carolina castillo","Carolina castillo","Carolina castillo","Carolina castillo","Carolina castillo","Carolina castillo","Carolina castillo","Carolina castillo","Carolina castillo","Carolina castillo","Carolina castillo","Carolina castillo","Carolina castillo","Carolina castillo","Carolina castillo","Carolina castillo","Carolina castillo","Carolina castillo","Carolina castillo","Carolina castillo","Carolina castillo","Carolina castillo","Carolina castillo","Carolina castillo","Carolina castillo","Carolina castillo","Carolina castillo","Carolina castillo","Carolina castillo","Carolina castillo","Carolina castillo","Carolina castillo","Carolina castillo","Carolina castillo","Carolina castillo","Carolina castillo","Carolina castillo","Carolina castillo","Carolina castillo","Carolina castillo","Carolina castillo","Carolina castillo","Carolina castillo","Carolina castillo","Carolina castillo","Carolina castillo","Carolina castillo","Carolina castillo","Carolina castillo","Carolina castillo","Carolina castillo","Carolina castillo","Carolina castillo","Carolina castillo","Carolina castillo","Carolina castillo","Carolina castillo","Carolina castillo","Carolina castillo","Carolina castillo","Carolina castillo","Carolina castillo","Carolina castillo","Carolina castillo","Carolina castillo","Carolina castillo","Carolina castillo","Carolina castillo","Carolina castillo","Carolina castillo","Carolina castillo","Carolina castillo","Carolina castillo","Carolina castillo","Carolina castillo","Carolina castillo","Carolina castillo","Carolina castillo","Carolina castillo","Carolina castillo","Carolina castillo","Carolina castillo","Carolina castillo","Carolina castillo","Carolina castillo","Carolina castillo","Carolina castillo","Carolina castillo","Carolina castillo","Carolina castillo","Carolina castillo","Carolina castillo","Carolina castillo","Carolina castillo","Carolina castillo","Carolina castillo","Carolina castillo","Carolina castillo","Carolina castillo","Carolina castillo","Carolina castillo","Carolina castillo","Carolina castillo","Carolina castillo","Carolina castillo","Carolina castillo","Carolina castillo","Carolina castillo","Carolina castillo","Carolina castillo","Carolina castillo","Carolina castillo","Carolina castillo","Carolina castillo","Carolina castillo","Carolina castillo","Carolina castillo","Carolina castillo","Carolina castillo","Carolina castillo","Carolina castillo","Carolina castillo","Carolina castillo","Carolina castillo","Carolina castillo","Carolina castillo","Carolina castillo","Carolina castillo","Carolina castillo","Carolina castillo","Carolina castillo","Carolina castillo","Carolina castillo","Carolina castillo","Carolina castillo","Carolina castillo","Carolina castillo","Carolina castillo","Carolina castillo","Carolina castillo","Carolina castillo","Carolina castillo","Carolina castillo","Carolina castillo","Carolina castillo","Carolina castillo","Carolina castillo","Carolina castillo","Carolina castillo","Carolina castillo","Carolina castillo","Carolina castillo","Carolina castillo","Carolina castillo","Carolina castillo","Carolina castillo","Carolina castillo","Carolina castillo","Carolina castillo","Carolina castillo","Carolina castillo","Carolina castillo","Carolina castillo","Carolina castillo","Carolina castillo","Carolina castillo","Carolina castillo","Carolina castillo","Carolina castillo","Carolina castillo","Carolina castillo","Carolina castillo","Carolina castillo","Carolina castillo","Carolina castillo","Carolina castillo","Carolina castillo","Carolina castillo","Carolina castillo","Carolina castillo","Carolina castillo","Carolina castillo","Carolina castillo","Carolina castillo","Carolina castillo","Carolina castillo","Carolina castillo","Carolina castillo","Carolina castillo","Carolina castillo","Carolina castillo","Carolina castillo","Carolina castillo","Carolina castillo","Carolina castillo","Carolina castillo","Carolina castillo","Carolina castillo","Carolina castillo","Carolina castillo","Carolina castillo","Carolina castillo","Carolina castillo","Carolina castillo","Carolina castillo","Carolina castillo","Carolina castillo","Carolina castillo","Carolina castillo","Carolina castillo","Carolina castillo","Carolina castillo","Carolina castillo","Carolina castillo","Carolina castillo","Carolina castillo","Carolina castillo","Carolina castillo","Carolina castillo","Carolina castillo","Carolina castillo","Carolina castillo","Carolina castillo","Carolina castillo","Carolina castillo","Carolina castillo","Carolina castillo","Carolina castillo","Carolina castillo","Carolina castillo","Carolina castillo","Carolina castillo","Carolina castillo","Carolina castillo","Carolina castillo","Carolina castillo","Carolina castillo","Carolina castillo","Carolina castillo","Carolina castillo","Carolina castillo","Carolina castillo","Carolina castillo","Carolina castillo","Carolina castillo","Carolina castillo","Carolina castillo","Carolina castillo","Carolina castillo","Carolina castillo","Carolina castillo","Carolina castillo","Carolina castillo","Carolina castillo","Carolina castillo","Carolina castillo","Carolina castillo","Carolina castillo","Carolina castillo","Carolina castillo","Carolina castillo","Carolina castillo","Carolina castillo","Carolina castillo","Carolina castillo","Carolina castillo","Carolina castillo","Carolina castillo","Carolina castillo","Carolina castillo","Carolina castillo","Carolina castillo","Carolina castillo","Carolina castillo","Carolina castillo","Carolina castillo","Carolina castillo","Carolina castillo","Carolina castillo","Carolina castillo","Carolina castillo","Carolina castillo","Carolina castillo","Carolina castillo","Carolina castillo","Carolina castillo","Carolina castillo","Carolina castillo","Carolina castillo","Carolina castillo","Carolina castillo","Carolina castillo","Carolina castillo","Carolina castillo","Carolina castillo","Carolina castillo","Carolina castillo","Carolina castillo","Carolina castillo","Carolina castillo","Carolina castillo","Carolina castillo","Carolina castillo","Carolina castillo","Carolina castillo","Carolina castillo","Carolina castillo","Carolina castillo","Carolina castillo","Carolina castillo","Carolina castillo","Carolina castillo","Carolina castillo","Carolina castillo","Carolina castillo","Carolina castillo","Carolina castillo","Carolina castillo","Carolina castillo","Carolina castillo","Carolina castillo","Carolina castillo","Carolina castillo","Carolina castillo","Carolina castillo","Carolina castillo","Carolina castillo","Carolina castillo","Carolina castillo","Carolina castillo","Carolina castillo","Carolina castillo","Carolina castillo","Carolina castillo","Carolina castillo","Carolina castillo","Carolina castillo","Carolina castillo","Carolina castillo","Carolina castillo","Carolina castillo","Carolina castillo","Carolina castillo","Carolina castillo","Carolina castillo","Carolina castillo","Carolina castillo","Carolina castillo","Carolina castillo","Carolina castillo","Carolina castillo","Carolina castillo","Carolina castillo","Carolina castillo","Carolina castillo","Carolina castillo","Carolina castillo","Carolina castillo","Carolina castillo","Carolina castillo","Carolina castillo","Carolina castillo","Carolina castillo","Carolina castillo","Carolina castillo","Carolina castillo","Carolina castillo","Carolina castillo","Carolina castillo","Carolina castillo","Carolina castillo","Carolina castillo","Carolina castillo","Carolina castillo","Carolina castillo","Carolina castillo","Carolina castillo","Carolina castillo","Carolina castillo","Carolina castillo","Carolina castillo","Carolina castillo","Carolina castillo","Carolina castillo","Carolina castillo","Carolina castillo","Carolina castillo","Carolina castillo","Carolina castillo","Carolina castillo","Carolina castillo","Carolina castillo","Carolina castillo","Carolina castillo","Carolina castillo","Carolina castillo","Carolina castillo","Carolina castillo","Carolina castillo","Carolina castillo","Carolina castillo","Carolina castillo","Carolina castillo","Carolina castillo","Carolina castillo","Carolina castillo","Carolina castillo","Carolina castillo","Carolina castillo","Carolina castillo","Carolina castillo","Carolina castillo","Carolina castillo","Carolina castillo","Carolina castillo","Carolina castillo","Carolina castillo","Carolina castillo","Carolina castillo","Carolina castillo","Carolina castillo","Carolina castillo","Carolina castillo","Carolina castillo","Carolina castillo","Carolina castillo","Carolina castillo","Carolina castillo","Carolina castillo","Carolina castillo","Carolina castillo","Carolina castillo","Carolina castillo","Carolina castillo","Carolina castillo","Carolina castillo","Carolina castillo","Carolina castillo","Carolina castillo","Carolina castillo","Carolina castillo","Carolina castillo","Carolina castillo","Carolina castillo","Carolina castillo","Carolina castillo","Carolina castillo","Carolina castillo","Carolina castillo","Carolina castillo","Carolina castillo","Carolina castillo","Carolina castillo","Carolina castillo","Carolina castillo","Carolina castillo","Carolina castillo","Carolina castillo","Carolina castillo","Carolina castillo","Carolina castillo","Carolina castillo","Carolina castillo","Carolina castillo","Carolina castillo","Carolina castillo","Carolina castillo","Carolina castillo","Carolina castillo","Carolina castillo","Carolina castillo","Carolina castillo","Carolina castillo","Carolina castillo","Carolina castillo","Carolina castillo","Carolina castillo","Carolina castillo","Carolina castillo","Carolina castillo","Carolina castillo","Carolina castillo","Carolina castillo","Carolina castillo","Carolina castillo","Carolina castillo","Carolina castillo","Carolina castillo","Carolina castillo","Carolina castillo","Carolina castillo","Carolina castillo","Carolina castillo","Carolina castillo","Carolina castillo","Carolina castillo","Carolina castillo","Carolina castillo","Carolina castillo","Carolina castillo","Carolina castillo","Carolina castillo","Carolina castillo","Carolina castillo","Carolina castillo","Carolina castillo","Carolina castillo","Carolina castillo","Carolina castillo","Carolina castillo","Carolina castillo","Carolina castillo","Carolina castillo","Carolina castillo","Carolina castillo","Carolina castillo","Carolina castillo","Carolina castillo","Carolina castillo","Carolina castillo","Carolina castillo","Carolina castillo","Carolina castillo","Carolina castillo","Carolina castillo","Carolina castillo","Carolina castillo","Carolina castillo","Carolina castillo","Carolina castillo","Carolina castillo","Carolina castillo","Carolina castillo","Carolina castillo","Carolina castillo","Carolina castillo","Carolina castillo","Carolina castillo","Carolina castillo","Carolina castillo","Carolina castillo","Carolina castillo","Carolina castillo","Carolina castillo","Carolina castillo","Carolina castillo","Carolina castillo","Carolina castillo","Carolina castillo","Carolina castillo","Carolina castillo","Carolina castillo","Carolina castillo","Carolina castillo","Carolina castillo","Carolina castillo","Carolina castillo","Carolina castillo","Carolina castillo","Carolina castillo","Carolina castillo","Carolina castillo","Carolina castillo","Carolina castillo","Carolina castillo","Carolina castillo","Carolina castillo","Carolina castillo","Carolina castillo","Carolina castillo","Carolina castillo","Carolina castillo","Carolina castillo","Carolina castillo","Carolina castillo","Carolina castillo","Carolina castillo","Carolina castillo","Carolina castillo","Carolina castillo","Carolina castillo","Carolina castillo","Carolina castillo","Carolina castillo","Carolina castillo","Carolina castillo","Carolina castillo","Carolina castillo","Carolina castillo","Carolina castillo","Carolina castillo","Carolina castillo","Carolina castillo","Carolina castillo","Carolina castillo","Carolina castillo","Carolina castillo","Carolina castillo","Carolina castillo","Carolina castillo","Carolina castillo","Carolina castillo","Carolina castillo","Carolina castillo","Carolina castillo","Carolina castillo","Carolina castillo","Carolina castillo","Carolina castillo","Carolina castillo","Carolina castillo","Carolina castillo","Carolina castillo","Carolina castillo","Carolina castillo","Carolina castillo","Carolina castillo","Carolina castillo","Carolina castillo","Carolina castillo","Carolina castillo","Carolina castillo","Carolina castillo","Carolina castillo","Carolina castillo","Carolina castillo","Carolina castillo","Carolina castillo","Carolina castillo","Carolina castillo","Carolina castillo","Carolina castillo","Carolina castillo","Carolina castillo","Carolina castillo","Carolina castillo","Carolina castillo","Carolina castillo","Carolina castillo","Carolina castillo","Carolina castillo","Carolina castillo","Carolina castillo","Carolina castillo","Carolina castillo","Carolina castillo","Carolina castillo","Carolina castillo","Carolina castillo","Carolina castillo","Carolina castillo","Carolina castillo","Carolina castillo","Carolina castillo","Carolina castillo","Carolina castillo","Carolina castillo","Carolina castillo","Carolina castillo","Carolina castillo","Carolina castillo","Carolina castillo","Carolina castillo","Carolina castillo","Carolina castillo","Carolina castillo","Carolina castillo","Carolina castillo","Carolina castillo","Carolina castillo","Carolina castillo","Carolina castillo","Carolina castillo","Carolina castillo","Carolina castillo","Carolina castillo","Carolina castillo","Carolina castillo","Carolina castillo","Carolina castillo","Carolina castillo","Carolina castillo","Carolina castillo","Carolina castillo","Carolina castillo","Carolina castillo","Carolina castillo","Carolina castillo","Carolina castillo","Carolina castillo","Carolina castillo","Carolina castillo","Carolina castillo","Carolina castillo","Carolina castillo","Carolina castillo","Carolina castillo","Carolina castillo","Carolina castillo","Carolina castillo","Carolina castillo","Carolina castillo","Carolina castillo","Carolina castillo","Carolina castillo","Carolina castillo","Carolina castillo","Carolina castillo","Carolina castillo","Carolina castillo","Carolina castillo","Carolina castillo","Carolina castillo","Carolina castillo","Carolina castillo","Carolina castillo","Carolina castillo","Carolina castillo","Carolina castillo","Carolina castillo","Carolina castillo","Carolina castillo","Carolina castillo","Carolina castillo","Carolina castillo","Carolina castillo","Carolina castillo","Carolina castillo","Carolina castillo","Carolina castillo","Carolina castillo","Carolina castillo","Carolina castillo","Carolina castillo","Carolina castillo","Carolina castillo","Carolina castillo","Carolina castillo","Carolina castillo","Carolina castillo","Carolina castillo","Carolina castillo","Carolina castillo","Carolina castillo","Carolina castillo","Carolina castillo","Carolina castillo","Carolina castillo","Carolina castillo","Carolina castillo","Carolina castillo","Carolina castillo","Carolina castillo","Carolina castillo","Carolina castillo","Carolina castillo","Carolina castillo","Carolina castillo","Carolina castillo","Carolina castillo","Carolina castillo","Carolina castillo","Carolina castillo","Carolina castillo","Carolina castillo","Carolina castillo","Carolina castillo","Carolina castillo","Carolina castillo","Carolina castillo","Carolina castillo","Carolina castillo","Carolina castillo","Carolina castillo","Carolina castillo","Carolina castillo","Carolina castillo","Carolina castillo","Carolina castillo","Carolina castillo","Carolina castillo","Carolina castillo","Carolina castillo","Carolina castillo","Carolina castillo","Carolina castillo","Carolina castillo","Carolina castillo","Carolina castillo","Carolina castillo","Carolina castillo","Carolina castillo","Carolina castillo","Carolina castillo","Carolina castillo","Carolina castillo","Carolina castillo","Carolina castillo","Carolina castillo","Carolina castillo","Carolina castillo","Carolina castillo","Carolina castillo","Carolina castillo","Carolina castillo","Carolina castillo","Carolina castillo","Carolina castillo","Carolina castillo","Carolina castillo","Carolina castillo","Carolina castillo","Carolina castillo","Carolina castillo","Carolina castillo","Carolina castillo","Carolina castillo","Carolina castillo","Carolina castillo","Carolina castillo","Carolina castillo","Carolina castillo","Carolina castillo","Carolina castillo","Carolina castillo","Carolina castillo","Carolina castillo","Carolina castillo","Carolina castillo","Carolina castillo","Carolina castillo","Carolina castillo","Carolina castillo","Carolina castillo","Carolina castillo","Carolina castillo","Carolina castillo","Carolina castillo","Carolina castillo","Carolina castillo","Carolina castillo","Carolina castillo","Carolina castillo","Carolina castillo","Carolina castillo","Carolina castillo","Carolina castillo","Carolina castillo","Carolina castillo","Carolina castillo","Carolina castillo","Carolina castillo","Carolina castillo","Carolina castillo","Carolina castillo","Carolina castillo","Carolina castillo","Carolina castillo","Carolina castillo","Carolina castillo","Carolina castillo","Carolina castillo","Carolina castillo","Carolina castillo","Carolina castillo","Carolina castillo","Carolina castillo","Carolina castillo","Carolina castillo","Carolina castillo","Carolina castillo","Carolina castillo","Carolina castillo","Carolina castillo","Carolina castillo","Carolina castillo","Carolina castillo","Carolina castillo","Carolina castillo","Carolina castillo","Carolina castillo","Carolina castillo","Carolina castillo","Carolina castillo","Carolina castillo","Carolina castillo","Carolina castillo","Carolina castillo","Carolina castillo","Carolina castillo","Carolina castillo","Carolina castillo","Carolina castillo","Carolina castillo","Carolina castillo","Carolina castillo","Carolina castillo","Carolina castillo","Carolina castillo","Carolina castillo","Carolina castillo","Carolina castillo","Carolina castillo","Carolina castillo","Carolina castillo","Carolina castillo","Carolina castillo","Carolina castillo","Carolina castillo","Carolina castillo","Carolina castillo","Carolina castillo","Carolina castillo","Carolina castillo","Carolina castillo","Carolina castillo","Carolina castillo","Carolina castillo","Carolina castillo","Carolina castillo","Carolina castillo","Carolina castillo","Carolina castillo","Carolina castillo","Carolina castillo","Carolina castillo","Carolina castillo","Carolina castillo","Carolina castillo","Carolina castillo","Carolina castillo","Carolina castillo","Carolina castillo","Carolina castillo","Carolina castillo","Carolina castillo","Carolina castillo","Carolina castillo","Carolina castillo","Carolina castillo","Carolina castillo","Carolina castillo","Carolina castillo","Carolina castillo","Carolina castillo","Carolina castillo","Carolina castillo","Carolina castillo","Carolina castillo","Carolina castillo","Carolina castillo","Carolina castillo","Carolina castillo","Carolina castillo","Carolina castillo","Carolina castillo","Carolina castillo","Carolina castillo","Carolina castillo","Carolina castillo","Carolina castillo","Carolina castillo","Carolina castillo","Carolina castillo","Carolina castillo","Carolina castillo","Carolina castillo","Carolina castillo","Carolina castillo","Carolina castillo","Carolina castillo","Carolina castillo","Carolina castillo","Carolina castillo","Carolina castillo","Carolina castillo","Carolina castillo","Carolina castillo","Carolina castillo","Carolina castillo","Carolina castillo","Carolina castillo","Carolina castillo","Carolina castillo","Carolina castillo","Carolina castillo","Carolina castillo","Carolina castillo","Carolina castillo","Carolina castillo","Carolina castillo","Carolina castillo","Carolina castillo","Carolina castillo","Carolina castillo","Carolina castillo","Carolina castillo","Carolina castillo","Carolina castillo","Carolina castillo","Carolina castillo","Carolina castillo","Carolina castillo","Carolina castillo","Carolina castillo","Carolina castillo","Carolina castillo","Carolina castillo","Carolina castillo","Carolina castillo","Carolina castillo","Carolina castillo","Carolina castillo","Carolina castillo","Carolina castillo","Carolina castillo","Carolina castillo","Carolina castillo","Carolina castillo","Carolina castillo","Carolina castillo","Carolina castillo","Carolina castillo","Carolina castillo","Carolina castillo","Carolina castillo","Carolina castillo","Carolina castillo","Carolina castillo","Carolina castillo","Carolina castillo","Carolina castillo","Carolina castillo","Carolina castillo","Carolina castillo","Carolina castillo","Carolina castillo","Carolina castillo","Carolina castillo","Carolina castillo","Carolina castillo","Carolina castillo","Carolina castillo","Carolina castillo","Carolina castillo","Carolina castillo","Carolina castillo","Carolina castillo","Carolina castillo","Carolina castillo","Carolina castillo","Carolina castillo","Carolina castillo","Carolina castillo","Carolina castillo","Carolina castillo","Carolina castillo","Carolina castillo","Carolina castillo","Carolina castillo","Carolina castillo","Carolina castillo","Carolina castillo","Carolina castillo","Carolina castillo","Carolina castillo","Carolina castillo","Carolina castillo","Carolina castillo","Carolina castillo","Carolina castillo","Carolina castillo","Carolina castillo","Carolina castillo","Carolina castillo","Carolina castillo","Carolina castillo","Carolina castillo","Carolina castillo","Carolina castillo","Carolina castillo","Carolina castillo","Carolina castillo","Carolina castillo","Carolina castillo","Carolina castillo","Carolina castillo","Carolina castillo","Carolina castillo","Carolina castillo","Carolina castillo","Carolina castillo","Carolina castillo","Carolina castillo","Carolina castillo","Carolina castillo","Carolina castillo","Carolina castillo","Carolina castillo","Carolina castillo","Carolina castillo","Carolina castillo","Carolina castillo","Carolina castillo","Carolina castillo","Carolina castillo","Carolina castillo","Carolina castillo","Carolina castillo","Carolina castillo","Carolina castillo","Carolina castillo","Carolina castillo","Carolina castillo","Carolina castillo","Carolina castillo","Carolina castillo","Carolina castillo","Carolina castillo","Carolina castillo","Carolina castillo","Carolina castillo","Carolina castillo","Carolina castillo","Carolina castillo","Carolina castillo","Carolina castillo","Carolina castillo","Carolina castillo","Carolina castillo","Carolina castillo","Carolina castillo","Carolina castillo","Carolina castillo","Carolina castillo","Carolina castillo","Carolina castillo","Carolina castillo","Carolina castillo","Carolina castillo","Carolina castillo","Carolina castillo","Carolina castillo","Carolina castillo","Carolina castillo","Carolina castillo","Carolina castillo","Carolina castillo","Carolina castillo","Carolina castillo","Carolina castillo","Carolina castillo","Carolina castillo","Carolina castillo","Carolina castillo","Carolina castillo","Carolina castillo","Carolina castillo","Carolina castillo","Carolina castillo","Carolina castillo","Carolina castillo","Carolina castillo","Carolina castillo","Carolina castillo","Carolina castillo","Carolina castillo","Carolina castillo","Carolina castillo","Carolina castillo","Carolina castillo","Carolina castillo","Carolina castillo","Carolina castillo","Carolina castillo","Carolina castillo","Carolina castillo","Carolina castillo","Carolina castillo","Carolina castillo","Carolina castillo","Carolina castillo","Carolina castillo","Carolina castillo","Carolina castillo","Carolina castillo","Carolina castillo","Carolina castillo","Carolina castillo","Carolina castillo","Carolina castillo","Carolina castillo","Carolina castillo","Carolina castillo","Carolina castillo","Carolina castillo","Carolina castillo","Carolina castillo","Carolina castillo","Carolina castillo","Carolina castillo","Carolina castillo","Carolina castillo","Carolina castillo","Carolina castillo","Carolina castillo","Carolina castillo","Carolina castillo","Carolina castillo","Carolina castillo","Carolina castillo","Carolina castillo","Carolina castillo","Carolina castillo","Carolina castillo","Carolina castillo","Carolina castillo","Carolina castillo","Carolina castillo","Carolina castillo","Carolina castillo","Carolina castillo","Carolina castillo","Carolina castillo","Carolina castillo","Carolina castillo","Carolina castillo","Carolina castillo","Carolina castillo","Carolina castillo","Carolina castillo","Carolina castillo","Carolina castillo","Carolina castillo","Carolina castillo","Carolina castillo","Carolina castillo","Carolina castillo","Carolina castillo","Carolina castillo","Carolina castillo","Carolina castillo","Carolina castillo","Carolina castillo","Carolina castillo","Carolina castillo","Carolina castillo","Carolina castillo","Carolina castillo","Carolina castillo","Carolina castillo","Carolina castillo","Carolina castillo","Carolina castillo","Carolina castillo","Carolina castillo","Carolina castillo","Carolina castillo","Carolina castillo","Carolina castillo","Carolina castillo","Carolina castillo","Carolina castillo","Carolina castillo","Carolina castillo","Carolina castillo","Carolina castillo","Carolina castillo","Carolina castillo","Carolina castillo","Carolina castillo","Carolina castillo","Carolina castillo","Carolina castillo","Carolina castillo","Carolina castillo","Carolina castillo","Carolina castillo","Carolina castillo","Carolina castillo","Carolina castillo","Carolina castillo","Carolina castillo","Carolina castillo","Carolina castillo","Carolina castillo","Carolina castillo","Carolina castillo","Carolina castillo","Carolina castillo","Carolina castillo","Carolina castillo","Carolina castillo","Carolina castillo","Carolina castillo","Carolina castillo","Carolina castillo","Carolina castillo","Carolina castillo","Carolina castillo","Carolina castillo","Carolina castillo","Carolina castillo","Carolina castillo","Carolina castillo","Carolina castillo","Carolina castillo","Carolina castillo","Carolina castillo","Carolina castillo","Carolina castillo","Carolina castillo","Carolina castillo","Carolina castillo","Carolina castillo","Carolina castillo","Carolina castillo","Carolina castillo","Carolina castillo","Carolina castillo","Carolina castillo","Carolina castillo","Carolina castillo","Carolina castillo","Carolina castillo","Carolina castillo","Carolina castillo","Carolina castillo","Carolina castillo","Carolina castillo","Carolina castillo","Carolina castillo","Carolina castillo","Carolina castillo","Carolina castillo","Carolina castillo","Carolina castillo","Carolina castillo","Carolina castillo","Carolina castillo","Carolina castillo","Carolina castillo","Carolina castillo","Carolina castillo","Carolina castillo","Carolina castillo","Carolina castillo","Carolina castillo","Carolina castillo","Carolina castillo","Carolina castillo","Carolina castillo","Carolina castillo","Carolina castillo","Carolina castillo","Carolina castillo","Carolina castillo","Carolina castillo","Carolina castillo","Carolina castillo","Carolina castillo","Carolina castillo","Carolina castillo","Carolina castillo","Carolina castillo","Carolina castillo","Carolina castillo","Carolina castillo","Carolina castillo","Carolina castillo","Carolina castillo","Carolina castillo","Carolina castillo","Carolina castillo","Carolina castillo","Carolina castillo","Carolina castillo","Carolina castillo","Carolina castillo","Carolina castillo","Carolina castillo","Carolina castillo","Carolina castillo","Carolina castillo","Carolina castillo","Carolina castillo","Carolina castillo","Carolina castillo","Carolina castillo","Carolina castillo","Carolina castillo","Carolina castillo","Carolina castillo","Carolina castillo","Carolina castillo","Carolina castillo","Carolina castillo","Carolina castillo","Carolina castillo","Carolina castillo","Carolina castillo","Carolina castillo","Carolina castillo","Carolina castillo","Carolina castillo","Carolina castillo","Carolina castillo","Carolina castillo","Carolina castillo","Carolina castillo","Carolina castillo","Carolina castillo","Carolina castillo","Carolina castillo","Carolina castillo","Carolina castillo","Carolina castillo","Carolina castillo","Carolina castillo","Carolina castillo","Carolina castillo","Carolina castillo","Carolina castillo","Carolina castillo","Carolina castillo","Carolina castillo","Carolina castillo","Carolina castillo","Carolina castillo","Carolina castillo","Carolina castillo","Carolina castillo","Carolina castillo","Carolina castillo","Carolina castillo","Carolina castillo","Carolina castillo","Carolina castillo","Carolina castillo","Carolina castillo","Carolina castillo","Carolina castillo","Carolina castillo","Carolina castillo","Carolina castillo","Carolina castillo","Carolina castillo","Carolina castillo","Carolina castillo","Carolina castillo","Carolina castillo","Carolina castillo","Carolina castillo","Carolina castillo","Carolina castillo","Carolina castillo","Carolina castillo","Carolina castillo","Carolina castillo","Carolina castillo","Carolina castillo","Carolina castillo","Carolina castillo","Carolina castillo","Carolina castillo","Carolina castillo","Carolina castillo","Carolina castillo","Carolina castillo","Carolina castillo","Carolina castillo","Carolina castillo","Carolina castillo","Carolina castillo","Carolina castillo","Carolina castillo","Carolina castillo","Carolina castillo","Carolina castillo","Carolina castillo","Carolina castillo","Carolina castillo","Carolina castillo","Carolina castillo","Carolina castillo","Carolina castillo","Carolina castillo","Carolina castillo","Carolina castillo","Carolina castillo","Carolina castillo","Carolina castillo","Carolina castillo","Carolina castillo","Carolina castillo","Carolina castillo","Carolina castillo","Carolina castillo","Carolina castillo","Carolina castillo","Carolina castillo","Carolina castillo","Carolina castillo","Carolina castillo","Carolina castillo","Carolina castillo","Carolina castillo","Carolina castillo","Carolina castillo","Carolina castillo","Carolina castillo","Carolina castillo","Carolina castillo","Carolina castillo","Carolina castillo","Carolina castillo","Carolina castillo","Carolina castillo","Carolina castillo","Carolina castillo","Carolina castillo","Carolina castillo","Carolina castillo","Carolina castillo","Carolina castillo","Carolina castillo","Carolina castillo","Carolina castillo","Carolina castillo","Carolina castillo","Carolina castillo","Carolina castillo","Carolina castillo","Carolina castillo","Carolina castillo","Carolina castillo","Carolina castillo","Carolina castillo","Carolina castillo","Carolina castillo","Carolina castillo","Carolina castillo","Carolina castillo","Carolina castillo","Carolina castillo","Carolina castillo","Carolina castillo","Carolina castillo","Carolina castillo","Carolina castillo","Carolina castillo","Carolina castillo","Carolina castillo","Carolina castillo","Carolina castillo","Carolina castillo","Carolina castillo","Carolina castillo","Carolina castillo","Carolina castillo","Carolina castillo","Carolina castillo","Carolina castillo","Carolina castillo","Carolina castillo","Carolina castillo","Carolina castillo","Carolina castillo","Carolina castillo","Carolina castillo","Carolina castillo","Carolina castillo","Carolina castillo","Carolina castillo","Carolina castillo","Carolina castillo","Carolina castillo","Carolina castillo","Carolina castillo","Carolina castillo","Carolina castillo","Carolina castillo","Carolina castillo","Carolina castillo","Carolina castillo","Carolina castillo","Carolina castillo","Carolina castillo","Carolina castillo","Carolina castillo","Carolina castillo","Carolina castillo","Carolina castillo","Carolina castillo","Carolina castillo","Carolina castillo","Carolina castillo","Carolina castillo","Carolina castillo","Carolina castillo","Carolina castillo","Carolina castillo","Carolina castillo","Carolina castillo","Carolina castillo","Carolina castillo","Carolina castillo","Carolina castillo","Carolina castillo","Carolina castillo","Carolina castillo","Carolina castillo","Carolina castillo","Carolina castillo","Carolina castillo","Carolina castillo","Carolina castillo","Carolina castillo","Carolina castillo","Carolina castillo","Carolina castillo","Carolina castillo","Carolina castillo","Carolina castillo","Carolina castillo","Carolina castillo","Carolina castillo","Carolina castillo","Carolina castillo","Carolina castillo","Carolina castillo","Carolina castillo","Carolina castillo","Carolina castillo","Carolina castillo","Carolina castillo","Carolina castillo","Carolina castillo","Carolina castillo","Carolina castillo","Carolina castillo","Carolina castillo","Carolina castillo","Carolina castillo","Carolina castillo","Carolina castillo","Carolina castillo","Carolina castillo","Carolina castillo","Carolina castillo","Carolina castillo","Carolina castillo","Carolina castillo","Carolina castillo","Carolina castillo","Carolina castillo","Carolina castillo","Carolina castillo","Carolina castillo","Carolina castillo","Carolina castillo","Carolina castillo","Carolina castillo","Carolina castillo","Carolina castillo","Carolina castillo","Carolina castillo","Carolina castillo","Carolina castillo","Carolina castillo","Carolina castillo","Carolina castillo","Carolina castillo","Carolina castillo","Carolina castillo","Carolina castillo","Carolina castillo","Carolina castillo","Carolina castillo","Carolina castillo","Carolina castillo","Carolina castillo","Carolina castillo","Carolina castillo","Carolina castillo","Carolina castillo","Carolina castillo","Carolina castillo","Carolina castillo","Carolina castillo","Carolina castillo","Carolina castillo","Carolina castillo","Carolina castillo","Carolina castillo","Carolina castillo","Carolina castillo","Carolina castillo","Carolina castillo","Carolina castillo","Carolina castillo","Carolina castillo","Carolina castillo","Carolina castillo","Carolina castillo","Carolina castillo","Carolina castillo","Carolina castillo","Carolina castillo","Carolina castillo","Carolina castillo","Carolina castillo","Carolina castillo","Carolina castillo","Carolina castillo","Carolina castillo","Carolina castillo","Carolina castillo","Carolina castillo","Carolina castillo","Carolina castillo","Carolina castillo","Carolina castillo","Carolina castillo","Carolina castillo","Carolina castillo","Carolina castillo","Carolina castillo","Carolina castillo","Carolina castillo","Carolina castillo","Carolina castillo","Carolina castillo","Carolina castillo","Carolina castillo","Carolina castillo","Carolina castillo","Carolina castillo","Carolina castillo","Carolina castillo","Carolina castillo","Carolina castillo","Carolina castillo","Carolina castillo","Carolina castillo","Carolina castillo","Carolina castillo","Carolina castillo","Carolina castillo","Carolina castillo","Carolina castillo","Carolina castillo","Carolina castillo","Carolina castillo","Carolina castillo","Carolina castillo","Carolina castillo","Carolina castillo","Carolina castillo","Carolina castillo","Carolina castillo","Carolina castillo","Carolina castillo","Carolina castillo","Carolina castillo","Carolina castillo","Carolina castillo","Carolina castillo","Carolina castillo","Carolina castillo","Carolina castillo","Carolina castillo","Carolina castillo","Carolina castillo","Carolina castillo","Carolina castillo","Carolina castillo","Carolina castillo","Carolina castillo","Carolina castillo","Carolina castillo","Carolina castillo","Carolina castillo","Carolina castillo","Carolina castillo","Carolina castillo","Carolina castillo","Carolina castillo","Carolina castillo","Carolina castillo","Carolina castillo","Carolina castillo","Carolina castillo","Carolina castillo","Carolina castillo","Carolina castillo","Carolina castillo","Carolina castillo","Carolina castillo","Carolina castillo","Carolina castillo","Carolina castillo","Carolina castillo","Carolina castillo","Carolina castillo","Carolina castillo","Carolina castillo","Carolina castillo","Carolina castillo","Carolina castillo","Carolina castillo","Carolina castillo","Carolina castillo","Carolina castillo","Carolina castillo","Carolina castillo","Carolina castillo","Carolina castillo","Carolina castillo","Carolina castillo","Carolina castillo","Carolina castillo","Carolina castillo","Carolina castillo","Carolina castillo","Carolina castillo","Carolina castillo","Carolina castillo","Carolina castillo","Carolina castillo","Carolina castillo","Carolina castillo","Carolina castillo","Carolina castillo","Carolina castillo","Carolina castillo","Carolina castillo","Carolina castillo","Carolina castillo","Carolina castillo","Carolina castillo","Carolina castillo","Carolina castillo","Carolina castillo","Carolina castillo","Carolina castillo","Carolina castillo","Carolina castillo","Carolina castillo","Carolina castillo","Carolina castillo","Carolina castillo","Carolina castillo","Carolina castillo","Carolina castillo","Carolina castillo","Carolina castillo","Carolina castillo","Carolina castillo","Carolina castillo","Carolina castillo","Carolina castillo","Carolina castillo","Carolina castillo","Carolina castillo","Carolina castillo","Carolina castillo","Carolina castillo","Carolina castillo","Carolina castillo","Carolina castillo","Carolina castillo","Carolina castillo","Carolina castillo","Carolina castillo","Carolina castillo","Carolina castillo","Carolina castillo","Carolina castillo","Carolina castillo","Carolina castillo","Carolina castillo","Carolina castillo","Carolina castillo","Carolina castillo","Carolina castillo","Carolina castillo","Carolina castillo","Carolina castillo","Carolina castillo","Carolina castillo","Carolina castillo","Carolina castillo","Carolina castillo","Carolina castillo","Carolina castillo","Carolina castillo","Carolina castillo","Carolina castillo","Carolina castillo","Carolina castillo","Carolina castillo","Carolina castillo","Carolina castillo","Carolina castillo","Carolina castillo","Carolina castillo","Carolina castillo","Carolina castillo","Carolina castillo","Carolina castillo","Carolina castillo","Carolina castillo","Carolina castillo","Carolina castillo","Carolina castillo","Carolina castillo","Carolina castillo","Carolina castillo","Carolina castillo","Carolina castillo","Carolina castillo","Carolina castillo","Carolina castillo","Carolina castillo","Carolina castillo","Carolina castillo","Carolina castillo","Carolina castillo","Carolina castillo","Carolina castillo","Carolina castillo","Carolina castillo","Carolina castillo","Carolina castillo","Carolina castillo","Carolina castillo","Carolina castillo","Carolina castillo","Carolina castillo","Carolina castillo","Carolina castillo","Carolina castillo","Carolina castillo","Carolina castillo","Carolina castillo","Carolina castillo","Carolina castillo","Carolina castillo","Carolina castillo","Carolina castillo","Carolina castillo","Carolina castillo","Carolina castillo","Carolina castillo","Carolina castillo","Carolina castillo","Carolina castillo","Carolina castillo","Carolina castillo","Carolina castillo","Carolina castillo","Carolina castillo","Carolina castillo","Carolina castillo","Carolina castillo","Carolina castillo","Carolina castillo","Carolina castillo","Carolina castillo","Carolina castillo","Carolina castillo","Carolina castillo","Carolina castillo","Carolina castillo","Carolina castillo","Carolina castillo","Carolina castillo","Carolina castillo","Carolina castillo","Carolina castillo","Carolina castillo","Carolina castillo","Carolina castillo","Carolina castillo","Carolina castillo","Carolina castillo","Carolina castillo","Carolina castillo","Carolina castillo","Carolina castillo","Carolina castillo","Carolina castillo","Carolina castillo","Carolina castillo","Carolina castillo","Carolina castillo","Carolina castillo","Carolina castillo","Carolina castillo","Carolina castillo","Carolina castillo","Carolina castillo","Carolina castillo","Carolina castillo","Carolina castillo","Carolina castillo","Carolina castillo","Carolina castillo","Carolina castillo","Carolina castillo","Carolina castillo","Carolina castillo","Carolina castillo","Carolina castillo","Carolina castillo","Carolina castillo","Carolina castillo","Carolina castillo","Carolina castillo","Carolina castillo","Carolina castillo","Carolina castillo","Carolina castillo","Carolina castillo","Carolina castillo","Carolina castillo","Carolina castillo","Carolina castillo","Carolina castillo","Carolina castillo","Carolina castillo","Carolina castillo","Carolina castillo","Carolina castillo","Carolina castillo","Carolina castillo","Carolina castillo","Carolina castillo","Carolina castillo","Carolina castillo","Carolina castillo","Carolina castillo","Carolina castillo","Carolina castillo","Carolina castillo","Carolina castillo","Carolina castillo","Carolina castillo","Carolina castillo","Carolina castillo","Carolina castillo","Carolina castillo","Carolina castillo","Carolina castillo","Carolina castillo","Carolina castillo","Carolina castillo","Carolina castillo","Carolina castillo","Carolina castillo","Carolina castillo","Carolina castillo","Carolina castillo","Carolina castillo","Carolina castillo","Carolina castillo","Carolina castillo","Carolina castillo","Carolina castillo","Carolina castillo","Carolina castillo","Carolina castillo","Carolina castillo","Carolina castillo","Carolina castillo","Carolina castillo","Carolina castillo","Carolina castillo","Carolina castillo","Carolina castillo","Carolina castillo","Carolina castillo","Carolina castillo","Carolina castillo","Carolina castillo","Carolina castillo","Carolina castillo","Carolina castillo","Carolina castillo","Carolina castillo","Carolina castillo","Carolina castillo","Carolina castillo","Carolina castillo","Carolina castillo","Carolina castillo","Carolina castillo","Carolina castillo","Carolina castillo","Carolina castillo","Carolina castillo","Carolina castillo","Carolina castillo","Carolina castillo","Carolina castillo","Carolina castillo","Carolina castillo","Carolina castillo","Carolina castillo","Carolina castillo","Carolina castillo","Carolina castillo","Carolina castillo","Carolina castillo","Carolina castillo","Carolina castillo","Carolina castillo","Carolina castillo","Carolina castillo","Carolina castillo","Carolina castillo","Carolina castillo","Carolina castillo","Carolina castillo","Carolina castillo","Carolina castillo","Carolina castillo","Carolina castillo","Carolina castillo","Carolina castillo","Carolina castillo","Carolina castillo","Carolina castillo","Carolina castillo","Carolina castillo","Carolina castillo","Carolina castillo","Carolina castillo","Carolina castillo","Carolina castillo","Carolina castillo","Carolina castillo","Carolina castillo","Carolina castillo","Carolina castillo","Carolina castillo","Carolina castillo","Carolina castillo","Carolina castillo","Carolina castillo","Carolina castillo","Carolina castillo","Carolina castillo","Carolina castillo","Carolina castillo","Carolina castillo","Carolina castillo","Carolina castillo","Carolina castillo","Carolina castillo","Carolina castillo","Carolina castillo","Carolina castillo","Carolina castillo","Carolina castillo","Carolina castillo","Carolina castillo","Carolina castillo","Carolina castillo","Carolina castillo","Carolina castillo","Carolina castillo","Carolina castillo","Carolina castillo","Carolina castillo","Carolina castillo","Carolina castillo","Carolina castillo","Carolina castillo","Carolina castillo","Carolina castillo","Carolina castillo","Carolina castillo","Carolina castillo","Carolina castillo","Carolina castillo","Carolina castillo","Carolina castillo","Carolina castillo","Carolina castillo","Carolina castillo","Carolina castillo","Carolina castillo","Carolina castillo","Carolina castillo","Carolina castillo","Carolina castillo","Carolina castillo","Carolina castillo","Carolina castillo","Carolina castillo","Carolina castillo","Carolina castillo","Carolina castillo","Carolina castillo","Carolina castillo","Carolina castillo","Carolina castillo","Carolina castillo","Carolina castillo","Carolina castillo","Carolina castillo","Carolina castillo","Carolina castillo","Carolina castillo","Carolina castillo","Carolina castillo","Carolina castillo","Carolina castillo","Carolina castillo","Carolina castillo","Carolina castillo","Carolina castillo","Carolina castillo","Carolina castillo","Carolina castillo","Carolina castillo","Carolina castillo","Carolina castillo","Carolina castillo","Carolina castillo","Carolina castillo","Carolina castillo","Carolina castillo","Carolina castillo","Carolina castillo","Carolina castillo","Carolina castillo","Carolina castillo","Carolina castillo","Carolina castillo","Carolina castillo","Carolina castillo","Carolina castillo","Carolina castillo","Carolina castillo","Carolina castillo","Carolina castillo","Carolina castillo","Carolina castillo","Carolina castillo","Carolina castillo","Carolina castillo","Carolina castillo","Carolina castillo","Carolina castillo","Carolina castillo","Carolina castillo","Carolina castillo","Carolina castillo","Carolina castillo","Carolina castillo","Carolina castillo","Carolina castillo","Carolina castillo","Carolina castillo","Carolina castillo","Carolina castillo","Carolina castillo","Carolina castillo","Carolina castillo","Carolina castillo","Carolina castillo","Carolina castillo","Carolina castillo","Carolina castillo","Carolina castillo","Carolina castillo","Carolina castillo","Carolina castillo","Carolina castillo","Carolina castillo","Carolina castillo","Carolina castillo","Carolina castillo","Carolina castillo","Carolina castillo","Carolina castillo","Carolina castillo","Carolina castillo","Carolina castillo","Carolina castillo","Carolina castillo","Carolina castillo","Carolina castillo","Carolina castillo","Carolina castillo","Carolina castillo","Carolina castillo","Carolina castillo","Carolina castillo","Carolina castillo","Carolina castillo","Carolina castillo","Carolina castillo","Carolina castillo","Carolina castillo","Carolina castillo","Carolina castillo","Carolina castillo","Carolina castillo","Carolina castillo","Carolina castillo","Carolina castillo","Carolina castillo","Carolina castillo","Carolina castillo","Carolina castillo","Carolina castillo","Carolina castillo","Carolina castillo","Carolina castillo","Carolina castillo","Carolina castillo","Carolina castillo","Carolina castillo","Carolina castillo","Carolina castillo","Carolina castillo","Carolina castillo","Carolina castillo","Carolina castillo","Carolina castillo","Carolina castillo","Carolina castillo","Carolina castillo","Carolina castillo","Carolina castillo","Carolina castillo","Carolina castillo","Carolina castillo","Carolina castillo","Carolina castillo","Carolina castillo","Carolina castillo","Carolina castillo","Carolina castillo","Carolina castillo","Carolina castillo","Carolina castillo","Carolina castillo","Carolina castillo","Carolina castillo","Carolina castillo","Carolina castillo","Carolina castillo","Carolina castillo","Carolina castillo","Carolina castillo","Carolina castillo","Carolina castillo","Carolina castillo","Carolina castillo","Carolina castillo","Carolina castillo","Carolina castillo","Carolina castillo","Carolina castillo","Carolina castillo","Carolina castillo","Carolina castillo","Carolina castillo","Carolina castillo","Carolina castillo","Carolina castillo","Carolina castillo","Carolina castillo","Carolina castillo","Carolina castillo","Carolina castillo","Carolina castillo","Carolina castillo","Carolina castillo","Carolina castillo","Carolina castillo","Carolina castillo","Carolina castillo","Carolina castillo","Carolina castillo","Carolina castillo","Carolina castillo","Carolina castillo","Carolina castillo","Carolina castillo","Carolina castillo","Carolina castillo","Carolina castillo","Carolina castillo","Carolina castillo","Carolina castillo","Carolina castillo","Carolina castillo","Carolina castillo","Carolina castillo","Carolina castillo","Carolina castillo","Carolina castillo","Carolina castillo","Carolina castillo","Carolina castillo","Carolina castillo","Carolina castillo","Carolina castillo","Carolina castillo","Carolina castillo","Carolina castillo","Carolina castillo","Carolina castillo","Carolina castillo","Carolina castillo","Carolina castillo","Carolina castillo","Carolina castillo","Carolina castillo","Carolina castillo","Carolina castillo","Carolina castillo","Carolina castillo","Carolina castillo","Carolina castillo","Carolina castillo","Carolina castillo","Carolina castillo","Carolina castillo","Carolina castillo","Carolina castillo","Carolina castillo","Carolina castillo","Carolina castillo","Carolina castillo","Carolina castillo","Carolina castillo","Carolina castillo","Carolina castillo","Carolina castillo","Carolina castillo","Carolina castillo","Carolina castillo","Carolina castillo","Carolina castillo","Carolina castillo","Carolina castillo","Carolina castillo","Carolina castillo","Carolina castillo","Carolina castillo","Carolina castillo","Carolina castillo","Carolina castillo","Carolina castillo","Carolina castillo","Carolina castillo","Carolina castillo","Carolina castillo","Carolina castillo","Carolina castillo","Carolina castillo","Carolina castillo","Carolina castillo","Carolina castillo","Carolina castillo","Carolina castillo","Carolina castillo","Carolina castillo","Carolina castillo","Carolina castillo","Carolina castillo","Carolina castillo","Carolina castillo","Carolina castillo","Carolina castillo","Carolina castillo","Carolina castillo","Carolina castillo","Carolina castillo","Carolina castillo","Carolina castillo","Carolina castillo","Carolina castillo","Carolina castillo","Carolina castillo","Carolina castillo","Carolina castillo","Carolina castillo","Carolina castillo","Carolina castillo","Carolina castillo","Carolina castillo","Carolina castillo","Carolina castillo","Carolina castillo","Carolina castillo","Carolina castillo","Carolina castillo","Carolina castillo","Carolina castillo","Carolina castillo","Carolina castillo","Carolina castillo","Carolina castillo","Carolina castillo","Carolina castillo","Carolina castillo","Carolina castillo","Carolina castillo","Carolina castillo","Carolina castillo","Carolina castillo","Carolina castillo","Carolina castillo","Carolina castillo","Carolina castillo","Carolina castillo","Carolina castillo","Carolina castillo","Carolina castillo","Carolina castillo","Carolina castillo","Carolina castillo","Carolina castillo","Carolina castillo","Carolina castillo","Carolina castillo","Carolina castillo","Carolina castillo","Carolina castillo","Carolina castillo","Carolina castillo","Carolina castillo","Carolina castillo","Carolina castillo","Carolina castillo","Carolina castillo","Carolina castillo","Carolina castillo","Carolina castillo","Carolina castillo","Carolina castillo","Carolina castillo","Carolina castillo","Carolina castillo","Carolina castillo","Carolina castillo","Carolina castillo","Carolina castillo","Carolina castillo","Carolina castillo","Carolina castillo","Carolina castillo","Carolina castillo","Carolina castillo","Carolina castillo","Carolina castillo","Carolina castillo","Carolina castillo","Carolina castillo","Carolina castillo","Carolina castillo","Carolina castillo","Carolina castillo","Carolina castillo","Carolina castillo","Carolina castillo","Carolina castillo","Carolina castillo","Carolina castillo","Carolina castillo","Carolina castillo","Carolina castillo","Carolina castillo","Carolina castillo","Carolina castillo","Carolina castillo","Carolina castillo","Carolina castillo","Carolina castillo","Carolina castillo","Carolina castillo","Carolina castillo","Carolina castillo","Carolina castillo","Carolina castillo","Carolina castillo","Carolina castillo","Carolina castillo","Carolina castillo","Carolina castillo","Carolina castillo","Carolina castillo","Carolina castillo","Carolina castillo","Carolina castillo","Carolina castillo","Carolina castillo","Carolina castillo","Carolina castillo","Carolina castillo","Carolina castillo","Carolina castillo","Carolina castillo","Carolina castillo","Carolina castillo","Carolina castillo","Carolina castillo","Carolina castillo","Carolina castillo","Carolina castillo","Carolina castillo","Carolina castillo","Carolina castillo","Carolina castillo","Carolina castillo","Carolina castillo","Carolina castillo","Carolina castillo","Carolina castillo","Carolina castillo","Carolina castillo","Carolina castillo","Carolina castillo","Carolina castillo","Carolina castillo","Carolina castillo","Carolina castillo","Carolina castillo","Carolina castillo","Carolina castillo","Carolina castillo","Carolina castillo","Carolina castillo","Carolina castillo","Carolina castillo","Carolina castillo","Carolina castillo","Carolina castillo","Carolina castillo","Carolina castillo","Carolina castillo","Carolina castillo","Carolina castillo","Carolina castillo","Carolina castillo","Carolina castillo","Carolina castillo","Carolina castillo","Carolina castillo","Carolina castillo","Carolina castillo","Carolina castillo","Carolina castillo","Carolina castillo","Carolina castillo","Carolina castillo","Carolina castillo","Carolina castillo","Carolina castillo","Carolina castillo","Carolina castillo","Carolina castillo","Carolina castillo","Carolina castillo","Carolina castillo","Carolina castillo","Carolina castillo","Carolina castillo","Carolina castillo","Carolina castillo","Carolina castillo","Carolina castillo","Carolina castillo","Carolina castillo","Carolina castillo","Carolina castillo","Carolina castillo","Carolina castillo","Carolina castillo","Carolina castillo","Carolina castillo","Carolina castillo","Carolina castillo","Carolina castillo","Carolina castillo","Carolina castillo","Carolina castillo","Carolina castillo","Carolina castillo","Carolina castillo","Carolina castillo","Carolina castillo","Carolina castillo","Carolina castillo","Carolina castillo","Carolina castillo","Carolina castillo","Carolina castillo","Carolina castillo","Carolina castillo","Carolina castillo","Carolina castillo","Carolina castillo","Carolina castillo","Carolina castillo","Carolina castillo","Carolina castillo","Carolina castillo","Carolina castillo","Carolina castillo","Carolina castillo","Carolina castillo","Carolina castillo","Carolina castillo","Carolina castillo","Carolina castillo","Carolina castillo","Carolina castillo","Carolina castillo","Carolina castillo","Carolina castillo","Carolina castillo","Carolina castillo","Carolina castillo","Carolina castillo","Carolina castillo","Carolina castillo","Carolina castillo","Carolina castillo","Carolina castillo","Carolina castillo","Carolina castillo","Carolina castillo","Carolina castillo","Carolina castillo","Carolina castillo","Carolina castillo","Carolina castillo","Carolina castillo","Carolina castillo","Carolina castillo","Carolina castillo","Carolina castillo","Carolina castillo","Carolina castillo","Carolina castillo","Carolina castillo","Carolina castillo","Carolina castillo","Carolina castillo","Carolina castillo","Carolina castillo","Carolina castillo","Carolina castillo","Carolina castillo","Carolina castillo","Carolina castillo","Carolina castillo","Carolina castillo","Carolina castillo","Carolina castillo","Carolina castillo","Carolina castillo","Carolina castillo","Carolina castillo","Carolina castillo","Carolina castillo","Carolina castillo","Carolina castillo","Carolina castillo","Carolina castillo","Carolina castillo","Carolina castillo","Carolina castillo","Carolina castillo","Carolina castillo","Carolina castillo","Carolina castillo","Carolina castillo","Carolina castillo","Carolina castillo","Carolina castillo","Carolina castillo","Carolina castillo","Carolina castillo","Carolina castillo","Carolina castillo","Carolina castillo","Carolina castillo","Carolina castillo","Carolina castillo","Carolina castillo","Carolina castillo","Carolina castillo","Carolina castillo","Carolina castillo","Carolina castillo","Carolina castillo","Carolina castillo","Carolina castillo","Carolina castillo","Carolina castillo","Carolina castillo","Carolina castillo","Carolina castillo","Carolina castillo","Carolina castillo","Carolina castillo","Carolina castillo","Carolina castillo","Carolina castillo","Carolina castillo","Carolina castillo","Carolina castillo","Carolina castillo","Carolina castillo","Carolina castillo","Carolina castillo","Carolina castillo","Carolina castillo","Carolina castillo","Carolina castillo","Carolina castillo","Carolina castillo","Carolina castillo","Carolina castillo","Carolina castillo","Carolina castillo","Carolina castillo","Carolina castillo","Carolina castillo","Carolina castillo","Carolina castillo","Carolina castillo","Carolina castillo","Carolina castillo","Carolina castillo","Carolina castillo","Carolina castillo","Carolina castillo","Carolina castillo","Carolina castillo","Carolina castillo","Carolina castillo","Carolina castillo","Carolina castillo","Carolina castillo","Carolina castillo","Carolina castillo","Carolina castillo","Carolina castillo","Carolina castillo","Carolina castillo","Carolina castillo","Carolina castillo","Carolina castillo","Carolina castillo","Carolina castillo","Carolina castillo","Carolina castillo","Carolina castillo","Carolina castillo","Carolina castillo","Carolina castillo","Carolina castillo","Carolina castillo","Carolina castillo","Carolina castillo","Carolina castillo","Carolina castillo","Carolina castillo","Carolina castillo","Carolina castillo","Carolina castillo","Carolina castillo","Carolina castillo","Carolina castillo","Carolina castillo","Carolina castillo","Carolina castillo","Carolina castillo","Carolina castillo","Carolina castillo","Carolina castillo","Carolina castillo","Carolina castillo","Carolina castillo","Carolina castillo","Carolina castillo","Carolina castillo","Carolina castillo","Carolina castillo","Carolina castillo","Carolina castillo","Carolina castillo","Carolina castillo","Carolina castillo","Carolina castillo","Carolina castillo","Carolina castillo","Carolina castillo","Carolina castillo","Carolina castillo","Carolina castillo","Carolina castillo","Carolina castillo","Carolina castillo","Carolina castillo","Carolina castillo","Carolina castillo","Carolina castillo","Carolina castillo","Carolina castillo","Carolina castillo","Carolina castillo","Carolina castillo","Carolina castillo","Carolina castillo","Carolina castillo","Carolina castillo","Carolina castillo","Carolina castillo","Carolina castillo","Carolina castillo","Carolina castillo","Carolina castillo","Carolina castillo","Carolina castillo","Carolina castillo","Carolina castillo","Carolina castillo","Carolina castillo","Carolina castillo","Carolina castillo","Carolina castillo","Carolina castillo","Carolina castillo","Carolina castillo","Carolina castillo","Carolina castillo","Carolina castillo","Carolina castillo","Carolina castillo","Carolina castillo","Carolina castillo","Carolina castillo","Carolina castillo","Carolina castillo","Carolina castillo","Carolina castillo","Carolina castillo","Carolina castillo","Carolina castillo","Carolina castillo","Carolina castillo","Carolina castillo","Carolina castillo","Carolina castillo","Carolina castillo","Carolina castillo","Carolina castillo","Carolina castillo","Carolina castillo","Carolina castillo","Carolina castillo","Carolina castillo","Carolina castillo","Carolina castillo","Carolina castillo","Carolina castillo","Carolina castillo","Carolina castillo","Carolina castillo","Carolina castillo","Carolina castillo","Carolina castillo","Carolina castillo","Carolina castillo","Carolina castillo","Carolina castillo","Carolina castillo","Carolina castillo","Carolina castillo","Carolina castillo","Carolina castillo","Carolina castillo","Carolina castillo","Carolina castillo","Carolina castillo","Carolina castillo","Carolina castillo","Carolina castillo","Carolina castillo","Carolina castillo","Carolina castillo","Carolina castillo","Carolina castillo","Carolina castillo","Carolina castillo","Carolina castillo","Carolina castillo","Carolina castillo","Carolina castillo","Carolina castillo","Carolina castillo","Carolina castillo","Carolina castillo","Carolina castillo","Carolina castillo","Carolina castillo","Carolina castillo","Carolina castillo","Carolina castillo","Carolina castillo","Carolina castillo","Carolina castillo","Carolina castillo","Carolina castillo","Carolina castillo","Carolina castillo","Carolina castillo","Carolina castillo","Carolina castillo","Carolina castillo","Carolina castillo","Carolina castillo","Carolina castillo","Carolina castillo","Carolina castillo","Carolina castillo","Carolina castillo","Carolina castillo","Carolina castillo","Carolina castillo","Carolina castillo","Carolina castillo","Carolina castillo","Carolina castillo","Carolina castillo","Carolina castillo","Carolina castillo","Carolina castillo","Carolina castillo","Carolina castillo","Carolina castillo","Carolina castillo","Carolina castillo","Carolina castillo","Carolina castillo","Carolina castillo","Carolina castillo","Carolina castillo","Carolina castillo","Carolina castillo","Carolina castillo","Carolina castillo","Carolina castillo","Carolina castillo","Carolina castillo","Carolina castillo","Carolina castillo","Carolina castillo","Carolina castillo","Carolina castillo","Carolina castillo","Carolina castillo","Carolina castillo","Carolina castillo","Carolina castillo","Carolina castillo","Carolina castillo","Carolina castillo","Carolina castillo","Carolina castillo","Carolina castillo","Carolina castillo","Carolina castillo","Carolina castillo","Carolina castillo","Carolina castillo","Carolina castillo","Carolina castillo","Carolina castillo","Carolina castillo","Carolina castillo","Carolina castillo","Carolina castillo","Carolina castillo","Carolina castillo","Carolina castillo","Carolina castillo","Carolina castillo","Carolina castillo","Carolina castillo","Carolina castillo","Carolina castillo","Carolina castillo","Carolina castillo","Carolina castillo","Carolina castillo","Carolina castillo","Carolina castillo","Carolina castillo","Carolina castillo","Carolina castillo","Carolina castillo","Carolina castillo","Carolina castillo","Carolina castillo","Carolina castillo","Carolina castillo","Carolina castillo","Carolina castillo","Carolina castillo","Carolina castillo","Carolina castillo","Carolina castillo","Carolina castillo","Carolina castillo","Carolina castillo","Carolina castillo","Carolina castillo","Carolina castillo","Carolina castillo","Carolina castillo","Carolina castillo","Carolina castillo","Carolina castillo","Carolina castillo","Carolina castillo","Carolina castillo","Carolina castillo","Carolina castillo","Carolina castillo","Carolina castillo","Carolina castillo","Carolina castillo","Carolina castillo","Carolina castillo","Carolina castillo","Carolina castillo","Carolina castillo","Carolina castillo","Carolina castillo","Carolina castillo","Carolina castillo","Carolina castillo","Carolina castillo","Carolina castillo","Carolina castillo","Carolina castillo","Carolina castillo","Carolina castillo","Carolina castillo","Carolina castillo","Carolina castillo","Carolina castillo","Carolina castillo","Carolina castillo","Carolina castillo","Carolina castillo","Carolina castillo","Carolina castillo","Carolina castillo","Carolina castillo","Carolina castillo","Carolina castillo","Carolina castillo","Carolina castillo","Carolina castillo","Carolina castillo","Carolina castillo","Carolina castillo","Carolina castillo","Carolina castillo","Carolina castillo","Carolina castillo","Carolina castillo","Carolina castillo","Carolina castillo","Carolina castillo","Carolina castillo","Carolina castillo","Carolina castillo","Carolina castillo","Carolina castillo","Carolina castillo","Carolina castillo","Carolina castillo","Carolina castillo","Carolina castillo","Carolina castillo","Carolina castillo","Carolina castillo","Carolina castillo","Carolina castillo","Carolina castillo","Carolina castillo","Carolina castillo","Carolina castillo","Carolina castillo","Carolina castillo","Carolina castillo","Carolina castillo","Carolina castillo","Carolina castillo","Carolina castillo","Carolina castillo","Carolina castillo","Carolina castillo","Carolina castillo","Carolina castillo","Carolina castillo","Carolina castillo","Carolina castillo","Carolina castillo","Carolina castillo","Carolina castillo","Carolina castillo","Carolina castillo","Carolina castillo","Carolina castillo","Carolina castillo","Carolina castillo","Carolina castillo","Carolina castillo","Carolina castillo","Carolina castillo","Carolina castillo","Carolina castillo","Carolina castillo","Carolina castillo","Carolina castillo","Carolina castillo","Carolina castillo","Carolina castillo","Carolina castillo","Carolina castillo","Carolina castillo","Carolina castillo","Carolina castillo","Carolina castillo","Carolina castillo","Carolina castillo","Carolina castillo","Carolina castillo","Carolina castillo","Carolina castillo","Carolina castillo","Carolina castillo","Carolina castillo","Carolina castillo","Carolina castillo","Carolina castillo","Carolina castillo","Carolina castillo","Carolina castillo","Carolina castillo","Carolina castillo","Carolina castillo","Carolina castillo","Carolina castillo","Carolina castillo","Carolina castillo","Carolina castillo","Carolina castillo","Carolina castillo","Carolina castillo","Carolina castillo","Carolina castillo","Carolina castillo","Carolina castillo","Carolina castillo","Carolina castillo","Carolina castillo","Carolina castillo","Carolina castillo","Carolina castillo","Carolina castillo","Carolina castillo","Carolina castillo","Carolina castillo","Carolina castillo","Carolina castillo","Carolina castillo","Carolina castillo","Carolina castillo","Carolina castillo","Carolina castillo","Carolina castillo","Carolina castillo","Carolina castillo","Carolina castillo","Carolina castillo","Carolina castillo","Carolina castillo","Carolina castillo","Carolina castillo","Carolina castillo","Carolina castillo","Carolina castillo","Carolina castillo","Carolina castillo","Carolina castillo","Carolina castillo","Carolina castillo","Carolina castillo","Carolina castillo","Carolina castillo","Carolina castillo","Carolina castillo","Carolina castillo","Carolina castillo","Carolina castillo","Carolina castillo","Carolina castillo","Carolina castillo","Carolina castillo","Carolina castillo","Carolina castillo","Carolina castillo","Carolina castillo","Carolina castillo","Carolina castillo","Carolina castillo","Carolina castillo","Carolina castillo","Carolina castillo","Carolina castillo","Carolina castillo","Carolina castillo","Carolina castillo","Carolina castillo","Carolina castillo","Carolina castillo","Carolina castillo","Carolina castillo","Carolina castillo","Carolina castillo","Carolina castillo","Carolina castillo","Carolina castillo","Carolina castillo","Carolina castillo","Carolina castillo","Carolina castillo","Carolina castillo","Carolina castillo","Carolina castillo","Carolina castillo","Carolina castillo","Carolina castillo","Carolina castillo","Carolina castillo","Carolina castillo","Carolina castillo","Carolina castillo","Carolina castillo","Carolina castillo","Carolina castillo","Carolina castillo","Carolina castillo","Carolina castillo","Carolina castillo","Carolina castillo","Carolina castillo","Carolina castillo","Carolina castillo","Carolina castillo","Carolina castillo","Carolina castillo","Carolina castillo","Carolina castillo","Carolina castillo","Carolina castillo","Carolina castillo","Carolina castillo","Carolina castillo","Carolina castillo","Carolina castillo","Carolina castillo","Carolina castillo","Carolina castillo","Carolina castillo","Carolina castillo","Carolina castillo","Carolina castillo","Carolina castillo","Carolina castillo","Carolina castillo","Carolina castillo","Carolina castillo","Carolina castillo","Carolina castillo","Carolina castillo","Carolina castillo","Carolina castillo","Carolina castillo","Carolina castillo","Carolina castillo","Carolina castillo","Carolina castillo","Carolina castillo","Carolina castillo","Carolina castillo","Carolina castillo","Carolina castillo","Carolina castillo","Carolina castillo","Carolina castillo","Carolina castillo","Carolina castillo","Carolina castillo","Carolina castillo","Carolina castillo","Carolina castillo","Carolina castillo","Carolina castillo","Carolina castillo","Carolina castillo","Carolina castillo","Carolina castillo","Carolina castillo","Carolina castillo","Carolina castillo","Carolina castillo","Carolina castillo","Carolina castillo","Carolina castillo","Carolina castillo","Carolina castillo","Carolina castillo","Carolina castillo","Carolina castillo","Carolina castillo","Carolina castillo","Carolina castillo","Carolina castillo","Carolina castillo","Carolina castillo","Carolina castillo","Carolina castillo","Carolina castillo","Carolina castillo","Carolina castillo","Carolina castillo","Carolina castillo","Carolina castillo","Carolina castillo","Carolina castillo","Carolina castillo","Carolina castillo","Carolina castillo","Carolina castillo","Carolina castillo","Carolina castillo","Carolina castillo","Carolina castillo","Carolina castillo","Carolina castillo","Carolina castillo","Carolina castillo","Carolina castillo","Carolina castillo","Carolina castillo","Carolina castillo","Carolina castillo","Carolina castillo","Carolina castillo","Carolina castillo","Carolina castillo","Carolina castillo","Carolina castillo","Carolina castillo","Carolina castillo","Carolina castillo","Carolina castillo","Carolina castillo","Carolina castillo","Carolina castillo","Carolina castillo","Carolina castillo","Carolina castillo","Carolina castillo","Carolina castillo","Carolina castillo","Carolina castillo","Carolina castillo","Carolina castillo","Carolina castillo","Carolina castillo","Carolina castillo","Carolina castillo","Carolina castillo","Carolina castillo","Carolina castillo","Carolina castillo","Carolina castillo","Carolina castillo","Carolina castillo","Carolina castillo","Carolina castillo","Carolina castillo","Carolina castillo","Carolina castillo","Carolina castillo","Carolina castillo","Carolina castillo","Carolina castillo","Carolina castillo","Carolina castillo","Carolina castillo","Carolina castillo","Carolina castillo","Carolina castillo","Carolina castillo","Carolina castillo","Carolina castillo","Carolina castillo","Carolina castillo","Carolina castillo","Carolina castillo","Carolina castillo","Carolina castillo","Carolina castillo","Carolina castillo","Carolina castillo","Carolina castillo","Carolina castillo","Carolina castillo","Carolina castillo","Carolina castillo","Carolina castillo","Carolina castillo","Carolina castillo","Carolina castillo","Carolina castillo","Carolina castillo","Carolina castillo","Carolina castillo","Carolina castillo","Carolina castillo","Carolina castillo","Carolina castillo","Carolina castillo","Carolina castillo","Carolina castillo","Carolina castillo","Carolina castillo","Carolina castillo","Carolina castillo","Carolina castillo","Carolina castillo","Carolina castillo","Carolina castillo","Carolina castillo","Carolina castillo","Carolina castillo","Carolina castillo","Carolina castillo","Carolina castillo","Carolina castillo","Carolina castillo","Carolina castillo","Carolina castillo","Carolina castillo","Carolina castillo","Carolina castillo","Carolina castillo","Carolina castillo","Carolina castillo","Carolina castillo","Carolina castillo","Carolina castillo","Carolina castillo","Carolina castillo","Carolina castillo","Carolina castillo","Carolina castillo","Carolina castillo","Carolina castillo","Carolina castillo","Carolina castillo","Carolina castillo","Carolina castillo","Carolina castillo","Carolina castillo","Carolina castillo","Carolina castillo","Carolina castillo","Carolina castillo","Carolina castillo","Carolina castillo","Carolina castillo","Carolina castillo","Carolina castillo","Carolina castillo","Carolina castillo","Carolina castillo","Carolina castillo","Carolina castillo","Carolina castillo","Carolina castillo","Carolina castillo","Carolina castillo","Carolina castillo","Carolina castillo","Carolina castillo","Carolina castillo","Carolina castillo","Carolina castillo","Carolina castillo","Carolina castillo","Carolina castillo","Carolina castillo","Carolina castillo","Carolina castillo","Carolina castillo","Carolina castillo","Carolina castillo","Carolina castillo","Carolina castillo","Carolina castillo","Carolina castillo","Carolina castillo","Carolina castillo","Carolina castillo","Carolina castillo","Carolina castillo","Carolina castillo","Carolina castillo","Carolina castillo","Carolina castillo","Carolina castillo","Carolina castillo","Carolina castillo","Carolina castillo","Carolina castillo","Carolina castillo","Carolina castillo","Carolina castillo","Carolina castillo","Carolina castillo","Carolina castillo","Carolina castillo","Carolina castillo","Carolina castillo","Carolina castillo","Carolina castillo","Carolina castillo","Carolina castillo","Carolina castillo","Carolina castillo","Carolina castillo","Carolina castillo","Carolina castillo","Carolina castillo","Carolina castillo","Carolina castillo","Carolina castillo","Carolina castillo","Carolina castillo","Carolina castillo","Carolina castillo","Carolina castillo","Carolina castillo","Carolina castillo","Carolina castillo","Carolina castillo","Carolina castillo","Carolina castillo","Carolina castillo","Carolina castillo","Carolina castillo","Carolina castillo","Carolina castillo","Carolina castillo","Carolina castillo","Carolina castillo","Carolina castillo","Carolina castillo","Carolina castillo","Carolina castillo","Carolina castillo","Carolina castillo","Carolina castillo","Carolina castillo","Carolina castillo","Carolina castillo","Carolina castillo","Carolina castillo","Carolina castillo","Carolina castillo","Carolina castillo","Carolina castillo","Carolina castillo","Carolina castillo","Carolina castillo","Carolina castillo","Carolina castillo","Carolina castillo","Carolina castillo","Carolina castillo","Carolina castillo","Carolina castillo","Carolina castillo","Carolina castillo","Carolina castillo","Carolina castillo","Carolina castillo","Carolina castillo","Carolina castillo","Carolina castillo","Carolina castillo","Carolina castillo","Carolina castillo","Carolina castillo","Carolina castillo","Carolina castillo","Carolina castillo","Carolina castillo","Carolina castillo","Carolina castillo","Carolina castillo","Carolina castillo","Carolina castillo","Carolina castillo","Carolina castillo","Carolina castillo","Carolina castillo","Carolina castillo","Carolina castillo","Carolina castillo","Carolina castillo","Carolina castillo","Carolina castillo","Carolina castillo","Carolina castillo","Carolina castillo","Carolina castillo","Carolina castillo","Carolina castillo","Carolina castillo","Carolina castillo","Carolina castillo","Carolina castillo","Carolina castillo","Carolina castillo","Carolina castillo","Carolina castillo","Carolina castillo","Carolina castillo","Carolina castillo","Carolina castillo","Carolina castillo","Carolina castillo","Carolina castillo","Carolina castillo","Carolina castillo","Carolina castillo","Carolina castillo","Carolina castillo","Carolina castillo","Carolina castillo","Carolina castillo","Carolina castillo","Carolina castillo","Carolina castillo","Carolina castillo","Carolina castillo","Carolina castillo","Carolina castillo","Carolina castillo","Carolina castillo","Carolina castillo","Carolina castillo","Carolina castillo","Carolina castillo","Carolina castillo","Carolina castillo","Carolina castillo","Carolina castillo","Carolina castillo","Carolina castillo","Carolina castillo","Carolina castillo","Carolina castillo","Carolina castillo","Carolina castillo","Carolina castillo","Carolina castillo","Carolina castillo","Carolina castillo","Carolina castillo","Carolina castillo","Carolina castillo","Carolina castillo","Carolina castillo","Carolina castillo","Carolina castillo","Carolina castillo","Carolina castillo","Carolina castillo","Carolina castillo","Carolina castillo","Carolina castillo","Carolina castillo","Carolina castillo","Carolina castillo","Carolina castillo","Carolina castillo","Carolina castillo","Carolina castillo","Carolina castillo","Carolina castillo","Carolina castillo","Carolina castillo","Carolina castillo","Carolina castillo","Carolina castillo","Carolina castillo","Carolina castillo","Carolina castillo","Carolina castillo","Carolina castillo","Carolina castillo","Carolina castillo","Carolina castillo","Carolina castillo","Carolina castillo","Carolina castillo","Carolina castillo","Carolina castillo","Carolina castillo","Carolina castillo","Carolina castillo","Carolina castillo","Carolina castillo","Carolina castillo","Carolina castillo","Carolina castillo","Carolina castillo","Carolina castillo","Carolina castillo","Carolina castillo","Carolina castillo","Carolina castillo","Carolina castillo","Carolina castillo","Carolina castillo","Carolina castillo","Carolina castillo","Carolina castillo","Carolina castillo","Carolina castillo","Carolina castillo","Carolina castillo","Carolina castillo","Carolina castillo","Carolina castillo","Carolina castillo","Carolina castillo","Carolina castillo","Carolina castillo","Carolina castillo","Carolina castillo","Carolina castillo","Carolina castillo","Carolina castillo","Carolina castillo","Carolina castillo","Carolina castillo","Carolina castillo","Carolina castillo","Carolina castillo","Carolina castillo","Carolina castillo","Carolina castillo","Carolina castillo","Carolina castillo","Carolina castillo","Carolina castillo","Carolina castillo","Carolina castillo","Carolina castillo","Carolina castillo","Carolina castillo","Carolina castillo","Carolina castillo","Carolina castillo","Carolina castillo","Carolina castillo","Carolina castillo","Carolina castillo","Carolina castillo","Carolina castillo","Carolina castillo","Carolina castillo","Carolina castillo","Carolina castillo","Carolina castillo","Carolina castillo","Carolina castillo","Carolina castillo","Carolina castillo","Carolina castillo","Carolina castillo","Carolina castillo","Carolina castillo","Carolina castillo","Carolina castillo","Carolina castillo","Carolina castillo","Carolina castillo","Carolina castillo","Carolina castillo","Carolina castillo","Carolina castillo","Carolina castillo","Carolina castillo","Carolina castillo","Carolina castillo","Carolina castillo","Carolina castillo","Carolina castillo","Carolina castillo","Carolina castillo","Carolina castillo","Carolina castillo","Carolina castillo","Carolina castillo","Carolina castillo","Carolina castillo","Carolina castillo","Carolina castillo","Carolina castillo","Carolina castillo","Carolina castillo","Carolina castillo","Carolina castillo","Carolina castillo","Carolina castillo","Carolina castillo","Carolina castillo","Carolina castillo","Carolina castillo","Carolina castillo","Carolina castillo","Carolina castillo","Carolina castillo","Carolina castillo","Carolina castillo","Carolina castillo","Carolina castillo","Carolina castillo","Carolina castillo","Carolina castillo","Carolina castillo","Carolina castillo","Carolina castillo","Carolina castillo","Carolina castillo","Carolina castillo","Carolina castillo","Carolina castillo","Carolina castillo","Carolina castillo","Carolina castillo","Carolina castillo","Carolina castillo","Carolina castillo","Carolina castillo","Carolina castillo","Carolina castillo","Carolina castillo","Carolina castillo","Carolina castillo","Carolina castillo","Carolina castillo","Carolina castillo","Carolina castillo","Carolina castillo","Carolina castillo","Carolina castillo","Carolina castillo","Carolina castillo","Carolina castillo","Carolina castillo","Carolina castillo","Carolina castillo","Carolina castillo","Carolina castillo","Carolina castillo","Carolina castillo","Carolina castillo","Carolina castillo","Carolina castillo","Carolina castillo","Carolina castillo","Carolina castillo","Carolina castillo","Carolina castillo","Carolina castillo","Carolina castillo","Carolina castillo","Carolina castillo","Carolina castillo","Carolina castillo","Carolina castillo","Carolina castillo","Carolina castillo","Carolina castillo","Carolina castillo","Carolina castillo","Carolina castillo","Carolina castillo","Carolina castillo","Carolina castillo","Carolina castillo","Carolina castillo","Carolina castillo","Carolina castillo","Carolina castillo","Carolina castillo","Carolina castillo","Carolina castillo","Carolina castillo","Carolina castillo","Carolina castillo","Carolina castillo","Carolina castillo","Carolina castillo","Carolina castillo","Carolina castillo","Carolina castillo","Carolina castillo","Carolina castillo","Carolina castillo","Carolina castillo","Carolina castillo","Carolina castillo","Carolina castillo","Carolina castillo","Carolina castillo","Carolina castillo","Carolina castillo","Carolina castillo","Carolina castillo","Carolina castillo","Carolina castillo","Carolina castillo","Carolina castillo","Carolina castillo","Carolina castillo","Carolina castillo","Carolina castillo","Carolina castillo","Carolina castillo","Carolina castillo","Carolina castillo","Carolina castillo","Carolina castillo","Carolina castillo","Carolina castillo","Carolina castillo","Carolina castillo","Carolina castillo","Carolina castillo","Carolina castillo","Carolina castillo","Carolina castillo","Carolina castillo","Carolina castillo","Carolina castillo","Carolina castillo","Carolina castillo","Carolina castillo","Carolina castillo","Carolina castillo","Carolina castillo","Carolina castillo","Carolina castillo","Carolina castillo","Carolina castillo","Carolina castillo","Carolina castillo","Carolina castillo","Carolina castillo","Carolina castillo","Carolina castillo","Carolina castillo","Carolina castillo","Carolina castillo","Carolina castillo","Carolina castillo","Carolina castillo","Carolina castillo","Carolina castillo","Carolina castillo","Carolina castillo","Carolina castillo","Carolina castillo","Carolina castillo","Carolina castillo","Carolina castillo","Carolina castillo","Carolina castillo","Carolina castillo","Carolina castillo","Carolina castillo","Carolina castillo","Carolina castillo","Carolina castillo","Carolina castillo","Carolina castillo","Carolina castillo","Carolina castillo","Carolina castillo","Carolina castillo","Carolina castillo","Carolina castillo","Carolina castillo","Carolina castillo","Carolina castillo","Carolina castillo","Carolina castillo","Carolina castillo","Carolina castillo","Carolina castillo","Carolina castillo","Carolina castillo","Carolina castillo","Carolina castillo","Carolina castillo","Carolina castillo","Carolina castillo","Carolina castillo","Carolina castillo","Carolina castillo","Carolina castillo","Carolina castillo","Carolina castillo","Carolina castillo","Carolina castillo","Carolina castillo","Carolina castillo","Carolina castillo","Carolina castillo","Carolina castillo","Carolina castillo","Carolina castillo","Carolina castillo","Carolina castillo","Carolina castillo","Carolina castillo","Carolina castillo","Carolina castillo","Carolina castillo","Carolina castillo","Carolina castillo","Carolina castillo","Carolina castillo","Carolina castillo","Carolina castillo","Carolina castillo","Carolina castillo","Carolina castillo","Carolina castillo","Carolina castillo","Carolina castillo","Carolina castillo","Carolina castillo","Carolina castillo","Carolina castillo","Carolina castillo","Carolina castillo","Carolina castillo","Carolina castillo","Carolina castillo","Carolina castillo","Carolina castillo","Carolina castillo","Carolina castillo","Carolina castillo","Carolina castillo","Carolina castillo","Carolina castillo","Carolina castillo","Carolina castillo","Carolina castillo","Carolina castillo","Carolina castillo","Carolina castillo","Carolina castillo","Carolina castillo","Carolina castillo","Carolina castillo","Carolina castillo","Carolina castillo","Carolina castillo","Carolina castillo","Carolina castillo","Carolina castillo","Carolina castillo","Carolina castillo","Carolina castillo","Carolina castillo","Carolina castillo","Carolina castillo","Carolina castillo","Carolina castillo","Carolina castillo","Carolina castillo","Carolina castillo","Carolina castillo","Carolina castillo","Carolina castillo","Carolina castillo","Carolina castillo","Carolina castillo","Carolina castillo","Carolina castillo","Carolina castillo","Carolina castillo","Carolina castillo","Carolina castillo","Carolina castillo","Carolina castillo","Carolina castillo","Carolina castillo","Carolina castillo","Carolina castillo","Carolina castillo","Carolina castillo","Carolina castillo","Carolina castillo","Carolina castillo","Carolina castillo","Carolina castillo","Carolina castillo","Carolina castillo","Carolina castillo","Carolina castillo","Carolina castillo","Carolina castillo","Carolina castillo","Carolina castillo","Carolina castillo","Carolina castillo","Carolina castillo","Carolina castillo","Carolina castillo","Carolina castillo","Carolina castillo","Carolina castillo","Carolina castillo","Carolina castillo","Carolina castillo","Carolina castillo","Carolina castillo","Carolina castillo","Carolina castillo","Carolina castillo","Carolina castillo","Carolina castillo","Carolina castillo","Carolina castillo","Carolina castillo","Carolina castillo","Carolina castillo","Carolina castillo","Carolina castillo","Carolina castillo","Carolina castillo","Carolina castillo","Carolina castillo","Carolina castillo","Carolina castillo","Carolina castillo","Carolina castillo","Carolina castillo","Carolina castillo","Carolina castillo","Carolina castillo","Carolina castillo","Carolina castillo","Carolina castillo","Carolina castillo","Carolina castillo","Carolina castillo","Carolina castillo","Carolina castillo","Carolina castillo","Carolina castillo","Carolina castillo","Carolina castillo","Carolina castillo","Carolina castillo","Carolina castillo","Carolina castillo","Carolina castillo","Carolina castillo","Carolina castillo","Carolina castillo","Carolina castillo","Carolina castillo","Carolina castillo","Carolina castillo","Carolina castillo","Carolina castillo","Carolina castillo","Carolina castillo","Carolina castillo","Carolina castillo","Carolina castillo","Carolina castillo","Carolina castillo","Carolina castillo","Carolina castillo","Carolina castillo","Carolina castillo","Carolina castillo","Carolina castillo","Carolina castillo","Carolina castillo","Carolina castillo","Carolina castillo","Carolina castillo","Carolina castillo","Carolina castillo","Carolina castillo","Carolina castillo","Carolina castillo","Carolina castillo","Carolina castillo","Carolina castillo","Carolina castillo","Carolina castillo","Carolina castillo","Carolina castillo","Carolina castillo","Carolina castillo","Carolina castillo","Carolina castillo","Carolina castillo","Carolina castillo","Carolina castillo","Carolina castillo","Carolina castillo","Carolina castillo","Carolina castillo","Carolina castillo","Carolina castillo","Carolina castillo","Carolina castillo","Carolina castillo","Carolina castillo","Carolina castillo","Carolina castillo","Carolina castillo","Carolina castillo","Carolina castillo","Carolina castillo","Carolina castillo","Carolina castillo","Carolina castillo","Carolina castillo","Carolina castillo","Carolina castillo","Carolina castillo","Carolina castillo","Carolina castillo","Carolina castillo","Carolina castillo","Carolina castillo","Carolina castillo","Carolina castillo","Carolina castillo","Carolina castillo","Carolina castillo","Carolina castillo","Carolina castillo","Carolina castillo","Carolina castillo","Carolina castillo","Carolina castillo","Carolina castillo","Carolina castillo","Carolina castillo","Carolina castillo","Carolina castillo","Carolina castillo","Carolina castillo","Carolina castillo","Carolina castillo","Carolina castillo","Carolina castillo","Carolina castillo","Carolina castillo","Carolina castillo","Carolina castillo","Carolina castillo","Carolina castillo","Carolina castillo","Carolina castillo","Carolina castillo","Carolina castillo","Carolina castillo","Carolina castillo","Carolina castillo","Carolina castillo","Carolina castillo","Carolina castillo","Carolina castillo","Carolina castillo","Carolina castillo","Carolina castillo","Carolina castillo","Carolina castillo","Carolina castillo","Carolina castillo","Carolina castillo","Carolina castillo","Carolina castillo","Carolina castillo","Carolina castillo","Carolina castillo","Carolina castillo","Carolina castillo","Carolina castillo","Carolina castillo","Carolina castillo","Carolina castillo","Carolina castillo","Carolina castillo","Carolina castillo","Carolina castillo","Carolina castillo","Carolina castillo","Carolina castillo","Carolina castillo","Carolina castillo","Carolina castillo","Carolina castillo","Carolina castillo","Carolina castillo","Carolina castillo","Carolina castillo","Carolina castillo","Carolina castillo","Carolina castillo","Carolina castillo","Carolina castillo","Carolina castillo","Carolina castillo","Carolina castillo","Carolina castillo","Carolina castillo","Carolina castillo","Carolina castillo","Carolina castillo","Carolina castillo","Carolina castillo","Carolina castillo","Carolina castillo","Carolina castillo","Carolina castillo","Carolina castillo","Carolina castillo","Carolina castillo","Carolina castillo","Carolina castillo","Carolina castillo","Carolina castillo","Carolina castillo","Carolina castillo","Carolina castillo","Carolina castillo","Carolina castillo","Carolina castillo","Carolina castillo","Carolina castillo","Carolina castillo","Carolina castillo","Carolina castillo","Carolina castillo","Carolina castillo","Carolina castillo","Carolina castillo","Carolina castillo","Carolina castillo","Carolina castillo","Carolina castillo","Carolina castillo","Carolina castillo","Carolina castillo","Carolina castillo","Carolina castillo","Carolina castillo","Carolina castillo","Carolina castillo","Carolina castillo","Carolina castillo","Carolina castillo","Carolina castillo","Carolina castillo","Carolina castillo","Carolina castillo","Carolina castillo","Carolina castillo","Carolina castillo","Carolina castillo","Carolina castillo","Carolina castillo","Carolina castillo","Carolina castillo","Carolina castillo","Carolina castillo","Carolina castillo","Carolina castillo","Carolina castillo","Carolina castillo","Carolina castillo","Carolina castillo","Carolina castillo","Carolina castillo","Carolina castillo","Carolina castillo","Carolina castillo","Carolina castillo","Carolina castillo","Carolina castillo","Carolina castillo","Carolina castillo","Carolina castillo","Carolina castillo","Carolina castillo","Carolina castillo","Carolina castillo","Carolina castillo","Carolina castillo","Carolina castillo","Carolina castillo","Carolina castillo","Carolina castillo","Carolina castillo","Carolina castillo","Carolina castillo","Carolina castillo","Carolina castillo","Carolina castillo","Carolina castillo","Carolina castillo","Carolina castillo","Carolina castillo","Carolina castillo","Carolina castillo","Carolina castillo","Carolina castillo","Carolina castillo","Carolina castillo","Carolina castillo","Carolina castillo","Carolina castillo","Carolina castillo","Carolina castillo","Carolina castillo","Carolina castillo","Carolina castillo","Carolina castillo","Carolina castillo","Carolina castillo","Carolina castillo","Carolina castillo","Carolina castillo","Carolina castillo","Carolina castillo","Carolina castillo","Carolina castillo","Carolina castillo","Carolina castillo","Carolina castillo","Carolina castillo","Carolina castillo","Carolina castillo","Carolina castillo","Carolina castillo","Carolina castillo","Carolina castillo","Carolina castillo","Carolina castillo","Carolina castillo","Carolina castillo","Carolina castillo","Carolina castillo","Carolina castillo","Carolina castillo","Carolina castillo","Carolina castillo","Carolina castillo","Carolina castillo","Carolina castillo","Carolina castillo","Carolina castillo","Carolina castillo","Carolina castillo","Carolina castillo","Carolina castillo","Carolina castillo","Carolina castillo","Carolina castillo","Carolina castillo","Carolina castillo","Carolina castillo","Carolina castillo","Carolina castillo","Carolina castillo","Carolina castillo","Carolina castillo","Carolina castillo","Carolina castillo","Carolina castillo","Carolina castillo","Carolina castillo","Carolina castillo","Carolina castillo","Carolina castillo","Carolina castillo","Carolina castillo","Carolina castillo","Carolina castillo","Carolina castillo","Carolina castillo","Carolina castillo","Carolina castillo","Carolina castillo","Carolina castillo","Carolina castillo","Carolina castillo","Carolina castillo","Carolina castillo","Carolina castillo","Carolina castillo","Carolina castillo","Carolina castillo","Carolina castillo","Carolina castillo","Carolina castillo","Carolina castillo","Carolina castillo","Carolina castillo","Carolina castillo","Carolina castillo","Carolina castillo","Carolina castillo","Carolina castillo","Carolina castillo","Carolina castillo","Carolina castillo","Carolina castillo","Carolina castillo","Carolina castillo","Carolina castillo","Carolina castillo","Carolina castillo","Carolina castillo","Carolina castillo","Carolina castillo","Carolina castillo","Carolina castillo","Carolina castillo","Carolina castillo","Carolina castillo","Carolina castillo","Carolina castillo","Carolina castillo","Carolina castillo","Carolina castillo","Carolina castillo","Carolina castillo","Carolina castillo","Carolina castillo","Carolina castillo","Carolina castillo","Carolina castillo","Carolina castillo","Carolina castillo","Carolina castillo","Carolina castillo","Carolina castillo","Carolina castillo","Carolina castillo","Carolina castillo","Carolina castillo","Carolina castillo","Carolina castillo","Carolina castillo","Carolina castillo","Carolina castillo","Carolina castillo","Carolina castillo","Carolina castillo","Carolina castillo","Carolina castillo","Carolina castillo","Carolina castillo","Carolina castillo","Carolina castillo","Carolina castillo","Carolina castillo","Carolina castillo","Carolina castillo","Carolina castillo","Carolina castillo","Carolina castillo","Carolina castillo","Carolina castillo","Carolina castillo","Carolina castillo","Carolina castillo","Carolina castillo","Carolina castillo","Carolina castillo","Carolina castillo","Carolina castillo","Carolina castillo","Carolina castillo","Carolina castillo","Carolina castillo","Carolina castillo","Carolina castillo","Carolina castillo","Carolina castillo","Carolina castillo","Carolina castillo","Carolina castillo","Carolina castillo","Carolina castillo","Carolina castillo","Carolina castillo","Carolina castillo","Carolina castillo","Carolina castillo","Carolina castillo","Carolina castillo","Carolina castillo","Carolina castillo","Carolina castillo","Carolina castillo","Carolina castillo","Carolina castillo","Carolina castillo","Carolina castillo","Carolina castillo","Carolina castillo","Carolina castillo","Carolina castillo","Carolina castillo","Carolina castillo","Carolina castillo","Carolina castillo","Carolina castillo","Carolina castillo","Carolina castillo","Carolina castillo","Carolina castillo","Carolina castillo","Carolina castillo","Carolina castillo","Carolina castillo","Carolina castillo","Carolina castillo","Carolina castillo","Carolina castillo","Carolina castillo","Carolina castillo","Carolina castillo","Carolina castillo","Carolina castillo","Carolina castillo","Carolina castillo","Carolina castillo","Carolina castillo","Carolina castillo","Carolina castillo","Carolina castillo","Carolina castillo","Carolina castillo","Carolina castillo","Carolina castillo","Carolina castillo","Carolina castillo","Carolina castillo","Carolina castillo","Carolina castillo","Carolina castillo","Carolina castillo","Carolina castillo","Carolina castillo","Carolina castillo","Carolina castillo","Carolina castillo","Carolina castillo","Carolina castillo","Carolina castillo","Carolina castillo","Carolina castillo","Carolina castillo","Carolina castillo","Carolina castillo","Carolina castillo","Carolina castillo","Carolina castillo","Carolina castillo","Carolina castillo","Carolina castillo","Carolina castillo","Carolina castillo","Carolina castillo","Carolina castillo","Carolina castillo","Carolina castillo","Carolina castillo","Carolina castillo","Carolina castillo","Carolina castillo","Carolina castillo","Carolina castillo","Carolina castillo","Carolina castillo","Carolina castillo","Carolina castillo","Carolina castillo","Carolina castillo","Carolina castillo","Carolina castillo","Carolina castillo","Carolina castillo","Carolina castillo","Carolina castillo","Carolina castillo","Carolina castillo","Carolina castillo","Carolina castillo","Carolina castillo","Carolina castillo","Carolina castillo","Carolina castillo","Carolina castillo","Carolina castillo","Carolina castillo","Carolina castillo","Carolina castillo","Carolina castillo","Carolina castillo","Carolina castillo","Carolina castillo","Carolina castillo","Carolina castillo","Carolina castillo","Carolina castillo","Carolina castillo","Carolina castillo","Carolina castillo","Carolina castillo","Carolina castillo","Carolina castillo","Carolina castillo","Carolina castillo","Carolina castillo","Carolina castillo","Carolina castillo","Carolina castillo","Carolina castillo","Carolina castillo","Carolina castillo","Carolina castillo","Carolina castillo","Carolina castillo","Carolina castillo","Carolina castillo","Carolina castillo","Carolina castillo","Carolina castillo","Carolina castillo","Carolina castillo","Carolina castillo","Carolina castillo","Carolina castillo","Carolina castillo","Carolina castillo","Carolina castillo","Carolina castillo","Carolina castillo","Carolina castillo","Carolina castillo","Carolina castillo","Carolina castillo","Carolina castillo","Carolina castillo","Carolina castillo","Carolina castillo","Carolina castillo","Carolina castillo","Carolina castillo","Carolina castillo","Carolina castillo","Carolina castillo","Carolina castillo","Carolina castillo","Carolina castillo","Carolina castillo","Carolina castillo","Carolina castillo","Carolina castillo","Carolina castillo","Carolina castillo","Carolina castillo","Carolina castillo","Carolina castillo","Carolina castillo","Carolina castillo","Carolina castillo","Carolina castillo","Carolina castillo","Carolina castillo","Carolina castillo","Carolina castillo","Carolina castillo","Carolina castillo","Carolina castillo","Carolina castillo","Carolina castillo","Carolina castillo","Carolina castillo","Carolina castillo","Carolina castillo","Carolina castillo","Carolina castillo","Carolina castillo","Carolina castillo","Carolina castillo","Carolina castillo","Carolina castillo","Carolina castillo","Carolina castillo","Carolina castillo","Carolina castillo","Carolina castillo","Carolina castillo","Carolina castillo","Carolina castillo","Carolina castillo","Carolina castillo","Carolina castillo","Carolina castillo","Carolina castillo","Carolina castillo","Carolina castillo","Carolina castillo","Carolina castillo","Carolina castillo","Carolina castillo","Carolina castillo","Carolina castillo","Carolina castillo","Carolina castillo","Carolina castillo","Carolina castillo","Carolina castillo","Carolina castillo","Carolina castillo","Carolina castillo","Carolina castillo","Carolina castillo","Carolina castillo","Carolina castillo","Carolina castillo","Carolina castillo","Carolina castillo","Carolina castillo","Carolina castillo","Carolina castillo","Carolina castillo","Carolina castillo","Carolina castillo","Carolina castillo","Carolina castillo","Carolina castillo","Carolina castillo","Carolina castillo","Carolina castillo","Carolina castillo","Carolina castillo","Carolina castillo","Carolina castillo","Carolina castillo","Carolina castillo","Carolina castillo","Carolina castillo","Carolina castillo","Carolina castillo","Carolina castillo","Carolina castillo","Carolina castillo","Carolina castillo","Carolina castillo","Carolina castillo","Carolina castillo","Carolina castillo","Carolina castillo","Carolina castillo","Carolina castillo","Carolina castillo","Carolina castillo","Carolina castillo","Carolina castillo","Carolina castillo","Carolina castillo","Carolina castillo","Carolina castillo","Carolina castillo","Carolina castillo","Carolina castillo","Carolina castillo","Carolina castillo","Carolina castillo","Carolina castillo","Carolina castillo","Carolina castillo","Carolina castillo","Carolina castillo","Carolina castillo","Carolina castillo","Carolina castillo","Carolina castillo","Carolina castillo","Carolina castillo","Carolina castillo","Carolina castillo","Carolina castillo","Carolina castillo","Carolina castillo","Carolina castillo","Carolina castillo","Carolina castillo","Carolina castillo","Carolina castillo","Carolina castillo","Carolina castillo","Carolina castillo","Carolina castillo","Carolina castillo","Carolina castillo","Carolina castillo","Carolina castillo","Carolina castillo","Carolina castillo","Carolina castillo","Carolina castillo","Carolina castillo","Carolina castillo","Carolina castillo","Carolina castillo","Carolina castillo","Carolina castillo","Carolina castillo","Carolina castillo","Carolina castillo","Carolina castillo","Carolina castillo","Carolina castillo","Carolina castillo","Carolina castillo","Carolina castillo","Carolina castillo","Carolina castillo","Carolina castillo","Carolina castillo","Carolina castillo","Carolina castillo","Carolina castillo","Carolina castillo","Carolina castillo","Carolina castillo","Carolina castillo","Carolina castillo","Carolina castillo","Carolina castillo","Carolina castillo","Carolina castillo","Carolina castillo","Carolina castillo","Carolina castillo","Carolina castillo","Carolina castillo","Carolina castillo","Carolina castillo","Carolina castillo","Carolina castillo","Carolina castillo","Carolina castillo","Carolina castillo","Carolina castillo","Carolina castillo","Carolina castillo","Carolina castillo","Carolina castillo","Carolina castillo","Carolina castillo","Carolina castillo","Carolina castillo","Carolina castillo","Carolina castillo","Carolina castillo","Carolina castillo","Carolina castillo","Carolina castillo","Carolina castillo","Carolina castillo","Carolina castillo","Carolina castillo","Carolina castillo","Carolina castillo","Carolina castillo","Carolina castillo","Carolina castillo","Carolina castillo","Carolina castillo","Carolina castillo","Carolina castillo","Carolina castillo","Carolina castillo","Carolina castillo","Carolina castillo","Carolina castillo","Carolina castillo","Carolina castillo","Carolina castillo","Carolina castillo","Carolina castillo","Carolina castillo","Carolina castillo","Carolina castillo","Carolina castillo","Carolina castillo","Carolina castillo","Carolina castillo","Carolina castillo","Carolina castillo","Carolina castillo","Carolina castillo","Carolina castillo","Carolina castillo","Carolina castillo","Carolina castillo","Carolina castillo","Carolina castillo","Carolina castillo","Carolina castillo","Carolina castillo","Carolina castillo","Carolina castillo","Carolina castillo","Carolina castillo","Carolina castillo","Carolina castillo","Carolina castillo","Carolina castillo","Carolina castillo","Carolina castillo","Carolina castillo","Carolina castillo","Carolina castillo","Carolina castillo","Carolina castillo","Carolina castillo","Carolina castillo","Carolina castillo","Carolina castillo","Carolina castillo","Carolina castillo","Carolina castillo","Carolina castillo","Carolina castillo","Carolina castillo","Carolina castillo","Carolina castillo","Carolina castillo","Carolina castillo","Carolina castillo","Carolina castillo","Carolina castillo","Carolina castillo","Carolina castillo","Carolina castillo","Carolina castillo","Carolina castillo","Carolina castillo","Carolina castillo","Carolina castillo","Carolina castillo","Carolina castillo","Carolina castillo","Carolina castillo","Carolina castillo","Carolina castillo","Carolina castillo","Carolina castillo","Carolina castillo","Carolina castillo","Carolina castillo","Carolina castillo","Carolina castillo","Carolina castillo","Carolina castillo","Carolina castillo","Carolina castillo","Carolina castillo","Carolina castillo","Carolina castillo","Carolina castillo","Carolina castillo","Carolina castillo","Carolina castillo","Carolina castillo","Carolina castillo","Carolina castillo","Carolina castillo","Carolina castillo","Carolina castillo","Carolina castillo","Carolina castillo","Carolina castillo","Carolina castillo","Carolina castillo","Carolina castillo","Carolina castillo","Carolina castillo","Carolina castillo","Carolina castillo","Carolina castillo","Carolina castillo","Carolina castillo","Carolina castillo","Carolina castillo","Carolina castillo","Carolina castillo","Carolina castillo","Carolina castillo","Carolina castillo","Carolina castillo","Carolina castillo","Carolina castillo","Carolina castillo","Carolina castillo","Carolina castillo","Carolina castillo","Carolina castillo","Carolina castillo","Carolina castillo","Carolina castillo","Carolina castillo","Carolina castillo","Carolina castillo","Carolina castillo","Carolina castillo","Carolina castillo","Carolina castillo","Carolina castillo","Carolina castillo","Carolina castillo","Carolina castillo","Carolina castillo","Carolina castillo","Carolina castillo","Carolina castillo","Carolina castillo","Carolina castillo","Carolina castillo","Carolina castillo","Carolina castillo","Carolina castillo","Carolina castillo","Carolina castillo","Carolina castillo","Carolina castillo","Carolina castillo","Carolina castillo","Carolina castillo","Carolina castillo","Carolina castillo","Carolina castillo","Carolina castillo","Carolina castillo","Carolina castillo","Carolina castillo","Carolina castillo","Carolina castillo","Carolina castillo","Carolina castillo","Carolina castillo","Carolina castillo","Carolina castillo","Carolina castillo","Carolina castillo","Carolina castillo","Carolina castillo","Carolina castillo","Carolina castillo","Carolina castillo","Carolina castillo","Carolina castillo","Carolina castillo","Carolina castillo","Carolina castillo","Carolina castillo","Carolina castillo","Carolina castillo","Carolina castillo","Carolina castillo","Carolina castillo","Carolina castillo","Carolina castillo","Carolina castillo","Carolina castillo","Carolina castillo","Carolina castillo","Carolina castillo","Carolina castillo","Carolina castillo","Carolina castillo","Carolina castillo","Carolina castillo","Carolina castillo","Carolina castillo","Carolina castillo","Carolina castillo","Carolina castillo","Carolina castillo","Carolina castillo","Carolina castillo","Carolina castillo","Carolina castillo","Carolina castillo","Carolina castillo","Carolina castillo","Carolina castillo","Carolina castillo","Carolina castillo","Carolina castillo","Carolina castillo","Carolina castillo","Carolina castillo","Carolina castillo","Carolina castillo","Carolina castillo","Carolina castillo","Carolina castillo","Carolina castillo","Carolina castillo","Carolina castillo","Carolina castillo","Carolina castillo","Carolina castillo","Carolina castillo","Carolina castillo","Carolina castillo","Carolina castillo","Carolina castillo","Carolina castillo","Carolina castillo","Carolina castillo","Carolina castillo","Carolina castillo","Carolina castillo","Carolina castillo","Carolina castillo","Carolina castillo","Carolina castillo","Carolina castillo","Carolina castillo","Carolina castillo","Carolina castillo","Carolina castillo","Carolina castillo","Carolina castillo","Carolina castillo","Carolina castillo","Carolina castillo","Carolina castillo","Carolina castillo","Carolina castillo","Carolina castillo","Carolina castillo","Carolina castillo","Carolina castillo","Carolina castillo","Carolina castillo","Carolina castillo","Carolina castillo","Carolina castillo","Carolina castillo","Carolina castillo","Carolina castillo","Carolina castillo","Carolina castillo","Carolina castillo","Carolina castillo","Carolina castillo","Carolina castillo","Carolina castillo","Carolina castillo","Carolina castillo","Carolina castillo","Carolina castillo","Carolina castillo","Carolina castillo","Carolina castillo","Carolina castillo","Carolina castillo","Carolina castillo","Carolina castillo","Carolina castillo","Carolina castillo","Carolina castillo","Carolina castillo","Carolina castillo","Carolina castillo","Carolina castillo","Carolina castillo","Carolina castillo","Carolina castillo","Carolina castillo","Carolina castillo","Carolina castillo","Carolina castillo","Carolina castillo","Carolina castillo","Carolina castillo","Carolina castillo","Carolina castillo","Carolina castillo","Carolina castillo","Carolina castillo","Carolina castillo","Carolina castillo","Carolina castillo","Carolina castillo","Carolina castillo","Carolina castillo","Carolina castillo","Carolina castillo","Carolina castillo","Carolina castillo","Carolina castillo","Carolina castillo","Carolina castillo","Carolina castillo","Carolina castillo","Carolina castillo","Carolina castillo","Carolina castillo","Carolina castillo","Carolina castillo","Carolina castillo","Carolina castillo","Carolina castillo","Carolina castillo","Carolina castillo","Carolina castillo","Carolina castillo","Carolina castillo","Carolina castillo","Carolina castillo","Carolina castillo","Carolina castillo","Carolina castillo","Carolina castillo","Carolina castillo","Carolina castillo","Carolina castillo","Carolina castillo","Carolina castillo","Carolina castillo","Carolina castillo","Carolina castillo","Carolina castillo","Carolina castillo","Carolina castillo","Carolina castillo","Carolina castillo","Carolina castillo","Carolina castillo","Carolina castillo","Carolina castillo","Carolina castillo","Carolina castillo","Carolina castillo","Carolina castillo","Carolina castillo","Carolina castillo","Carolina castillo","Carolina castillo","Carolina castillo","Carolina castillo","Carolina castillo","Carolina castillo","Carolina castillo","Carolina castillo","Carolina castillo","Carolina castillo","Carolina castillo","Carolina castillo","Carolina castillo","Carolina castillo","Carolina castillo","Carolina castillo","Carolina castillo","Carolina castillo","Carolina castillo","Carolina castillo","Carolina castillo","Carolina castillo","Carolina castillo","Carolina castillo","Carolina castillo","Carolina castillo","Carolina castillo","Carolina castillo","Carolina castillo","Carolina castillo","Carolina castillo","Carolina castillo","Carolina castillo","Carolina castillo","Carolina castillo","Carolina castillo","Carolina castillo","Carolina castillo","Carolina castillo","Carolina castillo","Carolina castillo","Carolina castillo","Carolina castillo","Carolina castillo","Carolina castillo","Carolina castillo","Carolina castillo","Carolina castillo","Carolina castillo","Carolina castillo","Carolina castillo","Carolina castillo","Carolina castillo","Carolina castillo","Carolina castillo","Carolina castillo","Carolina castillo","Carolina castillo","Carolina castillo","Carolina castillo","Carolina castillo","Carolina castillo","Carolina castillo","Carolina castillo","Carolina castillo","Carolina castillo","Carolina castillo","Carolina castillo","Carolina castillo","Carolina castillo","Carolina castillo","Carolina castillo","Carolina castillo","Carolina castillo","Carolina castillo","Carolina castillo","Carolina castillo","Carolina castillo","Carolina castillo","Carolina castillo","Carolina castillo","Carolina castillo","Carolina castillo","Carolina castillo","Carolina castillo","Carolina castillo","Carolina castillo","Carolina castillo","Carolina castillo","Carolina castillo","Carolina castillo","Carolina castillo","Carolina castillo","Carolina castillo","Carolina castillo","Carolina castillo","Carolina castillo","Carolina castillo","Carolina castillo","Carolina castillo","Carolina castillo","Carolina castillo","Carolina castillo","Carolina castillo","Carolina castillo","Carolina castillo","Carolina castillo","Carolina castillo","Carolina castillo","Carolina castillo","Carolina castillo","Carolina castillo","Carolina castillo","Carolina castillo","Carolina castillo","Carolina castillo","Carolina castillo","Carolina castillo","Carolina castillo","Carolina castillo","Carolina castillo","Carolina castillo","Carolina castillo","Carolina castillo","Carolina castillo","Carolina castillo","Carolina castillo","Carolina castillo","Carolina castillo","Carolina castillo","Carolina castillo","Carolina castillo","Carolina castillo","Carolina castillo","Carolina castillo","Carolina castillo","Carolina castillo","Carolina castillo","Carolina castillo","Carolina castillo","Carolina castillo","Carolina castillo","Carolina castillo","Carolina castillo","Carolina castillo","Carolina castillo","Carolina castillo","Carolina castillo","Carolina castillo","Carolina castillo","Carolina castillo","Carolina castillo","Carolina castillo","Carolina castillo","Carolina castillo","Carolina castillo","Carolina castillo","Carolina castillo","Carolina castillo","Carolina castillo","Carolina castillo","Carolina castillo","Carolina castillo","Carolina castillo","Carolina castillo","Carolina castillo","Carolina castillo","Carolina castillo","Carolina castillo","Carolina castillo","Carolina castillo","Carolina castillo","Carolina castillo","Carolina castillo","Carolina castillo","Carolina castillo","Carolina castillo","Carolina castillo","Carolina castillo","Carolina castillo","Carolina castillo","Carolina castillo","Carolina castillo","Carolina castillo","Carolina castillo","Carolina castillo","Carolina castillo","Carolina castillo","Carolina castillo","Carolina castillo","Carolina castillo","Carolina castillo","Carolina castillo","Carolina castillo","Carolina castillo","Carolina castillo","Carolina castillo","Carolina castillo","Carolina castillo","Carolina castillo","Carolina castillo","Carolina castillo","Carolina castillo","Carolina castillo","Carolina castillo","Carolina castillo","Carolina castillo","Carolina castillo","Carolina castillo","Carolina castillo","Carolina castillo","Carolina castillo","Carolina castillo","Carolina castillo","Carolina castillo","Carolina castillo","Carolina castillo","Carolina castillo","Carolina castillo","Carolina castillo","Carolina castillo","Carolina castillo","Carolina castillo","Carolina castillo","Carolina castillo","Carolina castillo","Carolina castillo","Carolina castillo","Carolina castillo","Carolina castillo","Carolina castillo","Carolina castillo","Carolina castillo","Carolina castillo","Carolina castillo","Carolina castillo","Carolina castillo","Carolina castillo","Carolina castillo","Carolina castillo","Carolina castillo","Carolina castillo","Carolina castillo","Carolina castillo","Carolina castillo","Carolina castillo","Carolina castillo","Carolina castillo","Carolina castillo","Carolina castillo","Carolina castillo","Carolina castillo","Carolina castillo","Carolina castillo","Carolina castillo","Carolina castillo","Carolina castillo","Carolina castillo","Carolina castillo","Carolina castillo","Carolina castillo","Carolina castillo","Carolina castillo","Carolina castillo","Carolina castillo","Carolina castillo","Carolina castillo","Carolina castillo","Carolina castillo","Carolina castillo","Carolina castillo","Carolina castillo","Carolina castillo","Carolina castillo","Carolina castillo","Carolina castillo","Carolina castillo","Carolina castillo","Carolina castillo","Carolina castillo","Carolina castillo","Carolina castillo","Carolina castillo","Carolina castillo","Carolina castillo","Carolina castillo","Carolina castillo","Carolina castillo","Carolina castillo","Carolina castillo","Carolina castillo","Carolina castillo","Carolina castillo","Carolina castillo","Carolina castillo","Carolina castillo","Carolina castillo","Carolina castillo","Carolina castillo","Carolina castillo","Carolina castillo","Carolina castillo","Carolina castillo","Carolina castillo","Carolina castillo","Carolina castillo","Carolina castillo","Carolina castillo","Carolina castillo","Carolina castillo","Carolina castillo","Carolina castillo","Carolina castillo","Carolina castillo","Carolina castillo","Carolina castillo","Carolina castillo","Carolina castillo","Carolina castillo","Carolina castillo","Carolina castillo","Carolina castillo","Carolina castillo","Carolina castillo","Carolina castillo","Carolina castillo","Carolina castillo","Carolina castillo","Carolina castillo","Carolina castillo","Carolina castillo","Carolina castillo","Carolina castillo","Carolina castillo","Carolina castillo","Carolina castillo","Carolina castillo","Carolina castillo","Carolina castillo","Carolina castillo","Carolina castillo","Carolina castillo","Carolina castillo","Carolina castillo","Carolina castillo","Carolina castillo","Carolina castillo","Carolina castillo","Carolina castillo","Carolina castillo","Carolina castillo","Carolina castillo","Carolina castillo","Carolina castillo","Carolina castillo","Carolina castillo","Carolina castillo","Carolina castillo","Carolina castillo","Carolina castillo","Carolina castillo","Carolina castillo","Carolina castillo","Carolina castillo","Carolina castillo","Carolina castillo","Carolina castillo","Carolina castillo","Carolina castillo","Carolina castillo","Carolina castillo","Carolina castillo","Carolina castillo","Carolina castillo","Carolina castillo","Carolina castillo","Carolina castillo","Carolina castillo","Carolina castillo","Carolina castillo","Carolina castillo","Carolina castillo","Carolina castillo","Carolina castillo","Carolina castillo","Carolina castillo","Carolina castillo","Carolina castillo","Carolina castillo","Carolina castillo","Carolina castillo","Carolina castillo","Carolina castillo","Carolina castillo","Carolina castillo","Carolina castillo","Carolina castillo","Carolina castillo","Carolina castillo","Carolina castillo","Carolina castillo","Carolina castillo","Carolina castillo","Carolina castillo","Carolina castillo","Carolina castillo","Carolina castillo","Carolina castillo","Carolina castillo","Carolina castillo","Carolina castillo","Carolina castillo","Carolina castillo","Carolina castillo","Carolina castillo","Carolina castillo","Carolina castillo","Carolina castillo","Carolina castillo","Carolina castillo","Carolina castillo","Carolina castillo","Carolina castillo","Carolina castillo","Carolina castillo","Carolina castillo","Carolina castillo","Carolina castillo","Carolina castillo","Carolina castillo","Carolina castillo","Carolina castillo","Carolina castillo","Carolina castillo","Carolina castillo","Carolina castillo","Carolina castillo","Carolina castillo","Carolina castillo","Carolina castillo","Carolina castillo","Carolina castillo","Carolina castillo","Carolina castillo","Carolina castillo","Carolina castillo","Carolina castillo","Carolina castillo","Carolina castillo","Carolina castillo","Carolina castillo","Carolina castillo","Carolina castillo","Carolina castillo","Carolina castillo","Carolina castillo","Carolina castillo","Carolina castillo","Carolina castillo","Carolina castillo","Carolina castillo","Carolina castillo","Carolina castillo","Carolina castillo","Carolina castillo","Carolina castillo","Carolina castillo","Carolina castillo","Carolina castillo","Carolina castillo","Carolina castillo","Carolina castillo","Carolina castillo","Carolina castillo","Carolina castillo","Carolina castillo","Carolina castillo","Carolina castillo","Carolina castillo","Carolina castillo","Carolina castillo","Carolina castillo","Carolina castillo","Carolina castillo","Carolina castillo","Carolina castillo","Carolina castillo","Carolina castillo","Carolina castillo","Carolina castillo","Carolina castillo","Carolina castillo","Carolina castillo","Carolina castillo","Carolina castillo","Carolina castillo","Carolina castillo","Carolina castillo","Carolina castillo","Carolina castillo","Carolina castillo","Carolina castillo","Carolina castillo","Carolina castillo","Carolina castillo","Carolina castillo","Carolina castillo","Carolina castillo","Carolina castillo","Carolina castillo","Carolina castillo","Carolina castillo","Carolina castillo","Carolina castillo","Carolina castillo","Carolina castillo","Carolina castillo","Carolina castillo","Carolina castillo","Carolina castillo","Carolina castillo","Carolina castillo","Carolina castillo","Carolina castillo","Carolina castillo","Carolina castillo","Carolina castillo","Carolina castillo","Carolina castillo","Carolina castillo","Carolina castillo","Carolina castillo","Carolina castillo","Carolina castillo","Carolina castillo","Carolina castillo","Carolina castillo","Carolina castillo","Carolina castillo","Carolina castillo","Carolina castillo","Carolina castillo","Carolina castillo","Carolina castillo","Carolina castillo","Carolina castillo","Carolina castillo","Carolina castillo","Carolina castillo","Carolina castillo","Carolina castillo","Carolina castillo","Carolina castillo","Carolina castillo","Carolina castillo","Carolina castillo","Carolina castillo","Carolina castillo","Carolina castillo","Carolina castillo","Carolina castillo","Carolina castillo","Carolina castillo","Carolina castillo","Carolina castillo","Carolina castillo","Carolina castillo","Carolina castillo","Carolina castillo","Carolina castillo","Carolina castillo","Carolina castillo","Carolina castillo","Carolina castillo","Carolina castillo","Carolina castillo","Carolina castillo","Carolina castillo","Carolina castillo","Carolina castillo","Carolina castillo","Carolina castillo","Carolina castillo","Carolina castillo","Carolina castillo","Carolina castillo","Carolina castillo","Carolina castillo","Carolina castillo","Carolina castillo","Carolina castillo","Carolina castillo","Carolina castillo","Carolina castillo","Carolina castillo","Carolina castillo","Carolina castillo","Carolina castillo","Carolina castillo","Carolina castillo","Carolina castillo","Carolina castillo","Carolina castillo","Carolina castillo","Carolina castillo","Carolina castillo","Carolina castillo","Carolina castillo","Carolina castillo","Carolina castillo","Carolina castillo","Carolina castillo","Carolina castillo","Carolina castillo","Carolina castillo","Carolina castillo","Carolina castillo","Carolina castillo","Carolina castillo","Carolina castillo","Carolina castillo","Carolina castillo","Carolina castillo","Carolina castillo","Carolina castillo","Carolina castillo","Carolina castillo","Carolina castillo","Carolina castillo","Carolina castillo","Carolina castillo","Carolina castillo","Carolina castillo","Carolina castillo","Carolina castillo","Carolina castillo","Carolina castillo","Carolina castillo","Carolina castillo","Carolina castillo","Carolina castillo","Carolina castillo","Carolina castillo","Carolina castillo","Carolina castillo","Carolina castillo","Carolina castillo","Carolina castillo","Carolina castillo","Carolina castillo","Carolina castillo","Carolina castillo","Carolina castillo","Carolina castillo","Carolina castillo","Carolina castillo","Carolina castillo","Carolina castillo","Carolina castillo","Carolina castillo","Carolina castillo","Carolina castillo","Carolina castillo","Carolina castillo","Carolina castillo","Carolina castillo","Carolina castillo","Carolina castillo","Carolina castillo","Carolina castillo","Carolina castillo","Carolina castillo","Carolina castillo","Carolina castillo","Carolina castillo","Carolina castillo","Carolina castillo","Carolina castillo","Carolina castillo","Carolina castillo","Carolina castillo","Carolina castillo","Carolina castillo","Carolina castillo","Carolina castillo","Carolina castillo","Carolina castillo","Carolina castillo","Carolina castillo","Carolina castillo","Carolina castillo","Carolina castillo","Carolina castillo","Carolina castillo","Carolina castillo","Carolina castillo","Carolina castillo","Carolina castillo","Carolina castillo","Carolina castillo","Carolina castillo","Carolina castillo","Carolina castillo","Carolina castillo","Carolina castillo","Carolina castillo","Carolina castillo","Carolina castillo","Carolina castillo","Carolina castillo","Carolina castillo","Carolina castillo","Carolina castillo","Carolina castillo","Carolina castillo","Carolina castillo","Carolina castillo","Carolina castillo","Carolina castillo","Carolina castillo","Carolina castillo","Carolina castillo","Carolina castillo","Carolina castillo","Carolina castillo","Carolina castillo","Carolina castillo","Carolina castillo","Carolina castillo","Carolina castillo","Carolina castillo","Carolina castillo","Carolina castillo","Carolina castillo","Carolina castillo","Carolina castillo","Carolina castillo","Carolina castillo","Carolina castillo","Carolina castillo","Carolina castillo","Carolina castillo","Carolina castillo","Carolina castillo","Carolina castillo","Carolina castillo","Carolina castillo","Carolina castillo","Carolina castillo","Carolina castillo","Carolina castillo","Carolina castillo","Carolina castillo","Carolina castillo","Carolina castillo","Carolina castillo","Carolina castillo","Carolina castillo","Carolina castillo","Carolina castillo","Carolina castillo","Carolina castillo","Carolina castillo","Carolina castillo","Carolina castillo","Carolina castillo","Carolina castillo","Carolina castillo","Carolina castillo","Carolina castillo","Carolina castillo","Carolina castillo","Carolina castillo","Carolina castillo","Carolina castillo","Carolina castillo","Carolina castillo","Carolina castillo","Carolina castillo","Carolina castillo","Carolina castillo","Carolina castillo","Carolina castillo","Carolina castillo","Carolina castillo","Carolina castillo","Carolina castillo","Carolina castillo","Carolina castillo","Carolina castillo","Carolina castillo","Carolina castillo","Carolina castillo","Carolina castillo","Carolina castillo","Carolina castillo","Carolina castillo","Carolina castillo","Carolina castillo","Carolina castillo","Carolina castillo","Carolina castillo","Carolina castillo","Carolina castillo","Carolina castillo","Carolina castillo","Carolina castillo","Carolina castillo","Carolina castillo","Carolina castillo","Carolina castillo","Carolina castillo","Carolina castillo","Carolina castillo","Carolina castillo","Carolina castillo","Carolina castillo","Carolina castillo","Carolina castillo","Carolina castillo","Carolina castillo","Carolina castillo","Carolina castillo","Carolina castillo","Carolina castillo","Carolina castillo","Carolina castillo","Carolina castillo","Carolina castillo","Carolina castillo","Carolina castillo","Carolina castillo","Carolina castillo","Carolina castillo","Carolina castillo","Carolina castillo","Carolina castillo","Carolina castillo","Carolina castillo","Carolina castillo","Carolina castillo","Carolina castillo","Carolina castillo","Carolina castillo","Carolina castillo","Carolina castillo","Carolina castillo","Carolina castillo","Carolina castillo","Carolina castillo","Carolina castillo","Carolina castillo","Carolina castillo","Carolina castillo","Carolina castillo","Carolina castillo","Carolina castillo","Carolina castillo","Carolina castillo","Carolina castillo","Carolina castillo","Carolina castillo","Carolina castillo","Carolina castillo","Carolina castillo","Carolina castillo","Carolina castillo","Carolina castillo","Carolina castillo","Carolina castillo","Carolina castillo","Carolina castillo","Carolina castillo","Carolina castillo","Carolina castillo","Carolina castillo","Carolina castillo","Carolina castillo","Carolina castillo","Carolina castillo","Carolina castillo","Carolina castillo","Carolina castillo","Carolina castillo","Carolina castillo","Carolina castillo","Carolina castillo","Carolina castillo","Carolina castillo","Carolina castillo","Carolina castillo","Carolina castillo","Carolina castillo","Carolina castillo","Carolina castillo","Carolina castillo","Carolina castillo","Carolina castillo","Carolina castillo","Carolina castillo","Carolina castillo","Carolina castillo","Carolina castillo","Carolina castillo","Carolina castillo","Carolina castillo","Carolina castillo","Carolina castillo","Carolina castillo","Carolina castillo","Carolina castillo","Carolina castillo","Carolina castillo","Carolina castillo","Carolina castillo","Carolina castillo","Carolina castillo","Carolina castillo","Carolina castillo","Carolina castillo","Carolina castillo","Carolina castillo","Carolina castillo","Carolina castillo","Carolina castillo","Carolina castillo","Carolina castillo","Carolina castillo","Carolina castillo","Carolina castillo","Carolina castillo","Carolina castillo","Carolina castillo","Carolina castillo","Carolina castillo","Carolina castillo","Carolina castillo","Carolina castillo","Carolina castillo","Carolina castillo","Carolina castillo","Carolina castillo","Carolina castillo","Carolina castillo","Carolina castillo","Carolina castillo","Carolina castillo","Carolina castillo","Carolina castillo","Carolina castillo","Carolina castillo","Carolina castillo","Carolina castillo","Carolina castillo","Carolina castillo","Carolina castillo","Carolina castillo","Carolina castillo","Carolina castillo","Carolina castillo","Carolina castillo","Carolina castillo","Carolina castillo","Carolina castillo","Carolina castillo","Carolina castillo","Carolina castillo","Carolina castillo","Carolina castillo","Carolina castillo","Carolina castillo","Carolina castillo","Carolina castillo","Carolina castillo","Carolina castillo","Carolina castillo","Carolina castillo","Carolina castillo","Carolina castillo","Carolina castillo","Carolina castillo","Carolina castillo","Carolina castillo","Carolina castillo","Carolina castillo","Carolina castillo","Carolina castillo","Carolina castillo","Carolina castillo","Carolina castillo","Carolina castillo","Carolina castillo","Carolina castillo","Carolina castillo","Carolina castillo","Carolina castillo","Carolina castillo","Carolina castillo","Carolina castillo","Carolina castillo","Carolina castillo","Carolina castillo","Carolina castillo","Carolina castillo","Carolina castillo","Carolina castillo","Carolina castillo","Carolina castillo","Carolina castillo","Carolina castillo","Carolina castillo","Carolina castillo","Carolina castillo","Carolina castillo","Carolina castillo","Carolina castillo","Carolina castillo","Carolina castillo","Carolina castillo","Carolina castillo","Carolina castillo","Carolina castillo","Carolina castillo","Carolina castillo","Carolina castillo","Carolina castillo","Carolina castillo","Carolina castillo","Carolina castillo","Carolina castillo","Carolina castillo","Carolina castillo","Carolina castillo","Carolina castillo","Carolina castillo","Carolina castillo","Carolina castillo","Carolina castillo","Carolina castillo","Carolina castillo","Carolina castillo","Carolina castillo","Carolina castillo","Carolina castillo","Carolina castillo","Carolina castillo","Carolina castillo","Carolina castillo","Carolina castillo","Carolina castillo","Carolina castillo","Carolina castillo","Carolina castillo","Carolina castillo","Carolina castillo","Carolina castillo","Carolina castillo","Carolina castillo","Carolina castillo","Carolina castillo","Carolina castillo","Carolina castillo","Carolina castillo","Carolina castillo","Carolina castillo","Carolina castillo","Carolina castillo","Carolina castillo","Carolina castillo","Carolina castillo","Carolina castillo","Carolina castillo","Carolina castillo","Carolina castillo","Carolina castillo","Carolina castillo","Carolina castillo","Carolina castillo","Carolina castillo","Carolina castillo","Carolina castillo","Carolina castillo","Carolina castillo","Carolina castillo","Carolina castillo","Carolina castillo","Carolina castillo","Carolina castillo","Carolina castillo","Carolina castillo","Carolina castillo","Carolina castillo","Carolina castillo","Carolina castillo","Carolina castillo","Carolina castillo","Carolina castillo","Carolina castillo","Carolina castillo","Carolina castillo","Carolina castillo","Carolina castillo","Carolina castillo","Carolina castillo","Carolina castillo","Carolina castillo","Carolina castillo","Carolina castillo","Carolina castillo","Carolina castillo","Carolina castillo","Carolina castillo","Carolina castillo","Carolina castillo","Carolina castillo","Carolina castillo","Carolina castillo","Carolina castillo","Carolina castillo","Carolina castillo","Carolina castillo","Carolina castillo","Carolina castillo","Carolina castillo","Carolina castillo","Carolina castillo","Carolina castillo","Carolina castillo","Carolina castillo","Carolina castillo","Carolina castillo","Carolina castillo","Carolina castillo","Carolina castillo","Carolina castillo","Carolina castillo","Carolina castillo","Carolina castillo","Carolina castillo","Carolina castillo","Carolina castillo","Carolina castillo","Carolina castillo","Carolina castillo","Carolina castillo","Carolina castillo","Carolina castillo","Carolina castillo","Carolina castillo","Carolina castillo","Carolina castillo","Carolina castillo","Carolina castillo","Carolina castillo","Carolina castillo","Carolina castillo","Carolina castillo","Carolina castillo","Carolina castillo","Carolina castillo","Carolina castillo","Carolina castillo","Carolina castillo","Carolina castillo","Carolina castillo","Carolina castillo","Carolina castillo","Carolina castillo","Carolina castillo","Carolina castillo","Carolina castillo","Carolina castillo","Carolina castillo","Carolina castillo","Carolina castillo","Carolina castillo","Carolina castillo","Carolina castillo","Carolina castillo","Carolina castillo","Carolina castillo","Carolina castillo","Carolina castillo","Carolina castillo","Carolina castillo","Carolina castillo","Carolina castillo","Carolina castillo","Carolina castillo","Carolina castillo","Carolina castillo","Carolina castillo","Carolina castillo","Carolina castillo","Carolina castillo","Carolina castillo","Carolina castillo","Carolina castillo","Carolina castillo","Carolina castillo","Carolina castillo","Carolina castillo","Carolina castillo","Carolina castillo","Carolina castillo","Carolina castillo","Carolina castillo","Carolina castillo","Carolina castillo","Carolina castillo","Carolina castillo","Carolina castillo","Carolina castillo","Carolina castillo","Carolina castillo","Carolina castillo","Carolina castillo","Carolina castillo","Carolina castillo","Carolina castillo","Carolina castillo","Carolina castillo","Carolina castillo","Carolina castillo","Carolina castillo","Carolina castillo","Carolina castillo","Carolina castillo","Carolina castillo","Carolina castillo","Carolina castillo","Carolina castillo","Carolina castillo","Carolina castillo","Carolina castillo","Carolina castillo","Carolina castillo","Carolina castillo","Carolina castillo","Carolina castillo","Carolina castillo","Carolina castillo","Carolina castillo","Carolina castillo","Carolina castillo","Carolina castillo","Carolina castillo","Carolina castillo","Carolina castillo","Carolina castillo","Carolina castillo","Carolina castillo","Carolina castillo","Carolina castillo","Carolina castillo","Carolina castillo","Carolina castillo","Carolina castillo","Carolina castillo","Carolina castillo","Carolina castillo","Carolina castillo","Carolina castillo","Carolina castillo","Carolina castillo","Carolina castillo","Carolina castillo","Carolina castillo","Carolina castillo","Carolina castillo","Carolina castillo","Carolina castillo","Carolina castillo","Carolina castillo","Carolina castillo","Carolina castillo","Carolina castillo","Carolina castillo","Carolina castillo","Carolina castillo","Carolina castillo","Carolina castillo","Carolina castillo","Carolina castillo","Carolina castillo","Carolina castillo","Carolina castillo","Carolina castillo","Carolina castillo","Carolina castillo","Carolina castillo","Carolina castillo","Carolina castillo","Carolina castillo","Carolina castillo","Carolina castillo","Carolina castillo","Carolina castillo","Carolina castillo","Carolina castillo","Carolina castillo","Carolina castillo","Carolina castillo","Carolina castillo","Carolina castillo","Carolina castillo","Carolina castillo","Carolina castillo","Carolina castillo","Carolina castillo","Carolina castillo","Carolina castillo","Carolina castillo","Carolina castillo","Carolina castillo","Carolina castillo","Carolina castillo","Carolina castillo","Carolina castillo","Carolina castillo","Carolina castillo","Carolina castillo","Carolina castillo","Carolina castillo","Carolina castillo","Carolina castillo","Carolina castillo","Carolina castillo","Carolina castillo","Carolina castillo","Carolina castillo","Carolina castillo","Carolina castillo","Carolina castillo","Carolina castillo","Carolina castillo","Carolina castillo","Carolina castillo","Carolina castillo","Carolina castillo","Carolina castillo","Carolina castillo","Carolina castillo","Carolina castillo","Carolina castillo","Carolina castillo","Carolina castillo","Carolina castillo","Carolina castillo","Carolina castillo","Carolina castillo","Carolina castillo","Carolina castillo","Carolina castillo","Carolina castillo","Carolina castillo","Carolina castillo","Carolina castillo","Carolina castillo","Carolina castillo","Carolina castillo","Carolina castillo","Carolina castillo","Carolina castillo","Carolina castillo","Carolina castillo","Carolina castillo","Carolina castillo","Carolina castillo","Carolina castillo","Carolina castillo","Carolina castillo","Carolina castillo","Carolina castillo","Carolina castillo","Carolina castillo","Carolina castillo","Carolina castillo","Carolina castillo","Carolina castillo","Carolina castillo","Carolina castillo","Carolina castillo","Carolina castillo","Carolina castillo","Carolina castillo","Carolina castillo","Carolina castillo","Carolina castillo","Carolina castillo","Carolina castillo","Carolina castillo","Carolina castillo","Carolina castillo","Carolina castillo","Carolina castillo","Carolina castillo","Carolina castillo","Carolina castillo","Carolina castillo","Carolina castillo","Carolina castillo","Carolina castillo","Carolina castillo","Carolina castillo","Carolina castillo","Carolina castillo","Carolina castillo","Carolina castillo","Carolina castillo","Carolina castillo","Carolina castillo","Carolina castillo","Carolina castillo","Carolina castillo","Carolina castillo","Carolina castillo","Carolina castillo","Carolina castillo","Carolina castillo","Carolina castillo","Carolina castillo","Carolina castillo","Carolina castillo","Carolina castillo","Carolina castillo","Carolina castillo","Carolina castillo","Carolina castillo","Carolina castillo","Carolina castillo","Carolina castillo","Carolina castillo","Carolina castillo","Carolina castillo","Carolina castillo","Carolina castillo","Carolina castillo","Carolina castillo","Carolina castillo","Carolina castillo","Carolina castillo","Carolina castillo","Carolina castillo","Carolina castillo","Carolina castillo","Carolina castillo","Carolina castillo","Carolina castillo","Carolina castillo","Carolina castillo","Carolina castillo","Carolina castillo","Carolina castillo","Carolina castillo","Carolina castillo","Carolina castillo","Carolina castillo","Carolina castillo","Carolina castillo","Carolina castillo","Carolina castillo","Carolina castillo","Carolina castillo","Carolina castillo","Carolina castillo","Carolina castillo","Carolina castillo","Carolina castillo","Carolina castillo","Carolina castillo","Carolina castillo","Carolina castillo","Carolina castillo","Carolina castillo","Carolina castillo","Carolina castillo","Carolina castillo","Carolina castillo","Carolina castillo","Carolina castillo","Carolina castillo","Carolina castillo","Carolina castillo","Carolina castillo","Carolina castillo","Carolina castillo","Carolina castillo","Carolina castillo","Carolina castillo","Carolina castillo","Carolina castillo","Carolina castillo","Carolina castillo","Carolina castillo","Carolina castillo","Carolina castillo","Carolina castillo","Carolina castillo","Carolina castillo","Carolina castillo","Carolina castillo","Carolina castillo","Carolina castillo","Carolina castillo","Carolina castillo","Carolina castillo","Carolina castillo","Carolina castillo","Carolina castillo","Carolina castillo","Carolina castillo","Carolina castillo","Carolina castillo","Carolina castillo","Carolina castillo","Carolina castillo","Carolina castillo","Carolina castillo","Carolina castillo","Carolina castillo","Carolina castillo","Carolina castillo","Carolina castillo","Carolina castillo","Carolina castillo","Carolina castillo","Carolina castillo","Carolina castillo","Carolina castillo","Carolina castillo","Carolina castillo","Carolina castillo","Carolina castillo","Carolina castillo","Carolina castillo","Carolina castillo","Carolina castillo","Carolina castillo","Carolina castillo","Carolina castillo","Carolina castillo","Carolina castillo","Carolina castillo","Carolina castillo","Carolina castillo","Carolina castillo","Carolina castillo","Carolina castillo","Carolina castillo","Carolina castillo","Carolina castillo","Carolina castillo","Carolina castillo","Carolina castillo","Carolina castillo","Carolina castillo","Carolina castillo","Carolina castillo","Carolina castillo","Carolina castillo","Carolina castillo","Carolina castillo","Carolina castillo","Carolina castillo","Carolina castillo","Carolina castillo","Carolina castillo","Carolina castillo","Carolina castillo","Carolina castillo","Carolina castillo","Carolina castillo","Carolina castillo","Carolina castillo","Carolina castillo","Carolina castillo","Carolina castillo","Carolina castillo","Carolina castillo","Carolina castillo","Carolina castillo","Carolina castillo","Carolina castillo","Carolina castillo","Carolina castillo","Carolina castillo","Carolina castillo","Carolina castillo","Carolina castillo","Carolina castillo","Carolina castillo","Carolina castillo","Carolina castillo","Carolina castillo","Carolina castillo","Carolina castillo","Carolina castillo","Carolina castillo","Carolina castillo","Carolina castillo","Carolina castillo","Carolina castillo","Carolina castillo","Carolina castillo","Carolina castillo","Carolina castillo","Carolina castillo","Carolina castillo","Carolina castillo","Carolina castillo","Carolina castillo","Carolina castillo","Carolina castillo","Carolina castillo","Carolina castillo","Carolina castillo","Carolina castillo","Carolina castillo","Carolina castillo","Carolina castillo","Carolina castillo","Carolina castillo","Carolina castillo","Carolina castillo","Carolina castillo","Carolina castillo","Carolina castillo","Carolina castillo","Carolina castillo","Carolina castillo","Carolina castillo","Carolina castillo","Carolina castillo","Carolina castillo","Carolina castillo","Carolina castillo","Carolina castillo","Carolina castillo","Carolina castillo","Carolina castillo","Carolina castillo","Carolina castillo","Carolina castillo","Carolina castillo","Carolina castillo","Carolina castillo","Carolina castillo","Carolina castillo","Carolina castillo","Carolina castillo","Carolina castillo","Carolina castillo","Carolina castillo","Carolina castillo","Carolina castillo","Carolina castillo","Carolina castillo","Carolina castillo","Carolina castillo","Carolina castillo","Carolina castillo","Carolina castillo","Carolina castillo","Carolina castillo","Carolina castillo","Carolina castillo","Carolina castillo","Carolina castillo","Carolina castillo","Carolina castillo","Carolina castillo","Carolina castillo","Carolina castillo","Carolina castillo","Carolina castillo","Carolina castillo","Carolina castillo","Carolina castillo","Carolina castillo","Carolina castillo","Carolina castillo","Carolina castillo","Carolina castillo","Carolina castillo","Carolina castillo","Carolina castillo","Carolina castillo","Carolina castillo","Carolina castillo","Carolina castillo","Carolina castillo","Carolina castillo","Carolina castillo","Carolina castillo","Carolina castillo","Carolina castillo","Carolina castillo","Carolina castillo","Carolina castillo","Carolina castillo","Carolina castillo","Carolina castillo","Carolina castillo","Carolina castillo","Carolina castillo","Carolina castillo","Carolina castillo","Carolina castillo","Carolina castillo","Carolina castillo","Carolina castillo","Carolina castillo","Carolina castillo","Carolina castillo","Carolina castillo","Carolina castillo","Carolina castillo","Carolina castillo","Carolina castillo","Carolina castillo","Carolina castillo","Carolina castillo","Carolina castillo","Carolina castillo","Carolina castillo","Carolina castillo","Carolina castillo","Carolina castillo","Carolina castillo","Carolina castillo","Carolina castillo","Carolina castillo","Carolina castillo","Carolina castillo","Carolina castillo","Carolina castillo","Carolina castillo","Carolina castillo","Carolina castillo","Carolina castillo","Carolina castillo","Carolina castillo","Carolina castillo","Carolina castillo","Carolina castillo","Carolina castillo","Carolina castillo","Carolina castillo","Carolina castillo","Carolina castillo","Carolina castillo","Carolina castillo","Carolina castillo","Carolina castillo","Carolina castillo","Carolina castillo","Carolina castillo","Carolina castillo","Carolina castillo","Carolina castillo","Carolina castillo","Carolina castillo","Carolina castillo","Carolina castillo","Carolina castillo","Carolina castillo","Carolina castillo","Carolina castillo","Carolina castillo","Carolina castillo","Carolina castillo","Carolina castillo","Carolina castillo","Carolina castillo","Carolina castillo","Carolina castillo","Carolina castillo","Carolina castillo","Carolina castillo","Carolina castillo","Carolina castillo","Carolina castillo","Carolina castillo","Carolina castillo","Carolina castillo","Carolina castillo","Carolina castillo","Carolina castillo","Carolina castillo","Carolina castillo","Carolina castillo","Carolina castillo","Carolina castillo","Carolina castillo","Carolina castillo","Carolina castillo","Carolina castillo","Carolina castillo","Carolina castillo","Carolina castillo","Carolina castillo","Carolina castillo","Carolina castillo","Carolina castillo","Carolina castillo","Carolina castillo","Carolina castillo","Carolina castillo","Carolina castillo","Carolina castillo","Carolina castillo","Carolina castillo","Carolina castillo","Carolina castillo","Carolina castillo","Carolina castillo","Carolina castillo","Carolina castillo","Carolina castillo","Carolina castillo","Carolina castillo","Carolina castillo","Carolina castillo","Carolina castillo","Carolina castillo","Carolina castillo","Carolina castillo","Carolina castillo","Carolina castillo","Carolina castillo","Carolina castillo","Carolina castillo","Carolina castillo","Carolina castillo","Carolina castillo","Carolina castillo","Carolina castillo","Carolina castillo","Carolina castillo","Carolina castillo","Carolina castillo","Carolina castillo","Carolina castillo","Carolina castillo","Carolina castillo","Carolina castillo","Carolina castillo","Carolina castillo","Carolina castillo","Carolina castillo","Carolina castillo","Carolina castillo","Carolina castillo","Carolina castillo","Carolina castillo","Carolina castillo","Carolina castillo","Carolina castillo","Carolina castillo","Carolina castillo","Carolina castillo","Carolina castillo","Carolina castillo","Carolina castillo","Carolina castillo","Carolina castillo","Carolina castillo","Carolina castillo","Carolina castillo","Carolina castillo","Carolina castillo","Carolina castillo","Carolina castillo","Carolina castillo","Carolina castillo","Carolina castillo","Carolina castillo","Carolina castillo","Carolina castillo","Carolina castillo","Carolina castillo","Carolina castillo","Carolina castillo","Carolina castillo","Carolina castillo","Carolina castillo","Carolina castillo","Carolina castillo","Carolina castillo","Carolina castillo","Carolina castillo","Carolina castillo","Carolina castillo","Carolina castillo","Carolina castillo","Carolina castillo","Carolina castillo","Carolina castillo","Carolina castillo","Carolina castillo","Carolina castillo","Carolina castillo","Carolina castillo","Carolina castillo","Carolina castillo","Carolina castillo","Carolina castillo","Carolina castillo","Carolina castillo","Carolina castillo","Carolina castillo","Carolina castillo","Carolina castillo","Carolina castillo","Carolina castillo","Carolina castillo","Carolina castillo","Carolina castillo","Carolina castillo","Carolina castillo","Carolina castillo","Carolina castillo","Carolina castillo","Carolina castillo","Carolina castillo","Carolina castillo","Carolina castillo","Carolina castillo","Carolina castillo","Carolina castillo","Carolina castillo","Carolina castillo","Carolina castillo","Carolina castillo","Carolina castillo","Carolina castillo","Carolina castillo","Carolina castillo","Carolina castillo","Carolina castillo","Carolina castillo","Carolina castillo","Carolina castillo","Carolina castillo","Carolina castillo","Carolina castillo","Carolina castillo","Carolina castillo","Carolina castillo","Carolina castillo","Carolina castillo","Carolina castillo","Carolina castillo","Carolina castillo","Carolina castillo","Carolina castillo","Carolina castillo","Carolina castillo","Carolina castillo","Carolina castillo","Carolina castillo","Carolina castillo","Carolina castillo","Carolina castillo","Carolina castillo","Carolina castillo","Carolina castillo","Carolina castillo","Carolina castillo","Carolina castillo","Carolina castillo","Carolina castillo","Carolina castillo","Carolina castillo","Carolina castillo","Carolina castillo","Carolina castillo","Carolina castillo","Carolina castillo","Carolina castillo","Carolina castillo","Carolina castillo","Carolina castillo","Carolina castillo","Carolina castillo","Carolina castillo","Carolina castillo","Carolina castillo","Carolina castillo","Carolina castillo","Carolina castillo","Carolina castillo","Carolina castillo","Carolina castillo","Carolina castillo","Carolina castillo","Carolina castillo","Carolina castillo","Carolina castillo","Carolina castillo","Carolina castillo","Carolina castillo","Carolina castillo","Carolina castillo","Carolina castillo","Carolina castillo","Carolina castillo","Carolina castillo","Carolina castillo","Carolina castillo","Carolina castillo","Carolina castillo","Carolina castillo","Carolina castillo","Carolina castillo","Carolina castillo","Carolina castillo","Carolina castillo","Carolina castillo","Carolina castillo","Carolina castillo","Carolina castillo","Carolina castillo","Carolina castillo","Carolina castillo","Carolina castillo","Carolina castillo","Carolina castillo","Carolina castillo","Carolina castillo","Carolina castillo","Carolina castillo","Carolina castillo","Carolina castillo","Carolina castillo","Carolina castillo","Carolina castillo","Carolina castillo","Carolina castillo","Carolina castillo","Carolina castillo","Carolina castillo","Carolina castillo","Carolina castillo","Carolina castillo","Carolina castillo","Carolina castillo","Carolina castillo","Carolina castillo","Carolina castillo","Carolina castillo","Carolina castillo","Carolina castillo","Carolina castillo","Carolina castillo","Carolina castillo","Carolina castillo","Carolina castillo","Carolina castillo","Carolina castillo","Carolina castillo","Carolina castillo","Carolina castillo","Carolina castillo","Carolina castillo","Carolina castillo","Carolina castillo","Carolina castillo","Carolina castillo","Carolina castillo","Carolina castillo","Carolina castillo","Carolina castillo","Carolina castillo","Carolina castillo","Carolina castillo","Carolina castillo","Carolina castillo","Carolina castillo","Carolina castillo","Carolina castillo","Carolina castillo","Carolina castillo","Carolina castillo","Carolina castillo","Carolina castillo","Carolina castillo","Carolina castillo","Carolina castillo","Carolina castillo","Carolina castillo","Carolina castillo","Carolina castillo","Carolina castillo","Carolina castillo","Carolina castillo","Carolina castillo","Carolina castillo","Carolina castillo","Carolina castillo","Carolina castillo","Carolina castillo","Carolina castillo","Carolina castillo","Carolina castillo","Carolina castillo","Carolina castillo","Carolina castillo","Carolina castillo","Carolina castillo","Carolina castillo","Carolina castillo","Carolina castillo","Carolina castillo","Carolina castillo","Carolina castillo","Carolina castillo","Carolina castillo","Carolina castillo","Carolina castillo","Carolina castillo","Carolina castillo","Carolina castillo","Carolina castillo","Carolina castillo","Carolina castillo","Carolina castillo","Carolina castillo","Carolina castillo","Carolina castillo","Carolina castillo","Carolina castillo","Carolina castillo","Carolina castillo","Carolina castillo","Carolina castillo","Carolina castillo","Carolina castillo","Carolina castillo","Carolina castillo","Carolina castillo","Carolina castillo","Carolina castillo","Carolina castillo","Carolina castillo","Carolina castillo","Carolina castillo","Carolina castillo","Carolina castillo","Carolina castillo","Carolina castillo","Carolina castillo","Carolina castillo","Carolina castillo","Carolina castillo","Carolina castillo","Carolina castillo","Carolina castillo","Carolina castillo","Carolina castillo","Carolina castillo","Carolina castillo","Carolina castillo","Carolina castillo","Carolina castillo","Carolina castillo","Carolina castillo","Carolina castillo","Carolina castillo","Carolina castillo","Carolina castillo","Carolina castillo","Carolina castillo","Carolina castillo","Carolina castillo","Carolina castillo","Carolina castillo","Carolina castillo","Carolina castillo","Carolina castillo","Carolina castillo","Carolina castillo","Carolina castillo","Carolina castillo","Carolina castillo","Carolina castillo","Carolina castillo","Carolina castillo","Carolina castillo","Carolina castillo","Carolina castillo","Carolina castillo","Carolina castillo","Carolina castillo","Carolina castillo","Carolina castillo","Carolina castillo","Carolina castillo","Carolina castillo","Carolina castillo","Carolina castillo","Carolina castillo","Carolina castillo","Carolina castillo","Carolina castillo","Carolina castillo","Carolina castillo","Carolina castillo","Carolina castillo","Carolina castillo","Carolina castillo","Carolina castillo","Carolina castillo","Carolina castillo","Carolina castillo","Carolina castillo","Carolina castillo","Carolina castillo","Carolina castillo","Carolina castillo","Carolina castillo","Carolina castillo","Carolina castillo","Carolina castillo","Carolina castillo","Carolina castillo","Carolina castillo","Carolina castillo","Carolina castillo","Carolina castillo","Carolina castillo","Carolina castillo","Carolina castillo","Carolina castillo","Carolina castillo","Carolina castillo","Carolina castillo","Carolina castillo","Carolina castillo","Carolina castillo","Carolina castillo","Carolina castillo","Carolina castillo","Carolina castillo","Carolina castillo","Carolina castillo","Carolina castillo","Carolina castillo","Carolina castillo","Carolina castillo","Carolina castillo","Carolina castillo","Carolina castillo","Carolina castillo","Carolina castillo","Carolina castillo","Carolina castillo","Carolina castillo","Carolina castillo","Carolina castillo","Carolina castillo","Carolina castillo","Carolina castillo","Carolina castillo","Carolina castillo","Carolina castillo","Carolina castillo","Carolina castillo","Carolina castillo","Carolina castillo","Carolina castillo","Carolina castillo","Carolina castillo","Carolina castillo","Carolina castillo","Carolina castillo","Carolina castillo","Carolina castillo","Carolina castillo","Carolina castillo","Carolina castillo","Carolina castillo","Carolina castillo","Carolina castillo","Carolina castillo","Carolina castillo","Carolina castillo","Carolina castillo","Carolina castillo","Carolina castillo","Carolina castillo","Carolina castillo","Carolina castillo","Carolina castillo","Carolina castillo","Carolina castillo","Carolina castillo","Carolina castillo","Carolina castillo","Carolina castillo","Carolina castillo","Carolina castillo","Carolina castillo","Carolina castillo","Carolina castillo","Carolina castillo","Carolina castillo","Carolina castillo","Carolina castillo","Carolina castillo","Carolina castillo","Carolina castillo","Carolina castillo","Carolina castillo","Carolina castillo","Carolina castillo","Carolina castillo","Carolina castillo","Carolina castillo","Carolina castillo","Carolina castillo","Carolina castillo","Carolina castillo","Carolina castillo","Carolina castillo","Carolina castillo","Carolina castillo","Carolina castillo","Carolina castillo","Carolina castillo","Carolina castillo","Carolina castillo","Carolina castillo","Carolina castillo","Carolina castillo","Carolina castillo","Carolina castillo","Carolina castillo","Carolina castillo","Carolina castillo","Carolina castillo","Carolina castillo","Carolina castillo","Carolina castillo","Carolina castillo","Carolina castillo","Carolina castillo","Carolina castillo","Carolina castillo","Carolina castillo","Carolina castillo","Carolina castillo","Carolina castillo","Carolina castillo","Carolina castillo","Carolina castillo","Carolina castillo","Carolina castillo","Carolina castillo","Carolina castillo","Carolina castillo","Carolina castillo","Carolina castillo","Carolina castillo","Carolina castillo","Carolina castillo","Carolina castillo","Carolina castillo","Carolina castillo","Carolina castillo","Carolina castillo","Carolina castillo","Carolina castillo","Carolina castillo","Carolina castillo","Carolina castillo","Carolina castillo","Carolina castillo","Carolina castillo","Carolina castillo","Carolina castillo","Carolina castillo","Carolina castillo","Carolina castillo","Carolina castillo","Carolina castillo","Carolina castillo","Carolina castillo","Carolina castillo","Carolina castillo","Carolina castillo","Carolina castillo","Carolina castillo","Carolina castillo","Carolina castillo","Carolina castillo","Carolina castillo","Carolina castillo","Carolina castillo","Carolina castillo","Carolina castillo","Carolina castillo","Carolina castillo","Carolina castillo","Carolina castillo","Carolina castillo","Carolina castillo","Carolina castillo","Carolina castillo","Carolina castillo","Carolina castillo","Carolina castillo","Carolina castillo","Carolina castillo","Carolina castillo","Carolina castillo","Carolina castillo","Carolina castillo","Carolina castillo","Carolina castillo","Carolina castillo","Carolina castillo","Carolina castillo","Carolina castillo","Carolina castillo","Carolina castillo","Carolina castillo","Carolina castillo","Carolina castillo","Carolina castillo","Carolina castillo","Carolina castillo","Carolina castillo","Carolina castillo","Carolina castillo","Carolina castillo","Carolina castillo","Carolina castillo","Carolina castillo","Carolina castillo","Carolina castillo","Carolina castillo","Carolina castillo","Carolina castillo","Carolina castillo","Carolina castillo","Carolina castillo","Carolina castillo","Carolina castillo","Carolina castillo","Carolina castillo","Carolina castillo","Carolina castillo","Carolina castillo","Carolina castillo","Carolina castillo","Carolina castillo","Carolina castillo","Carolina castillo","Carolina castillo","Carolina castillo","Carolina castillo","Carolina castillo","Carolina castillo","Carolina castillo","Carolina castillo","Carolina castillo","Carolina castillo","Carolina castillo","Carolina castillo","Carolina castillo","Carolina castillo","Carolina castillo","Carolina castillo","Carolina castillo","Carolina castillo","Carolina castillo","Carolina castillo","Carolina castillo","Carolina castillo","Carolina castillo","Carolina castillo","Carolina castillo","Carolina castillo","Carolina castillo","Carolina castillo","Carolina castillo","Carolina castillo","Carolina castillo","Carolina castillo","Carolina castillo","Carolina castillo","Carolina castillo","Carolina castillo","Carolina castillo","Carolina castillo","Carolina castillo","Carolina castillo","Carolina castillo","Carolina castillo","Carolina castillo","Carolina castillo","Carolina castillo","Carolina castillo","Carolina castillo","Carolina castillo","Carolina castillo","Carolina castillo","Carolina castillo","Carolina castillo","Carolina castillo","Carolina castillo","Carolina castillo","Carolina castillo","Carolina castillo","Carolina castillo","Carolina castillo","Carolina castillo","Carolina castillo","Carolina castillo","Carolina castillo","Carolina castillo","Carolina castillo","Carolina castillo","Carolina castillo","Carolina castillo","Carolina castillo","Carolina castillo","Carolina castillo","Carolina castillo","Carolina castillo","Carolina castillo","Carolina castillo","Carolina castillo","Carolina castillo","Carolina castillo","Carolina castillo","Carolina castillo","Carolina castillo","Carolina castillo","Carolina castillo","Carolina castillo","Carolina castillo","Carolina castillo","Carolina castillo","Carolina castillo","Carolina castillo","Carolina castillo","Carolina castillo","Carolina castillo","Carolina castillo","Carolina castillo","Carolina castillo","Carolina castillo","Carolina castillo","Carolina castillo","Carolina castillo","Carolina castillo","Carolina castillo","Carolina castillo","Carolina castillo","Carolina castillo","Carolina castillo","Carolina castillo","Carolina castillo","Carolina castillo","Carolina castillo","Carolina castillo","Carolina castillo","Carolina castillo","Carolina castillo","Carolina castillo","Carolina castillo","Carolina castillo","Carolina castillo","Carolina castillo","Carolina castillo","Carolina castillo","Carolina castillo","Carolina castillo","Carolina castillo","Carolina castillo","Carolina castillo","Carolina castillo","Carolina castillo","Carolina castillo","Carolina castillo","Carolina castillo","Carolina castillo","Carolina castillo","Carolina castillo","Carolina castillo","Carolina castillo","Carolina castillo","Carolina castillo","Carolina castillo","Carolina castillo","Carolina castillo","Carolina castillo","Carolina castillo","Carolina castillo","Carolina castillo","Carolina castillo","Carolina castillo","Carolina castillo","Carolina castillo","Carolina castillo","Carolina castillo","Carolina castillo","Carolina castillo","Carolina castillo","Carolina castillo","Carolina castillo","Carolina castillo","Carolina castillo","Carolina castillo","Carolina castillo","Carolina castillo","Carolina castillo","Carolina castillo","Carolina castillo","Carolina castillo","Carolina castillo","Carolina castillo","Carolina castillo","Carolina castillo","Carolina castillo","Carolina castillo","Carolina castillo","Carolina castillo","Carolina castillo","Carolina castillo","Carolina castillo","Carolina castillo","Carolina castillo","Carolina castillo","Carolina castillo","Carolina castillo","Carolina castillo","Carolina castillo","Carolina castillo","Carolina castillo","Carolina castillo","Carolina castillo","Carolina castillo","Carolina castillo","Carolina castillo","Carolina castillo","Carolina castillo","Carolina castillo","Carolina castillo","Carolina castillo","Carolina castillo","Carolina castillo","Carolina castillo","Carolina castillo","Carolina castillo","Carolina castillo","Carolina castillo","Carolina castillo","Carolina castillo","Carolina castillo","Carolina castillo","Carolina castillo","Carolina castillo","Carolina castillo","Carolina castillo","Carolina castillo","Carolina castillo","Carolina castillo","Carolina castillo","Carolina castillo","Carolina castillo","Carolina castillo","Carolina castillo","Carolina castillo","Carolina castillo","Carolina castillo","Carolina castillo","Carolina castillo","Carolina castillo","Carolina castillo","Carolina castillo","Carolina castillo","Carolina castillo","Carolina castillo","Carolina castillo","Carolina castillo","Carolina castillo","Carolina castillo","Carolina castillo","Carolina castillo","Carolina castillo","Carolina castillo","Carolina castillo","Carolina castillo","Carolina castillo","Carolina castillo","Carolina castillo","Carolina castillo","Carolina castillo","Carolina castillo","Carolina castillo","Carolina castillo","Carolina castillo","Carolina castillo","Carolina castillo","Carolina castillo","Carolina castillo","Carolina castillo","Carolina castillo","Carolina castillo","Carolina castillo","Carolina castillo","Carolina castillo","Carolina castillo","Carolina castillo","Carolina castillo","Carolina castillo","Carolina castillo","Carolina castillo","Carolina castillo","Carolina castillo","Carolina castillo","Carolina castillo","Carolina castillo","Carolina castillo","Carolina castillo","Carolina castillo","Carolina castillo","Carolina castillo","Carolina castillo","Carolina castillo","Carolina castillo","Carolina castillo","Carolina castillo","Carolina castillo","Carolina castillo","Carolina castillo","Carolina castillo","Carolina castillo","Carolina castillo","Carolina castillo","Carolina castillo","Carolina castillo","Carolina castillo","Carolina castillo","Carolina castillo","Carolina castillo","Carolina castillo","Carolina castillo","Carolina castillo","Carolina castillo","Carolina castillo","Carolina castillo","Carolina castillo","Carolina castillo","Carolina castillo","Carolina castillo","Carolina castillo","Carolina castillo","Carolina castillo","Carolina castillo","Carolina castillo","Carolina castillo","Carolina castillo","Carolina castillo","Carolina castillo","Carolina castillo","Carolina castillo","Carolina castillo","Carolina castillo","Carolina castillo","Carolina castillo","Carolina castillo","Carolina castillo","Carolina castillo","Carolina castillo","Carolina castillo","Carolina castillo","Carolina castillo","Carolina castillo","Carolina castillo","Carolina castillo","Carolina castillo","Carolina castillo","Carolina castillo","Carolina castillo","Carolina castillo","Carolina castillo","Carolina castillo","Carolina castillo","Carolina castillo","Carolina castillo","Carolina castillo","Carolina castillo","Carolina castillo","Carolina castillo","Carolina castillo","Carolina castillo","Carolina castillo","Carolina castillo","Carolina castillo","Carolina castillo","Carolina castillo","Carolina castillo","Carolina castillo","Carolina castillo","Carolina castillo","Carolina castillo","Carolina castillo","Carolina castillo","Carolina castillo","Carolina castillo","Carolina castillo","Carolina castillo","Carolina castillo","Carolina castillo","Carolina castillo","Carolina castillo","Carolina castillo","Carolina castillo","Carolina castillo","Carolina castillo","Carolina castillo","Carolina castillo","Carolina castillo","Carolina castillo","Carolina castillo","Carolina castillo","Carolina castillo","Carolina castillo","Carolina castillo","Carolina castillo","Carolina castillo","Carolina castillo","Carolina castillo","Carolina castillo","Carolina castillo","Carolina castillo","Carolina castillo","Carolina castillo","Carolina castillo","Carolina castillo","Carolina castillo","Carolina castillo","Carolina castillo","Carolina castillo","Carolina castillo","Carolina castillo","Carolina castillo","Carolina castillo","Carolina castillo","Carolina castillo","Carolina castillo","Carolina castillo","Carolina castillo","Carolina castillo","Carolina castillo","Carolina castillo","Carolina castillo","Carolina castillo","Carolina castillo","Carolina castillo","Carolina castillo","Carolina castillo","Carolina castillo","Carolina castillo","Carolina castillo","Carolina castillo","Carolina castillo","Carolina castillo","Carolina castillo","Carolina castillo","Carolina castillo","Carolina castillo","Carolina castillo","Carolina castillo","Carolina castillo","Carolina castillo","Carolina castillo","Carolina castillo","Carolina castillo","Carolina castillo","Carolina castillo","Carolina castillo","Carolina castillo","Carolina castillo","Carolina castillo","Carolina castillo","Carolina castillo","Carolina castillo","Carolina castillo","Carolina castillo","Carolina castillo","Carolina castillo","Carolina castillo","Carolina castillo","Carolina castillo","Carolina castillo","Carolina castillo","Carolina castillo","Carolina castillo","Carolina castillo","Carolina castillo","Carolina castillo","Carolina castillo","Carolina castillo","Carolina castillo","Carolina castillo","Carolina castillo","Carolina castillo","Carolina castillo","Carolina castillo","Carolina castillo","Carolina castillo","Carolina castillo","Carolina castillo","Carolina castillo","Carolina castillo","Carolina castillo","Carolina castillo","Carolina castillo","Carolina castillo","Carolina castillo","Carolina castillo","Carolina castillo","Carolina castillo","Carolina castillo","Carolina castillo","Carolina castillo","Carolina castillo","Carolina castillo","Carolina castillo","Carolina castillo","Carolina castillo","Carolina castillo","Carolina castillo","Carolina castillo","Carolina castillo","Carolina castillo","Carolina castillo","Carolina castillo","Carolina castillo","Carolina castillo","Carolina castillo","Carolina castillo","Carolina castillo","Carolina castillo","Carolina castillo","Carolina castillo","Carolina castillo","Carolina castillo","Carolina castillo","Carolina castillo","Carolina castillo","Carolina castillo","Carolina castillo","Carolina castillo","Carolina castillo","Carolina castillo","Carolina castillo","Carolina castillo","Carolina castillo","Carolina castillo","Carolina castillo","Carolina castillo","Carolina castillo","Carolina castillo","Carolina castillo","Carolina castillo","Carolina castillo","Carolina castillo","Carolina castillo","Carolina castillo","Carolina castillo","Carolina castillo","Carolina castillo","Carolina castillo","Carolina castillo","Carolina castillo","Carolina castillo","Carolina castillo","Carolina castillo","Carolina castillo","Carolina castillo","Carolina castillo","Carolina castillo","Carolina castillo","Carolina castillo","Carolina castillo","Carolina castillo","Carolina castillo","Carolina castillo","Carolina castillo","Carolina castillo","Carolina castillo","Carolina castillo","Carolina castillo","Carolina castillo","Carolina castillo","Carolina castillo","Carolina castillo","Carolina castillo","Carolina castillo","Carolina castillo","Carolina castillo","Carolina castillo","Carolina castillo","Carolina castillo","Carolina castillo","Carolina castillo","Carolina castillo","Carolina castillo","Carolina castillo","Carolina castillo","Carolina castillo","Carolina castillo","Carolina castillo","Carolina castillo","Carolina castillo","Carolina castillo","Carolina castillo","Carolina castillo","Carolina castillo","Carolina castillo","Carolina castillo","Carolina castillo","Carolina castillo","Carolina castillo","Carolina castillo","Carolina castillo","Carolina castillo","Carolina castillo","Carolina castillo","Carolina castillo","Carolina castillo","Carolina castillo","Carolina castillo","Carolina castillo","Carolina castillo","Carolina castillo","Carolina castillo","Carolina castillo","Carolina castillo","Carolina castillo","Carolina castillo","Carolina castillo","Carolina castillo","Carolina castillo","Carolina castillo","Carolina castillo","Carolina castillo","Carolina castillo","Carolina castillo","Carolina castillo","Carolina castillo","Carolina castillo","Carolina castillo","Carolina castillo","Carolina castillo","Carolina castillo","Carolina castillo","Carolina castillo","Carolina castillo","Carolina castillo","Carolina castillo","Carolina castillo","Carolina castillo","Carolina castillo","Carolina castillo","Carolina castillo","Carolina castillo","Carolina castillo","Carolina castillo","Carolina castillo","Carolina castillo","Carolina castillo","Carolina castillo","Carolina castillo","Carolina castillo","Carolina castillo","Carolina castillo","Carolina castillo","Carolina castillo","Carolina castillo","Carolina castillo","Carolina castillo","Carolina castillo","Carolina castillo","Carolina castillo","Carolina castillo","Carolina castillo","Carolina castillo","Carolina castillo","Carolina castillo","Carolina castillo","Carolina castillo","Carolina castillo","Carolina castillo","Carolina castillo","Carolina castillo","Carolina castillo","Carolina castillo","Carolina castillo","Carolina castillo","Carolina castillo","Carolina castillo","Carolina castillo","Carolina castillo","Carolina castillo","Carolina castillo","Carolina castillo","Carolina castillo","Carolina castillo","Carolina castillo","Carolina castillo","Carolina castillo","Carolina castillo","Carolina castillo","Carolina castillo","Carolina castillo","Carolina castillo","Carolina castillo","Carolina castillo","Carolina castillo","Carolina castillo","Carolina castillo","Carolina castillo","Carolina castillo","Carolina castillo","Carolina castillo","Carolina castillo","Carolina castillo","Carolina castillo","Carolina castillo","Carolina castillo","Carolina castillo","Carolina castillo","Carolina castillo","Carolina castillo","Carolina castillo","Carolina castillo","Carolina castillo","Carolina castillo","Carolina castillo","Carolina castillo","Carolina castillo","Carolina castillo","Carolina castillo","Carolina castillo","Carolina castillo","Carolina castillo","Carolina castillo","Carolina castillo","Carolina castillo","Carolina castillo","Carolina castillo","Carolina castillo","Carolina castillo","Carolina castillo","Carolina castillo","Carolina castillo","Carolina castillo","Carolina castillo","Carolina castillo","Carolina castillo","Carolina castillo","Carolina castillo","Carolina castillo","Carolina castillo","Carolina castillo","Carolina castillo","Carolina castillo","Carolina castillo","Carolina castillo","Carolina castillo","Carolina castillo","Carolina castillo","Carolina castillo","Carolina castillo","Carolina castillo","Carolina castillo","Carolina castillo","Carolina castillo","Carolina castillo","Carolina castillo","Carolina castillo","Carolina castillo","Carolina castillo","Carolina castillo","Carolina castillo","Carolina castillo","Carolina castillo","Carolina castillo","Carolina castillo","Carolina castillo","Carolina castillo","Carolina castillo","Carolina castillo","Carolina castillo","Carolina castillo","Carolina castillo","Carolina castillo","Carolina castillo","Carolina castillo","Carolina castillo","Carolina castillo","Carolina castillo","Carolina castillo","Carolina castillo","Carolina castillo","Carolina castillo","Carolina castillo","Carolina castillo","Carolina castillo","Carolina castillo","Carolina castillo","Carolina castillo","Carolina castillo","Carolina castillo","Carolina castillo","Carolina castillo","Carolina castillo","Carolina castillo","Carolina castillo","Carolina castillo","Carolina castillo","Carolina castillo","Carolina castillo","Carolina castillo","Carolina castillo","Carolina castillo","Carolina castillo","Carolina castillo","Carolina castillo","Carolina castillo","Carolina castillo","Carolina castillo","Carolina castillo","Carolina castillo","Carolina castillo","Carolina castillo","Carolina castillo","Carolina castillo","Carolina castillo","Carolina castillo","Carolina castillo","Carolina castillo","Carolina castillo","Carolina castillo","Carolina castillo","Carolina castillo","Carolina castillo","Carolina castillo","Carolina castillo","Carolina castillo","Carolina castillo","Carolina castillo","Carolina castillo","Carolina castillo","Carolina castillo","Carolina castillo","Carolina castillo","Carolina castillo","Carolina castillo","Carolina castillo","Carolina castillo","Carolina castillo","Carolina castillo","Carolina castillo","Carolina castillo","Carolina castillo","Carolina castillo","Carolina castillo","Carolina castillo","Carolina castillo","Carolina castillo","Carolina castillo","Carolina castillo","Carolina castillo","Carolina castillo","Carolina castillo","Carolina castillo","Carolina castillo","Carolina castillo","Carolina castillo","Carolina castillo","Carolina castillo","Carolina castillo","Carolina castillo","Carolina castillo","Carolina castillo","Carolina castillo","Carolina castillo","Carolina castillo","Carolina castillo","Carolina castillo","Carolina castillo","Carolina castillo","Carolina castillo","Carolina castillo","Carolina castillo","Carolina castillo","Carolina castillo","Carolina castillo","Carolina castillo","Carolina castillo","Carolina castillo","Carolina castillo","Carolina castillo","Carolina castillo","Carolina castillo","Carolina castillo","Carolina castillo","Carolina castillo","Carolina castillo","Carolina castillo","Carolina castillo","Carolina castillo","Carolina castillo","Carolina castillo","Carolina castillo","Carolina castillo","Carolina castillo","Carolina castillo","Carolina castillo","Carolina castillo","Carolina castillo","Carolina castillo","Carolina castillo","Carolina castillo","Carolina castillo","Carolina castillo","Carolina castillo","Carolina castillo","Carolina castillo","Carolina castillo","Carolina castillo","Carolina castillo","Carolina castillo","Carolina castillo","Carolina castillo","Carolina castillo","Carolina castillo","Carolina castillo","Carolina castillo","Carolina castillo","Carolina castillo","Carolina castillo","Carolina castillo","Carolina castillo","Carolina castillo","Carolina castillo","Carolina castillo","Carolina castillo","Carolina castillo","Carolina castillo","Carolina castillo","Carolina castillo","Carolina castillo","Carolina castillo","Carolina castillo","Carolina castillo","Carolina castillo","Carolina castillo","Carolina castillo","Carolina castillo","Carolina castillo","Carolina castillo","Carolina castillo","Carolina castillo","Carolina castillo","Carolina castillo","Carolina castillo","Carolina castillo","Carolina castillo","Carolina castillo","Carolina castillo","Carolina castillo","Carolina castillo","Carolina castillo","Carolina castillo","Carolina castillo","Carolina castillo","Carolina castillo","Carolina castillo","Carolina castillo","Carolina castillo","Carolina castillo","Carolina castillo","Carolina castillo","Carolina castillo","Carolina castillo","Carolina castillo","Carolina castillo","Carolina castillo","Carolina castillo","Carolina castillo","Carolina castillo","Carolina castillo","Carolina castillo","Carolina castillo","Carolina castillo","Carolina castillo","Carolina castillo","Carolina castillo","Carolina castillo","Carolina castillo","Carolina castillo","Carolina castillo","Carolina castillo","Carolina castillo","Carolina castillo","Carolina castillo","Carolina castillo","Carolina castillo","Carolina castillo","Carolina castillo","Carolina castillo","Carolina castillo","Carolina castillo","Carolina castillo","Carolina castillo","Carolina castillo","Carolina castillo","Carolina castillo","Carolina castillo","Carolina castillo","Carolina castillo","Carolina castillo","Carolina castillo","Carolina castillo","Carolina castillo","Carolina castillo","Carolina castillo","Carolina castillo","Carolina castillo","Carolina castillo","Carolina castillo","Carolina castillo","Carolina castillo","Carolina castillo","Carolina castillo","Carolina castillo","Carolina castillo","Carolina castillo","Carolina castillo","Carolina castillo","Carolina castillo","Carolina castillo","Carolina castillo","Carolina castillo","Carolina castillo","Carolina castillo","Carolina castillo","Carolina castillo","Carolina castillo","Carolina castillo","Carolina castillo","Carolina castillo","Carolina castillo","Carolina castillo","Carolina castillo","Carolina castillo","Carolina castillo","Carolina castillo","Carolina castillo","Carolina castillo","Carolina castillo","Carolina castillo","Carolina castillo","Carolina castillo","Carolina castillo","Carolina castillo","Carolina castillo","Carolina castillo","Carolina castillo","Carolina castillo","Carolina castillo","Carolina castillo","Carolina castillo","Carolina castillo","Carolina castillo","Carolina castillo","Carolina castillo","Carolina castillo","Carolina castillo","Carolina castillo","Carolina castillo","Carolina castillo","Carolina castillo","Carolina castillo","Carolina castillo","Carolina castillo","Carolina castillo","Carolina castillo","Carolina castillo","Carolina castillo","Carolina castillo","Carolina castillo","Carolina castillo","Carolina castillo","Carolina castillo","Carolina castillo","Carolina castillo","Carolina castillo","Carolina castillo","Carolina castillo","Carolina castillo","Carolina castillo","Carolina castillo","Carolina castillo","Carolina castillo","Carolina castillo","Carolina castillo","Carolina castillo","Carolina castillo","Carolina castillo","Carolina castillo","Carolina castillo","Carolina castillo","Carolina castillo","Carolina castillo","Carolina castillo","Carolina castillo","Carolina castillo","Carolina castillo","Carolina castillo","Carolina castillo","Carolina castillo","Carolina castillo","Carolina castillo","Carolina castillo","Carolina castillo","Carolina castillo","Carolina castillo","Carolina castillo","Carolina castillo","Carolina castillo","Carolina castillo","Carolina castillo","Carolina castillo","Carolina castillo","Carolina castillo","Carolina castillo","Carolina castillo","Carolina castillo","Carolina castillo","Carolina castillo","Carolina castillo","Carolina castillo","Carolina castillo","Carolina castillo","Carolina castillo","Carolina castillo","Carolina castillo","Carolina castillo","Carolina castillo","Carolina castillo","Carolina castillo","Carolina castillo","Carolina castillo","Carolina castillo","Carolina castillo","Carolina castillo","Carolina castillo","Carolina castillo","Carolina castillo","Carolina castillo","Carolina castillo","Carolina castillo","Carolina castillo","Carolina castillo","Carolina castillo","Carolina castillo","Carolina castillo","Carolina castillo","Carolina castillo","Carolina castillo","Carolina castillo","Carolina castillo","Carolina castillo","Carolina castillo","Carolina castillo","Carolina castillo","Carolina castillo","Carolina castillo","Carolina castillo","Carolina castillo","Carolina castillo","Carolina castillo","Carolina castillo","Carolina castillo","Carolina castillo","Carolina castillo","Carolina castillo","Carolina castillo","Carolina castillo","Carolina castillo","Carolina castillo","Carolina castillo","Carolina castillo","Carolina castillo","Carolina castillo","Carolina castillo","Carolina castillo","Carolina castillo","Carolina castillo","Carolina castillo","Carolina castillo","Carolina castillo","Carolina castillo","Carolina castillo","Carolina castillo","Carolina castillo","Carolina castillo","Carolina castillo","Carolina castillo","Carolina castillo","Carolina castillo","Carolina castillo","Carolina castillo","Carolina castillo","Carolina castillo","Carolina castillo","Carolina castillo","Carolina castillo","Carolina castillo","Carolina castillo","Carolina castillo","Carolina castillo","Carolina castillo","Carolina castillo","Carolina castillo","Carolina castillo","Carolina castillo","Carolina castillo","Carolina castillo","Carolina castillo","Carolina castillo","Carolina castillo","Carolina castillo","Carolina castillo","Carolina castillo","Carolina castillo","Carolina castillo","Carolina castillo","Carolina castillo","Carolina castillo","Carolina castillo","Carolina castillo","Carolina castillo","Carolina castillo","Carolina castillo","Carolina castillo","Carolina castillo","Carolina castillo","Carolina castillo","Carolina castillo","Carolina castillo","Carolina castillo","Carolina castillo","Carolina castillo","Carolina castillo","Carolina castillo","Carolina castillo","Carolina castillo","Carolina castillo","Carolina castillo","Carolina castillo","Carolina castillo","Carolina castillo","Carolina castillo","Carolina castillo","Carolina castillo","Carolina castillo","Carolina castillo","Carolina castillo","Carolina castillo","Carolina castillo","Carolina castillo","Carolina castillo","Carolina castillo","Carolina castillo","Carolina castillo","Carolina castillo","Carolina castillo","Carolina castillo","Carolina castillo","Carolina castillo","Carolina castillo","Carolina castillo","Carolina castillo","Carolina castillo","Carolina castillo","Carolina castillo","Carolina castillo","Carolina castillo","Carolina castillo","Carolina castillo","Carolina castillo","Carolina castillo","Carolina castillo","Carolina castillo","Carolina castillo","Carolina castillo","Carolina castillo","Carolina castillo","Carolina castillo","Carolina castillo","Carolina castillo","Carolina castillo","Carolina castillo","Carolina castillo","Carolina castillo","Carolina castillo","Carolina castillo","Carolina castillo","Carolina castillo","Carolina castillo","Carolina castillo","Carolina castillo","Carolina castillo","Carolina castillo","Carolina castillo","Carolina castillo","Carolina castillo","Carolina castillo","Carolina castillo","Carolina castillo","Carolina castillo","Carolina castillo","Carolina castillo","Carolina castillo","Carolina castillo","Carolina castillo","Carolina castillo","Carolina castillo","Carolina castillo","Carolina castillo","Carolina castillo","Carolina castillo","Carolina castillo","Carolina castillo","Carolina castillo","Carolina castillo","Carolina castillo","Carolina castillo","Carolina castillo","Carolina castillo","Carolina castillo","Carolina castillo","Carolina castillo","Carolina castillo","Carolina castillo","Carolina castillo","Carolina castillo","Carolina castillo","Carolina castillo","Carolina castillo","Carolina castillo","Carolina castillo","Carolina castillo","Carolina castillo","Carolina castillo","Carolina castillo","Carolina castillo","Carolina castillo","Carolina castillo","Carolina castillo","Carolina castillo","Carolina castillo","Carolina castillo","Carolina castillo","Carolina castillo","Carolina castillo","Carolina castillo","Carolina castillo","Carolina castillo","Carolina castillo","Carolina castillo","Carolina castillo","Carolina castillo","Carolina castillo","Carolina castillo","Carolina castillo","Carolina castillo","Carolina castillo","Carolina castillo","Carolina castillo","Carolina castillo","Carolina castillo","Carolina castillo","Carolina castillo","Carolina castillo","Carolina castillo","Carolina castillo","Carolina castillo","Carolina castillo","Carolina castillo","Carolina castillo","Carolina castillo","Carolina castillo","Carolina castillo","Carolina castillo","Carolina castillo","Carolina castillo","Carolina castillo","Carolina castillo","Carolina castillo","Carolina castillo","Carolina castillo","Carolina castillo","Carolina castillo","Carolina castillo","Carolina castillo","Carolina castillo","Carolina castillo","Carolina castillo","Carolina castillo","Carolina castillo","Carolina castillo","Carolina castillo","Carolina castillo","Carolina castillo","Carolina castillo","Carolina castillo","Carolina castillo","Carolina castillo","Carolina castillo","Carolina castillo","Carolina castillo","Carolina castillo","Carolina castillo","Carolina castillo","Carolina castillo","Carolina castillo","Carolina castillo","Carolina castillo","Carolina castillo","Carolina castillo","Carolina castillo","Carolina castillo","Carolina castillo","Carolina castillo","Carolina castillo","Carolina castillo","Carolina castillo","Carolina castillo","Carolina castillo","Carolina castillo","Carolina castillo","Carolina castillo","Carolina castillo","Carolina castillo","Carolina castillo","Carolina castillo","Carolina castillo","Carolina castillo","Carolina castillo","Carolina castillo","Carolina castillo","Carolina castillo","Carolina castillo","Carolina castillo","Carolina castillo","Carolina castillo","Carolina castillo","Carolina castillo","Carolina castillo","Carolina castillo","Carolina castillo","Carolina castillo","Carolina castillo","Carolina castillo","Carolina castillo","Carolina castillo","Carolina castillo","Carolina castillo","Carolina castillo","Carolina castillo","Carolina castillo","Carolina castillo","Carolina castillo","Carolina castillo","Carolina castillo","Carolina castillo","Carolina castillo","Carolina castillo","Carolina castillo","Carolina castillo","Carolina castillo","Carolina castillo","Carolina castillo","Carolina castillo","Carolina castillo","Carolina castillo","Carolina castillo","Carolina castillo","Carolina castillo","Carolina castillo","Carolina castillo","Carolina castillo","Carolina castillo","Carolina castillo","Carolina castillo","Carolina castillo","Carolina castillo","Carolina castillo","Carolina castillo","Carolina castillo","Carolina castillo","Carolina castillo","Carolina castillo","Carolina castillo","Carolina castillo","Carolina castillo","Carolina castillo","Carolina castillo","Carolina castillo","Carolina castillo","Carolina castillo","Carolina castillo","Carolina castillo","Carolina castillo","Carolina castillo","Carolina castillo","Carolina castillo","Carolina castillo","Carolina castillo","Carolina castillo","Carolina castillo","Carolina castillo","Carolina castillo","Carolina castillo","Carolina castillo","Carolina castillo","Carolina castillo","Carolina castillo","Carolina castillo","Carolina castillo","Carolina castillo","Carolina castillo","Carolina castillo","Carolina castillo","Carolina castillo","Carolina castillo","Carolina castillo","Carolina castillo","Carolina castillo","Carolina castillo","Carolina castillo","Carolina castillo","Carolina castillo","Carolina castillo","Carolina castillo","Carolina castillo","Carolina castillo","Carolina castillo","Carolina castillo","Carolina castillo","Carolina castillo","Carolina castillo","Carolina castillo","Carolina castillo","Carolina castillo","Carolina castillo","Carolina castillo","Carolina castillo","Carolina castillo","Carolina castillo","Carolina castillo","Carolina castillo","Carolina castillo","Carolina castillo","Carolina castillo","Carolina castillo","Carolina castillo","Carolina castillo","Carolina castillo","Carolina castillo","Carolina castillo","Carolina castillo","Carolina castillo","Carolina castillo","Carolina castillo","Carolina castillo","Carolina castillo","Carolina castillo","Carolina castillo","Carolina castillo","Carolina castillo","Carolina castillo","Carolina castillo","Carolina castillo","Carolina castillo","Carolina castillo","Carolina castillo","Carolina castillo","Carolina castillo","Carolina castillo","Carolina castillo","Carolina castillo","Carolina castillo","Carolina castillo","Carolina castillo","Carolina castillo","Carolina castillo","Carolina castillo","Carolina castillo","Carolina castillo","Carolina castillo","Carolina castillo","Carolina castillo","Carolina castillo","Carolina castillo","Carolina castillo","Carolina castillo","Carolina castillo","Carolina castillo","Carolina castillo","Carolina castillo","Carolina castillo","Carolina castillo","Carolina castillo","Carolina castillo","Carolina castillo","Carolina castillo","Carolina castillo","Carolina castillo","Carolina castillo","Carolina castillo","Carolina castillo","Carolina castillo","Carolina castillo","Carolina castillo","Carolina castillo","Carolina castillo","Carolina castillo","Carolina castillo","Carolina castillo","Carolina castillo","Carolina castillo","Carolina castillo","Carolina castillo","Carolina castillo","Carolina castillo","Carolina castillo","Carolina castillo","Carolina castillo","Carolina castillo","Carolina castillo","Carolina castillo","Carolina castillo","Carolina castillo","Carolina castillo","Carolina castillo","Carolina castillo","Carolina castillo","Carolina castillo","Carolina castillo","Carolina castillo","Carolina castillo","Carolina castillo","Carolina castillo","Carolina castillo","Carolina castillo","Carolina castillo","Carolina castillo","Carolina castillo","Carolina castillo","Carolina castillo","Carolina castillo","Carolina castillo","Carolina castillo","Carolina castillo","Carolina castillo","Carolina castillo","Carolina castillo","Carolina castillo","Carolina castillo","Carolina castillo","Carolina castillo","Carolina castillo","Carolina castillo","Carolina castillo","Carolina castillo","Carolina castillo","Carolina castillo","Carolina castillo","Carolina castillo","Carolina castillo","Carolina castillo","Carolina castillo","Carolina castillo","Carolina castillo","Carolina castillo","Carolina castillo","Carolina castillo","Carolina castillo","Carolina castillo","Carolina castillo","Carolina castillo","Carolina castillo","Carolina castillo","Carolina castillo","Carolina castillo","Carolina castillo","Carolina castillo","Carolina castillo","Carolina castillo","Carolina castillo","Carolina castillo","Carolina castillo","Carolina castillo","Carolina castillo","Carolina castillo","Carolina castillo","Carolina castillo","Carolina castillo","Carolina castillo","Carolina castillo","Carolina castillo","Carolina castillo","Carolina castillo","Carolina castillo","Carolina castillo","Carolina castillo","Carolina castillo","Carolina castillo","Carolina castillo","Carolina castillo","Carolina castillo","Carolina castillo","Carolina castillo","Carolina castillo","Carolina castillo","Carolina castillo","Carolina castillo","Carolina castillo","Carolina castillo","Carolina castillo","Carolina castillo","Carolina castillo","Carolina castillo","Carolina castillo","Carolina castillo","Carolina castillo","Carolina castillo","Carolina castillo","Carolina castillo","Carolina castillo","Carolina castillo","Carolina castillo","Carolina castillo","Carolina castillo","Carolina castillo","Carolina castillo","Carolina castillo","Carolina castillo","Carolina castillo","Carolina castillo","Carolina castillo","Carolina castillo","Carolina castillo","Carolina castillo","Carolina castillo","Carolina castillo","Carolina castillo","Carolina castillo","Carolina castillo","Carolina castillo","Carolina castillo","Carolina castillo","Carolina castillo","Carolina castillo","Carolina castillo","Carolina castillo","Carolina castillo","Carolina castillo","Carolina castillo","Carolina castillo","Carolina castillo","Carolina castillo","Carolina castillo","Carolina castillo","Carolina castillo","Carolina castillo","Carolina castillo","Carolina castillo","Carolina castillo","Carolina castillo","Carolina castillo","Carolina castillo","Carolina castillo","Carolina castillo","Carolina castillo","Carolina castillo","Carolina castillo","Carolina castillo","Carolina castillo","Carolina castillo","Carolina castillo","Carolina castillo","Carolina castillo","Carolina castillo","Carolina castillo","Carolina castillo","Carolina castillo","Carolina castillo","Carolina castillo","Carolina castillo","Carolina castillo","Carolina castillo","Carolina castillo","Carolina castillo","Carolina castillo","Carolina castillo","Carolina castillo","Carolina castillo","Carolina castillo","Carolina castillo","Carolina castillo","Carolina castillo","Carolina castillo","Carolina castillo","Carolina castillo","Carolina castillo","Carolina castillo","Carolina castillo","Carolina castillo","Carolina castillo","Carolina castillo","Carolina castillo","Carolina castillo","Carolina castillo","Carolina castillo","Carolina castillo","Carolina castillo","Carolina castillo","Carolina castillo","Carolina castillo","Carolina castillo","Carolina castillo","Carolina castillo","Carolina castillo","Carolina castillo","Carolina castillo","Carolina castillo","Carolina castillo","Carolina castillo","Carolina castillo","Carolina castillo","Carolina castillo","Carolina castillo","Carolina castillo","Carolina castillo","Carolina castillo","Carolina castillo","Carolina castillo","Carolina castillo","Carolina castillo","Carolina castillo","Carolina castillo","Carolina castillo","Carolina castillo","Carolina castillo","Carolina castillo","Carolina castillo","Carolina castillo","Carolina castillo","Carolina castillo","Carolina castillo","Carolina castillo","Carolina castillo","Carolina castillo","Carolina castillo","Carolina castillo","Carolina castillo","Carolina castillo","Carolina castillo","Carolina castillo","Carolina castillo","Carolina castillo","Carolina castillo","Carolina castillo","Carolina castillo","Carolina castillo","Carolina castillo","Carolina castillo","Carolina castillo","Carolina castillo","Carolina castillo","Carolina castillo","Carolina castillo","Carolina castillo","Carolina castillo","Carolina castillo","Carolina castillo","Carolina castillo","Carolina castillo","Carolina castillo","Carolina castillo","Carolina castillo","Carolina castillo","Carolina castillo","Carolina castillo","Carolina castillo","Carolina castillo","Carolina castillo","Carolina castillo","Carolina castillo","Carolina castillo","Carolina castillo","Carolina castillo","Carolina castillo","Carolina castillo","Carolina castillo","Carolina castillo","Carolina castillo","Carolina castillo","Carolina castillo","Carolina castillo","Carolina castillo","Carolina castillo","Carolina castillo","Carolina castillo","Carolina castillo","Carolina castillo","Carolina castillo","Carolina castillo","Carolina castillo","Carolina castillo","Carolina castillo","Carolina castillo","Carolina castillo","Carolina castillo","Carolina castillo","Carolina castillo","Carolina castillo","Carolina castillo","Carolina castillo","Carolina castillo","Carolina castillo","Carolina castillo","Carolina castillo","Carolina castillo","Carolina castillo","Carolina castillo","Carolina castillo","Carolina castillo","Carolina castillo","Carolina castillo","Carolina castillo","Carolina castillo","Carolina castillo","Carolina castillo","Carolina castillo","Carolina castillo","Carolina castillo","Carolina castillo","Carolina castillo","Carolina castillo","Carolina castillo","Carolina castillo","Carolina castillo","Carolina castillo","Carolina castillo","Carolina castillo","Carolina castillo","Carolina castillo","Carolina castillo","Carolina castillo","Carolina castillo","Carolina castillo","Carolina castillo","Carolina castillo","Carolina castillo","Carolina castillo","Carolina castillo","Carolina castillo","Carolina castillo","Carolina castillo","Carolina castillo","Carolina castillo","Carolina castillo","Carolina castillo","Carolina castillo","Carolina castillo","Carolina castillo","Carolina castillo","Carolina castillo","Carolina castillo","Carolina castillo","Carolina castillo","Carolina castillo","Carolina castillo","Carolina castillo","Carolina castillo","Carolina castillo","Carolina castillo","Carolina castillo","Carolina castillo","Carolina castillo","Carolina castillo","Carolina castillo","Carolina castillo","Carolina castillo","Carolina castillo","Carolina castillo","Carolina castillo","Carolina castillo","Carolina castillo","Carolina castillo","Carolina castillo","Carolina castillo","Carolina castillo","Carolina castillo","Carolina castillo","Carolina castillo","Carolina castillo","Carolina castillo","Carolina castillo","Carolina castillo","Carolina castillo","Carolina castillo","Carolina castillo","Carolina castillo","Carolina castillo","Carolina castillo","Carolina castillo","Carolina castillo","Carolina castillo","Carolina castillo","Carolina castillo","Carolina castillo","Carolina castillo","Carolina castillo","Carolina castillo","Carolina castillo","Carolina castillo","Carolina castillo","Carolina castillo","Carolina castillo","Carolina castillo","Carolina castillo","Carolina castillo","Carolina castillo","Carolina castillo","Carolina castillo","Carolina castillo","Carolina castillo","Carolina castillo","Carolina castillo","Carolina castillo","Carolina castillo","Carolina castillo","Carolina castillo","Carolina castillo","Carolina castillo","Carolina castillo","Carolina castillo","Carolina castillo","Carolina castillo","Carolina castillo","Carolina castillo","Carolina castillo","Carolina castillo","Carolina castillo","Carolina castillo","Carolina castillo","Carolina castillo","Carolina castillo","Carolina castillo","Carolina castillo","Carolina castillo","Carolina castillo","Carolina castillo","Carolina castillo","Carolina castillo","Carolina castillo","Carolina castillo","Carolina castillo","Carolina castillo","Carolina castillo","Carolina castillo","Carolina castillo","Carolina castillo","Carolina castillo","Carolina castillo","Carolina castillo","Carolina castillo","Carolina castillo","Carolina castillo","Carolina castillo","Carolina castillo","Carolina castillo","Carolina castillo","Carolina castillo","Carolina castillo","Carolina castillo","Carolina castillo","Carolina castillo","Carolina castillo","Carolina castillo","Carolina castillo","Carolina castillo","Carolina castillo","Carolina castillo","Carolina castillo","Carolina castillo","Carolina castillo","Carolina castillo","Carolina castillo","Carolina castillo","Carolina castillo","Carolina castillo","Carolina castillo","Carolina castillo","Carolina castillo","Carolina castillo","Carolina castillo","Carolina castillo","Carolina castillo","Carolina castillo","Carolina castillo","Carolina castillo","Carolina castillo","Carolina castillo","Carolina castillo","Carolina castillo","Carolina castillo","Carolina castillo","Carolina castillo","Carolina castillo","Carolina castillo","Carolina castillo","Carolina castillo","Carolina castillo","Carolina castillo","Carolina castillo","Carolina castillo","Carolina castillo","Carolina castillo","Carolina castillo","Carolina castillo","Carolina castillo","Carolina castillo","Carolina castillo","Carolina castillo","Carolina castillo","Carolina castillo","Carolina castillo","Carolina castillo","Carolina castillo","Carolina castillo","Carolina castillo","Carolina castillo","Carolina castillo","Carolina castillo","Carolina castillo","Carolina castillo","Carolina castillo","Carolina castillo","Carolina castillo","Carolina castillo","Carolina castillo","Carolina castillo","Carolina castillo","Carolina castillo","Carolina castillo","Carolina castillo","Carolina castillo","Carolina castillo","Carolina castillo","Carolina castillo","Carolina castillo","Carolina castillo","Carolina castillo","Carolina castillo","Carolina castillo","Carolina castillo","Carolina castillo","Carolina castillo","Carolina castillo","Carolina castillo","Carolina castillo","Carolina castillo","Carolina castillo","Carolina castillo","Carolina castillo","Carolina castillo","Carolina castillo","Carolina castillo","Carolina castillo","Carolina castillo","Carolina castillo","Carolina castillo","Carolina castillo","Carolina castillo","Carolina castillo","Carolina castillo","Carolina castillo","Carolina castillo","Carolina castillo","Carolina castillo","Carolina castillo","Carolina castillo","Carolina castillo","Carolina castillo","Carolina castillo","Carolina castillo","Carolina castillo","Carolina castillo","Carolina castillo","Carolina castillo","Carolina castillo","Carolina castillo","Carolina castillo","Carolina castillo","Carolina castillo","Carolina castillo","Carolina castillo","Carolina castillo","Carolina castillo","Carolina castillo","Carolina castillo","Carolina castillo","Carolina castillo","Carolina castillo","Carolina castillo","Carolina castillo","Carolina castillo","Carolina castillo","Carolina castillo","Carolina castillo","Carolina castillo","Carolina castillo","Carolina castillo","Carolina castillo","Carolina castillo","Carolina castillo","Carolina castillo","Carolina castillo","Carolina castillo","Carolina castillo","Carolina castillo","Carolina castillo","Carolina castillo","Carolina castillo","Carolina castillo","Carolina castillo","Carolina castillo","Carolina castillo","Carolina castillo","Carolina castillo","Carolina castillo","Carolina castillo","Carolina castillo","Carolina castillo","Carolina castillo","Carolina castillo","Carolina castillo","Carolina castillo","Carolina castillo","Carolina castillo","Carolina castillo","Carolina castillo","Carolina castillo","Carolina castillo","Carolina castillo","Carolina castillo","Carolina castillo","Carolina castillo","Carolina castillo","Carolina castillo","Carolina castillo","Carolina castillo","Carolina castillo","Carolina castillo","Carolina castillo","Carolina castillo","Carolina castillo","Carolina castillo","Carolina castillo","Carolina castillo","Carolina castillo","Carolina castillo","Carolina castillo","Carolina castillo","Carolina castillo","Carolina castillo","Carolina castillo","Carolina castillo","Carolina castillo","Carolina castillo","Carolina castillo","Carolina castillo","Carolina castillo","Carolina castillo","Carolina castillo","Carolina castillo","Carolina castillo","Carolina castillo","Carolina castillo","Carolina castillo","Carolina castillo","Carolina castillo","Carolina castillo","Carolina castillo","Carolina castillo","Carolina castillo","Carolina castillo","Carolina castillo","Carolina castillo","Carolina castillo","Carolina castillo","Carolina castillo","Carolina castillo","Carolina castillo","Carolina castillo","Carolina castillo","Carolina castillo","Carolina castillo","Carolina castillo","Carolina castillo","Carolina castillo","Carolina castillo","Carolina castillo","Carolina castillo","Carolina castillo","Carolina castillo","Carolina castillo","Carolina castillo","Carolina castillo","Carolina castillo","Carolina castillo","Carolina castillo","Carolina castillo","Carolina castillo","Carolina castillo","Carolina castillo","Carolina castillo","Carolina castillo","Carolina castillo","Carolina castillo","Carolina castillo","Carolina castillo","Carolina castillo","Carolina castillo","Carolina castillo","Carolina castillo","Carolina castillo","Carolina castillo","Carolina castillo","Carolina castillo","Carolina castillo","Carolina castillo","Carolina castillo","Carolina castillo","Carolina castillo","Carolina castillo","Carolina castillo","Carolina castillo","Carolina castillo","Carolina castillo","Carolina castillo","Carolina castillo","Carolina castillo","Carolina castillo","Carolina castillo","Carolina castillo","Carolina castillo","Carolina castillo","Carolina castillo","Carolina castillo","Carolina castillo","Carolina castillo","Carolina castillo","Carolina castillo","Carolina castillo","Carolina castillo","Carolina castillo","Carolina castillo","Carolina castillo","Carolina castillo","Carolina castillo","Carolina castillo","Carolina castillo","Carolina castillo","Carolina castillo","Carolina castillo","Carolina castillo","Carolina castillo","Carolina castillo","Carolina castillo","Carolina castillo","Carolina castillo","Carolina castillo","Carolina castillo","Carolina castillo","Carolina castillo","Carolina castillo","Carolina castillo","Carolina castillo","Carolina castillo","Carolina castillo","Carolina castillo","Carolina castillo","Carolina castillo","Carolina castillo","Carolina castillo","Carolina castillo","Carolina castillo","Carolina castillo","Carolina castillo","Carolina castillo","Carolina castillo","Carolina castillo","Carolina castillo","Carolina castillo","Carolina castillo","Carolina castillo","Carolina castillo","Carolina castillo","Carolina castillo","Carolina castillo","Carolina castillo","Carolina castillo","Carolina castillo","Carolina castillo","Carolina castillo","Carolina castillo","Carolina castillo","Carolina castillo","Carolina castillo","Carolina castillo","Carolina castillo","Carolina castillo","Carolina castillo","Carolina castillo","Carolina castillo","Carolina castillo","Carolina castillo","Carolina castillo","Carolina castillo","Carolina castillo","Carolina castillo","Carolina castillo","Carolina castillo","Carolina castillo","Carolina castillo","Carolina castillo","Carolina castillo","Carolina castillo","Carolina castillo","Carolina castillo","Carolina castillo","Carolina castillo","Carolina castillo","Carolina castillo","Carolina castillo","Carolina castillo","Carolina castillo","Carolina castillo","Carolina castillo","Carolina castillo","Carolina castillo","Carolina castillo","Carolina castillo","Carolina castillo","Carolina castillo","Carolina castillo","Carolina castillo","Carolina castillo","Carolina castillo","Carolina castillo","Carolina castillo","Carolina castillo","Carolina castillo","Carolina castillo","Carolina castillo","Carolina castillo","Carolina castillo","Carolina castillo","Carolina castillo","Carolina castillo","Carolina castillo","Carolina castillo","Carolina castillo","Carolina castillo","Carolina castillo","Carolina castillo","Carolina castillo","Carolina castillo","Carolina castillo","Carolina castillo","Carolina castillo","Carolina castillo","Carolina castillo","Carolina castillo","Carolina castillo","Carolina castillo","Carolina castillo","Carolina castillo","Carolina castillo","Carolina castillo","Carolina castillo","Carolina castillo","Carolina castillo","Carolina castillo","Carolina castillo","Carolina castillo","Carolina castillo","Carolina castillo","Carolina castillo","Carolina castillo","Carolina castillo","Carolina castillo","Carolina castillo","Carolina castillo","Carolina castillo","Carolina castillo","Carolina castillo","Carolina castillo","Carolina castillo","Carolina castillo","Carolina castillo","Carolina castillo","Carolina castillo","Carolina castillo","Carolina castillo","Carolina castillo","Carolina castillo","Carolina castillo","Carolina castillo","Carolina castillo","Carolina castillo","Carolina castillo","Carolina castillo","Carolina castillo","Carolina castillo","Carolina castillo","Carolina castillo","Carolina castillo","Carolina castillo","Carolina castillo","Carolina castillo","Carolina castillo","Carolina castillo","Carolina castillo","Carolina castillo","Carolina castillo","Carolina castillo","Carolina castillo","Carolina castillo","Carolina castillo","Carolina castillo","Carolina castillo","Carolina castillo","Carolina castillo","Carolina castillo","Carolina castillo","Carolina castillo","Carolina castillo","Carolina castillo","Carolina castillo","Carolina castillo","Carolina castillo","Carolina castillo","Carolina castillo","Carolina castillo","Carolina castillo","Carolina castillo","Carolina castillo","Carolina castillo","Carolina castillo","Carolina castillo","Carolina castillo","Carolina castillo","Carolina castillo","Carolina castillo","Carolina castillo","Carolina castillo","Carolina castillo","Carolina castillo","Carolina castillo","Carolina castillo","Carolina castillo","Carolina castillo","Carolina castillo","Carolina castillo","Carolina castillo","Carolina castillo","Carolina castillo","Carolina castillo","Carolina castillo","Carolina castillo","Carolina castillo","Carolina castillo","Carolina castillo","Carolina castillo","Carolina castillo","Carolina castillo","Carolina castillo","Carolina castillo","Carolina castillo","Carolina castillo","Carolina castillo","Carolina castillo","Carolina castillo","Carolina castillo","Carolina castillo","Carolina castillo","Carolina castillo","Carolina castillo","Carolina castillo","Carolina castillo","Carolina castillo","Carolina castillo","Carolina castillo","Carolina castillo","Carolina castillo","Carolina castillo","Carolina castillo","Carolina castillo","Carolina castillo","Carolina castillo","Carolina castillo","Carolina castillo","Carolina castillo","Carolina castillo","Carolina castillo","Carolina castillo","Carolina castillo","Carolina castillo","Carolina castillo","Carolina castillo","Carolina castillo","Carolina castillo","Carolina castillo","Carolina castillo","Carolina castillo","Carolina castillo","Carolina castillo","Carolina castillo","Carolina castillo","Carolina castillo","Carolina castillo","Carolina castillo","Carolina castillo","Carolina castillo","Carolina castillo","Carolina castillo","Carolina castillo","Carolina castillo","Carolina castillo","Carolina castillo","Carolina castillo","Carolina castillo","Carolina castillo","Carolina castillo","Carolina castillo","Carolina castillo","Carolina castillo","Carolina castillo","Carolina castillo","Carolina castillo","Carolina castillo","Carolina castillo","Carolina castillo","Carolina castillo","Carolina castillo","Carolina castillo","Carolina castillo","Carolina castillo","Carolina castillo","Carolina castillo","Carolina castillo","Carolina castillo","Carolina castillo","Carolina castillo","Carolina castillo","Carolina castillo","Carolina castillo","Carolina castillo","Carolina castillo","Carolina castillo","Carolina castillo","Carolina castillo","Carolina castillo","Carolina castillo","Carolina castillo","Carolina castillo","Carolina castillo","Carolina castillo","Carolina castillo","Carolina castillo","Carolina castillo","Carolina castillo","Carolina castillo","Carolina castillo","Carolina castillo","Carolina castillo","Carolina castillo","Carolina castillo","Carolina castillo","Carolina castillo","Carolina castillo","Carolina castillo","Carolina castillo","Carolina castillo","Carolina castillo","Carolina castillo","Carolina castillo","Carolina castillo","Carolina castillo","Carolina castillo","Carolina castillo","Carolina castillo","Carolina castillo","Carolina castillo","Carolina castillo","Carolina castillo","Carolina castillo","Carolina castillo","Carolina castillo","Carolina castillo","Carolina castillo","Carolina castillo","Carolina castillo","Carolina castillo","Carolina castillo","Carolina castillo","Carolina castillo","Carolina castillo","Carolina castillo","Carolina castillo","Carolina castillo","Carolina castillo","Carolina castillo","Carolina castillo","Carolina castillo","Carolina castillo","Carolina castillo","Carolina castillo","Carolina castillo","Carolina castillo","Carolina castillo","Carolina castillo","Carolina castillo","Carolina castillo","Carolina castillo","Carolina castillo","Carolina castillo","Carolina castillo","Carolina castillo","Carolina castillo","Carolina castillo","Carolina castillo","Carolina castillo","Carolina castillo","Carolina castillo","Carolina castillo","Carolina castillo","Carolina castillo","Carolina castillo","Carolina castillo","Carolina castillo","Carolina castillo","Carolina castillo","Carolina castillo","Carolina castillo","Carolina castillo","Carolina castillo","Carolina castillo","Carolina castillo","Carolina castillo","Carolina castillo","Carolina castillo","Carolina castillo","Carolina castillo","Carolina castillo","Carolina castillo","Carolina castillo","Carolina castillo","Carolina castillo","Carolina castillo","Carolina castillo","Carolina castillo","Carolina castillo","Carolina castillo","Carolina castillo","Carolina castillo","Carolina castillo","Carolina castillo","Carolina castillo","Carolina castillo","Carolina castillo","Carolina castillo","Carolina castillo","Carolina castillo","Carolina castillo","Carolina castillo","Carolina castillo","Carolina castillo","Carolina castillo","Carolina castillo","Carolina castillo","Carolina castillo","Carolina castillo","Carolina castillo","Carolina castillo","Carolina castillo","Carolina castillo","Carolina castillo","Carolina castillo","Carolina castillo","Carolina castillo","Carolina castillo","Carolina castillo","Carolina castillo","Carolina castillo","Carolina castillo","Carolina castillo","Carolina castillo","Carolina castillo","Carolina castillo","Carolina castillo","Carolina castillo","Carolina castillo","Carolina castillo","Carolina castillo","Carolina castillo","Carolina castillo","Carolina castillo","Carolina castillo","Carolina castillo","Carolina castillo","Carolina castillo","Carolina castillo","Carolina castillo","Carolina castillo","Carolina castillo","Carolina castillo","Carolina castillo","Carolina castillo","Carolina castillo","Carolina castillo","Carolina castillo","Carolina castillo","Carolina castillo","Carolina castillo","Carolina castillo","Carolina castillo","Carolina castillo","Carolina castillo","Carolina castillo","Carolina castillo","Carolina castillo","Carolina castillo","Carolina castillo","Carolina castillo","Carolina castillo","Carolina castillo","Carolina castillo","Carolina castillo","Carolina castillo","Carolina castillo","Carolina castillo","Carolina castillo","Carolina castillo","Carolina castillo","Carolina castillo","Carolina castillo","Carolina castillo","Carolina castillo","Carolina castillo","Carolina castillo","Carolina castillo","Carolina castillo","Carolina castillo","Carolina castillo","Carolina castillo","Carolina castillo","Carolina castillo","Carolina castillo","Carolina castillo","Carolina castillo","Carolina castillo","Carolina castillo","Carolina castillo","Carolina castillo","Carolina castillo","Carolina castillo","Carolina castillo","Carolina castillo","Carolina castillo","Carolina castillo","Carolina castillo","Carolina castillo","Carolina castillo","Carolina castillo","Carolina castillo","Carolina castillo","Carolina castillo","Carolina castillo","Carolina castillo","Carolina castillo","Carolina castillo","Carolina castillo","Carolina castillo","Carolina castillo","Carolina castillo","Carolina castillo","Carolina castillo","Carolina castillo","Carolina castillo","Carolina castillo","Carolina castillo","Carolina castillo","Carolina castillo","Carolina castillo","Carolina castillo","Carolina castillo","Carolina castillo","Carolina castillo","Carolina castillo","Carolina castillo","Carolina castillo","Carolina castillo","Carolina castillo","Carolina castillo","Carolina castillo","Carolina castillo","Carolina castillo","Carolina castillo","Carolina castillo","Carolina castillo","Carolina castillo","Carolina castillo","Carolina castillo","Carolina castillo","Carolina castillo","Carolina castillo","Carolina castillo","Carolina castillo","Carolina castillo","Carolina castillo","Carolina castillo","Carolina castillo","Carolina castillo","Carolina castillo","Carolina castillo","Carolina castillo","Carolina castillo","Carolina castillo","Carolina castillo","Carolina castillo","Carolina castillo","Carolina castillo","Carolina castillo","Carolina castillo","Carolina castillo","Carolina castillo","Carolina castillo","Carolina castillo","Carolina castillo","Carolina castillo","Carolina castillo","Carolina castillo","Carolina castillo","Carolina castillo","Carolina castillo","Carolina castillo","Carolina castillo","Carolina castillo","Carolina castillo","Carolina castillo","Carolina castillo","Carolina castillo","Carolina castillo","Carolina castillo","Carolina castillo","Carolina castillo","Carolina castillo","Carolina castillo","Carolina castillo","Carolina castillo","Carolina castillo","Carolina castillo","Carolina castillo","Carolina castillo","Carolina castillo","Carolina castillo","Carolina castillo","Carolina castillo","Carolina castillo","Carolina castillo","Carolina castillo","Carolina castillo","Carolina castillo","Carolina castillo","Carolina castillo","Carolina castillo","Carolina castillo","Carolina castillo","Carolina castillo","Carolina castillo","Carolina castillo","Carolina castillo","Carolina castillo","Carolina castillo","Carolina castillo","Carolina castillo","Carolina castillo","Carolina castillo","Carolina castillo","Carolina castillo","Carolina castillo","Carolina castillo","Carolina castillo","Carolina castillo","Carolina castillo","Carolina castillo","Carolina castillo","Carolina castillo","Carolina castillo","Carolina castillo","Carolina castillo","Carolina castillo","Carolina castillo","Carolina castillo","Carolina castillo","Carolina castillo","Carolina castillo","Carolina castillo","Carolina castillo","Carolina castillo","Carolina castillo","Carolina castillo","Carolina castillo","Carolina castillo","Carolina castillo","Carolina castillo","Carolina castillo","Carolina castillo","Carolina castillo","Carolina castillo","Carolina castillo","Carolina castillo","Carolina castillo","Carolina castillo","Carolina castillo","Carolina castillo","Carolina castillo","Carolina castillo","Carolina castillo","Carolina castillo","Carolina castillo","Carolina castillo","Carolina castillo","Carolina castillo","Carolina castillo","Carolina castillo","Carolina castillo","Carolina castillo","Carolina castillo","Carolina castillo","Carolina castillo","Carolina castillo","Carolina castillo","Carolina castillo","Carolina castillo","Carolina castillo","Carolina castillo","Carolina castillo","Carolina castillo","Carolina castillo","Carolina castillo","Carolina castillo","Carolina castillo","Carolina castillo","Carolina castillo","Carolina castillo","Carolina castillo","Carolina castillo","Carolina castillo","Carolina castillo","Carolina castillo","Carolina castillo","Carolina castillo","Carolina castillo","Carolina castillo","Carolina castillo","Carolina castillo","Carolina castillo","Carolina castillo","Carolina castillo","Carolina castillo","Carolina castillo","Carolina castillo","Carolina castillo","Carolina castillo","Carolina castillo","Carolina castillo","Carolina castillo","Carolina castillo","Carolina castillo","Carolina castillo","Carolina castillo","Carolina castillo","Carolina castillo","Carolina castillo","Carolina castillo","Carolina castillo","Carolina castillo","Carolina castillo","Carolina castillo","Carolina castillo","Carolina castillo","Carolina castillo","Carolina castillo","Carolina castillo","Carolina castillo","Carolina castillo","Carolina castillo","Carolina castillo","Carolina castillo","Carolina castillo","Carolina castillo","Carolina castillo","Carolina castillo","Carolina castillo","Carolina castillo","Carolina castillo","Carolina castillo","Carolina castillo","Carolina castillo","Carolina castillo","Carolina castillo","Carolina castillo","Carolina castillo","Carolina castillo","Carolina castillo","Carolina castillo","Carolina castillo","Carolina castillo","Carolina castillo","Carolina castillo","Carolina castillo","Carolina castillo","Carolina castillo","Carolina castillo","Carolina castillo","Carolina castillo","Carolina castillo","Carolina castillo","Carolina castillo","Carolina castillo","Carolina castillo","Carolina castillo","Carolina castillo","Carolina castillo","Carolina castillo","Carolina castillo","Carolina castillo","Carolina castillo","Carolina castillo","Carolina castillo","Carolina castillo","Carolina castillo","Carolina castillo","Carolina castillo","Carolina castillo","Carolina castillo","Carolina castillo","Carolina castillo","Carolina castillo","Carolina castillo","Carolina castillo","Carolina castillo","Carolina castillo","Carolina castillo","Carolina castillo","Carolina castillo","Carolina castillo","Carolina castillo","Carolina castillo","Carolina castillo","Carolina castillo","Carolina castillo","Carolina castillo","Carolina castillo","Carolina castillo","Carolina castillo","Carolina castillo","Carolina castillo","Carolina castillo","Carolina castillo","Carolina castillo","Carolina castillo","Carolina castillo","Carolina castillo","Carolina castillo","Carolina castillo","Carolina castillo","Carolina castillo","Carolina castillo","Carolina castillo","Carolina castillo","Carolina castillo","Carolina castillo","Carolina castillo","Carolina castillo","Carolina castillo","Carolina castillo","Carolina castillo","Carolina castillo","Carolina castillo","Carolina castillo","Carolina castillo","Carolina castillo","Carolina castillo","Carolina castillo","Carolina castillo","Carolina castillo","Carolina castillo","Carolina castillo","Carolina castillo","Carolina castillo","Carolina castillo","Carolina castillo","Carolina castillo","Carolina castillo","Carolina castillo","Carolina castillo","Carolina castillo","Carolina castillo","Carolina castillo","Carolina castillo","Carolina castillo","Carolina castillo","Carolina castillo","Carolina castillo","Carolina castillo","Carolina castillo","Carolina castillo","Carolina castillo","Carolina castillo","Carolina castillo","Carolina castillo","Carolina castillo","Carolina castillo","Carolina castillo","Carolina castillo","Carolina castillo","Carolina castillo","Carolina castillo","Carolina castillo","Carolina castillo","Carolina castillo","Carolina castillo","Carolina castillo","Carolina castillo","Carolina castillo","Carolina castillo","Carolina castillo","Carolina castillo","Carolina castillo","Carolina castillo","Carolina castillo","Carolina castillo","Carolina castillo","Carolina castillo","Carolina castillo","Carolina castillo","Carolina castillo","Carolina castillo","Carolina castillo","Carolina castillo","Carolina castillo","Carolina castillo","Carolina castillo","Carolina castillo","Carolina castillo","Carolina castillo","Carolina castillo","Carolina castillo","Carolina castillo","Carolina castillo","Carolina castillo","Carolina castillo","Carolina castillo","Carolina castillo","Carolina castillo","Carolina castillo","Carolina castillo","Carolina castillo","Carolina castillo","Carolina castillo","Carolina castillo","Carolina castillo","Carolina castillo","Carolina castillo","Carolina castillo","Carolina castillo","Carolina castillo","Carolina castillo","Carolina castillo","Carolina castillo","Carolina castillo","Carolina castillo","Carolina castillo","Carolina castillo","Carolina castillo","Carolina castillo","Carolina castillo","Carolina castillo","Carolina castillo","Carolina castillo","Carolina castillo","Carolina castillo","Carolina castillo","Carolina castillo","Carolina castillo","Carolina castillo","Carolina castillo","Carolina castillo","Carolina castillo","Carolina castillo","Carolina castillo","Carolina castillo","Carolina castillo","Carolina castillo","Carolina castillo","Carolina castillo","Carolina castillo","Carolina castillo","Carolina castillo","Carolina castillo","Carolina castillo","Carolina castillo","Carolina castillo","Carolina castillo","Carolina castillo","Carolina castillo","Carolina castillo","Carolina castillo","Carolina castillo","Carolina castillo","Carolina castillo","Carolina castillo","Carolina castillo","Carolina castillo","Carolina castillo","Carolina castillo","Carolina castillo","Carolina castillo","Carolina castillo","Carolina castillo","Carolina castillo","Carolina castillo","Carolina castillo","Carolina castillo","Carolina castillo","Carolina castillo","Carolina castillo","Carolina castillo","Carolina castillo","Carolina castillo","Carolina castillo","Carolina castillo","Carolina castillo","Carolina castillo","Carolina castillo","Carolina castillo","Carolina castillo","Carolina castillo","Carolina castillo","Carolina castillo","Carolina castillo","Carolina castillo","Carolina castillo","Carolina castillo","Carolina castillo","Carolina castillo","Carolina castillo","Carolina castillo","Carolina castillo","Carolina castillo","Carolina castillo","Carolina castillo","Carolina castillo","Carolina castillo","Carolina castillo","Carolina castillo","Carolina castillo","Carolina castillo","Carolina castillo","Carolina castillo","Carolina castillo","Carolina castillo","Carolina castillo","Carolina castillo","Carolina castillo","Carolina castillo","Carolina castillo","Carolina castillo","Carolina castillo","Carolina castillo","Carolina castillo","Carolina castillo","Carolina castillo","Carolina castillo","Carolina castillo","Carolina castillo","Carolina castillo","Carolina castillo","Carolina castillo","Carolina castillo","Carolina castillo","Carolina castillo","Carolina castillo","Carolina castillo","Carolina castillo","Carolina castillo","Carolina castillo","Carolina castillo","Carolina castillo","Carolina castillo","Carolina castillo","Carolina castillo","Carolina castillo","Carolina castillo","Carolina castillo","Carolina castillo","Carolina castillo","Carolina castillo","Carolina castillo","Carolina castillo","Carolina castillo","Carolina castillo","Carolina castillo","Carolina castillo","Carolina castillo","Carolina castillo","Carolina castillo","Carolina castillo","Carolina castillo","Carolina castillo","Carolina castillo","Carolina castillo","Carolina castillo","Carolina castillo","Carolina castillo","Carolina castillo","Carolina castillo","Carolina castillo","Carolina castillo","Carolina castillo","Carolina castillo","Carolina castillo","Carolina castillo","Carolina castillo","Carolina castillo","Carolina castillo","Carolina castillo","Carolina castillo","Carolina castillo","Carolina castillo","Carolina castillo","Carolina castillo","Carolina castillo","Carolina castillo","Carolina castillo","Carolina castillo","Carolina castillo","Carolina castillo","Carolina castillo","Carolina castillo","Carolina castillo","Carolina castillo","Carolina castillo","Carolina castillo","Carolina castillo","Carolina castillo","Carolina castillo","Carolina castillo","Carolina castillo","Carolina castillo","Carolina castillo","Carolina castillo","Carolina castillo","Carolina castillo","Carolina castillo","Carolina castillo","Carolina castillo","Carolina castillo","Carolina castillo","Carolina castillo","Carolina castillo","Carolina castillo","Carolina castillo","Carolina castillo","Carolina castillo","Carolina castillo","Carolina castillo","Carolina castillo","Carolina castillo","Carolina castillo","Carolina castillo","Carolina castillo","Carolina castillo","Carolina castillo","Carolina castillo","Carolina castillo","Carolina castillo","Carolina castillo","Carolina castillo","Carolina castillo","Carolina castillo","Carolina castillo","Carolina castillo","Carolina castillo","Carolina castillo","Carolina castillo","Carolina castillo","Carolina castillo","Carolina castillo","Carolina castillo","Carolina castillo","Carolina castillo","Carolina castillo","Carolina castillo","Carolina castillo","Carolina castillo","Carolina castillo","Carolina castillo","Carolina castillo","Carolina castillo","Carolina castillo","Carolina castillo","Carolina castillo","Carolina castillo","Carolina castillo","Carolina castillo","Carolina castillo","Carolina castillo","Carolina castillo","Carolina castillo","Carolina castillo","Carolina castillo","Carolina castillo","Carolina castillo","Carolina castillo","Carolina castillo","Carolina castillo","Carolina castillo","Carolina castillo","Carolina castillo","Carolina castillo","Carolina castillo","Carolina castillo","Carolina castillo","Carolina castillo","Carolina castillo","Carolina castillo","Carolina castillo","Carolina castillo","Carolina castillo","Carolina castillo","Carolina castillo","Carolina castillo","Carolina castillo","Carolina castillo","Carolina castillo","Carolina castillo","Carolina castillo","Carolina castillo","Carolina castillo","Carolina castillo","Carolina castillo","Carolina castillo","Carolina castillo","Carolina castillo","Carolina castillo","Carolina castillo","Carolina castillo","Carolina castillo","Carolina castillo","Carolina castillo","Carolina castillo","Carolina castillo","Carolina castillo","Carolina castillo","Carolina castillo","Carolina castillo","Carolina castillo","Carolina castillo","Carolina castillo","Carolina castillo","Carolina castillo","Carolina castillo","Carolina castillo","Carolina castillo","Carolina castillo","Carolina castillo","Carolina castillo","Carolina castillo","Carolina castillo","Carolina castillo","Carolina castillo","Carolina castillo","Carolina castillo","Carolina castillo","Carolina castillo","Carolina castillo","Carolina castillo","Carolina castillo","Carolina castillo","Carolina castillo","Carolina castillo","Carolina castillo","Carolina castillo","Carolina castillo","Carolina castillo","Carolina castillo","Carolina castillo","Carolina castillo","Carolina castillo","Carolina castillo","Carolina castillo","Carolina castillo","Carolina castillo","Carolina castillo","Carolina castillo","Carolina castillo","Carolina castillo","Carolina castillo","Carolina castillo","Carolina castillo","Carolina castillo","Carolina castillo","Carolina castillo","Carolina castillo","Carolina castillo","Carolina castillo","Carolina castillo","Carolina castillo","Carolina castillo","Carolina castillo","Carolina castillo","Carolina castillo","Carolina castillo","Carolina castillo","Carolina castillo","Carolina castillo","Carolina castillo","Carolina castillo","Carolina castillo","Carolina castillo","Carolina castillo","Carolina castillo","Carolina castillo","Carolina castillo","Carolina castillo","Carolina castillo","Carolina castillo","Carolina castillo","Carolina castillo","Carolina castillo","Carolina castillo","Carolina castillo","Carolina castillo","Carolina castillo","Carolina castillo","Carolina castillo","Carolina castillo","Carolina castillo","Carolina castillo","Carolina castillo","Carolina castillo","Carolina castillo","Carolina castillo","Carolina castillo","Carolina castillo","Carolina castillo","Carolina castillo","Carolina castillo","Carolina castillo","Carolina castillo","Carolina castillo","Carolina castillo","Carolina castillo","Carolina castillo","Carolina castillo","Carolina castillo","Carolina castillo","Carolina castillo","Carolina castillo","Carolina castillo","Carolina castillo","Carolina castillo","Carolina castillo","Carolina castillo","Carolina castillo","Carolina castillo","Carolina castillo","Carolina castillo","Carolina castillo","Carolina castillo","Carolina castillo","Carolina castillo","Carolina castillo","Carolina castillo","Carolina castillo","Carolina castillo","Carolina castillo","Carolina castillo","Carolina castillo","Carolina castillo","Carolina castillo","Carolina castillo","Carolina castillo","Carolina castillo","Carolina castillo","Carolina castillo","Carolina castillo","Carolina castillo","Carolina castillo","Carolina castillo","Carolina castillo","Carolina castillo","Carolina castillo","Carolina castillo","Carolina castillo","Carolina castillo","Carolina castillo","Carolina castillo","Carolina castillo","Carolina castillo","Carolina castillo","Carolina castillo","Carolina castillo","Carolina castillo","Carolina castillo","Carolina castillo","Carolina castillo","Carolina castillo","Carolina castillo","Carolina castillo","Carolina castillo","Carolina castillo","Carolina castillo","Carolina castillo","Carolina castillo","Carolina castillo","Carolina castillo","Carolina castillo","Carolina castillo","Carolina castillo","Carolina castillo","Carolina castillo","Carolina castillo","Carolina castillo","Carolina castillo","Carolina castillo","Carolina castillo","Carolina castillo","Carolina castillo","Carolina castillo","Carolina castillo","Carolina castillo","Carolina castillo","Carolina castillo","Carolina castillo","Carolina castillo","Carolina castillo","Carolina castillo","Carolina castillo","Carolina castillo","Carolina castillo","Carolina castillo","Carolina castillo","Carolina castillo","Carolina castillo","Carolina castillo","Carolina castillo","Carolina castillo","Carolina castillo","Carolina castillo","Carolina castillo","Carolina castillo","Carolina castillo","Carolina castillo","Carolina castillo","Carolina castillo","Carolina castillo","Carolina castillo","Carolina castillo","Carolina castillo","Carolina castillo","Carolina castillo","Carolina castillo","Carolina castillo","Carolina castillo","Carolina castillo","Carolina castillo","Carolina castillo","Carolina castillo","Carolina castillo","Carolina castillo","Carolina castillo","Carolina castillo","Carolina castillo","Carolina castillo","Carolina castillo","Carolina castillo","Carolina castillo","Carolina castillo","Carolina castillo","Carolina castillo","Carolina castillo","Carolina castillo","Carolina castillo","Carolina castillo","Carolina castillo","Carolina castillo","Carolina castillo","Carolina castillo","Carolina castillo","Carolina castillo","Carolina castillo","Carolina castillo","Carolina castillo","Carolina castillo","Carolina castillo","Carolina castillo","Carolina castillo","Carolina castillo","Carolina castillo","Carolina castillo","Carolina castillo","Carolina castillo","Carolina castillo","Carolina castillo","Carolina castillo","Carolina castillo","Carolina castillo","Carolina castillo","Carolina castillo","Carolina castillo","Carolina castillo","Carolina castillo","Carolina castillo","Carolina castillo","Carolina castillo","Carolina castillo","Carolina castillo","Carolina castillo","Carolina castillo","Carolina castillo","Carolina castillo","Carolina castillo","Carolina castillo","Carolina castillo","Carolina castillo","Carolina castillo","Carolina castillo","Carolina castillo","Carolina castillo","Carolina castillo","Carolina castillo","Carolina castillo","Carolina castillo","Carolina castillo","Carolina castillo","Carolina castillo","Carolina castillo","Carolina castillo","Carolina castillo","Carolina castillo","Carolina castillo","Carolina castillo","Carolina castillo","Carolina castillo","Carolina castillo","Carolina castillo","Carolina castillo","Carolina castillo","Carolina castillo","Carolina castillo","Carolina castillo","Carolina castillo","Carolina castillo","Carolina castillo","Carolina castillo","Carolina castillo","Carolina castillo","Carolina castillo","Carolina castillo","Carolina castillo","Carolina castillo","Carolina castillo","Carolina castillo","Carolina castillo","Carolina castillo","Carolina castillo","Carolina castillo","Carolina castillo","Carolina castillo","Carolina castillo","Carolina castillo","Carolina castillo","Carolina castillo","Carolina castillo","Carolina castillo","Carolina castillo","Carolina castillo","Carolina castillo","Carolina castillo","Carolina castillo","Carolina castillo","Carolina castillo","Carolina castillo","Carolina castillo","Carolina castillo","Carolina castillo","Carolina castillo","Carolina castillo","Carolina castillo","Carolina castillo","Carolina castillo","Carolina castillo","Carolina castillo","Carolina castillo","Carolina castillo","Carolina castillo","Carolina castillo","Carolina castillo","Carolina castillo","Carolina castillo","Carolina castillo","Carolina castillo","Carolina castillo","Carolina castillo","Carolina castillo","Carolina castillo","Carolina castillo","Carolina castillo","Carolina castillo","Carolina castillo","Carolina castillo","Carolina castillo","Carolina castillo","Carolina castillo","Carolina castillo","Carolina castillo","Carolina castillo","Carolina castillo","Carolina castillo","Carolina castillo","Carolina castillo","Carolina castillo","Carolina castillo","Carolina castillo","Carolina castillo","Carolina castillo","Carolina castillo","Carolina castillo","Carolina castillo","Carolina castillo","Carolina castillo","Carolina castillo","Carolina castillo","Carolina castillo","Carolina castillo","Carolina castillo","Carolina castillo","Carolina castillo","Carolina castillo","Carolina castillo","Carolina castillo","Carolina castillo","Carolina castillo","Carolina castillo","Carolina castillo","Carolina castillo","Carolina castillo","Carolina castillo","Carolina castillo","Carolina castillo","Carolina castillo","Carolina castillo","Carolina castillo","Carolina castillo","Carolina castillo","Carolina castillo","Carolina castillo","Carolina castillo","Carolina castillo","Carolina castillo","Carolina castillo","Carolina castillo","Carolina castillo","Carolina castillo","Carolina castillo","Carolina castillo","Carolina castillo","Carolina castillo","Carolina castillo","Carolina castillo","Carolina castillo","Carolina castillo","Carolina castillo","Carolina castillo","Carolina castillo","Carolina castillo","Carolina castillo","Carolina castillo","Carolina castillo","Carolina castillo","Carolina castillo","Carolina castillo","Carolina castillo","Carolina castillo","Carolina castillo","Carolina castillo","Carolina castillo","Carolina castillo","Carolina castillo","Carolina castillo","Carolina castillo","Carolina castillo","Carolina castillo","Carolina castillo","Carolina castillo","Carolina castillo","Carolina castillo","Carolina castillo","Carolina castillo","Carolina castillo","Carolina castillo","Carolina castillo","Carolina castillo","Carolina castillo","Carolina castillo","Carolina castillo","Carolina castillo","Carolina castillo","Carolina castillo","Carolina castillo","Carolina castillo","Carolina castillo","Carolina castillo","Carolina castillo","Carolina castillo","Carolina castillo","Carolina castillo","Carolina castillo","Carolina castillo","Carolina castillo","Carolina castillo","Carolina castillo","Carolina castillo","Carolina castillo","Carolina castillo","Carolina castillo","Carolina castillo","Carolina castillo","Carolina castillo","Carolina castillo","Carolina castillo","Carolina castillo","Carolina castillo","Carolina castillo","Carolina castillo","Carolina castillo","Carolina castillo","Carolina castillo","Carolina castillo","Carolina castillo","Carolina castillo","Carolina castillo","Carolina castillo","Carolina castillo","Carolina castillo","Carolina castillo","Carolina castillo","Carolina castillo","Carolina castillo","Carolina castillo","Carolina castillo","Carolina castillo","Carolina castillo","Carolina castillo","Carolina castillo","Carolina castillo","Carolina castillo","Carolina castillo","Carolina castillo","Carolina castillo","Carolina castillo","Carolina castillo","Carolina castillo","Carolina castillo","Carolina castillo","Carolina castillo","Carolina castillo","Carolina castillo","Carolina castillo","Carolina castillo","Carolina castillo","Carolina castillo","Carolina castillo","Carolina castillo","Carolina castillo","Carolina castillo","Carolina castillo","Carolina castillo","Carolina castillo","Carolina castillo","Carolina castillo","Carolina castillo","Carolina castillo","Carolina castillo","Carolina castillo","Carolina castillo","Carolina castillo","Carolina castillo","Carolina castillo","Carolina castillo","Carolina castillo","Carolina castillo","Carolina castillo","Carolina castillo","Carolina castillo","Carolina castillo","Carolina castillo","Carolina castillo","Carolina castillo","Carolina castillo","Carolina castillo","Carolina castillo","Carolina castillo","Carolina castillo","Carolina castillo","Carolina castillo","Carolina castillo","Carolina castillo","Carolina castillo","Carolina castillo","Carolina castillo","Carolina castillo","Carolina castillo","Carolina castillo","Carolina castillo","Carolina castillo","Carolina castillo","Carolina castillo","Carolina castillo","Carolina castillo","Carolina castillo","Carolina castillo","Carolina castillo","Carolina castillo","Carolina castillo","Carolina castillo","Carolina castillo","Carolina castillo","Carolina castillo","Carolina castillo","Carolina castillo","Carolina castillo","Carolina castillo","Carolina castillo","Carolina castillo","Carolina castillo","Carolina castillo","Carolina castillo","Carolina castillo","Carolina castillo","Carolina castillo","Carolina castillo","Carolina castillo","Carolina castillo","Carolina castillo","Carolina castillo","Carolina castillo","Carolina castillo","Carolina castillo","Carolina castillo","Carolina castillo","Carolina castillo","Carolina castillo","Carolina castillo","Carolina castillo","Carolina castillo","Carolina castillo","Carolina castillo","Carolina castillo","Carolina castillo","Carolina castillo","Carolina castillo","Carolina castillo","Carolina castillo","Carolina castillo","Carolina castillo","Carolina castillo","Carolina castillo","Carolina castillo","Carolina castillo","Carolina castillo","Carolina castillo","Carolina castillo","Carolina castillo","Carolina castillo","Carolina castillo","Carolina castillo","Carolina castillo","Carolina castillo","Carolina castillo","Carolina castillo","Carolina castillo","Carolina castillo","Carolina castillo","Carolina castillo","Carolina castillo","Carolina castillo","Carolina castillo","Carolina castillo","Carolina castillo","Carolina castillo","Carolina castillo","Carolina castillo","Carolina castillo","Carolina castillo","Carolina castillo","Carolina castillo","Carolina castillo","Carolina castillo","Carolina castillo","Carolina castillo","Carolina castillo","Carolina castillo","Carolina castillo","Carolina castillo","Carolina castillo","Carolina castillo","Carolina castillo","Carolina castillo","Carolina castillo","Carolina castillo","Carolina castillo","Carolina castillo","Carolina castillo","Carolina castillo","Carolina castillo","Carolina castillo","Carolina castillo","Carolina castillo","Carolina castillo","Carolina castillo","Carolina castillo","Carolina castillo","Carolina castillo","Carolina castillo","Carolina castillo","Carolina castillo","Carolina castillo","Carolina castillo","Carolina castillo","Carolina castillo","Carolina castillo","Carolina castillo","Carolina castillo","Carolina castillo","Carolina castillo","Carolina castillo","Carolina castillo","Carolina castillo","Carolina castillo","Carolina castillo","Carolina castillo","Carolina castillo","Carolina castillo","Carolina castillo","Carolina castillo","Carolina castillo","Carolina castillo","Carolina castillo","Carolina castillo","Carolina castillo","Carolina castillo","Carolina castillo","Carolina castillo","Carolina castillo","Carolina castillo","Carolina castillo","Carolina castillo","Carolina castillo","Carolina castillo","Carolina castillo","Carolina castillo","Carolina castillo","Carolina castillo","Carolina castillo","Carolina castillo","Carolina castillo","Carolina castillo","Carolina castillo","Carolina castillo","Carolina castillo","Carolina castillo","Carolina castillo","Carolina castillo","Carolina castillo","Carolina castillo","Carolina castillo","Carolina castillo","Carolina castillo","Carolina castillo","Carolina castillo","Carolina castillo","Carolina castillo","Carolina castillo","Carolina castillo","Carolina castillo","Carolina castillo","Carolina castillo","Carolina castillo","Carolina castillo","Carolina castillo","Carolina castillo","Carolina castillo","Carolina castillo","Carolina castillo","Carolina castillo","Carolina castillo","Carolina castillo","Carolina castillo","Carolina castillo","Carolina castillo","Carolina castillo","Carolina castillo","Carolina castillo","Carolina castillo","Carolina castillo","Carolina castillo","Carolina castillo","Carolina castillo","Carolina castillo","Carolina castillo","Carolina castillo","Carolina castillo","Carolina castillo","Carolina castillo","Carolina castillo","Carolina castillo","Carolina castillo","Carolina castillo","Carolina castillo","Carolina castillo","Carolina castillo","Carolina castillo","Carolina castillo","Carolina castillo","Carolina castillo","Carolina castillo","Carolina castillo","Carolina castillo","Carolina castillo","Carolina castillo","Carolina castillo","Carolina castillo","Carolina castillo","Carolina castillo","Carolina castillo","Carolina castillo","Carolina castillo","Carolina castillo","Carolina castillo","Carolina castillo","Carolina castillo","Carolina castillo","Carolina castillo","Carolina castillo","Carolina castillo","Carolina castillo","Carolina castillo","Carolina castillo","Carolina castillo","Carolina castillo","Carolina castillo","Carolina castillo","Carolina castillo","Carolina castillo","Carolina castillo","Carolina castillo","Carolina castillo","Carolina castillo","Carolina castillo","Carolina castillo","Carolina castillo","Carolina castillo","Carolina castillo","Carolina castillo","Carolina castillo","Carolina castillo","Carolina castillo","Carolina castillo","Carolina castillo","Carolina castillo","Carolina castillo","Carolina castillo","Carolina castillo","Carolina castillo","Carolina castillo","Carolina castillo","Carolina castillo","Carolina castillo","Carolina castillo","Carolina castillo","Carolina castillo","Carolina castillo","Carolina castillo","Carolina castillo","Carolina castillo","Carolina castillo","Carolina castillo","Carolina castillo","Carolina castillo","Carolina castillo","Carolina castillo","Carolina castillo","Carolina castillo","Carolina castillo","Carolina castillo","Carolina castillo","Carolina castillo","Carolina castillo","Carolina castillo","Carolina castillo","Carolina castillo","Carolina castillo","Carolina castillo","Carolina castillo","Carolina castillo","Carolina castillo","Carolina castillo","Carolina castillo","Carolina castillo","Carolina castillo","Carolina castillo","Carolina castillo","Carolina castillo","Carolina castillo","Carolina castillo","Carolina castillo","Carolina castillo","Carolina castillo","Carolina castillo","Carolina castillo","Carolina castillo","Carolina castillo","Carolina castillo","Carolina castillo","Carolina castillo","Carolina castillo","Carolina castillo","Carolina castillo","Carolina castillo","Carolina castillo","Carolina castillo","Carolina castillo","Carolina castillo","Carolina castillo","Carolina castillo","Carolina castillo","Carolina castillo","Carolina castillo","Carolina castillo","Carolina castillo","Carolina castillo","Carolina castillo","Carolina castillo","Carolina castillo","Carolina castillo","Carolina castillo","Carolina castillo","Carolina castillo","Carolina castillo","Carolina castillo","Carolina castillo","Carolina castillo","Carolina castillo","Carolina castillo","Carolina castillo","Carolina castillo","Carolina castillo","Carolina castillo","Carolina castillo","Carolina castillo","Carolina castillo","Carolina castillo","Carolina castillo","Carolina castillo","Carolina castillo","Carolina castillo","Carolina castillo","Carolina castillo","Carolina castillo","Carolina castillo","Carolina castillo","Carolina castillo","Carolina castillo","Carolina castillo","Carolina castillo","Carolina castillo","Carolina castillo","Carolina castillo","Carolina castillo","Carolina castillo","Carolina castillo","Carolina castillo","Carolina castillo","Carolina castillo","Carolina castillo","Carolina castillo","Carolina castillo","Carolina castillo","Carolina castillo","Carolina castillo","Carolina castillo","Carolina castillo","Carolina castillo","Carolina castillo","Carolina castillo","Carolina castillo","Carolina castillo","Carolina castillo","Carolina castillo","Carolina castillo","Carolina castillo","Carolina castillo","Carolina castillo","Carolina castillo","Carolina castillo","Carolina castillo","Carolina castillo","Carolina castillo","Carolina castillo","Carolina castillo","Carolina castillo","Carolina castillo","Carolina castillo","Carolina castillo","Carolina castillo","Carolina castillo","Carolina castillo","Carolina castillo","Carolina castillo","Carolina castillo","Carolina castillo","Carolina castillo","Carolina castillo","Carolina castillo","Carolina castillo","Carolina castillo","Carolina castillo","Carolina castillo","Carolina castillo","Carolina castillo","Carolina castillo","Carolina castillo","Carolina castillo","Carolina castillo","Carolina castillo","Carolina castillo","Carolina castillo","Carolina castillo","Carolina castillo","Carolina castillo","Carolina castillo","Carolina castillo","Carolina castillo","Carolina castillo","Carolina castillo","Carolina castillo","Carolina castillo","Carolina castillo","Carolina castillo","Carolina castillo","Carolina castillo","Carolina castillo","Carolina castillo","Carolina castillo","Carolina castillo","Carolina castillo","Carolina castillo","Carolina castillo","Carolina castillo","Carolina castillo","Carolina castillo","Carolina castillo","Carolina castillo","Carolina castillo","Carolina castillo","Carolina castillo","Carolina castillo","Carolina castillo","Carolina castillo","Carolina castillo","Carolina castillo","Carolina castillo","Carolina castillo","Carolina castillo","Carolina castillo","Carolina castillo","Carolina castillo","Carolina castillo","Carolina castillo","Carolina castillo","Carolina castillo","Carolina castillo","Carolina castillo","Carolina castillo","Carolina castillo","Carolina castillo","Carolina castillo","Carolina castillo","Carolina castillo","Carolina castillo","Carolina castillo","Carolina castillo","Carolina castillo","Carolina castillo","Carolina castillo","Carolina castillo","Carolina castillo","Carolina castillo","Carolina castillo","Carolina castillo","Carolina castillo","Carolina castillo","Carolina castillo","Carolina castillo","Carolina castillo","Carolina castillo","Carolina castillo","Carolina castillo","Carolina castillo","Carolina castillo","Carolina castillo","Carolina castillo","Carolina castillo","Carolina castillo","Carolina castillo","Carolina castillo","Carolina castillo","Carolina castillo","Carolina castillo","Carolina castillo","Carolina castillo","Carolina castillo","Carolina castillo","Carolina castillo","Carolina castillo","Carolina castillo","Carolina castillo","Carolina castillo","Carolina castillo","Carolina castillo","Carolina castillo","Carolina castillo","Carolina castillo","Carolina castillo","Carolina castillo","Carolina castillo","Carolina castillo","Carolina castillo","Carolina castillo","Carolina castillo","Carolina castillo","Carolina castillo","Carolina castillo","Carolina castillo","Carolina castillo","Carolina castillo","Carolina castillo","Carolina castillo","Carolina castillo","Carolina castillo","Carolina castillo","Carolina castillo","Carolina castillo","Carolina castillo","Carolina castillo","Carolina castillo","Carolina castillo","Carolina castillo","Carolina castillo","Carolina castillo","Carolina castillo","Carolina castillo","Carolina castillo","Carolina castillo","Carolina castillo","Carolina castillo","Carolina castillo","Carolina castillo","Carolina castillo","Carolina castillo","Carolina castillo","Carolina castillo","Carolina castillo","Carolina castillo","Carolina castillo","Carolina castillo","Carolina castillo","Carolina castillo","Carolina castillo","Carolina castillo","Carolina castillo","Carolina castillo","Carolina castillo","Carolina castillo","Carolina castillo","Carolina castillo","Carolina castillo","Carolina castillo","Carolina castillo","Carolina castillo","Carolina castillo","Carolina castillo","Carolina castillo","Carolina castillo","Carolina castillo","Carolina castillo","Carolina castillo","Carolina castillo","Carolina castillo","Carolina castillo","Carolina castillo","Carolina castillo","Carolina castillo","Carolina castillo","Carolina castillo","Carolina castillo","Carolina castillo","Carolina castillo","Carolina castillo","Carolina castillo","Carolina castillo","Carolina castillo","Carolina castillo","Carolina castillo","Carolina castillo","Carolina castillo","Carolina castillo","Carolina castillo","Carolina castillo","Carolina castillo","Carolina castillo","Carolina castillo","Carolina castillo","Carolina castillo","Carolina castillo","Carolina castillo","Carolina castillo","Carolina castillo","Carolina castillo","Carolina castillo","Carolina castillo","Carolina castillo","Carolina castillo","Carolina castillo","Carolina castillo","Carolina castillo","Carolina castillo","Carolina castillo","Carolina castillo","Carolina castillo","Carolina castillo","Carolina castillo","Carolina castillo","Carolina castillo","Carolina castillo","Carolina castillo","Carolina castillo","Carolina castillo","Carolina castillo","Carolina castillo","Carolina castillo","Carolina castillo","Carolina castillo","Carolina castillo","Carolina castillo","Carolina castillo","Carolina castillo","Carolina castillo","Carolina castillo","Carolina castillo","Carolina castillo","Carolina castillo","Carolina castillo","Carolina castillo","Carolina castillo","Carolina castillo","Carolina castillo","Carolina castillo","Carolina castillo","Carolina castillo","Carolina castillo","Carolina castillo","Carolina castillo","Carolina castillo","Carolina castillo","Carolina castillo","Carolina castillo","Carolina castillo","Carolina castillo","Carolina castillo","Carolina castillo","Carolina castillo","Carolina castillo","Carolina castillo","Carolina castillo","Carolina castillo","Carolina castillo","Carolina castillo","Carolina castillo","Carolina castillo","Carolina castillo","Carolina castillo","Carolina castillo","Carolina castillo","Carolina castillo","Carolina castillo","Carolina castillo","Carolina castillo","Carolina castillo","Carolina castillo","Carolina castillo","Carolina castillo","Carolina castillo","Carolina castillo","Carolina castillo","Carolina castillo","Carolina castillo","Carolina castillo","Carolina castillo","Carolina castillo","Carolina castillo","Carolina castillo","Carolina castillo","Carolina castillo","Carolina castillo","Carolina castillo","Carolina castillo","Carolina castillo","Carolina castillo","Carolina castillo","Carolina castillo","Carolina castillo","Carolina castillo","Carolina castillo","Carolina castillo","Carolina castillo","Carolina castillo","Carolina castillo","Carolina castillo","Carolina castillo","Carolina castillo","Carolina castillo","Carolina castillo","Carolina castillo","Carolina castillo","Carolina castillo","Carolina castillo","Carolina castillo","Carolina castillo","Carolina castillo","Carolina castillo","Carolina castillo","Carolina castillo","Carolina castillo","Carolina castillo","Carolina castillo","Carolina castillo","Carolina castillo","Carolina castillo","Carolina castillo","Carolina castillo","Carolina castillo","Carolina castillo","Carolina castillo","Carolina castillo","Carolina castillo","Carolina castillo","Carolina castillo","Carolina castillo","Carolina castillo","Carolina castillo","Carolina castillo","Carolina castillo","Carolina castillo","Carolina castillo","Carolina castillo","Carolina castillo","Carolina castillo","Carolina castillo","Carolina castillo","Carolina castillo","Carolina castillo","Carolina castillo","Carolina castillo","Carolina castillo","Carolina castillo","Carolina castillo","Carolina castillo","Carolina castillo","Carolina castillo","Carolina castillo","Carolina castillo","Carolina castillo","Carolina castillo","Carolina castillo","Carolina castillo","Carolina castillo","Carolina castillo","Carolina castillo","Carolina castillo","Carolina castillo","Carolina castillo","Carolina castillo","Carolina castillo","Carolina castillo","Carolina castillo","Carolina castillo","Carolina castillo","Carolina castillo","Carolina castillo","Carolina castillo","Carolina castillo","Carolina castillo","Carolina castillo","Carolina castillo","Carolina castillo","Carolina castillo","Carolina castillo","Carolina castillo","Carolina castillo","Carolina castillo","Carolina castillo","Carolina castillo","Carolina castillo","Carolina castillo","Carolina castillo","Carolina castillo","Carolina castillo","Carolina castillo","Carolina castillo","Carolina castillo","Carolina castillo","Carolina castillo","Carolina castillo","Carolina castillo","Carolina castillo","Carolina castillo","Carolina castillo","Carolina castillo","Carolina castillo","Carolina castillo","Carolina castillo","Carolina castillo","Carolina castillo","Carolina castillo","Carolina castillo","Carolina castillo","Carolina castillo","Carolina castillo","Carolina castillo","Carolina castillo","Carolina castillo","Carolina castillo","Carolina castillo","Carolina castillo","Carolina castillo","Carolina castillo","Carolina castillo","Carolina castillo","Carolina castillo","Carolina castillo","Carolina castillo","Carolina castillo","Carolina castillo","Carolina castillo","Carolina castillo","Carolina castillo","Carolina castillo","Carolina castillo","Carolina castillo","Carolina castillo","Carolina castillo","Carolina castillo","Carolina castillo","Carolina castillo","Carolina castillo","Carolina castillo","Carolina castillo","Carolina castillo","Carolina castillo","Carolina castillo","Carolina castillo","Carolina castillo","Carolina castillo","Carolina castillo","Carolina castillo","Carolina castillo","Carolina castillo","Carolina castillo","Carolina castillo","Carolina castillo","Carolina castillo","Carolina castillo","Carolina castillo","Carolina castillo","Carolina castillo","Carolina castillo","Carolina castillo","Carolina castillo","Carolina castillo","Carolina castillo","Carolina castillo","Carolina castillo","Carolina castillo","Carolina castillo","Carolina castillo","Carolina castillo","Carolina castillo","Carolina castillo","Carolina castillo","Carolina castillo","Carolina castillo","Carolina castillo","Carolina castillo","Carolina castillo","Carolina castillo","Carolina castillo","Carolina castillo","Carolina castillo","Carolina castillo","Carolina castillo","Carolina castillo","Carolina castillo","Carolina castillo","Carolina castillo","Carolina castillo","Carolina castillo","Carolina castillo","Carolina castillo","Carolina castillo","Carolina castillo","Carolina castillo","Carolina castillo","Carolina castillo","Carolina castillo","Carolina castillo","Carolina castillo","Carolina castillo","Carolina castillo","Carolina castillo","Carolina castillo","Carolina castillo","Carolina castillo","Carolina castillo","Carolina castillo","Carolina castillo","Carolina castillo","Carolina castillo","Carolina castillo","Carolina castillo","Carolina castillo","Carolina castillo","Carolina castillo","Carolina castillo","Carolina castillo","Carolina castillo","Carolina castillo","Carolina castillo","Carolina castillo","Carolina castillo","Carolina castillo","Carolina castillo","Carolina castillo","Carolina castillo","Carolina castillo","Carolina castillo","Carolina castillo","Carolina castillo","Carolina castillo","Carolina castillo","Carolina castillo","Carolina castillo","Carolina castillo","Carolina castillo","Carolina castillo","Carolina castillo","Carolina castillo","Carolina castillo","Carolina castillo","Carolina castillo","Carolina castillo","Carolina castillo","Carolina castillo","Carolina castillo","Carolina castillo","Carolina castillo","Carolina castillo","Carolina castillo","Carolina castillo","Carolina castillo","Carolina castillo","Carolina castillo","Carolina castillo","Carolina castillo","Carolina castillo","Carolina castillo","Carolina castillo","Carolina castillo","Carolina castillo","Carolina castillo","Carolina castillo","Carolina castillo","Carolina castillo","Carolina castillo","Carolina castillo","Carolina castillo","Carolina castillo","Carolina castillo","Carolina castillo","Carolina castillo","Carolina castillo","Carolina castillo","Carolina castillo","Carolina castillo","Carolina castillo","Carolina castillo","Carolina castillo","Carolina castillo","Carolina castillo","Carolina castillo","Carolina castillo","Carolina castillo","Carolina castillo","Carolina castillo","Carolina castillo","Carolina castillo","Carolina castillo","Carolina castillo","Carolina castillo","Carolina castillo","Carolina castillo","Carolina castillo","Carolina castillo","Carolina castillo","Carolina castillo","Carolina castillo","Carolina castillo","Carolina castillo","Carolina castillo","Carolina castillo","Carolina castillo","Carolina castillo","Carolina castillo","Carolina castillo","Carolina castillo","Carolina castillo","Carolina castillo","Carolina castillo","Carolina castillo","Carolina castillo","Carolina castillo","Carolina castillo","Carolina castillo","Carolina castillo","Carolina castillo","Carolina castillo","Carolina castillo","Carolina castillo","Carolina castillo","Carolina castillo","Carolina castillo","Carolina castillo","Carolina castillo","Carolina castillo","Carolina castillo","Carolina castillo","Carolina castillo","Carolina castillo","Carolina castillo","Carolina castillo","Carolina castillo","Carolina castillo","Carolina castillo","Carolina castillo","Carolina castillo","Carolina castillo","Carolina castillo","Carolina castillo","Carolina castillo","Carolina castillo","Carolina castillo","Carolina castillo","Carolina castillo","Carolina castillo","Carolina castillo","Carolina castillo","Carolina castillo","Carolina castillo","Carolina castillo","Carolina castillo","Carolina castillo","Carolina castillo","Carolina castillo","Carolina castillo","Carolina castillo","Carolina castillo","Carolina castillo","Carolina castillo","Carolina castillo","Carolina castillo","Carolina castillo","Carolina castillo","Carolina castillo","Carolina castillo","Carolina castillo","Carolina castillo","Carolina castillo","Carolina castillo","Carolina castillo","Carolina castillo","Carolina castillo","Carolina castillo","Carolina castillo","Carolina castillo","Carolina castillo","Carolina castillo","Carolina castillo","Carolina castillo","Carolina castillo","Carolina castillo","Carolina castillo","Carolina castillo","Carolina castillo","Carolina castillo","Carolina castillo","Carolina castillo","Carolina castillo","Carolina castillo","Carolina castillo","Carolina castillo","Carolina castillo","Carolina castillo","Carolina castillo","Carolina castillo","Carolina castillo","Carolina castillo","Carolina castillo","Carolina castillo","Carolina castillo","Carolina castillo","Carolina castillo","Carolina castillo","Carolina castillo","Carolina castillo","Carolina castillo","Carolina castillo","Carolina castillo","Carolina castillo","Carolina castillo","Carolina castillo","Carolina castillo","Carolina castillo","Carolina castillo","Carolina castillo","Carolina castillo","Carolina castillo","Carolina castillo","Carolina castillo","Carolina castillo","Carolina castillo","Carolina castillo","Carolina castillo","Carolina castillo","Carolina castillo","Carolina castillo","Carolina castillo","Carolina castillo","Carolina castillo","Carolina castillo","Carolina castillo","Carolina castillo","Carolina castillo","Carolina castillo","Carolina castillo","Carolina castillo","Carolina castillo","Carolina castillo","Carolina castillo","Carolina castillo","Carolina castillo","Carolina castillo","Carolina castillo","Carolina castillo","Carolina castillo","Carolina castillo","Carolina castillo","Carolina castillo","Carolina castillo","Carolina castillo","Carolina castillo","Carolina castillo","Carolina castillo","Carolina castillo","Carolina castillo","Carolina castillo","Carolina castillo","Carolina castillo","Carolina castillo","Carolina castillo","Carolina castillo","Carolina castillo","Carolina castillo","Carolina castillo","Carolina castillo","Carolina castillo","Carolina castillo","Carolina castillo","Carolina castillo","Carolina castillo","Carolina castillo","Carolina castillo","Carolina castillo","Carolina castillo","Carolina castillo","Carolina castillo","Carolina castillo","Carolina castillo","Carolina castillo","Carolina castillo","Carolina castillo","Carolina castillo","Carolina castillo","Carolina castillo","Carolina castillo","Carolina castillo","Carolina castillo","Carolina castillo","Carolina castillo","Carolina castillo","Carolina castillo","Carolina castillo","Carolina castillo","Carolina castillo","Carolina castillo","Carolina castillo","Carolina castillo","Carolina castillo","Carolina castillo","Carolina castillo","Carolina castillo","Carolina castillo","Carolina castillo","Carolina castillo","Carolina castillo","Carolina castillo","Carolina castillo","Carolina castillo","Carolina castillo","Carolina castillo","Carolina castillo","Carolina castillo","Carolina castillo","Carolina castillo","Carolina castillo","Carolina castillo","Carolina castillo","Carolina castillo","Carolina castillo","Carolina castillo","Carolina castillo","Carolina castillo","Carolina castillo","Carolina castillo","Carolina castillo","Carolina castillo","Carolina castillo","Carolina castillo","Carolina castillo","Carolina castillo","Carolina castillo","Carolina castillo","Carolina castillo","Carolina castillo","Carolina castillo","Carolina castillo","Carolina castillo","Carolina castillo","Carolina castillo","Carolina castillo","Carolina castillo","Carolina castillo","Carolina castillo","Carolina castillo","Carolina castillo","Carolina castillo","Carolina castillo","Carolina castillo","Carolina castillo","Carolina castillo","Carolina castillo","Carolina castillo","Carolina castillo","Carolina castillo","Carolina castillo","Carolina castillo","Carolina castillo","Carolina castillo","Carolina castillo","Carolina castillo","Carolina castillo","Carolina castillo","Carolina castillo","Carolina castillo","Carolina castillo","Carolina castillo","Carolina castillo","Carolina castillo","Carolina castillo","Carolina castillo","Carolina castillo","Carolina castillo","Carolina castillo","Carolina castillo","Carolina castillo","Carolina castillo","Carolina castillo","Carolina castillo","Carolina castillo","Carolina castillo","Carolina castillo","Carolina castillo","Carolina castillo","Carolina castillo","Carolina castillo","Carolina castillo","Carolina castillo","Carolina castillo","Carolina castillo","Carolina castillo","Carolina castillo","Carolina castillo","Carolina castillo","Carolina castillo","Carolina castillo","Carolina castillo","Carolina castillo","Carolina castillo","Carolina castillo","Carolina castillo","Carolina castillo","Carolina castillo","Carolina castillo","Carolina castillo","Carolina castillo","Carolina castillo","Carolina castillo","Carolina castillo","Carolina castillo","Carolina castillo","Carolina castillo","Carolina castillo","Carolina castillo","Carolina castillo","Carolina castillo","Carolina castillo","Carolina castillo","Carolina castillo","Carolina castillo","Carolina castillo","Carolina castillo","Carolina castillo","Carolina castillo","Carolina castillo","Carolina castillo","Carolina castillo","Carolina castillo","Carolina castillo","Carolina castillo","Carolina castillo","Carolina castillo","Carolina castillo","Carolina castillo","Carolina castillo","Carolina castillo","Carolina castillo","Carolina castillo","Carolina castillo","Carolina castillo","Carolina castillo","Carolina castillo","Carolina castillo","Carolina castillo","Carolina castillo","Carolina castillo","Carolina castillo","Carolina castillo","Carolina castillo","Carolina castillo","Carolina castillo","Carolina castillo","Carolina castillo","Carolina castillo","Carolina castillo","Carolina castillo","Carolina castillo","Carolina castillo","Carolina castillo","Carolina castillo","Carolina castillo","Carolina castillo","Carolina castillo","Carolina castillo","Carolina castillo","Carolina castillo","Carolina castillo","Carolina castillo","Carolina castillo","Carolina castillo","Carolina castillo","Carolina castillo","Carolina castillo","Carolina castillo","Carolina castillo","Carolina castillo","Carolina castillo","Carolina castillo","Carolina castillo","Carolina castillo","Carolina castillo","Carolina castillo","Carolina castillo","Carolina castillo","Carolina castillo","Carolina castillo","Carolina castillo","Carolina castillo","Carolina castillo","Carolina castillo","Carolina castillo","Carolina castillo","Carolina castillo","Carolina castillo","Carolina castillo","Carolina castillo","Carolina castillo","Carolina castillo","Carolina castillo","Carolina castillo","Carolina castillo","Carolina castillo","Carolina castillo","Carolina castillo","Carolina castillo","Carolina castillo","Carolina castillo","Carolina castillo","Carolina castillo","Carolina castillo","Carolina castillo","Carolina castillo","Carolina castillo","Carolina castillo","Carolina castillo","Carolina castillo","Carolina castillo","Carolina castillo","Carolina castillo","Carolina castillo","Carolina castillo","Carolina castillo","Carolina castillo","Carolina castillo","Carolina castillo","Carolina castillo","Carolina castillo","Carolina castillo","Carolina castillo","Carolina castillo","Carolina castillo","Carolina castillo","Carolina castillo","Carolina castillo","Carolina castillo","Carolina castillo","Carolina castillo","Carolina castillo","Carolina castillo","Carolina castillo","Carolina castillo","Carolina castillo","Carolina castillo","Carolina castillo","Carolina castillo","Carolina castillo","Carolina castillo","Carolina castillo","Carolina castillo","Carolina castillo","Carolina castillo","Carolina castillo","Carolina castillo","Carolina castillo","Carolina castillo","Carolina castillo","Carolina castillo","Carolina castillo","Carolina castillo","Carolina castillo","Carolina castillo","Carolina castillo","Carolina castillo","Carolina castillo","Carolina castillo","Carolina castillo","Carolina castillo","Carolina castillo","Carolina castillo","Carolina castillo","Carolina castillo","Carolina castillo","Carolina castillo","Carolina castillo","Carolina castillo","Carolina castillo","Carolina castillo","Carolina castillo","Carolina castillo","Carolina castillo","Carolina castillo","Carolina castillo","Carolina castillo","Carolina castillo","Carolina castillo","Carolina castillo","Carolina castillo","Carolina castillo","Carolina castillo","Carolina castillo","Carolina castillo","Carolina castillo","Carolina castillo","Carolina castillo","Carolina castillo","Carolina castillo","Carolina castillo","Carolina castillo","Carolina castillo","Carolina castillo","Carolina castillo","Carolina castillo","Carolina castillo","Carolina castillo","Carolina castillo","Carolina castillo","Carolina castillo","Carolina castillo","Carolina castillo","Carolina castillo","Carolina castillo","Carolina castillo","Carolina castillo","Carolina castillo","Carolina castillo","Carolina castillo","Carolina castillo","Carolina castillo","Carolina castillo","Carolina castillo","Carolina castillo","Carolina castillo","Carolina castillo","Carolina castillo","Carolina castillo","Carolina castillo","Carolina castillo","Carolina castillo","Carolina castillo","Carolina castillo","Carolina castillo","Carolina castillo","Carolina castillo","Carolina castillo","Carolina castillo","Carolina castillo","Carolina castillo","Carolina castillo","Carolina castillo","Carolina castillo","Carolina castillo","Carolina castillo","Carolina castillo","Carolina castillo","Carolina castillo","Carolina castillo","Carolina castillo","Carolina castillo","Carolina castillo","Carolina castillo","Carolina castillo","Carolina castillo","Carolina castillo","Carolina castillo","Carolina castillo","Carolina castillo","Carolina castillo","Carolina castillo","Carolina castillo","Carolina castillo","Carolina castillo","Carolina castillo","Carolina castillo","Carolina castillo","Carolina castillo","Carolina castillo","Carolina castillo","Carolina castillo","Carolina castillo","Carolina castillo","Carolina castillo","Carolina castillo","Carolina castillo","Carolina castillo","Carolina castillo","Carolina castillo","Carolina castillo","Carolina castillo","Carolina castillo","Carolina castillo","Carolina castillo","Carolina castillo","Carolina castillo","Carolina castillo","Carolina castillo","Carolina castillo","Carolina castillo","Carolina castillo","Carolina castillo","Carolina castillo","Carolina castillo","Carolina castillo","Carolina castillo","Carolina castillo","Carolina castillo","Carolina castillo","Carolina castillo","Carolina castillo","Carolina castillo","Carolina castillo","Carolina castillo","Carolina castillo","Carolina castillo","Carolina castillo","Carolina castillo","Carolina castillo","Carolina castillo","Carolina castillo","Carolina castillo","Carolina castillo","Carolina castillo","Carolina castillo","Carolina castillo","Carolina castillo","Carolina castillo","Carolina castillo","Carolina castillo","Carolina castillo","Carolina castillo","Carolina castillo","Carolina castillo","Carolina castillo","Carolina castillo","Carolina castillo","Carolina castillo","Carolina castillo","Carolina castillo","Carolina castillo","Carolina castillo","Carolina castillo","Carolina castillo","Carolina castillo","Carolina castillo","Carolina castillo","Carolina castillo","Carolina castillo","Carolina castillo","Carolina castillo","Carolina castillo","Carolina castillo","Carolina castillo","Carolina castillo","Carolina castillo","Carolina castillo","Carolina castillo","Carolina castillo","Carolina castillo","Carolina castillo","Carolina castillo","Carolina castillo","Carolina castillo","Carolina castillo","Carolina castillo","Carolina castillo","Carolina castillo","Carolina castillo","Carolina castillo","Carolina castillo","Carolina castillo","Carolina castillo","Carolina castillo","Carolina castillo","Carolina castillo","Carolina castillo","Carolina castillo","Carolina castillo","Carolina castillo","Carolina castillo","Carolina castillo","Carolina castillo","Carolina castillo","Carolina castillo","Carolina castillo","Carolina castillo","Carolina castillo","Carolina castillo","Carolina castillo","Carolina castillo","Carolina castillo","Carolina castillo","Carolina castillo","Carolina castillo","Carolina castillo","Carolina castillo","Carolina castillo","Carolina castillo","Carolina castillo","Carolina castillo","Carolina castillo","Carolina castillo","Carolina castillo","Carolina castillo","Carolina castillo","Carolina castillo","Carolina castillo","Carolina castillo","Carolina castillo","Carolina castillo","Carolina castillo","Carolina castillo","Carolina castillo","Carolina castillo","Carolina castillo","Carolina castillo","Carolina castillo","Carolina castillo","Carolina castillo","Carolina castillo","Carolina castillo","Carolina castillo","Carolina castillo","Carolina castillo","Carolina castillo","Carolina castillo","Carolina castillo","Carolina castillo","Carolina castillo","Carolina castillo","Carolina castillo","Carolina castillo","Carolina castillo","Carolina castillo","Carolina castillo","Carolina castillo","Carolina castillo","Carolina castillo","Carolina castillo","Carolina castillo","Carolina castillo","Carolina castillo","Carolina castillo","Carolina castillo","Carolina castillo","Carolina castillo","Carolina castillo","Carolina castillo","Carolina castillo","Carolina castillo","Carolina castillo","Carolina castillo","Carolina castillo","Carolina castillo","Carolina castillo","Carolina castillo","Carolina castillo","Carolina castillo","Carolina castillo","Carolina castillo","Carolina castillo","Carolina castillo","Carolina castillo","Carolina castillo","Carolina castillo","Carolina castillo","Carolina castillo","Carolina castillo","Carolina castillo","Carolina castillo","Carolina castillo","Carolina castillo","Carolina castillo","Carolina castillo","Carolina castillo","Carolina castillo","Carolina castillo","Carolina castillo","Carolina castillo","Carolina castillo","Carolina castillo","Carolina castillo","Carolina castillo","Carolina castillo","Carolina castillo","Carolina castillo","Carolina castillo","Carolina castillo","Carolina castillo","Carolina castillo","Carolina castillo","Carolina castillo","Carolina castillo","Carolina castillo","Carolina castillo","Carolina castillo","Carolina castillo","Carolina castillo","Carolina castillo","Carolina castillo","Carolina castillo","Carolina castillo","Carolina castillo","Carolina castillo","Carolina castillo","Carolina castillo","Carolina castillo","Carolina castillo","Carolina castillo","Carolina castillo","Carolina castillo","Carolina castillo","Carolina castillo","Carolina castillo","Carolina castillo","Carolina castillo","Carolina castillo","Carolina castillo","Carolina castillo","Carolina castillo","Carolina castillo","Carolina castillo","Carolina castillo","Carolina castillo","Carolina castillo","Carolina castillo","Carolina castillo","Carolina castillo","Carolina castillo","Carolina castillo","Carolina castillo","Carolina castillo","Carolina castillo","Carolina castillo","Carolina castillo","Carolina castillo","Carolina castillo","Carolina castillo","Carolina castillo","Carolina castillo","Carolina castillo","Carolina castillo","Carolina castillo","Carolina castillo","Carolina castillo","Carolina castillo","Carolina castillo","Carolina castillo","Carolina castillo","Carolina castillo","Carolina castillo","Carolina castillo","Carolina castillo","Carolina castillo","Carolina castillo","Carolina castillo","Carolina castillo","Carolina castillo","Carolina castillo","Carolina castillo","Carolina castillo","Carolina castillo","Carolina castillo","Carolina castillo","Carolina castillo","Carolina castillo","Carolina castillo","Carolina castillo","Carolina castillo","Carolina castillo","Carolina castillo","Carolina castillo","Carolina castillo","Carolina castillo","Carolina castillo","Carolina castillo","Carolina castillo","Carolina castillo","Carolina castillo","Carolina castillo","Carolina castillo","Carolina castillo","Carolina castillo","Carolina castillo","Carolina castillo","Carolina castillo","Carolina castillo","Carolina castillo","Carolina castillo","Carolina castillo","Carolina castillo","Carolina castillo","Carolina castillo","Carolina castillo","Carolina castillo","Carolina castillo","Carolina castillo","Carolina castillo","Carolina castillo","Carolina castillo","Carolina castillo","Carolina castillo","Carolina castillo","Carolina castillo","Carolina castillo","Carolina castillo","Carolina castillo","Carolina castillo","Carolina castillo","Carolina castillo","Carolina castillo","Carolina castillo","Carolina castillo","Carolina castillo","Carolina castillo","Carolina castillo","Carolina castillo","Carolina castillo","Carolina castillo","Carolina castillo","Carolina castillo","Carolina castillo","Carolina castillo","Carolina castillo","Carolina castillo","Carolina castillo","Carolina castillo","Carolina castillo","Carolina castillo","Carolina castillo","Carolina castillo","Carolina castillo","Carolina castillo","Carolina castillo","Carolina castillo","Carolina castillo","Carolina castillo","Carolina castillo","Carolina castillo","Carolina castillo","Carolina castillo","Carolina castillo","Carolina castillo","Carolina castillo","Carolina castillo","Carolina castillo","Carolina castillo","Carolina castillo","Carolina castillo","Carolina castillo","Carolina castillo","Carolina castillo","Carolina castillo","Carolina castillo","Carolina castillo","Carolina castillo","Carolina castillo","Carolina castillo","Carolina castillo","Carolina castillo","Carolina castillo","Carolina castillo","Carolina castillo","Carolina castillo","Carolina castillo","Carolina castillo","Carolina castillo","Carolina castillo","Carolina castillo","Carolina castillo","Carolina castillo","Carolina castillo","Carolina castillo","Carolina castillo","Carolina castillo","Carolina castillo","Carolina castillo","Carolina castillo","Carolina castillo","Carolina castillo","Carolina castillo","Carolina castillo","Carolina castillo","Carolina castillo","Carolina castillo","Carolina castillo","Carolina castillo","Carolina castillo","Carolina castillo","Carolina castillo","Carolina castillo","Carolina castillo","Carolina castillo","Carolina castillo","Carolina castillo","Carolina castillo","Carolina castillo","Carolina castillo","Carolina castillo","Carolina castillo","Carolina castillo","Carolina castillo","Carolina castillo","Carolina castillo","Carolina castillo","Carolina castillo","Carolina castillo","Carolina castillo","Carolina castillo","Carolina castillo","Carolina castillo","Carolina castillo","Carolina castillo","Carolina castillo","Carolina castillo","Carolina castillo","Carolina castillo","Carolina castillo","Carolina castillo","Carolina castillo","Carolina castillo","Carolina castillo","Carolina castillo","Carolina castillo","Carolina castillo","Carolina castillo","Carolina castillo","Carolina castillo","Carolina castillo","Carolina castillo","Carolina castillo","Carolina castillo","Carolina castillo","Carolina castillo","Carolina castillo","Carolina castillo","Carolina castillo","Carolina castillo","Carolina castillo","Carolina castillo","Carolina castillo","Carolina castillo","Carolina castillo","Carolina castillo","Carolina castillo","Carolina castillo","Carolina castillo","Carolina castillo","Carolina castillo","Carolina castillo","Carolina castillo","Carolina castillo","Carolina castillo","Carolina castillo","Carolina castillo","Carolina castillo","Carolina castillo","Carolina castillo","Carolina castillo","Carolina castillo","Carolina castillo","Carolina castillo","Carolina castillo","Carolina castillo","Carolina castillo","Carolina castillo","Carolina castillo","Carolina castillo","Carolina castillo","Carolina castillo","Carolina castillo","Carolina castillo","Carolina castillo","Carolina castillo","Carolina castillo","Carolina castillo","Carolina castillo","Carolina castillo","Carolina castillo","Carolina castillo","Carolina castillo","Carolina castillo","Carolina castillo","Carolina castillo","Carolina castillo","Carolina castillo","Carolina castillo","Carolina castillo","Carolina castillo","Carolina castillo","Carolina castillo","Carolina castillo","Carolina castillo","Carolina castillo","Carolina castillo","Carolina castillo","Carolina castillo","Carolina castillo","Carolina castillo","Carolina castillo","Carolina castillo","Carolina castillo","Carolina castillo","Carolina castillo","Carolina castillo","Carolina castillo","Carolina castillo","Carolina castillo","Carolina castillo","Carolina castillo","Carolina castillo","Carolina castillo","Carolina castillo","Carolina castillo","Carolina castillo","Carolina castillo","Carolina castillo","Carolina castillo","Carolina castillo","Carolina castillo","Carolina castillo","Carolina castillo","Carolina castillo","Carolina castillo","Carolina castillo","Carolina castillo","Carolina castillo","Carolina castillo","Carolina castillo","Carolina castillo","Carolina castillo","Carolina castillo","Carolina castillo","Carolina castillo","Carolina castillo","Carolina castillo","Carolina castillo","Carolina castillo","Carolina castillo","Carolina castillo","Carolina castillo","Carolina castillo","Carolina castillo","Carolina castillo","Carolina castillo","Carolina castillo","Carolina castillo","Carolina castillo","Carolina castillo","Carolina castillo","Carolina castillo","Carolina castillo","Carolina castillo","Carolina castillo","Carolina castillo","Carolina castillo","Carolina castillo","Carolina castillo","Carolina castillo","Carolina castillo","Carolina castillo","Carolina castillo","Carolina castillo","Carolina castillo","Carolina castillo","Carolina castillo","Carolina castillo","Carolina castillo","Carolina castillo","Carolina castillo","Carolina castillo","Carolina castillo","Carolina castillo","Carolina castillo","Carolina castillo","Carolina castillo","Carolina castillo","Carolina castillo","Carolina castillo","Carolina castillo","Carolina castillo","Carolina castillo","Carolina castillo","Carolina castillo","Carolina castillo","Carolina castillo","Carolina castillo","Carolina castillo","Carolina castillo","Carolina castillo","Carolina castillo","Carolina castillo","Carolina castillo","Carolina castillo","Carolina castillo","Carolina castillo","Carolina castillo","Carolina castillo","Carolina castillo","Carolina castillo","Carolina castillo","Carolina castillo","Carolina castillo","Carolina castillo","Carolina castillo","Carolina castillo","Carolina castillo","Carolina castillo","Carolina castillo","Carolina castillo","Carolina castillo","Carolina castillo","Carolina castillo","Carolina castillo","Carolina castillo","Carolina castillo","Carolina castillo","Carolina castillo","Carolina castillo","Carolina castillo","Carolina castillo","Carolina castillo","Carolina castillo","Carolina castillo","Carolina castillo","Carolina castillo","Carolina castillo","Carolina castillo","Carolina castillo","Carolina castillo","Carolina castillo","Carolina castillo","Carolina castillo","Carolina castillo","Carolina castillo","Carolina castillo","Carolina castillo","Carolina castillo","Carolina castillo","Carolina castillo","Carolina castillo","Carolina castillo","Carolina castillo","Carolina castillo","Carolina castillo","Carolina castillo","Carolina castillo","Carolina castillo","Carolina castillo","Carolina castillo","Carolina castillo","Carolina castillo","Carolina castillo","Carolina castillo","Carolina castillo","Carolina castillo","Carolina castillo","Carolina castillo","Carolina castillo","Carolina castillo","Carolina castillo","Carolina castillo","Carolina castillo","Carolina castillo","Carolina castillo","Carolina castillo","Carolina castillo","Carolina castillo","Carolina castillo","Carolina castillo","Carolina castillo","Carolina castillo","Carolina castillo","Carolina castillo","Carolina castillo","Carolina castillo","Carolina castillo","Carolina castillo","Carolina castillo","Carolina castillo","Carolina castillo","Carolina castillo","Carolina castillo","Carolina castillo","Carolina castillo","Carolina castillo","Carolina castillo","Carolina castillo","Carolina castillo","Carolina castillo","Carolina castillo","Carolina castillo","Carolina castillo","Carolina castillo","Carolina castillo","Carolina castillo","Carolina castillo","Carolina castillo","Carolina castillo","Carolina castillo","Carolina castillo","Carolina castillo","Carolina castillo","Carolina castillo","Carolina castillo","Carolina castillo","Carolina castillo","Carolina castillo","Carolina castillo","Carolina castillo","Carolina castillo","Carolina castillo","Carolina castillo","Carolina castillo","Carolina castillo","Carolina castillo","Carolina castillo","Carolina castillo","Carolina castillo","Carolina castillo","Carolina castillo","Carolina castillo","Carolina castillo","Carolina castillo","Carolina castillo","Carolina castillo","Carolina castillo","Carolina castillo","Carolina castillo","Carolina castillo","Carolina castillo","Carolina castillo","Carolina castillo","Carolina castillo","Carolina castillo","Carolina castillo","Carolina castillo","Carolina castillo","Carolina castillo","Carolina castillo","Carolina castillo","Carolina castillo","Carolina castillo","Carolina castillo","Carolina castillo","Carolina castillo","Carolina castillo","Carolina castillo","Carolina castillo","Carolina castillo","Carolina castillo","Carolina castillo","Carolina castillo","Carolina castillo","Carolina castillo","Carolina castillo","Carolina castillo","Carolina castillo","Carolina castillo","Carolina castillo","Carolina castillo","Carolina castillo","Carolina castillo","Carolina castillo","Carolina castillo","Carolina castillo","Carolina castillo","Carolina castillo","Carolina castillo","Carolina castillo","Carolina castillo","Carolina castillo","Carolina castillo","Carolina castillo","Carolina castillo","Carolina castillo","Carolina castillo","Carolina castillo","Carolina castillo","Carolina castillo","Carolina castillo","Carolina castillo","Carolina castillo","Carolina castillo","Carolina castillo","Carolina castillo","Carolina castillo","Carolina castillo","Carolina castillo","Carolina castillo","Carolina castillo","Carolina castillo","Carolina castillo","Carolina castillo","Carolina castillo","Carolina castillo","Carolina castillo","Carolina castillo","Carolina castillo","Carolina castillo","Carolina castillo","Carolina castillo","Carolina castillo","Carolina castillo","Carolina castillo","Carolina castillo","Carolina castillo","Carolina castillo","Carolina castillo","Carolina castillo","Carolina castillo","Carolina castillo","Carolina castillo","Carolina castillo","Carolina castillo","Carolina castillo","Carolina castillo","Carolina castillo","Carolina castillo","Carolina castillo","Carolina castillo","Carolina castillo","Carolina castillo","Carolina castillo","Carolina castillo","Carolina castillo","Carolina castillo","Carolina castillo","Carolina castillo","Carolina castillo","Carolina castillo","Carolina castillo","Carolina castillo","Carolina castillo","Carolina castillo","Carolina castillo","Carolina castillo","Carolina castillo","Carolina castillo","Carolina castillo","Carolina castillo","Carolina castillo","Carolina castillo","Carolina castillo","Carolina castillo","Carolina castillo","Carolina castillo","Carolina castillo","Carolina castillo","Carolina castillo","Carolina castillo","Carolina castillo","Carolina castillo","Carolina castillo","Carolina castillo","Carolina castillo","Carolina castillo","Carolina castillo","Carolina castillo","Carolina castillo","Carolina castillo","Carolina castillo","Carolina castillo","Carolina castillo","Carolina castillo","Carolina castillo","Carolina castillo","Carolina castillo","Carolina castillo","Carolina castillo","Carolina castillo","Carolina castillo","Carolina castillo","Carolina castillo","Carolina castillo","Carolina castillo","Carolina castillo","Carolina castillo","Carolina castillo","Carolina castillo","Carolina castillo","Carolina castillo","Carolina castillo","Carolina castillo","Carolina castillo","Carolina castillo","Carolina castillo","Carolina castillo","Carolina castillo","Carolina castillo","Carolina castillo","Carolina castillo","Carolina castillo","Carolina castillo","Carolina castillo","Carolina castillo","Carolina castillo","Carolina castillo","Carolina castillo","Carolina castillo","Carolina castillo","Carolina castillo","Carolina castillo","Carolina castillo","Carolina castillo","Carolina castillo","Carolina castillo","Carolina castillo","Carolina castillo","Carolina castillo","Carolina castillo","Carolina castillo","Carolina castillo","Carolina castillo","Carolina castillo","Carolina castillo","Carolina castillo","Carolina castillo","Carolina castillo","Carolina castillo","Carolina castillo","Carolina castillo","Carolina castillo","Carolina castillo","Carolina castillo","Carolina castillo","Carolina castillo","Carolina castillo","Carolina castillo","Carolina castillo","Carolina castillo","Carolina castillo","Carolina castillo","Carolina castillo","Carolina castillo","Carolina castillo","Carolina castillo","Carolina castillo","Carolina castillo","Carolina castillo","Carolina castillo","Carolina castillo","Carolina castillo","Carolina castillo","Carolina castillo","Carolina castillo","Carolina castillo","Carolina castillo","Carolina castillo","Carolina castillo","Carolina castillo","Carolina castillo","Carolina castillo","Carolina castillo","Carolina castillo","Carolina castillo","Carolina castillo","Carolina castillo","Carolina castillo","Carolina castillo","Carolina castillo","Carolina castillo","Carolina castillo","Carolina castillo","Carolina castillo","Carolina castillo","Carolina castillo","Carolina castillo","Carolina castillo","Carolina castillo","Carolina castillo","Carolina castillo","Carolina castillo","Carolina castillo","Carolina castillo","Carolina castillo","Carolina castillo","Carolina castillo","Carolina castillo","Carolina castillo","Carolina castillo","Carolina castillo","Carolina castillo","Carolina castillo","Carolina castillo","Carolina castillo","Carolina castillo","Carolina castillo","Carolina castillo","Carolina castillo","Carolina castillo","Carolina castillo","Carolina castillo","Carolina castillo","Carolina castillo","Carolina castillo","Carolina castillo","Carolina castillo","Carolina castillo","Carolina castillo","Carolina castillo","Carolina castillo","Carolina castillo","Carolina castillo","Carolina castillo","Carolina castillo","Carolina castillo","Carolina castillo","Carolina castillo","Carolina castillo","Carolina castillo","Carolina castillo","Carolina castillo","Carolina castillo","Carolina castillo","Carolina castillo","Carolina castillo","Carolina castillo","Carolina castillo","Carolina castillo","Carolina castillo","Carolina castillo","Carolina castillo","Carolina castillo","Carolina castillo","Carolina castillo","Carolina castillo","Carolina castillo","Carolina castillo","Carolina castillo","Carolina castillo","Carolina castillo","Carolina castillo","Carolina castillo","Carolina castillo","Carolina castillo","Carolina castillo","Carolina castillo","Carolina castillo","Carolina castillo","Carolina castillo","Carolina castillo","Carolina castillo","Carolina castillo","Carolina castillo","Carolina castillo","Carolina castillo","Carolina castillo","Carolina castillo","Carolina castillo","Carolina castillo","Carolina castillo","Carolina castillo","Carolina castillo","Carolina castillo","Carolina castillo","Carolina castillo","Carolina castillo","Carolina castillo","Carolina castillo","Carolina castillo","Carolina castillo","Carolina castillo","Carolina castillo","Carolina castillo","Carolina castillo","Carolina castillo","Carolina castillo","Carolina castillo","Carolina castillo","Carolina castillo","Carolina castillo","Carolina castillo","Carolina castillo","Carolina castillo","Carolina castillo","Carolina castillo","Carolina castillo","Carolina castillo","Carolina castillo","Carolina castillo","Carolina castillo","Carolina castillo","Carolina castillo","Carolina castillo","Carolina castillo","Carolina castillo","Carolina castillo","Carolina castillo","Carolina castillo","Carolina castillo","Carolina castillo","Carolina castillo","Carolina castillo","Carolina castillo","Carolina castillo","Carolina castillo","Carolina castillo","Carolina castillo","Carolina castillo","Carolina castillo","Carolina castillo","Carolina castillo","Carolina castillo","Carolina castillo","Carolina castillo","Carolina castillo","Carolina castillo","Carolina castillo","Carolina castillo","Carolina castillo","Carolina castillo","Carolina castillo","Carolina castillo","Carolina castillo","Carolina castillo","Carolina castillo","Carolina castillo","Carolina castillo","Carolina castillo","Carolina castillo","Carolina castillo","Carolina castillo","Carolina castillo","Carolina castillo","Carolina castillo","Carolina castillo","Carolina castillo","Carolina castillo","Carolina castillo","Carolina castillo","Carolina castillo","Carolina castillo","Carolina castillo","Carolina castillo","Carolina castillo","Carolina castillo","Carolina castillo","Carolina castillo","Carolina castillo","Carolina castillo","Carolina castillo","Carolina castillo","Carolina castillo","Carolina castillo","Carolina castillo","Carolina castillo","Carolina castillo","Carolina castillo","Carolina castillo","Carolina castillo","Carolina castillo","Carolina castillo","Carolina castillo","Carolina castillo","Carolina castillo","Carolina castillo","Carolina castillo","Carolina castillo","Carolina castillo","Carolina castillo","Carolina castillo","Carolina castillo","Carolina castillo","Carolina castillo","Carolina castillo","Carolina castillo","Carolina castillo","Carolina castillo","Carolina castillo","Carolina castillo","Carolina castillo","Carolina castillo","Carolina castillo","Carolina castillo","Carolina castillo","Carolina castillo","Carolina castillo","Carolina castillo","Carolina castillo","Carolina castillo","Carolina castillo","Carolina castillo","Carolina castillo","Carolina castillo","Carolina castillo","Carolina castillo","Carolina castillo","Carolina castillo","Carolina castillo","Carolina castillo","Carolina castillo","Carolina castillo","Carolina castillo","Carolina castillo","Carolina castillo","Carolina castillo","Carolina castillo","Carolina castillo","Carolina castillo","Carolina castillo","Carolina castillo","Carolina castillo","Carolina castillo","Carolina castillo","Carolina castillo","Carolina castillo","Carolina castillo","Carolina castillo","Carolina castillo","Carolina castillo","Carolina castillo","Carolina castillo","Carolina castillo","Carolina castillo","Carolina castillo","Carolina castillo","Carolina castillo","Carolina castillo","Carolina castillo","Carolina castillo","Carolina castillo","Carolina castillo","Carolina castillo","Carolina castillo","Carolina castillo","Carolina castillo","Carolina castillo","Carolina castillo","Carolina castillo","Carolina castillo","Carolina castillo","Carolina castillo","Carolina castillo","Carolina castillo","Carolina castillo","Carolina castillo","Carolina castillo","Carolina castillo","Carolina castillo","Carolina castillo","Carolina castillo","Carolina castillo","Carolina castillo","Carolina castillo","Carolina castillo","Carolina castillo","Carolina castillo","Carolina castillo","Carolina castillo","Carolina castillo","Carolina castillo","Carolina castillo","Carolina castillo","Carolina castillo","Carolina castillo","Carolina castillo","Carolina castillo","Carolina castillo","Carolina castillo","Carolina castillo","Carolina castillo","Carolina castillo","Carolina castillo","Carolina castillo","Carolina castillo","Carolina castillo","Carolina castillo","Carolina castillo","Carolina castillo","Carolina castillo","Carolina castillo","Carolina castillo","Carolina castillo","Carolina castillo","Carolina castillo","Carolina castillo","Carolina castillo","Carolina castillo","Carolina castillo","Carolina castillo","Carolina castillo","Carolina castillo","Carolina castillo","Carolina castillo","Carolina castillo","Carolina castillo","Carolina castillo","Carolina castillo","Carolina castillo","Carolina castillo","Carolina castillo","Carolina castillo","Carolina castillo","Carolina castillo","Carolina castillo","Carolina castillo","Carolina castillo","Carolina castillo","Carolina castillo","Carolina castillo","Carolina castillo","Carolina castillo","Carolina castillo","Carolina castillo","Carolina castillo","Carolina castillo","Carolina castillo","Carolina castillo","Carolina castillo","Carolina castillo","Carolina castillo","Carolina castillo","Carolina castillo","Carolina castillo","Carolina castillo","Carolina castillo","Carolina castillo","Carolina castillo","Carolina castillo","Carolina castillo","Carolina castillo","Carolina castillo","Carolina castillo","Carolina castillo","Carolina castillo","Carolina castillo","Carolina castillo","Carolina castillo","Carolina castillo","Carolina castillo","Carolina castillo","Carolina castillo","Carolina castillo","Carolina castillo","Carolina castillo","Carolina castillo","Carolina castillo","Carolina castillo","Carolina castillo","Carolina castillo","Carolina castillo","Carolina castillo","Carolina castillo","Carolina castillo","Carolina castillo","Carolina castillo","Carolina castillo","Carolina castillo","Carolina castillo","Carolina castillo","Carolina castillo","Carolina castillo","Carolina castillo","Carolina castillo","Carolina castillo","Carolina castillo","Carolina castillo","Carolina castillo","Carolina castillo","Carolina castillo","Carolina castillo","Carolina castillo","Carolina castillo","Carolina castillo","Carolina castillo","Carolina castillo","Carolina castillo","Carolina castillo","Carolina castillo","Carolina castillo","Carolina castillo","Carolina castillo","Carolina castillo","Carolina castillo","Carolina castillo","Carolina castillo","Carolina castillo","Carolina castillo","Carolina castillo","Carolina castillo","Carolina castillo","Carolina castillo","Carolina castillo","Carolina castillo","Carolina castillo","Carolina castillo","Carolina castillo","Carolina castillo","Carolina castillo","Carolina castillo","Carolina castillo","Carolina castillo","Carolina castillo","Carolina castillo","Carolina castillo","Carolina castillo","Carolina castillo","Carolina castillo","Carolina castillo","Carolina castillo","Carolina castillo","Carolina castillo","Carolina castillo","Carolina castillo","Carolina castillo","Carolina castillo","Carolina castillo","Carolina castillo","Carolina castillo","Carolina castillo","Carolina castillo","Carolina castillo","Carolina castillo","Carolina castillo","Carolina castillo","Carolina castillo","Carolina castillo","Carolina castillo","Carolina castillo","Carolina castillo","Carolina castillo","Carolina castillo","Carolina castillo","Carolina castillo","Carolina castillo","Carolina castillo","Carolina castillo","Carolina castillo","Carolina castillo","Carolina castillo","Carolina castillo","Carolina castillo","Carolina castillo","Carolina castillo","Carolina castillo","Carolina castillo","Carolina castillo","Carolina castillo","Carolina castillo","Carolina castillo","Carolina castillo","Carolina castillo","Carolina castillo","Carolina castillo","Carolina castillo","Carolina castillo","Carolina castillo","Carolina castillo","Carolina castillo","Carolina castillo","Carolina castillo","Carolina castillo","Carolina castillo","Carolina castillo","Carolina castillo","Carolina castillo","Carolina castillo","Carolina castillo","Carolina castillo","Carolina castillo","Carolina castillo","Carolina castillo","Carolina castillo","Carolina castillo","Carolina castillo","Carolina castillo","Carolina castillo","Carolina castillo","Carolina castillo","Carolina castillo","Carolina castillo","Carolina castillo","Carolina castillo","Carolina castillo","Carolina castillo","Carolina castillo","Carolina castillo","Carolina castillo","Carolina castillo","Carolina castillo","Carolina castillo","Carolina castillo","Carolina castillo","Carolina castillo","Carolina castillo","Carolina castillo","Carolina castillo","Carolina castillo","Carolina castillo","Carolina castillo","Carolina castillo","Carolina castillo","Carolina castillo","Carolina castillo","Carolina castillo","Carolina castillo","Carolina castillo","Carolina castillo","Carolina castillo","Carolina castillo","Carolina castillo","Carolina castillo","Carolina castillo","Carolina castillo","Carolina castillo","Carolina castillo","Carolina castillo","Carolina castillo","Carolina castillo","Carolina castillo","Carolina castillo","Carolina castillo","Carolina castillo","Carolina castillo","Carolina castillo","Carolina castillo","Carolina castillo","Carolina castillo","Carolina castillo","Carolina castillo","Carolina castillo","Carolina castillo","Carolina castillo","Carolina castillo","Carolina castillo","Carolina castillo","Carolina castillo","Carolina castillo","Carolina castillo","Carolina castillo","Carolina castillo","Carolina castillo","Carolina castillo","Carolina castillo","Carolina castillo","Carolina castillo","Carolina castillo","Carolina castillo","Carolina castillo","Carolina castillo","Carolina castillo","Carolina castillo","Carolina castillo","Carolina castillo","Carolina castillo","Carolina castillo","Carolina castillo","Carolina castillo","Carolina castillo","Carolina castillo","Carolina castillo","Carolina castillo","Carolina castillo","Carolina castillo","Carolina castillo","Carolina castillo","Carolina castillo","Carolina castillo","Carolina castillo","Carolina castillo","Carolina castillo","Carolina castillo","Carolina castillo","Carolina castillo","Carolina castillo","Carolina castillo","Carolina castillo","Carolina castillo","Carolina castillo","Carolina castillo","Carolina castillo","Carolina castillo","Carolina castillo","Carolina castillo","Carolina castillo","Carolina castillo","Carolina castillo","Carolina castillo","Carolina castillo","Carolina castillo","Carolina castillo","Carolina castillo","Carolina castillo","Carolina castillo","Carolina castillo","Carolina castillo","Carolina castillo","Carolina castillo","Carolina castillo","Carolina castillo","Carolina castillo","Carolina castillo","Carolina castillo","Carolina castillo","Carolina castillo","Carolina castillo","Carolina castillo","Carolina castillo","Carolina castillo","Carolina castillo","Carolina castillo","Carolina castillo","Carolina castillo","Carolina castillo","Carolina castillo","Carolina castillo","Carolina castillo","Carolina castillo","Carolina castillo","Carolina castillo","Carolina castillo","Carolina castillo","Carolina castillo","Carolina castillo","Carolina castillo","Carolina castillo","Carolina castillo","Carolina castillo","Carolina castillo","Carolina castillo","Carolina castillo","Carolina castillo","Carolina castillo","Carolina castillo","Carolina castillo","Carolina castillo","Carolina castillo","Carolina castillo","Carolina castillo","Carolina castillo","Carolina castillo","Carolina castillo","Carolina castillo","Carolina castillo","Carolina castillo","Carolina castillo","Carolina castillo","Carolina castillo","Carolina castillo","Carolina castillo","Carolina castillo","Carolina castillo","Carolina castillo","Carolina castillo","Carolina castillo","Carolina castillo","Carolina castillo","Carolina castillo","Carolina castillo","Carolina castillo","Carolina castillo","Carolina castillo","Carolina castillo","Carolina castillo","Carolina castillo","Carolina castillo","Carolina castillo","Carolina castillo","Carolina castillo","Carolina castillo","Carolina castillo","Carolina castillo","Carolina castillo","Carolina castillo","Carolina castillo","Carolina castillo","Carolina castillo","Carolina castillo","Carolina castillo","Carolina castillo","Carolina castillo","Carolina castillo","Carolina castillo","Carolina castillo","Carolina castillo","Carolina castillo","Carolina castillo","Carolina castillo","Carolina castillo","Carolina castillo","Carolina castillo","Carolina castillo","Carolina castillo","Carolina castillo","Carolina castillo","Carolina castillo","Carolina castillo","Carolina castillo","Carolina castillo","Carolina castillo","Carolina castillo","Carolina castillo","Carolina castillo","Carolina castillo","Carolina castillo","Carolina castillo","Carolina castillo","Carolina castillo","Carolina castillo","Carolina castillo","Carolina castillo","Carolina castillo","Carolina castillo","Carolina castillo","Carolina castillo","Carolina castillo","Carolina castillo","Carolina castillo","Carolina castillo","Carolina castillo","Carolina castillo","Carolina castillo","Carolina castillo","Carolina castillo","Carolina castillo","Carolina castillo","Carolina castillo","Carolina castillo","Carolina castillo","Carolina castillo","Carolina castillo","Carolina castillo","Carolina castillo","Carolina castillo","Carolina castillo","Carolina castillo","Carolina castillo","Carolina castillo","Carolina castillo","Carolina castillo","Carolina castillo","Carolina castillo","Carolina castillo","Carolina castillo","Carolina castillo","Carolina castillo","Carolina castillo","Carolina castillo","Carolina castillo","Carolina castillo","Carolina castillo","Carolina castillo","Carolina castillo","Carolina castillo","Carolina castillo","Carolina castillo","Carolina castillo","Carolina castillo","Carolina castillo","Carolina castillo","Carolina castillo","Carolina castillo","Carolina castillo","Carolina castillo","Carolina castillo","Carolina castillo","Carolina castillo","Carolina castillo","Carolina castillo","Carolina castillo","Carolina castillo","Carolina castillo","Carolina castillo","Carolina castillo","Carolina castillo","Carolina castillo","Carolina castillo","Carolina castillo","Carolina castillo","Carolina castillo","Carolina castillo","Carolina castillo","Carolina castillo","Carolina castillo","Carolina castillo","Carolina castillo","Carolina castillo","Carolina castillo","Carolina castillo","Carolina castillo","Carolina castillo","Carolina castillo","Carolina castillo","Carolina castillo","Carolina castillo","Carolina castillo","Carolina castillo","Carolina castillo","Carolina castillo","Carolina castillo","Carolina castillo","Carolina castillo","Carolina castillo","Carolina castillo","Carolina castillo","Carolina castillo","Carolina castillo","Carolina castillo","Carolina castillo","Carolina castillo","Carolina castillo","Carolina castillo","Carolina castillo","Carolina castillo","Carolina castillo","Carolina castillo","Carolina castillo","Carolina castillo","Carolina castillo","Carolina castillo","Carolina castillo","Carolina castillo","Carolina castillo","Carolina castillo","Carolina castillo","Carolina castillo","Carolina castillo","Carolina castillo","Carolina castillo","Carolina castillo","Carolina castillo","Carolina castillo","Carolina castillo","Carolina castillo","Carolina castillo","Carolina castillo","Carolina castillo","Carolina castillo","Carolina castillo","Carolina castillo","Carolina castillo","Carolina castillo","Carolina castillo","Carolina castillo","Carolina castillo","Carolina castillo","Carolina castillo","Carolina castillo","Carolina castillo","Carolina castillo","Carolina castillo","Carolina castillo","Carolina castillo","Carolina castillo","Carolina castillo","Carolina castillo","Carolina castillo","Carolina castillo","Carolina castillo","Carolina castillo","Carolina castillo","Carolina castillo","Carolina castillo","Carolina castillo","Carolina castillo","Carolina castillo","Carolina castillo","Carolina castillo","Carolina castillo","Carolina castillo","Carolina castillo","Carolina castillo","Carolina castillo","Carolina castillo","Carolina castillo","Carolina castillo","Carolina castillo","Carolina castillo","Carolina castillo","Carolina castillo","Carolina castillo","Carolina castillo","Carolina castillo","Carolina castillo","Carolina castillo","Carolina castillo","Carolina castillo","Carolina castillo","Carolina castillo","Carolina castillo","Carolina castillo","Carolina castillo","Carolina castillo","Carolina castillo","Carolina castillo","Carolina castillo","Carolina castillo","Carolina castillo","Carolina castillo","Carolina castillo","Carolina castillo","Carolina castillo","Carolina castillo","Carolina castillo","Carolina castillo","Carolina castillo","Carolina castillo","Carolina castillo","Carolina castillo","Carolina castillo","Carolina castillo","Carolina castillo","Carolina castillo","Carolina castillo","Carolina castillo","Carolina castillo","Carolina castillo","Carolina castillo","Carolina castillo","Carolina castillo","Carolina castillo","Carolina castillo","Carolina castillo","Carolina castillo","Carolina castillo","Carolina castillo","Carolina castillo","Carolina castillo","Carolina castillo","Carolina castillo","Carolina castillo","Carolina castillo","Carolina castillo","Carolina castillo","Carolina castillo","Carolina castillo","Carolina castillo","Carolina castillo","Carolina castillo","Carolina castillo","Carolina castillo","Carolina castillo","Carolina castillo","Carolina castillo","Carolina castillo","Carolina castillo","Carolina castillo","Carolina castillo","Carolina castillo","Carolina castillo","Carolina castillo","Carolina castillo","Carolina castillo","Carolina castillo","Carolina castillo","Carolina castillo","Carolina castillo","Carolina castillo","Carolina castillo","Carolina castillo","Carolina castillo","Carolina castillo","Carolina castillo","Carolina castillo","Carolina castillo","Carolina castillo","Carolina castillo","Carolina castillo","Carolina castillo","Carolina castillo","Carolina castillo","Carolina castillo","Carolina castillo","Carolina castillo","Carolina castillo","Carolina castillo","Carolina castillo","Carolina castillo","Carolina castillo","Carolina castillo","Carolina castillo","Carolina castillo","Carolina castillo","Carolina castillo","Carolina castillo","Carolina castillo","Carolina castillo","Carolina castillo","Carolina castillo","Carolina castillo","Carolina castillo","Carolina castillo","Carolina castillo","Carolina castillo","Carolina castillo","Carolina castillo","Carolina castillo","Carolina castillo","Carolina castillo","Carolina castillo","Carolina castillo","Carolina castillo","Carolina castillo","Carolina castillo","Carolina castillo","Carolina castillo","Carolina castillo","Carolina castillo","Carolina castillo","Carolina castillo","Carolina castillo","Carolina castillo","Carolina castillo","Carolina castillo","Carolina castillo","Carolina castillo","Carolina castillo","Carolina castillo","Carolina castillo","Carolina castillo","Carolina castillo","Carolina castillo","Carolina castillo","Carolina castillo","Carolina castillo","Carolina castillo","Carolina castillo","Carolina castillo","Carolina castillo","Carolina castillo","Carolina castillo","Carolina castillo","Carolina castillo","Carolina castillo","Carolina castillo","Carolina castillo","Carolina castillo","Carolina castillo","Carolina castillo","Carolina castillo","Carolina castillo","Carolina castillo","Carolina castillo","Carolina castillo","Carolina castillo","Carolina castillo","Carolina castillo","Carolina castillo","Carolina castillo","Carolina castillo","Carolina castillo","Carolina castillo","Carolina castillo","Carolina castillo","Carolina castillo","Carolina castillo","Carolina castillo","Carolina castillo","Carolina castillo","Carolina castillo","Carolina castillo","Carolina castillo","Carolina castillo","Carolina castillo","Carolina castillo","Carolina castillo","Carolina castillo","Carolina castillo","Carolina castillo","Carolina castillo","Carolina castillo","Carolina castillo","Carolina castillo","Carolina castillo","Carolina castillo","Carolina castillo","Carolina castillo","Carolina castillo","Carolina castillo","Carolina castillo","Carolina castillo","Carolina castillo","Carolina castillo","Carolina castillo","Carolina castillo","Carolina castillo","Carolina castillo","Carolina castillo","Carolina castillo","Carolina castillo","Carolina castillo","Carolina castillo","Carolina castillo","Carolina castillo","Carolina castillo","Carolina castillo","Carolina castillo","Carolina castillo","Carolina castillo","Carolina castillo","Carolina castillo","Carolina castillo","Carolina castillo","Carolina castillo","Carolina castillo","Carolina castillo","Carolina castillo","Carolina castillo","Carolina castillo","Carolina castillo","Carolina castillo","Carolina castillo","Carolina castillo","Carolina castillo","Carolina castillo","Carolina castillo","Carolina castillo","Carolina castillo","Carolina castillo","Carolina castillo","Carolina castillo","Carolina castillo","Carolina castillo","Carolina castillo","Carolina castillo","Carolina castillo","Carolina castillo","Carolina castillo","Carolina castillo","Carolina castillo","Carolina castillo","Carolina castillo","Carolina castillo","Carolina castillo","Carolina castillo","Carolina castillo","Carolina castillo","Carolina castillo","Carolina castillo","Carolina castillo","Carolina castillo","Carolina castillo","Carolina castillo","Carolina castillo","Carolina castillo","Carolina castillo","Carolina castillo","Carolina castillo","Carolina castillo","Carolina castillo","Carolina castillo","Carolina castillo","Carolina castillo","Carolina castillo","Carolina castillo","Carolina castillo","Carolina castillo","Carolina castillo","Carolina castillo","Carolina castillo","Carolina castillo","Carolina castillo","Carolina castillo","Carolina castillo","Carolina castillo","Carolina castillo","Carolina castillo","Carolina castillo","Carolina castillo","Carolina castillo","Carolina castillo","Carolina castillo","Carolina castillo","Carolina castillo","Carolina castillo","Carolina castillo","Carolina castillo","Carolina castillo","Carolina castillo","Carolina castillo","Carolina castillo","Carolina castillo","Carolina castillo","Carolina castillo","Carolina castillo","Carolina castillo","Carolina castillo","Carolina castillo","Carolina castillo","Carolina castillo","Carolina castillo","Carolina castillo","Carolina castillo","Carolina castillo","Carolina castillo","Carolina castillo","Carolina castillo","Carolina castillo","Carolina castillo","Carolina castillo","Carolina castillo","Carolina castillo","Carolina castillo","Carolina castillo","Carolina castillo","Carolina castillo","Carolina castillo","Carolina castillo","Carolina castillo","Carolina castillo","Carolina castillo","Carolina castillo","Carolina castillo","Carolina castillo","Carolina castillo","Carolina castillo","Carolina castillo","Carolina castillo","Carolina castillo","Carolina castillo","Carolina castillo","Carolina castillo","Carolina castillo","Carolina castillo","Carolina castillo","Carolina castillo","Carolina castillo","Carolina castillo","Carolina castillo","Carolina castillo","Carolina castillo","Carolina castillo","Carolina castillo","Carolina castillo","Carolina castillo","Carolina castillo","Carolina castillo","Carolina castillo","Carolina castillo","Carolina castillo","Carolina castillo","Carolina castillo","Carolina castillo","Carolina castillo","Carolina castillo","Carolina castillo","Carolina castillo","Carolina castillo","Carolina castillo","Carolina castillo","Carolina castillo","Carolina castillo","Carolina castillo","Carolina castillo","Carolina castillo","Carolina castillo","Carolina castillo","Carolina castillo","Carolina castillo","Carolina castillo","Carolina castillo","Carolina castillo","Carolina castillo","Carolina castillo","Carolina castillo","Carolina castillo","Carolina castillo","Carolina castillo","Carolina castillo","Carolina castillo","Carolina castillo","Carolina castillo","Carolina castillo","Carolina castillo","Carolina castillo","Carolina castillo","Carolina castillo","Carolina castillo","Carolina castillo","Carolina castillo","Carolina castillo","Carolina castillo","Carolina castillo","Carolina castillo","Carolina castillo","Carolina castillo","Carolina castillo","Carolina castillo","Carolina castillo","Carolina castillo","Carolina castillo","Carolina castillo","Carolina castillo","Carolina castillo","Carolina castillo","Carolina castillo","Carolina castillo","Carolina castillo","Carolina castillo","Carolina castillo","Carolina castillo","Carolina castillo","Carolina castillo","Carolina castillo","Carolina castillo","Carolina castillo","Carolina castillo","Carolina castillo","Carolina castillo","Carolina castillo","Carolina castillo","Carolina castillo","Carolina castillo","Carolina castillo","Carolina castillo","Carolina castillo","Carolina castillo","Carolina castillo","Carolina castillo","Carolina castillo","Carolina castillo","Carolina castillo","Carolina castillo","Carolina castillo","Carolina castillo","Carolina castillo","Carolina castillo","Carolina castillo","Carolina castillo","Carolina castillo","Carolina castillo","Carolina castillo","Carolina castillo","Carolina castillo","Carolina castillo","Carolina castillo","Carolina castillo","Carolina castillo","Carolina castillo","Carolina castillo","Carolina castillo","Carolina castillo","Carolina castillo","Carolina castillo","Carolina castillo","Carolina castillo","Carolina castillo","Carolina castillo","Carolina castillo","Carolina castillo","Carolina castillo","Carolina castillo","Carolina castillo","Carolina castillo","Carolina castillo","Carolina castillo","Carolina castillo","Carolina castillo","Carolina castillo","Carolina castillo","Carolina castillo","Carolina castillo","Carolina castillo","Carolina castillo","Carolina castillo","Carolina castillo","Carolina castillo","Carolina castillo","Carolina castillo","Carolina castillo","Carolina castillo","Carolina castillo","Carolina castillo","Carolina castillo","Carolina castillo","Carolina castillo","Carolina castillo","Carolina castillo","Carolina castillo","Carolina castillo","Carolina castillo","Carolina castillo","Carolina castillo","Carolina castillo","Carolina castillo","Carolina castillo","Carolina castillo","Carolina castillo","Carolina castillo","Carolina castillo","Carolina castillo","Carolina castillo","Carolina castillo","Carolina castillo","Carolina castillo","Carolina castillo","Carolina castillo","Carolina castillo","Carolina castillo","Carolina castillo","Carolina castillo","Carolina castillo","Carolina castillo","Carolina castillo","Carolina castillo","Carolina castillo","Carolina castillo","Carolina castillo","Carolina castillo","Carolina castillo","Carolina castillo","Carolina castillo","Carolina castillo","Carolina castillo","Carolina castillo","Carolina castillo","Carolina castillo","Carolina castillo","Carolina castillo","Carolina castillo","Carolina castillo","Carolina castillo","Carolina castillo","Carolina castillo","Carolina castillo","Carolina castillo","Carolina castillo","Carolina castillo","Carolina castillo","Carolina castillo","Carolina castillo","Carolina castillo","Carolina castillo","Carolina castillo","Carolina castillo","Carolina castillo","Carolina castillo","Carolina castillo","Carolina castillo","Carolina castillo","Carolina castillo","Carolina castillo","Carolina castillo","Carolina castillo","Carolina castillo","Carolina castillo","Carolina castillo","Carolina castillo","Carolina castillo","Carolina castillo","Carolina castillo","Carolina castillo","Carolina castillo","Carolina castillo","Carolina castillo","Carolina castillo","Carolina castillo","Carolina castillo","Carolina castillo","Carolina castillo","Carolina castillo","Carolina castillo","Carolina castillo","Carolina castillo","Carolina castillo","Carolina castillo","Carolina castillo","Carolina castillo","Carolina castillo","Carolina castillo","Carolina castillo","Carolina castillo","Carolina castillo","Carolina castillo","Carolina castillo","Carolina castillo","Carolina castillo","Carolina castillo","Carolina castillo","Carolina castillo","Carolina castillo","Carolina castillo","Carolina castillo","Carolina castillo","Carolina castillo","Carolina castillo","Carolina castillo","Carolina castillo","Carolina castillo","Carolina castillo","Carolina castillo","Carolina castillo","Carolina castillo","Carolina castillo","Carolina castillo","Carolina castillo","Carolina castillo","Carolina castillo","Carolina castillo","Carolina castillo","Carolina castillo","Carolina castillo","Carolina castillo","Carolina castillo","Carolina castillo","Carolina castillo","Carolina castillo","Carolina castillo","Carolina castillo","Carolina castillo","Carolina castillo","Carolina castillo","Carolina castillo","Carolina castillo","Carolina castillo","Carolina castillo","Carolina castillo","Carolina castillo","Carolina castillo","Carolina castillo","Carolina castillo","Carolina castillo","Carolina castillo","Carolina castillo","Carolina castillo","Carolina castillo","Carolina castillo","Carolina castillo","Carolina castillo","Carolina castillo","Carolina castillo","Carolina castillo","Carolina castillo","Carolina castillo","Carolina castillo","Carolina castillo","Carolina castillo","Carolina castillo","Carolina castillo","Carolina castillo","Carolina castillo","Carolina castillo","Carolina castillo","Carolina castillo","Carolina castillo","Carolina castillo","Carolina castillo","Carolina castillo"]
["Mery Melguizo "]
["Oficina Asesora Jurídica"]
["Grupo de Trabajo Cobro Coactivo"]
["Gestión de Trabajo Gestión Judicial"]
["Grupo de Trabajo de Regulación"]
["Oficina de Control Interno"]
["Oficina Asesora de Planeación"]
["Grupo de Trabajo de Estudios Económicos"]
["Grupo de Trabajo de Asuntos Internacionales"]
["Oficina de Servicios al Consumidor y de Apoyo Empresarial"]
["Grupo de Atención al Ciudadano"]
["Grupo de Formación"]
["Grupo de Comunicación"]
["Oficina de Tecnología e Informática"]
["Secretaría General"]
["Grupo de Trabajo de Administración de Personal"]
["Grupo de Trabajo de Desarrollo del Talento Humano"]
["Grupo de Trabajo de Control Disciplinario Interno"]
["Grupo de Trabajo de Notificaciones y Certificaciones"]
["Grupo de Trabajo de Gestión Documental y Archivo"]
["Grupo de Trabajo de Servicios Administrativos y Recursos Físicos"]
["Grupo de Trabajo  Contratación"]
["Dirección  Financiera"]
["Delegatura para la protección del Consumidor"]
["Grupo de trabajo de Apoyo a la Red Nacional de Protección al Consumidor"]
["Dirección de Investigaciones de Protección al Consumidor      "]
["Dirección de Investigaciones de Protección de Usuarios de Servicios de Comunicaciones "]
["Delegatura para la Protección de Datos"]
["Delegatura para el Control y Verificación de Reglamentos Técnicos y Metrología Legal  "]
["Delegatura para Asuntos  Jurisdiccionales"]
["Delegatura para la Propiedad Industrial"]
["Grupo de Trabajo de Vía Gubernativa "]
["Grupo de Trabajo de Centro de Información Tecnológica y Apoyo a la Gestión de Propiedad Industrial - CIGEPI"]
["Dirección de Signos Distintivos"]
["Dirección de  Nuevas Creaciones"]
["Delegatura para la Protección de la Competencia"]
["Dirección de Cámaras de Comercio"]
[]
[]
[]
[]
["Objetivos Estratégicos "]
["Fortalecer los servicios de formación y divulgación de los derechos y deberes de ciudadanos y empresarios.","OBJ_5","N/A","Cursos virtuales y jornadas academicas realizadas a ciudadanos en los temas misionales de la SIC","Instrumentos implementados y fortalecidos para prevenir infracciones al estatuto del consumidor y al régimen de libre competencia económica (Programa de formación presencial y virtual sobre): \n1.Promover el uso del sistema de propiedad industrial\n2. Protección al consumidor para empresas\n3. Regimen de libre competencia económica"]
["Adoptar las mejores prácticas en materia de participación y servicio al ciudadano.","OBJ_4","N/A","Porcentaje de PQRSD contestadas dentro del término de Ley"]
["Afianzar el modelo de Empresa Familiarmente Responsable","OBJ_9","N/A","Número de puntos porcentuales de incremento en la dimensión de talento humano del Índice de Desempeño Institucional del Sector Comercio, Industria y Turismo"]
["Fortalecer los programas de fomento de la propiedad industrial que promuevan la consolidación de estos derechos como activos empresariales y el uso de la información contenida en los documentos de patentes como base para nuevos desarrollos.","OBJ_6","N/A","Acciones a cargo de la Delegatura de Propiedad Industrial encaminadas al cumplimiento del PND, Ejecutadas. (PND)","Boletines tecnológicos publicados","Instrumentos para promover la Propiedad Industrial fortalecidos","Jornadas de sensibilización y orientación en Propiedad Industrial para emprendedores a través de programas de emprendimiento desarrolladas","Programa de transferencia de tecnología diseñado y puesto en marcha"]
["Fortalecer los programas de prevención en materia de infracciones al estatuto del consumidor, protección de datos personales y el régimen de libre competencia económica, sin perjuicio de los procesos y actuaciones sancionatorias.","OBJ_1","N/A","Actividades de atención y descongestión de trámites relacionados con posibles violaciones al régimen de protección de datos personales, ejecutadas. ","Actuaciones administrativas de las unidades de inspección, vigilancia y control regional en materia de protección al consumidor realizadas","Actuaciones administrativas de manera oficiosa en el sector grandes almacenes iniciadas","Análisis de las condiciones de competencia de los mercados en los que la SIC ha aprobado integraciones empresariales, realizados","Campañas integrales de educación al consumidor, a las industrias y a las alcaldías realizadas","Estudios de impacto normativo culminados","Informes sobre las actuaciones e investigaciones en materia de protección de la competencia y de las que ya existe decisión realizados","Instrumentos de medición verificados","Instrumentos implementados y fortalecidos para prevenir infracciones al estatuto del consumidor y al régimen de libre competencia económica:\n1. Abogacía de la competencia\n2. Control de integraciones\n3. Lineamientos de buenas prácticas","Instrumentos implementados y fortalecidos para prevenir infracciones al estatuto del consumidor y al régimen de libre competencia económica:\n1.Prevensic \n2. Mesas de diálogo sectoriales \n3. Instrucciones ","Jornadas de capacitación y divulgación, realizadas","Mercados monitoreados para la prevención de infracciones al régimen de libre competencia económica","Numero de atenciones a través de los programas de la Red Nacional de Protección al Consumidor","Visitas de inspección a comerciantes realizadas"]
["Fortalecer procesos de analítica institucional para la toma de decisiones","OBJ_10","N/A","Certificación de las operaciones estadísticas de Nuevas Creaciones obtenida","Proyectos de la 4 revolución industrial (incluida IA), ejecutados"]
["Generar la cultura de gestión del conocimiento y la innovación","OBJ_8","N/A","Porcentaje de programas en Gestión del Conocimiento e innovación implementados en las entidades sector","Porcentaje de servidores públicos del sector que participan en espacios de innovación"]
["Implementar las mejores prácticas en materia de gestión documental","OBJ_7","N/A","Porcentaje de cumplimiento en el plan de Implementación de Instrumentos Archivísticos en todas las Entidades del Sector"]
["Mejorar la eficiencia en el gasto público","OBJ_11","N/A","Porcentaje de cumplimiento de los planes institucionales de austeridad","Porcentaje de ejecución del presupuesto público del sector CIT","Indice de Desempeño Institucional Sectorial de la vigencia anterior"]
["Mejorar la infraestructura, uso y aprovechamiento de las tecnologías de la información.","OBJ_3","N/A","Porcentaje de ejecución del Plan Estratégico de Tecnologías de la Información y las Comunicaciones - PETI, con proyectos actualizados de acuerdo con los recursos asignados","Politica de Gobierno Digital implementada  ","Plan de implementación de Seguridad  y Privacidad de la información, ejecutado"]
["Mejorar la oportunidad y calidad en la atención de trámites y servicios dirigidos a usuarios, empresarios, ciudadanos y demás grupos de interés a través de la implementación de herramientas tecnológicas.","OBJ_2","N/A","Justicia digital implementada (SAJUR 2.0, escaneo pruebas 3D, expediente electrónico y relatorias)"]
["N/A","OBJ_12","N/A"]
[]
[]
[]
["INSUMOS"]
["1-Datos principales  del Programa de Gobierno"]
["2-Analítica Institucional - Estadísticas"]
["3-Sistema Estadistico Nacional - Indicares Relevantes"]
["4-Caracterización Grupos de Valor"]
["5-CONPES"]
["6-Plan Estratégico de Tecnologías de la Información"]
["7-Ejecución Presupuestal 2022"]
["8-Modelo Integrado de Planeación y Gestión "]
["9-Gestión de riesgos"]
["10-Indicadores"]
["11-Producto no conforme"]
["12-Planes de mejoramiento"]
["13-Experiencia SIC"]
["14-PQRS"]
["15-Resultados de la encuesta trámites 2022"]
["16-TrÁmites y OPAS"]
["17-Rendición de cuentas e inrome del congreso"]
["18-Documentación "]
["19-N/A"]
[]
[]
[]
[]
[]
[]
[]
[]
[]
[]
[]
[]
[]
[]
[]
[]
[]
["Fuente de Financiación"]
["  1» Fortalecimiento de la atención y promoción de trámites y servicios en el marco del sistema de propiedad industrial a nivel  nacional"]
["  2» Fortalecimiento de la función de inspección, control y vigilancia de la superintendencia de industria y comercio en el marco del subsistema nacional de calidad, el régimen de control de precios y el sector valuatorio a nivel  nacional"]
["  3»Fortalecimiento de la función jurisdiccional de la superintendencia de industria y comercio a nivel  nacional"]
["  4»Fortalecimiento de la protección de datos personales a nivel  nacional"]
["  5»Fortalecimiento del régimen de protección de la libre competencia económica en los mercados a nivel  nacional"]
["  6»Fortalecimiento del sistema de atención al ciudadano de la superintendencia de industria y comercio a nivel  nacional"]
["  7»Incremento de la cobertura de los servicios de la red nacional de protección al consumidor en el territorio  nacional"]
["  8» Mejoramiento de los sistemas de información y servicios tecnológicos de la superintendencia de industria y comercio en el territorio  nacional"]
[" 9» Mejoramiento en la calidad de la gestión estratégica de la superintendencia de industria y comercio a nivel  nacional"]
[" 10» Mejoramiento en la ejecución de las funciones asignadas en materia de protección al consumidor a nivel  nacional"]
["  11» Funcionamiento"]
["N/A"]
["N/A"]
[]
[]
["MIPG"]
[" 1. Planeación Institucional"]
[" 2. Gestión presupuestal y eficiencia del gasto público"]
[" 3. Compras y Contratación Pública "]
[" 4. Talento humano"]
[" 5. Integridad"]
[" 6. Transparencia, acceso a la información pública y lucha contra la corrupción"]
[" 7. Fortalecimiento organizacional y simplificación de procesos"]
[" 8. Servicio al ciudadano"]
[" 9. Participación ciudadana en la gestión pública"]
[" 10. Racionalización de trámites"]
[" 11.Gobierno digital"]
[" 12. Seguridad digital"]
[" 13.Defensa jurídica"]
[" 14. Mejora normativa"]
[" 15.Gestión del conocimiento y la innovación"]
[" 16.Gestión documental"]
[" 17.Gestión de la información estadística"]
[" 18. Seguimiento y evaluación del desempeño institucional"]
[" 19. Control interno"]
["N/A"]
[]
[]
[]
[]
[]
[]
[]
[]
[]
[]
["Áreas Responsables",10,"Oficina Asesora Jurídica"]
[{"$f":"\"»\"&B199&\"-\"&C199","v":"»10-Oficina Asesora Jurídica"},11,"Grupo de Trabajo Cobro Coactivo"]
[{"$f":"\"»\"&B200&\"-\"&C200","v":"»11-Grupo de Trabajo Cobro Coactivo"},12,"Grupo de Trabajo de Regulación"]
["»12-Grupo de Trabajo de Regulación",20,"Oficina de Tecnología e Informática"]
["»20-Oficina de Tecnología e Informática",30,"Oficina Asesora de Planeación"]
["»30-Oficina Asesora de Planeación",37,"Grupo de Trabajo de Estudios Económicos"]
["»37-Grupo de Trabajo de Estudios Económicos",38,"Grupo de Trabajo de Asuntos Internacionales"]
["»38-Grupo de Trabajo de Asuntos Internacionales",50,"Oficina de Control Interno"]
["»50-Oficina de Control Interno",60,"Grupo de Trabajo Gestión Judicial"]
["»60-Grupo de Trabajo Gestión Judicial",71,"Grupo de Formación"]
["»71-Grupo de Formación",72,"Grupo de Atención al Ciudadano"]
["»72-Grupo de Atención al Ciudadano",73,"Grupo de Comunicación"]
["»73-Grupo de Comunicación",100,"Secretaría General"]
["»100-Secretaría General",103,"Grupo de Trabajo de Control Disciplinario Interno"]
["»103-Grupo de Trabajo de Control Disciplinario Interno",104,"Grupo de Trabajo de Notificaciones y Certificaciones"]
["»104-Grupo de Trabajo de Notificaciones y Certificaciones",105,"Grupo de Trabajo  Contratación"]
["»105-Grupo de Trabajo  Contratación",111,"Grupo de Trabajo de Administración de Personal"]
["»111-Grupo de Trabajo de Administración de Personal",117,"Grupo de Trabajo de Desarrollo del Talento Humano"]
["»117-Grupo de Trabajo de Desarrollo del Talento Humano",130,"Dirección  Financiera"]
["»130-Dirección  Financiera",141,"Grupo de Trabajo de Gestión Documental y Archivo"]
["»141-Grupo de Trabajo de Gestión Documental y Archivo",142,"Grupo de Trabajo de Servicios Administrativos y Recursos Físicos"]
["»142-Grupo de Trabajo de Servicios Administrativos y Recursos Físicos",1000,"Delegatura para la Protección de la Competencia"]
["»1000-Delegatura para la Protección de la Competencia",2000,"Delegatura para la Propiedad Industrial"]
["»2000-Delegatura para la Propiedad Industrial",2010,"Dirección de Signos Distintivos"]
["»2010-Dirección de Signos Distintivos",2020,"Dirección de  Nuevas Creaciones"]
["»2020-Dirección de  Nuevas Creaciones",2023,"Grupo de Trabajo de Centro de Información Tecnológica y Apoyo a la Gestión de Propiedad Industrial - CIGEPI"]
["»2023-Grupo de Trabajo de Centro de Información Tecnológica y Apoyo a la Gestión de Propiedad Industrial - CIGEPI",3000,"Delegatura para la protección del Consumidor"]
["»3000-Delegatura para la protección del Consumidor",3003,"Grupo de trabajo de Apoyo a la Red Nacional de Protección al Consumidor"]
["»3003-Grupo de trabajo de Apoyo a la Red Nacional de Protección al Consumidor",3100,"Dirección de Investigaciones de Protección al Consumidor      "]
["»3100-Dirección de Investigaciones de Protección al Consumidor      ",3200,"Dirección de Investigaciones de Protección de Usuarios de Servicios de Comunicaciones "]
["»3200-Dirección de Investigaciones de Protección de Usuarios de Servicios de Comunicaciones ",4000,"Delegatura para Asuntos  Jurisdiccionales"]
["»4000-Delegatura para Asuntos  Jurisdiccionales",6000,"Delegatura para el Control y Verificación de Reglamentos Técnicos y Metrología Legal  "]
["»6000-Delegatura para el Control y Verificación de Reglamentos Técnicos y Metrología Legal  ",7000,"Delegatura para la Protección de Datos"]
["»7000-Delegatura para la Protección de Datos"]
[]
[]
[]
[]
[]
[]
["Asociación a Planes"]
[" 1- Plan Anual de Adquisiciones"]
[" 2- Gasto público "]
[" 3- Plan Estratégico de TH (PETH)"]
[" 4- Vacantes"]
[" 5- Previsión RH"]
[" 6- Plan Institucional de Capacitación (PIC)"]
[" 7- Incentivos"]
[" 8- Seguridad y Salud en el Trabajo (SYST)"]
[" 9-PTEP - Gestión Integral del riesgo de corrupción"]
[" 10-PTEP - Redes institucionales y canales de denuncia"]
[" 11-PTEP - Legalidad e integridad"]
[" 12-PTEP - Iniciativas adicionales"]
[" 13-PTEP - Participación ciudadana y rendición de cuentas"]
[" 14-PTEP - Transparencia y acceso a la información "]
[" 15-PTEP - Estado abierto"]
[" 16- Participación Ciudadana "]
[" 17- Plan Estratégico de Tecnologías de la Información"]
[" 18- Mantenimiento Servicio Tecnológico"]
[" 18- Conservación  Documental "]
[" 20- Preservación Digital"]
[" 21- Riesgos de Seguridad y privacidad de la Información"]
[" 22- Seguridad y Privacidad de la Información"]
[" 23- Plan Institucional de Archivos (PINAR)"]
[" 24- Austeridad y G Ambiental "]
["N/A"]